Workbook

Sheet Start
B4: Select: | E4: TC
B6: =IF(Class="TC","Regular Class, exams in the Testing Center.","Online Degree,testing online with HonerLock") -> Regular Class, exams in the Testing Center.

Sheet 1) My Tasks
F2: Introducing Yourself is Due: | H2: 2025-09-07 | I2: FALSE | J2: =IF($AP$2=0,"",IF(AND(H2<>"",H2-$AL$2<=4,H2-$AL$2>1,I2=FALSE),"Due Soon",IF(I2=TRUE,"Completed",IF(AND(H2-$AL$2>=22,I2=TRUE),"Early",IF(AND(H2-$AL$2>=22,I2=FALSE),"",IF(AND(I2=FALSE,H2-$AL$2=1),"Due Tomorrow",IF(H2="","",IF(AND(I2=FALSE,H2=$AL$2),"Due Today",IF(AND(I2=FALSE,H2>$AL$2,H2<=$AL$2+2),"Due in " &H2-$AL$2&" days",IF(AND(I2=FALSE,H2<=$AL$2),"Late","Due in "&H2-$AL$2&" days")))))))))) ->  | O2: Activate? | P2: No | R2: Today Date | V2: =AL2 -> 2025-11-28 | AL2: =TODAY() -> 2025-11-28 | AN2: OL | AO2: Yes | AP2: =IF(P2="Yes",1,0) -> 0
X3: Extra Assignments and MLM Samples are required and Graded.They are part of the participation points | AL3: =TODAY()-1 -> 2025-11-27 | AN3: TC | AO3: No
AN4: TC
F5: Master Quizzes MQ 5% | N5: MyLab Math MLM 15% | V5: Extra Assignments
F6: MQ | G6: Day | H6: Due Date | N6: MLM | O6: Due Date | AD6: =IF(Start!$E$4="OL",AL6,"") ->  | AL6: Required , covering chapters 1 and 2
F7: 1.1 | G7: =H7 -> 2025-08-30 | H7: =VLOOKUP(F7,MQ,4,FALSE) -> 2025-08-30 | I7: FALSE | J7: =IF($AP$2=0,"",IF(AND(H7<>"",H7-$AL$2<=4,H7-$AL$2>1,I7=FALSE),"Due Soon",IF(I7=TRUE,"Completed",IF(AND(H7-$AL$2>=22,I7=TRUE),"Early",IF(AND(H7-$AL$2>=22,I7=FALSE),"",IF(AND(I7=FALSE,H7-$AL$2=1),"Due Tomorrow",IF(H7="","",IF(AND(I7=FALSE,H7=$AL$2),"Due Today",IF(AND(I7=FALSE,H7>$AL$2,H7<=$AL$2+2),"Due in " &H7-$AL$2&" days",IF(AND(I7=FALSE,H7<=$AL$2),"Late","Due in "&H7-$AL$2&" days")))))))))) ->  | K7: =IF(AND(H7<>"",H7-$AL$2<=4,H7-$AL$2>1,I7=FALSE),"Due Soon",IF(I7=TRUE,"Completed",IF(AND(H7-$AL$2>=22,I7=TRUE),"Early",IF(AND(H7-$AL$2>=22,I7=FALSE),"",IF(AND(I7=FALSE,H7-$AL$2=1),"Due Tomorrow",IF(H7="","",IF(AND(I7=FALSE,H7=$AL$2),"Due Today",IF(AND(I7=FALSE,H7>$AL$2,H7<=$AL$2+2),"Due in " &H7-$AL$2&" days",IF(AND(I7=FALSE,H7<=$AL$2),"Late","Due in "&H7-$AL$2&" days"))))))))) -> Late | L7: =IF(K7="","",IF(OR(K7="Due Today",K7="Due Tomorrow",K7="Due Soon"),1,IF(K7="Late",2,""))) -> 2 | N7: 1.1 | O7: =P7 -> 2025-08-31 | P7: =VLOOKUP(N7,MLM,4,FALSE) -> 2025-08-31 | Q7: FALSE | R7: =IF($AP$2=0,"",IF(AND(P7<>"",P7-$AL$2<=4,P7-$AL$2>1,Q7=FALSE),"Due Soon",IF(Q7=TRUE,"Completed",IF(AND(P7-$AL$2>=24,Q7=TRUE),"Early",IF(AND(P7-$AL$2>=24,Q7=FALSE),"",IF(AND(Q7=FALSE,P7-$AL$2=1),"Due Tomorrow",IF(P7="","",IF(AND(Q7=FALSE,P7=$AL$2),"Due Today",IF(AND(Q7=FALSE,P7>$AL$2,P7<=$AL$2+2),"Due in " &P7-$AL$2&" days",IF(AND(Q7=FALSE,P7<=$AL$2),"Late","Due in "&P7-$AL$2&" days")))))))))) ->  | T7: =IF(R7="","",IF(OR(R7="Due Today",R7="Due Tomorrow",R7="Due Soon"),1,IF(R7="Late",2,""))) ->  | AD7: =IF(Start!$E$4="OL",AL7,"") ->  | AE7: =IF(Start!$E$4="OL","Pa","") ->  | AF7: =IF(Start!$E$4="OL",AN7,"") ->  | AG7: =IF(AE7="","",VLOOKUP(AE7,Exams,3,FALSE)) ->  | AH7: FALSE | AI7: =IF($AP$2=0,"",IF(Start!$E$4="TC","",IF(AND(AG7<>"",AG7-$AL$2<=4,AG7-$AL$2>1,AH7=FALSE),"Due Soon",IF(AND(AG7-$AL$2>=24,AH7=FALSE),"",IF(AND(AH7=FALSE,AG7-$AL$2=1),"Due Tomorrow",IF(AG7="","",IF(AND(AH7=FALSE,AG7=$AL$2),"Due Today",IF(AND(AH7=FALSE,AG7>$AL$2,AG7<=$AL$2+2),"Due in " &AG7-$AL$2&" days",IF(AND(AH7=FALSE,AG7<=$AL$2),"Late",IF(AH7=TRUE,"Completed","Due in "&AG7-$AL$2&" days")))))))))) ->  | AL7: Practice Exam
F8: 1.2 | G8: =H8 -> 2025-08-30 | H8: =VLOOKUP(F8,MQ,4,FALSE) -> 2025-08-30 | I8: FALSE | J8: =IF($AP$2=0,"",IF(AND(H8<>"",H8-$AL$2<=4,H8-$AL$2>1,I8=FALSE),"Due Soon",IF(I8=TRUE,"Completed",IF(AND(H8-$AL$2>=22,I8=TRUE),"Early",IF(AND(H8-$AL$2>=22,I8=FALSE),"",IF(AND(I8=FALSE,H8-$AL$2=1),"Due Tomorrow",IF(H8="","",IF(AND(I8=FALSE,H8=$AL$2),"Due Today",IF(AND(I8=FALSE,H8>$AL$2,H8<=$AL$2+2),"Due in " &H8-$AL$2&" days",IF(AND(I8=FALSE,H8<=$AL$2),"Late","Due in "&H8-$AL$2&" days")))))))))) ->  | L8: =IF(J8="","",IF(OR(J8="Due Today",J8="Due Tomorrow",J8="Due Soon"),1,IF(J8="Late",2,""))) ->  | N8: 1.2 | O8: =P8 -> 2025-08-31 | P8: =VLOOKUP(N8,MLM,4,FALSE) -> 2025-08-31 | Q8: FALSE | V8: Extra 1 | W8: =X8 -> 2025-09-02 | X8: =VLOOKUP(V8,Ext,3,FALSE) -> 2025-09-02 | Y8: FALSE | Z8: =IF($AP$2=0,"",IF(AND(X8<>"",X8-$AL$2<=4,X8-$AL$2>1,Y8=FALSE),"Due Soon",IF(Y8=TRUE,"Completed",IF(AND(X8-$AL$2>=24,Y8=TRUE),"Early",IF(AND(X8-$AL$2>=24,Y8=FALSE),"",IF(AND(Y8=FALSE,X8-$AL$2=1),"Due Tomorrow",IF(X8="","",IF(AND(Y8=FALSE,X8=$AL$2),"Due Today",IF(AND(Y8=FALSE,X8>$AL$2,X8<=$AL$2+2),"Due in " &X8-$AL$2&" days",IF(AND(Y8=FALSE,X8<=$AL$2),"Late","Due in "&X8-$AL$2&" days")))))))))) ->  | AB8: =IF(Z8="","",IF(OR(Z8="Due Today",Z8="Due Tomorrow",Z8="Due Soon"),1,IF(Z8="Late",2,""))) ->  | AD8: =IF(Start!$E$4="OL",AL8,"") ->  | AE8: =IF(Start!$E$4="OL","Pb","") ->  | AF8: =IF(Start!$E$4="OL",AN8,"") ->  | AG8: =IF(AE8="","",VLOOKUP(AE8,Exams,3,FALSE)) ->  | AH8: FALSE | AI8: =IF($AP$2=0,"",IF(Start!$E$4="TC","",IF(AND(AG8<>"",AG8-$AL$2<=4,AG8-$AL$2>1,AH8=FALSE),"Due Soon",IF(AND(AG8-$AL$2>=24,AH8=FALSE),"",IF(AND(AH8=FALSE,AG8-$AL$2=1),"Due Tomorrow",IF(AG8="","",IF(AND(AH8=FALSE,AG8=$AL$2),"Due Today",IF(AND(AH8=FALSE,AG8>$AL$2,AG8<=$AL$2+2),"Due in " &AG8-$AL$2&" days",IF(AND(AH8=FALSE,AG8<=$AL$2),"Late",IF(AH8=TRUE,"Completed","Due in "&AG8-$AL$2&" days")))))))))) ->  | AL8: Practice Exam
Z9: =IF(AND(X9<>"",X9-$AL$2<=4,X9-$AL$2>1,Y9=FALSE),"Due Soon",IF(Y9=TRUE,"Completed",IF(AND(X9-$AL$2>=24,Y9=TRUE),"Early",IF(AND(X9-$AL$2>=24,Y9=FALSE),"",IF(AND(Y9=FALSE,X9-$AL$2=1),"Due Tomorrow",IF(X9="","",IF(AND(Y9=FALSE,X9=$AL$2),"Due Today",IF(AND(Y9=FALSE,X9>$AL$2,X9<=$AL$2+2),"Due in " &X9-$AL$2&" days",IF(AND(Y9=FALSE,X9<=$AL$2),"Late","Due in "&X9-$AL$2&" days"))))))))) ->  | AB9: =IF(Z9="","",IF(OR(Z9="Due Today",Z9="Due Tomorrow",Z9="Due Soon"),1,IF(Z9="Late",2,""))) ->  | AD9: =IF(Start!$E$4="OL",AL9,"") ->  | AE9: =IF(Start!$E$4="OL","Pc","") ->  | AF9: =IF(Start!$E$4="OL",AN9,"") ->  | AG9: =IF(AE9="","",VLOOKUP(AE9,Exams,3,FALSE)) ->  | AH9: FALSE | AI9: =IF($AP$2=0,"",IF(Start!$E$4="TC","",IF(AND(AG9<>"",AG9-$AL$2<=4,AG9-$AL$2>1,AH9=FALSE),"Due Soon",IF(AND(AG9-$AL$2>=24,AH9=FALSE),"",IF(AND(AH9=FALSE,AG9-$AL$2=1),"Due Tomorrow",IF(AG9="","",IF(AND(AH9=FALSE,AG9=$AL$2),"Due Today",IF(AND(AH9=FALSE,AG9>$AL$2,AG9<=$AL$2+2),"Due in " &AG9-$AL$2&" days",IF(AND(AH9=FALSE,AG9<=$AL$2),"Late",IF(AH9=TRUE,"Completed","Due in "&AG9-$AL$2&" days")))))))))) ->  | AL9: Practice Exam | AN9: =AG9 -> 
F10: 2.1 | G10: =H10 -> 2025-09-06 | H10: =VLOOKUP(F10,MQ,4,FALSE) -> 2025-09-06 | I10: FALSE | N10: 2.1 | O10: =P10 -> 2025-09-07 | P10: =VLOOKUP(N10,MLM,4,FALSE) -> 2025-09-07 | Q10: FALSE | R10: =IF($AP$2=0,"",IF(AND(P10<>"",P10-$AL$2<=4,P10-$AL$2>1,Q10=FALSE),"Due Soon",IF(Q10=TRUE,"Completed",IF(AND(P10-$AL$2>=24,Q10=TRUE),"Early",IF(AND(P10-$AL$2>=24,Q10=FALSE),"",IF(AND(Q10=FALSE,P10-$AL$2=1),"Due Tomorrow",IF(P10="","",IF(AND(Q10=FALSE,P10=$AL$2),"Due Today",IF(AND(Q10=FALSE,P10>$AL$2,P10<=$AL$2+2),"Due in " &P10-$AL$2&" days",IF(AND(Q10=FALSE,P10<=$AL$2),"Late","Due in "&P10-$AL$2&" days")))))))))) ->  | AB10: =IF(Z10="","",IF(OR(Z10="Due Today",Z10="Due Tomorrow",Z10="Due Soon"),1,IF(Z10="Late",2,""))) -> 
F11: 2.2 | G11: =H11 -> 2025-09-06 | H11: =VLOOKUP(F11,MQ,4,FALSE) -> 2025-09-06 | I11: FALSE | N11: 2.2 | O11: =P11 -> 2025-09-07 | P11: =VLOOKUP(N11,MLM,4,FALSE) -> 2025-09-07 | Q11: FALSE | V11: Extra 2a | W11: =X11 -> 2025-09-09 | X11: =VLOOKUP(V11,Ext,3,FALSE) -> 2025-09-09 | Y11: FALSE | Z11: =IF($AP$2=0,"",IF(AND(X11<>"",X11-$AL$2<=4,X11-$AL$2>1,Y11=FALSE),"Due Soon",IF(Y11=TRUE,"Completed",IF(AND(X11-$AL$2>=24,Y11=TRUE),"Early",IF(AND(X11-$AL$2>=24,Y11=FALSE),"",IF(AND(Y11=FALSE,X11-$AL$2=1),"Due Tomorrow",IF(X11="","",IF(AND(Y11=FALSE,X11=$AL$2),"Due Today",IF(AND(Y11=FALSE,X11>$AL$2,X11<=$AL$2+2),"Due in " &X11-$AL$2&" days",IF(AND(Y11=FALSE,X11<=$AL$2),"Late","Due in "&X11-$AL$2&" days")))))))))) ->  | AB11: =IF(Z11="","",IF(OR(Z11="Due Today",Z11="Due Tomorrow",Z11="Due Soon"),1,IF(Z11="Late",2,""))) ->  | AD11: MLM Samples are online
F12: 2.3 | G12: =H12 -> 2025-09-13 | H12: =VLOOKUP(F12,MQ,4,FALSE) -> 2025-09-13 | I12: FALSE | N12: 2.3 | O12: =P12 -> 2025-09-14 | P12: =VLOOKUP(N12,MLM,4,FALSE) -> 2025-09-14 | Q12: FALSE | V12: Extra 2b | W12: =X12 -> 2025-09-16 | X12: =VLOOKUP(V12,Ext,3,FALSE) -> 2025-09-16 | Y12: FALSE | AB12: =IF(Z12="","",IF(OR(Z12="Due Today",Z12="Due Tomorrow",Z12="Due Soon"),1,IF(Z12="Late",2,""))) ->  | AD12: MLM Samples will stay open until Final Exam
AB13: =IF(Z13="","",IF(OR(Z13="Due Today",Z13="Due Tomorrow",Z13="Due Soon"),1,IF(Z13="Late",2,""))) ->  | AD13: =IF(Start!$E$4="TC",AL13,"") -> Midterms and Final are in Campus (Testing Center) | AL13: Midterms and Final are in Campus (Testing Center)
F14: 3.1 | G14: =H14 -> 2025-09-13 | H14: =VLOOKUP(F14,MQ,4,FALSE) -> 2025-09-13 | I14: FALSE | N14: 3.1 | O14: =P14 -> 2025-09-14 | P14: =VLOOKUP(N14,MLM,4,FALSE) -> 2025-09-14 | Q14: FALSE | R14: =IF($AP$2=0,"",IF(AND(P14<>"",P14-$AL$2<=4,P14-$AL$2>1,Q14=FALSE),"Due Soon",IF(Q14=TRUE,"Completed",IF(AND(P14-$AL$2>=24,Q14=TRUE),"Early",IF(AND(P14-$AL$2>=24,Q14=FALSE),"",IF(AND(Q14=FALSE,P14-$AL$2=1),"Due Tomorrow",IF(P14="","",IF(AND(Q14=FALSE,P14=$AL$2),"Due Today",IF(AND(Q14=FALSE,P14>$AL$2,P14<=$AL$2+2),"Due in " &P14-$AL$2&" days",IF(AND(Q14=FALSE,P14<=$AL$2),"Late","Due in "&P14-$AL$2&" days")))))))))) -> 
F15: 3.2 | G15: =H15 -> 2025-09-20 | H15: =VLOOKUP(F15,MQ,4,FALSE) -> 2025-09-20 | I15: FALSE | J15: =IF($AP$2=0,"",IF(AND(H15<>"",H15-$AL$2<=4,H15-$AL$2>1,I15=FALSE),"Due Soon",IF(I15=TRUE,"Completed",IF(AND(H15-$AL$2>=22,I15=TRUE),"Early",IF(AND(H15-$AL$2>=22,I15=FALSE),"",IF(AND(I15=FALSE,H15-$AL$2=1),"Due Tomorrow",IF(H15="","",IF(AND(I15=FALSE,H15=$AL$2),"Due Today",IF(AND(I15=FALSE,H15>$AL$2,H15<=$AL$2+2),"Due in " &H15-$AL$2&" days",IF(AND(I15=FALSE,H15<=$AL$2),"Late","Due in "&H15-$AL$2&" days")))))))))) ->  | N15: 3.2 | O15: =P15 -> 2025-09-21 | P15: =VLOOKUP(N15,MLM,4,FALSE) -> 2025-09-21 | Q15: FALSE | R15: =IF($AP$2=0,"",IF(AND(P15<>"",P15-$AL$2<=4,P15-$AL$2>1,Q15=FALSE),"Due Soon",IF(Q15=TRUE,"Completed",IF(AND(P15-$AL$2>=24,Q15=TRUE),"Early",IF(AND(P15-$AL$2>=24,Q15=FALSE),"",IF(AND(Q15=FALSE,P15-$AL$2=1),"Due Tomorrow",IF(P15="","",IF(AND(Q15=FALSE,P15=$AL$2),"Due Today",IF(AND(Q15=FALSE,P15>$AL$2,P15<=$AL$2+2),"Due in " &P15-$AL$2&" days",IF(AND(Q15=FALSE,P15<=$AL$2),"Late","Due in "&P15-$AL$2&" days")))))))))) ->  | AD15: MLM Samples & Exams
F16: 3.3 | G16: =H16 -> 2025-09-20 | H16: =VLOOKUP(F16,MQ,4,FALSE) -> 2025-09-20 | I16: FALSE | N16: 3.3 | O16: =P16 -> 2025-09-21 | P16: =VLOOKUP(N16,MLM,4,FALSE) -> 2025-09-21 | Q16: FALSE | AD16: Samples 1-4 | AF16: =AG16 -> 2025-10-12 | AG16: =VLOOKUP(AD16,Ext,3,FALSE) -> 2025-10-12 | AH16: FALSE | AI16: =IF($AP$2=0,"",IF(Start!$E$4="TC","",IF(AND(AG16<>"",AG16-$AL$2<=4,AG16-$AL$2>1,AH16=FALSE),"Due Soon",IF(AND(AG16-$AL$2>=24,AH16=FALSE),"",IF(AND(AH16=FALSE,AG16-$AL$2=1),"Due Tomorrow",IF(AG16="","",IF(AND(AH16=FALSE,AG16=$AL$2),"Due Today",IF(AND(AH16=FALSE,AG16>$AL$2,AG16<=$AL$2+2),"Due in " &AG16-$AL$2&" days",IF(AND(AH16=FALSE,AG16<=$AL$2),"Late",IF(AH16=TRUE,"Completed","Due in "&AG16-$AL$2&" days")))))))))) ->  | AL16: =IF(AND(AJ16<>"",AJ16-$AL$2<=4,AJ16-$AL$2>1,AK16=FALSE),"Due Soon",IF(AND(AJ16-$AL$2>=24,AK16=TRUE),"Early",IF(AND(AJ16-$AL$2>=24,AK16=FALSE),"",IF(AND(AK16=FALSE,AJ16-$AL$2=1),"Due Tomorrow",IF(AJ16="","",IF(AND(AK16=FALSE,AJ16=$AL$2),"Due Today",IF(AND(AK16=FALSE,AJ16>$AL$2,AJ16<=$AL$2+2),"Due in " &AJ16-$AL$2&" days",IF(AND(AK16=FALSE,AJ16<=$AL$2),"Late",IF(AK16=TRUE,"Completed","Due in "&AJ16-$AL$2&" days"))))))))) -> 
N17: Ch 3 Mix | O17: =P17 -> 2025-09-23 | P17: =VLOOKUP(N17,MLM,4,FALSE) -> 2025-09-23 | Q17: FALSE | V17: Extra 3 | W17: =X17 -> 2025-09-25 | X17: =VLOOKUP(V17,Ext,3,FALSE) -> 2025-09-25 | Y17: FALSE | Z17: =IF($AP$2=0,"",IF(AND(X17<>"",X17-$AL$2<=4,X17-$AL$2>1,Y17=FALSE),"Due Soon",IF(Y17=TRUE,"Completed",IF(AND(X17-$AL$2>=24,Y17=TRUE),"Early",IF(AND(X17-$AL$2>=24,Y17=FALSE),"",IF(AND(Y17=FALSE,X17-$AL$2=1),"Due Tomorrow",IF(X17="","",IF(AND(Y17=FALSE,X17=$AL$2),"Due Today",IF(AND(Y17=FALSE,X17>$AL$2,X17<=$AL$2+2),"Due in " &X17-$AL$2&" days",IF(AND(Y17=FALSE,X17<=$AL$2),"Late","Due in "&X17-$AL$2&" days")))))))))) -> 
F19: 4.1 | G19: =H19 -> 2025-09-27 | H19: =VLOOKUP(F19,MQ,4,FALSE) -> 2025-09-27 | I19: FALSE | N19: 4.1 | O19: =P19 -> 2025-09-28 | P19: =VLOOKUP(N19,MLM,4,FALSE) -> 2025-09-28 | Q19: FALSE
F20: 4.2 | G20: =H20 -> 2025-09-27 | H20: =VLOOKUP(F20,MQ,4,FALSE) -> 2025-09-27 | I20: FALSE | N20: 4.2 | O20: =P20 -> 2025-09-28 | P20: =VLOOKUP(N20,MLM,4,FALSE) -> 2025-09-28 | Q20: FALSE | AI20: =IF(AND(AG20<>"",AG20-$AL$2<=4,AG20-$AL$2>1,AH20=FALSE),"Due Soon",IF(AND(AG20-$AL$2>=24,AH20=FALSE),"",IF(AND(AH20=FALSE,AG20-$AL$2=1),"Due Tomorrow",IF(AG20="","",IF(AND(AH20=FALSE,AG20=$AL$2),"Due Today",IF(AND(AH20=FALSE,AG20>$AL$2,AG20<=$AL$2+2),"Due in " &AG20-$AL$2&" days",IF(AND(AH20=FALSE,AG20<=$AL$2),"Late",IF(AH20=TRUE,"Completed","Due in "&AG20-$AL$2&" days")))))))) -> 
F21: 4.3 | G21: =H21 -> 2025-10-04 | H21: =VLOOKUP(F21,MQ,4,FALSE) -> 2025-10-04 | I21: FALSE | N21: 4.3 | O21: =P21 -> 2025-10-05 | P21: =VLOOKUP(N21,MLM,4,FALSE) -> 2025-10-05 | Q21: FALSE | AI21: =IF(AND(AG21<>"",AG21-$AL$2<=4,AG21-$AL$2>1,AH21=FALSE),"Due Soon",IF(AND(AG21-$AL$2>=24,AH21=FALSE),"",IF(AND(AH21=FALSE,AG21-$AL$2=1),"Due Tomorrow",IF(AG21="","",IF(AND(AH21=FALSE,AG21=$AL$2),"Due Today",IF(AND(AH21=FALSE,AG21>$AL$2,AG21<=$AL$2+2),"Due in " &AG21-$AL$2&" days",IF(AND(AH21=FALSE,AG21<=$AL$2),"Late",IF(AH21=TRUE,"Completed","Due in "&AG21-$AL$2&" days")))))))) -> 
F22: 4.4 | G22: =H22 -> 2025-10-04 | H22: =VLOOKUP(F22,MQ,4,FALSE) -> 2025-10-04 | I22: FALSE | N22: 4.4 | O22: =P22 -> 2025-10-05 | P22: =VLOOKUP(N22,MLM,4,FALSE) -> 2025-10-05 | Q22: FALSE | AB22: =IF(Z22="","",IF(OR(Z22="Due Today",Z22="Due Tomorrow",Z22="Due Soon"),1,IF(Z22="Late",2,""))) ->  | AD22: Midterm 1 | AE22: =IF(Start!$E$4="TC","1aT","1aH") -> 1aT | AF22: =AG22 -> 2025-10-09 | AG22: =VLOOKUP(AE22,Exams,3,FALSE) -> 2025-10-09 | AH22: FALSE | AI22: =IF($AP$2=0,"",IF(Start!$E$4="TC","",IF(AND(AG22<>"",AG22-$AL$2<=4,AG22-$AL$2>1,AH22=FALSE),"Due Soon",IF(AND(AG22-$AL$2>=24,AH22=FALSE),"",IF(AND(AH22=FALSE,AG22-$AL$2=1),"Due Tomorrow",IF(AG22="","",IF(AND(AH22=FALSE,AG22=$AL$2),"Due Today",IF(AND(AH22=FALSE,AG22>$AL$2,AG22<=$AL$2+2),"Due in " &AG22-$AL$2&" days",IF(AND(AH22=FALSE,AG22<=$AL$2),"Late",IF(AH22=TRUE,"Completed","Due in "&AG22-$AL$2&" days")))))))))) -> 
N23: Ch 4 Mix | O23: =P23 -> 2025-10-07 | P23: =VLOOKUP(N23,MLM,4,FALSE) -> 2025-10-07 | Q23: FALSE | V23: Extra 4 | W23: =X23 -> 2025-10-09 | X23: =VLOOKUP(V23,Ext,3,FALSE) -> 2025-10-09 | Y23: FALSE | Z23: =IF($AP$2=0,"",IF(AND(X23<>"",X23-$AL$2<=4,X23-$AL$2>1,Y23=FALSE),"Due Soon",IF(Y23=TRUE,"Completed",IF(AND(X23-$AL$2>=24,Y23=TRUE),"Early",IF(AND(X23-$AL$2>=24,Y23=FALSE),"",IF(AND(Y23=FALSE,X23-$AL$2=1),"Due Tomorrow",IF(X23="","",IF(AND(Y23=FALSE,X23=$AL$2),"Due Today",IF(AND(Y23=FALSE,X23>$AL$2,X23<=$AL$2+2),"Due in " &X23-$AL$2&" days",IF(AND(Y23=FALSE,X23<=$AL$2),"Late","Due in "&X23-$AL$2&" days")))))))))) ->  | AD23: Midterm 1 | AE23: =IF(Start!$E$4="TC","1bT","1bH") -> 1bT | AF23: =AG23 -> 2025-10-10 | AG23: =VLOOKUP(AE23,Exams,3,FALSE) -> 2025-10-10 | AH23: FALSE | AI23: =IF($AP$2=0,"",IF(Start!$E$4="TC","",IF(AND(AG23<>"",AG23-$AL$2<=4,AG23-$AL$2>1,AH23=FALSE),"Due Soon",IF(AND(AG23-$AL$2>=24,AH23=FALSE),"",IF(AND(AH23=FALSE,AG23-$AL$2=1),"Due Tomorrow",IF(AG23="","",IF(AND(AH23=FALSE,AG23=$AL$2),"Due Today",IF(AND(AH23=FALSE,AG23>$AL$2,AG23<=$AL$2+2),"Due in " &AG23-$AL$2&" days",IF(AND(AH23=FALSE,AG23<=$AL$2),"Late",IF(AH23=TRUE,"Completed","Due in "&AG23-$AL$2&" days")))))))))) -> 
AD24: Midterm 1 | AE24: =IF(Start!$E$4="TC","1cT","1cH") -> 1cT | AF24: =AG24 -> 2025-10-13 | AG24: =VLOOKUP(AE24,Exams,3,FALSE) -> 2025-10-13 | AH24: FALSE | AI24: =IF($AP$2=0,"",IF(Start!$E$4="TC","",IF(AND(AG24<>"",AG24-$AL$2<=4,AG24-$AL$2>1,AH24=FALSE),"Due Soon",IF(AND(AG24-$AL$2>=24,AH24=FALSE),"",IF(AND(AH24=FALSE,AG24-$AL$2=1),"Due Tomorrow",IF(AG24="","",IF(AND(AH24=FALSE,AG24=$AL$2),"Due Today",IF(AND(AH24=FALSE,AG24>$AL$2,AG24<=$AL$2+2),"Due in " &AG24-$AL$2&" days",IF(AND(AH24=FALSE,AG24<=$AL$2),"Late",IF(AH24=TRUE,"Completed","Due in "&AG24-$AL$2&" days")))))))))) -> 
F25: 5.1 | G25: =H25 -> 2025-10-18 | H25: =VLOOKUP(F25,MQ,4,FALSE) -> 2025-10-18 | I25: FALSE | N25: 5.1 | O25: =P25 -> 2025-10-19 | P25: =VLOOKUP(N25,MLM,4,FALSE) -> 2025-10-19 | Q25: FALSE | AI25: =IF(AND(AG25<>"",AG25-$AL$2<=4,AG25-$AL$2>1,AH25=FALSE),"Due Soon",IF(AND(AG25-$AL$2>=24,AH25=FALSE),"",IF(AND(AH25=FALSE,AG25-$AL$2=1),"Due Tomorrow",IF(AG25="","",IF(AND(AH25=FALSE,AG25=$AL$2),"Due Today",IF(AND(AH25=FALSE,AG25>$AL$2,AG25<=$AL$2+2),"Due in " &AG25-$AL$2&" days",IF(AND(AH25=FALSE,AG25<=$AL$2),"Late",IF(AH25=TRUE,"Completed","Due in "&AG25-$AL$2&" days")))))))) -> 
F26: 5.2 | G26: =H26 -> 2025-10-18 | H26: =VLOOKUP(F26,MQ,4,FALSE) -> 2025-10-18 | I26: FALSE | N26: 5.2 | O26: =P26 -> 2025-10-19 | P26: =VLOOKUP(N26,MLM,4,FALSE) -> 2025-10-19 | Q26: FALSE | V26: Extra 5a | W26: =X26 -> 2025-10-21 | X26: =VLOOKUP(V26,Ext,3,FALSE) -> 2025-10-21 | Y26: FALSE | Z26: =IF($AP$2=0,"",IF(AND(X26<>"",X26-$AL$2<=4,X26-$AL$2>1,Y26=FALSE),"Due Soon",IF(Y26=TRUE,"Completed",IF(AND(X26-$AL$2>=24,Y26=TRUE),"Early",IF(AND(X26-$AL$2>=24,Y26=FALSE),"",IF(AND(Y26=FALSE,X26-$AL$2=1),"Due Tomorrow",IF(X26="","",IF(AND(Y26=FALSE,X26=$AL$2),"Due Today",IF(AND(Y26=FALSE,X26>$AL$2,X26<=$AL$2+2),"Due in " &X26-$AL$2&" days",IF(AND(Y26=FALSE,X26<=$AL$2),"Late","Due in "&X26-$AL$2&" days")))))))))) -> 
F27: 5.3 | G27: =H27 -> 2025-10-25 | H27: =VLOOKUP(F27,MQ,4,FALSE) -> 2025-10-25 | I27: FALSE | N27: 5.3 | O27: =P27 -> 2025-10-26 | P27: =VLOOKUP(N27,MLM,4,FALSE) -> 2025-10-26 | Q27: FALSE
F28: 5.4 | G28: =H28 -> 2025-10-25 | H28: =VLOOKUP(F28,MQ,4,FALSE) -> 2025-10-25 | I28: FALSE | N28: 5.4 | O28: =P28 -> 2025-10-26 | P28: =VLOOKUP(N28,MLM,4,FALSE) -> 2025-10-26 | Q28: FALSE
N29: Ch 5 Mix | O29: =P29 -> 2025-10-28 | P29: =VLOOKUP(N29,MLM,4,FALSE) -> 2025-10-28 | Q29: FALSE | V29: Extra 5b | W29: =X29 -> 2025-10-30 | X29: =VLOOKUP(V29,Ext,3,FALSE) -> 2025-10-30 | Y29: FALSE | Z29: =IF($AP$2=0,"",IF(AND(X29<>"",X29-$AL$2<=4,X29-$AL$2>1,Y29=FALSE),"Due Soon",IF(Y29=TRUE,"Completed",IF(AND(X29-$AL$2>=24,Y29=TRUE),"Early",IF(AND(X29-$AL$2>=24,Y29=FALSE),"",IF(AND(Y29=FALSE,X29-$AL$2=1),"Due Tomorrow",IF(X29="","",IF(AND(Y29=FALSE,X29=$AL$2),"Due Today",IF(AND(Y29=FALSE,X29>$AL$2,X29<=$AL$2+2),"Due in " &X29-$AL$2&" days",IF(AND(Y29=FALSE,X29<=$AL$2),"Late","Due in "&X29-$AL$2&" days")))))))))) -> 
F31: 6.1 | G31: =H31 -> 2025-11-01 | H31: =VLOOKUP(F31,MQ,4,FALSE) -> 2025-11-01 | I31: FALSE | N31: 6.1 | O31: =P31 -> 2025-11-02 | P31: =VLOOKUP(N31,MLM,4,FALSE) -> 2025-11-02 | Q31: FALSE | AD31: Samples 5-7 | AF31: =AG31 -> 2025-11-23 | AG31: =VLOOKUP(AD31,Ext,3,FALSE) -> 2025-11-23 | AH31: FALSE | AI31: =IF($AP$2=0,"",IF(Start!$E$4="TC","",IF(AND(AG31<>"",AG31-$AL$2<=4,AG31-$AL$2>1,AH31=FALSE),"Due Soon",IF(AND(AG31-$AL$2>=24,AH31=FALSE),"",IF(AND(AH31=FALSE,AG31-$AL$2=1),"Due Tomorrow",IF(AG31="","",IF(AND(AH31=FALSE,AG31=$AL$2),"Due Today",IF(AND(AH31=FALSE,AG31>$AL$2,AG31<=$AL$2+2),"Due in " &AG31-$AL$2&" days",IF(AND(AH31=FALSE,AG31<=$AL$2),"Late",IF(AH31=TRUE,"Completed","Due in "&AG31-$AL$2&" days")))))))))) -> 
F32: 6.2 | G32: =H32 -> 2025-11-01 | H32: =VLOOKUP(F32,MQ,4,FALSE) -> 2025-11-01 | I32: FALSE | N32: 6.2 | O32: =P32 -> 2025-11-02 | P32: =VLOOKUP(N32,MLM,4,FALSE) -> 2025-11-02 | Q32: FALSE
F33: 6.3 | G33: =H33 -> 2025-11-08 | H33: =VLOOKUP(F33,MQ,4,FALSE) -> 2025-11-08 | I33: FALSE | N33: 6.3 | O33: =P33 -> 2025-11-09 | P33: =VLOOKUP(N33,MLM,4,FALSE) -> 2025-11-09 | Q33: FALSE
N34: 6.3 (inv) | O34: =P34 -> 2025-11-09 | P34: =VLOOKUP(N34,MLM,4,FALSE) -> 2025-11-09 | Q34: FALSE | AD34: Midterm 2 | AE34: =IF(Start!$E$4="TC","2aT","2aH") -> 2aT | AF34: =AG34 -> 2025-11-20 | AG34: =VLOOKUP(AE34,Exams,3,FALSE) -> 2025-11-20 | AH34: FALSE | AI34: =IF($AP$2=0,"",IF(Start!$E$4="TC","",IF(AND(AG34<>"",AG34-$AL$2<=4,AG34-$AL$2>1,AH34=FALSE),"Due Soon",IF(AND(AG34-$AL$2>=24,AH34=FALSE),"",IF(AND(AH34=FALSE,AG34-$AL$2=1),"Due Tomorrow",IF(AG34="","",IF(AND(AH34=FALSE,AG34=$AL$2),"Due Today",IF(AND(AH34=FALSE,AG34>$AL$2,AG34<=$AL$2+2),"Due in " &AG34-$AL$2&" days",IF(AND(AH34=FALSE,AG34<=$AL$2),"Late",IF(AH34=TRUE,"Completed","Due in "&AG34-$AL$2&" days")))))))))) -> 
F35: 7.1 | G35: =H35 -> 2025-11-11 | H35: =VLOOKUP(F35,MQ,4,FALSE) -> 2025-11-11 | I35: FALSE | J35: =IF($AP$2=0,"",IF(AND(H35<>"",H35-$AL$2<=4,H35-$AL$2>1,I35=FALSE),"Due Soon",IF(I35=TRUE,"Completed",IF(AND(H35-$AL$2>=22,I35=TRUE),"Early",IF(AND(H35-$AL$2>=22,I35=FALSE),"",IF(AND(I35=FALSE,H35-$AL$2=1),"Due Tomorrow",IF(H35="","",IF(AND(I35=FALSE,H35=$AL$2),"Due Today",IF(AND(I35=FALSE,H35>$AL$2,H35<=$AL$2+2),"Due in " &H35-$AL$2&" days",IF(AND(I35=FALSE,H35<=$AL$2),"Late","Due in "&H35-$AL$2&" days")))))))))) ->  | L35: =IF(#REF!="","",IF(OR(#REF!="Due Today",#REF!="Due Tomorrow",#REF!="Due Soon"),1,IF(#REF!="Late",2,""))) ->  | AD35: Midterm 2 | AE35: =IF(Start!$E$4="TC","2bT","2bH") -> 2bT | AF35: =AG35 -> 2025-11-21 | AG35: =VLOOKUP(AE35,Exams,3,FALSE) -> 2025-11-21 | AH35: FALSE | AI35: =IF($AP$2=0,"",IF(Start!$E$4="TC","",IF(AND(AG35<>"",AG35-$AL$2<=4,AG35-$AL$2>1,AH35=FALSE),"Due Soon",IF(AND(AG35-$AL$2>=24,AH35=FALSE),"",IF(AND(AH35=FALSE,AG35-$AL$2=1),"Due Tomorrow",IF(AG35="","",IF(AND(AH35=FALSE,AG35=$AL$2),"Due Today",IF(AND(AH35=FALSE,AG35>$AL$2,AG35<=$AL$2+2),"Due in " &AG35-$AL$2&" days",IF(AND(AH35=FALSE,AG35<=$AL$2),"Late",IF(AH35=TRUE,"Completed","Due in "&AG35-$AL$2&" days")))))))))) -> 
F36: 7.2 | G36: =H36 -> 2025-11-15 | H36: =VLOOKUP(F36,MQ,4,FALSE) -> 2025-11-15 | I36: FALSE | J36: =IF($AP$2=0,"",IF(AND(H36<>"",H36-$AL$2<=4,H36-$AL$2>1,I36=FALSE),"Due Soon",IF(I36=TRUE,"Completed",IF(AND(H36-$AL$2>=22,I36=TRUE),"Early",IF(AND(H36-$AL$2>=22,I36=FALSE),"",IF(AND(I36=FALSE,H36-$AL$2=1),"Due Tomorrow",IF(H36="","",IF(AND(I36=FALSE,H36=$AL$2),"Due Today",IF(AND(I36=FALSE,H36>$AL$2,H36<=$AL$2+2),"Due in " &H36-$AL$2&" days",IF(AND(I36=FALSE,H36<=$AL$2),"Late","Due in "&H36-$AL$2&" days")))))))))) ->  | L36: =IF(J35="","",IF(OR(J35="Due Today",J35="Due Tomorrow",J35="Due Soon"),1,IF(J35="Late",2,""))) ->  | N36: 7.1 | O36: =P36 -> 2025-11-12 | P36: =VLOOKUP(N36,MLM,4,FALSE) -> 2025-11-12 | Q36: FALSE | AD36: Midterm 2 | AE36: =IF(Start!$E$4="TC","2cT","2cH") -> 2cT | AF36: =AG36 -> 2025-11-24 | AG36: =VLOOKUP(AE36,Exams,3,FALSE) -> 2025-11-24 | AH36: FALSE | AI36: =IF($AP$2=0,"",IF(Start!$E$4="TC","",IF(AND(AG36<>"",AG36-$AL$2<=4,AG36-$AL$2>1,AH36=FALSE),"Due Soon",IF(AND(AG36-$AL$2>=24,AH36=FALSE),"",IF(AND(AH36=FALSE,AG36-$AL$2=1),"Due Tomorrow",IF(AG36="","",IF(AND(AH36=FALSE,AG36=$AL$2),"Due Today",IF(AND(AH36=FALSE,AG36>$AL$2,AG36<=$AL$2+2),"Due in " &AG36-$AL$2&" days",IF(AND(AH36=FALSE,AG36<=$AL$2),"Late",IF(AH36=TRUE,"Completed","Due in "&AG36-$AL$2&" days")))))))))) -> 
F37: 7.3 | G37: =H37 -> 2025-11-15 | H37: =VLOOKUP(F37,MQ,4,FALSE) -> 2025-11-15 | I37: FALSE | N37: 7.2, 7.3 | O37: =P37 -> 2025-11-16 | P37: =VLOOKUP(N37,MLM,4,FALSE) -> 2025-11-16 | Q37: FALSE | V37: Extra 7 | W37: =X37 -> 2025-11-18 | X37: =VLOOKUP(V37,Ext,3,FALSE) -> 2025-11-18 | Y37: FALSE | Z37: =IF($AP$2=0,"",IF(AND(X37<>"",X37-$AL$2<=4,X37-$AL$2>1,Y37=FALSE),"Due Soon",IF(Y37=TRUE,"Completed",IF(AND(X37-$AL$2>=24,Y37=TRUE),"Early",IF(AND(X37-$AL$2>=24,Y37=FALSE),"",IF(AND(Y37=FALSE,X37-$AL$2=1),"Due Tomorrow",IF(X37="","",IF(AND(Y37=FALSE,X37=$AL$2),"Due Today",IF(AND(Y37=FALSE,X37>$AL$2,X37<=$AL$2+2),"Due in " &X37-$AL$2&" days",IF(AND(Y37=FALSE,X37<=$AL$2),"Late","Due in "&X37-$AL$2&" days")))))))))) -> 
AD38: Final Exam | AE38: =IF(Start!$E$4="TC","3aT","3aH") -> 3aT | AF38: =AG38 -> 2025-12-11 | AG38: =VLOOKUP(AE38,Exams,3,FALSE) -> 2025-12-11 | AH38: FALSE | AI38: =IF($AP$2=0,"",IF(Start!$E$4="TC","",IF(AND(AG38<>"",AG38-$AL$2<=4,AG38-$AL$2>1,AH38=FALSE),"Due Soon",IF(AND(AG38-$AL$2>=24,AH38=FALSE),"",IF(AND(AH38=FALSE,AG38-$AL$2=1),"Due Tomorrow",IF(AG38="","",IF(AND(AH38=FALSE,AG38=$AL$2),"Due Today",IF(AND(AH38=FALSE,AG38>$AL$2,AG38<=$AL$2+2),"Due in " &AG38-$AL$2&" days",IF(AND(AH38=FALSE,AG38<=$AL$2),"Late",IF(AH38=TRUE,"Completed","Due in "&AG38-$AL$2&" days")))))))))) -> 
F39: 9.1 | G39: =H39 -> 2025-12-01 | H39: =VLOOKUP(F39,MQ,4,FALSE) -> 2025-12-01 | I39: FALSE | N39: 9.1 | O39: =P39 -> 2025-12-02 | P39: =VLOOKUP(N39,MLM,4,FALSE) -> 2025-12-02 | Q39: FALSE | V39: Bonus | W39: =X39 -> 2025-11-25 | X39: =VLOOKUP(V39,Ext,3,FALSE) -> 2025-11-25 | Y39: FALSE | Z39: =IF($AP$2=0,"",IF(AND(X39<>"",X39-$AL$2<=4,X39-$AL$2>1,Y39=FALSE),"Due Soon",IF(Y39=TRUE,"Completed",IF(AND(X39-$AL$2>=24,Y39=TRUE),"Early",IF(AND(X39-$AL$2>=24,Y39=FALSE),"",IF(AND(Y39=FALSE,X39-$AL$2=1),"Due Tomorrow",IF(X39="","",IF(AND(Y39=FALSE,X39=$AL$2),"Due Today",IF(AND(Y39=FALSE,X39>$AL$2,X39<=$AL$2+2),"Due in " &X39-$AL$2&" days",IF(AND(Y39=FALSE,X39<=$AL$2),"Late","Due in "&X39-$AL$2&" days")))))))))) ->  | AD39: Final Exam | AE39: =IF(Start!$E$4="TC","3bT","3bH") -> 3bT | AF39: =AG39 -> 2025-12-12 | AG39: =VLOOKUP(AE39,Exams,3,FALSE) -> 2025-12-12 | AH39: FALSE | AI39: =IF($AP$2=0,"",IF(Start!$E$4="TC","",IF(AND(AG39<>"",AG39-$AL$2<=4,AG39-$AL$2>1,AH39=FALSE),"Due Soon",IF(AND(AG39-$AL$2>=24,AH39=FALSE),"",IF(AND(AH39=FALSE,AG39-$AL$2=1),"Due Tomorrow",IF(AG39="","",IF(AND(AH39=FALSE,AG39=$AL$2),"Due Today",IF(AND(AH39=FALSE,AG39>$AL$2,AG39<=$AL$2+2),"Due in " &AG39-$AL$2&" days",IF(AND(AH39=FALSE,AG39<=$AL$2),"Late",IF(AH39=TRUE,"Completed","Due in "&AG39-$AL$2&" days")))))))))) -> 
F40: 9.2 | G40: =H40 -> 2025-12-06 | H40: =VLOOKUP(F40,MQ,4,FALSE) -> 2025-12-06 | I40: FALSE | N40: 9.2 | O40: =P40 -> 2025-12-07 | P40: =VLOOKUP(N40,MLM,4,FALSE) -> 2025-12-07 | Q40: FALSE | AD40: Final Exam | AE40: =IF(Start!$E$4="TC","3cT","3cH") -> 3cT | AF40: =AG40 -> 2025-12-15 | AG40: =VLOOKUP(AE40,Exams,3,FALSE) -> 2025-12-15 | AH40: FALSE | AI40: =IF($AP$2=0,"",IF(Start!$E$4="TC","",IF(AND(AG40<>"",AG40-$AL$2<=4,AG40-$AL$2>1,AH40=FALSE),"Due Soon",IF(AND(AG40-$AL$2>=24,AH40=FALSE),"",IF(AND(AH40=FALSE,AG40-$AL$2=1),"Due Tomorrow",IF(AG40="","",IF(AND(AH40=FALSE,AG40=$AL$2),"Due Today",IF(AND(AH40=FALSE,AG40>$AL$2,AG40<=$AL$2+2),"Due in " &AG40-$AL$2&" days",IF(AND(AH40=FALSE,AG40<=$AL$2),"Late",IF(AH40=TRUE,"Completed","Due in "&AG40-$AL$2&" days")))))))))) -> 

Sheet 2) My Scores
C2: Introducing Yourself: | F2: =IF(Calc_S="No","",IF(D3="","",IF(AND(D3=TODAY(),F3=FALSE),"Due Today",IF(F3=TRUE,"Compl.",IF(AND(D3<TODAY(),F3=FALSE),"Late",IF(AND(D3<TODAY()+2,F3=FALSE),"Due Tomorrow","")))))) ->  | H2: Enter Your Raw Scores in the Green Cells only. C: Complete, D: Due, L: Late | AO2: Intro. Yourself | AP2: =IF(F2="Late",1,IF(F3=TRUE,1,0)) -> 0 | AQ2: =IF(F2="Late",0,IF(AP2=1,100,0)) -> 0 | AR2: =IF(F2="Late",0,IF(AQ2=100,1,0)) -> 0 | BB2: =Start!E4 -> TC | BC2: Practice? | BD2: =IF(BB2="OL","Yes","No") -> No | BS2: Yes | BT2: MQ | BU2: =BK30/100 -> 0
C3: Due | D3: 2025-09-09 | E3: 10 | F3: FALSE | G3: =IF(F3=TRUE,1,IF(F2="Late",0,"")) ->  | H3: Only Checked assignments are calculated. Late assignments are converted to zero, unless they are checked & scored | AF3: =IF(BD2="Yes","( For online degree section)","") ->  | AH3: =IF(BD2="Yes","Score","") ->  | AI3: =IF(BD2="Yes"," % ","") ->  | AJ3: =IF(BD2="Yes"," Adj. ","") ->  | BC3: N= | BD3: =COUNTIF(BD4,1) -> 0 | BH3: 98 | BI3: 90 | BJ3: 80 | BK3: 70 | BL3: 60 | BM3: 50 | BN3: 40 | BO3: 30 | BP3: 20 | BQ3: 0 | BS3: No | BT3: MLM | BU3: =BK31/100 -> 0
H4: Pt | I4: For every MQ or MLM that is over 40%, you get 1 point for participation. You have: | Y4: =IF(AND(AP6=0,AU6=0),"None Yet",BL12&" out of "&BK12 &" Total Points sofar") -> 0 out of 47 Total Points sofar | AF4: =IF(BD2="Yes","Practice Exam","") ->  | AG4: =IF(BD2="Yes",BC5,"") ->  | AI4: =IF(BD2="Yes",AH4,"") ->  | AJ4: =IF(BD2="No","",IF(AND(AK4=TRUE,AH4=""),0,IF(AH4>=$BH$3,$BH$4,IF(AH4>=$BI$3,$BI$4,IF(AH4>=$BJ$3,$BJ$4,IF(AH4>=$BK$3,$BK$4,IF(AH4>=$BL$3,$BL$4,IF(AH4>=$BM$3,$BM$4,IF(AH4>=$BN$3,$BN$4,IF(AH4>=$BO$3,$BO$4,AH4)))))))))) ->  | AK4: FALSE | AL4: =IF(Calc_S="No","",IF(AF4="","",IF(AK4=TRUE,"C",IF(AND(AK4=FALSE,AG4<TODAY()),"Zero (Late)",IF(AND(AK4=FALSE,AG4<TODAY()),"L",""))))) ->  | AP4: N= | AQ4: % | AR4: Points | AU4: N= | AV4: % | AW4: Points | AY4: N= | AZ4: % | BA4: Extras | BC4: Practice Exam | BD4: =IF(BD2="Yes",IF(AND(AK4=FALSE,AG4<TODAY()-5),1,IF(BC4="","",IF(AK4=TRUE,1,0))),0) -> 0 | BE4: =IF(BD2="Yes",IF(BC4="","",IF(AND(AK4=TRUE,AH4=""),0,IF(AK4=TRUE,AJ4,0))),0) -> 0 | BF4: =IF(BD2="Yes",0.715,0) -> 0 | BH4: 102 | BI4: 100 | BJ4: 95 | BK4: 85 | BL4: 75 | BM4: 65 | BN4: 55 | BO4: 45 | BP4: 35 | BT4: Extra | BU4: =BM13 -> 0
D5: Activate? | E5: No | BC5: ='1) My Tasks'!AG9 -> 
C6: Master Quizzes MQ ,Enter your Raw Scores | H6: Pt | N6: MyLab Math Raw Scores out of 10 | R6: Pt | X6: Extra out of 10 | AF6: MLM Samples and Exams | AP6: =COUNTIF(AP9:AP43,1)+AP2 -> 22 | AQ6: =IF(AP6=0,0,(AQ2+SUM(AQ9:AQ43))/((AP6))) -> 0 | AR6: =SUM(AR9:AR43)+AR2 -> 0 | AU6: =COUNTIF(AU9:AU43,1) -> 25 | AV6: =IF(AU6=0,0,SUM(AV9:AV43)/AU6) -> 0 | AW6: =SUM(AW9:AW43) -> 0 | AY6: =COUNTIF(AZ9:AZ40,1) -> 8 | AZ6: =IF(BA6=0,0,SUM(BA10:BA39)/(AY6*10)) -> 0 | BA6: =IF(AY6=0,0,SUM(BA9:BA40)) -> 0 | BT6: Samples | BU6: =BM14 -> 0
H7: =BU2 -> 0 | R7: =BU3 -> 0 | AA7: =BU4 -> 0 | AJ7: =BU6 -> 0 | BT7: All | BU7: =IF(BT41>BT40,BT41,BL41) -> 0
C8: MQ | D8: Due Date | E8: Out of | F8: Score | G8: % | H8: =SUM(I9:I43) -> 0 | N8: MLM | O8: Due Date | P8: Score | Q8: % | R8: =SUM(S9:S43) -> 0 | X8: Extra # | Y8: Due | Z8: Score | AH8: Raw Score | AI8: % | AJ8: Adj. | AP8: MQ | AQ8: Points | AR8: Part | AU8: MLM | AV8: Points | AW8: Part | AY8: Extra # | AZ8: Extra | BA8: Points | BC8: Exams | BD8: Check | BE8: Points | BU8: 1
C9: 1.1 | D9: ='1) My Tasks'!H7 -> 2025-08-30 | E9: 4 | G9: =IF(AND(H9=TRUE,F9=""),0,IF(F9="","",IF(F9=0,0,(F9/E9)))) ->  | H9: FALSE | I9: =IF(Calc_S="No","",IF(C9="","",IF(AND(H9=TRUE,F9=""),0,IF(AND(H9=FALSE,D9<TODAY()),0,IF(AND(H9=TRUE,G9>=0.4),1,IF(AND(H9=TRUE,G9<0.4),0,"")))))) ->  | J9: =IF(Calc_S="No","",IF(C9="","",IF(H9=TRUE,"C",IF(AND(H9=FALSE,D9<TODAY()),"L",IF(AND(F9<=0,D9<TODAY()+2),"D",""))))) ->  | N9: 1.1 | O9: ='1) My Tasks'!P7 -> 2025-08-31 | Q9: =IF(AND(R9=TRUE,P9=""),0,IF(P9="","",IF(P9=0,0,(P9/10)))) ->  | R9: FALSE | S9: =IF(Calc_S="No","",IF(N9="","",IF(AND(R9=TRUE,P9=""),0,IF(AND(R9=FALSE,O9<TODAY()),0,IF(AND(R9=TRUE,Q9>=0.4),1,IF(AND(R9=TRUE,Q9<0.4),0,"")))))) ->  | T9: =IF(Calc_S="No","",IF(N9="","",IF(R9=TRUE,"C",IF(AND(R9=FALSE,O9<TODAY()),"L",IF(AND(P9<=0,O9<TODAY()+2),"D",""))))) ->  | AF9: Samples out of 10 | AO9: 1.1 | AP9: =IF(D9="","",IF(H9=TRUE,1,IF(AND(H9=FALSE,D9<TODAY()-1),1,0))) -> 1 | AQ9: =IF(D9="","",IF(AND(H9=TRUE,F9=""),0,IF(H9=TRUE,G9*100,0))) -> 0 | AR9: =IF(D9="","",IF(AND(H9=TRUE,F9=""),0,IF(H9=TRUE,I9,0))) -> 0 | AT9: 1.1 | AU9: =IF(O9="","",IF(R9=TRUE,1,IF(AND(R9=FALSE,O9<TODAY()-1),1,0))) -> 1 | AV9: =IF(O9="","",IF(AND(R9=TRUE,P9=""),0,IF(R9=TRUE,Q9*100,0))) -> 0 | AW9: =IF(N9="","",IF(AND(R9=TRUE,P9=""),0,IF(R9=TRUE,S9,0))) -> 0 | BC9: N= | BD9: =COUNTIF(BD10:BD16,1) -> 6 | BF9: =SUM(BF10:BF16) -> 8.58
C10: 1.2 | D10: ='1) My Tasks'!H8 -> 2025-08-30 | E10: 5 | G10: =IF(AND(H10=TRUE,F10=""),0,IF(F10="","",IF(F10=0,0,(F10/E10)))) ->  | H10: FALSE | J10: =IF(Calc_S="No","",IF(C10="","",IF(H10=TRUE,"C",IF(AND(H10=FALSE,D10<TODAY()),"L",IF(AND(F10<=0,D10<TODAY()+2),"D",""))))) ->  | N10: 1.2 | O10: ='1) My Tasks'!P8 -> 2025-08-31 | Q10: =IF(AND(R10=TRUE,P10=""),0,IF(P10="","",IF(P10=0,0,(P10/10)))) ->  | R10: FALSE | X10: Extra 1 | Y10: ='1) My Tasks'!X8 -> 2025-09-02 | AA10: FALSE | AB10: =IF(Calc_S="No","",IF(X10="","",IF(AA10=TRUE,"C",IF(AND(AA10=FALSE,Y10<TODAY()),"L",IF(AND(AA10=FALSE,Y10<TODAY()+2),"D",""))))) ->  | AF10: Chapter 1 | AG10: ='1) My Tasks'!AG16 -> 2025-10-12 | AI10: =AH10/0.1 -> 0 | AJ10: =IF(AI10>=$BH$3,$BH$4,IF(AI10>=$BI$3,$BI$4,IF(AI10>=$BJ$3,$BJ$4,IF(AI10>=$BK$3,$BK$4,IF(AI10>=$BL$3,$BL$4,IF(AI10>=$BM$3,$BM$4,IF(AI10>=$BN$3,$BN$4,IF(AI10>=$BO$3,$BO$4,AI10)))))))) -> 0 | AK10: FALSE | AL10: =IF(Calc_S="No","",IF(AF10="","",IF(AK10=TRUE,"C",IF(AND(AK10=FALSE,AG10<TODAY()),"L","")))) ->  | AO10: 1.2 | AP10: =IF(D10="","",IF(H10=TRUE,1,IF(AND(H10=FALSE,D10<TODAY()-1),1,0))) -> 1 | AQ10: =IF(D10="","",IF(AND(H10=TRUE,F10=""),0,IF(H10=TRUE,G10*100,0))) -> 0 | AR10: =IF(D10="","",IF(AND(H10=TRUE,F10=""),0,IF(H10=TRUE,I10,0))) -> 0 | AT10: 1.2 | AU10: =IF(O10="","",IF(R10=TRUE,1,IF(AND(R10=FALSE,O10<TODAY()-1),1,0))) -> 1 | AV10: =IF(O10="","",IF(AND(R10=TRUE,P10=""),0,IF(R10=TRUE,Q10*100,0))) -> 0 | AW10: =IF(N10="","",IF(AND(R10=TRUE,P10=""),0,IF(R10=TRUE,S10,0))) -> 0 | AY10: Extra 1 | AZ10: =IF(X10="","",IF(AA10=TRUE,1,IF(AND(AA10=FALSE,Y10<TODAY()-2),1,0))) -> 1 | BA10: =IF(X10="","",IF(AND(AA10=TRUE,Z10=""),0,IF(AA10=TRUE,Z10,0))) -> 0 | BC10: Sample , Ch 1 | BD10: =IF(AF10="","",IF(AK10=TRUE,1,IF(AND(AK10=FALSE,AG10<TODAY()),1,0))) -> 1 | BE10: =IF(AF10="","",IF(AND(AK10=TRUE,AH10=""),0,IF(AK10=TRUE,AJ10,0))) -> 0 | BF10: =IF(BD10=1,1.43,0) -> 1.43
AF11: Chapter 2 | AG11: =AG10 -> 2025-10-12 | AI11: =AH11/0.1 -> 0 | AJ11: =IF(AI11>=$BH$3,$BH$4,IF(AI11>=$BI$3,$BI$4,IF(AI11>=$BJ$3,$BJ$4,IF(AI11>=$BK$3,$BK$4,IF(AI11>=$BL$3,$BL$4,IF(AI11>=$BM$3,$BM$4,IF(AI11>=$BN$3,$BN$4,IF(AI11>=$BO$3,$BO$4,AI11)))))))) -> 0 | AK11: FALSE | AL11: =IF(Calc_S="No","",IF(AF11="","",IF(AK11=TRUE,"C",IF(AND(AK11=FALSE,AG11<TODAY()),"L","")))) ->  | AZ11: =IF(X11="","",IF(AA11=TRUE,1,IF(AND(AA11=FALSE,Y11<TODAY()-2),1,0))) ->  | BA11: =IF(X11="","",IF(AND(AA11=TRUE,Z11=""),0,IF(AA11=TRUE,Z11,0))) ->  | BC11: Sample , Ch 2 | BD11: =IF(AF11="","",IF(AK11=TRUE,1,IF(AND(AK11=FALSE,AG11<TODAY()),1,0))) -> 1 | BE11: =IF(AF11="","",IF(AND(AK11=TRUE,AH11=""),0,IF(AK11=TRUE,AJ11,0))) -> 0 | BF11: =IF(BD11=1,1.43,0) -> 1.43 | BJ11: Poss Points | BK11: Total | BL11: Yours | BN11: Your Points
C12: 2.1 | D12: ='1) My Tasks'!H10 -> 2025-09-06 | E12: 4 | G12: =IF(AND(H12=TRUE,F12=""),0,IF(F12="","",IF(F12=0,0,(F12/E12)))) ->  | H12: FALSE | J12: =IF(Calc_S="No","",IF(C12="","",IF(H12=TRUE,"C",IF(AND(H12=FALSE,D12<TODAY()),"L",IF(AND(F12<=0,D12<TODAY()+2),"D",""))))) ->  | N12: 2.1 | O12: ='1) My Tasks'!P10 -> 2025-09-07 | Q12: =IF(AND(R12=TRUE,P12=""),0,IF(P12="","",IF(P12=0,0,(P12/10)))) ->  | R12: FALSE | AF12: Chapter 3 | AG12: =AG11 -> 2025-10-12 | AI12: 0 | AJ12: =IF(AI12>=$BH$3,$BH$4,IF(AI12>=$BI$3,$BI$4,IF(AI12>=$BJ$3,$BJ$4,IF(AI12>=$BK$3,$BK$4,IF(AI12>=$BL$3,$BL$4,IF(AI12>=$BM$3,$BM$4,IF(AI12>=$BN$3,$BN$4,IF(AI12>=$BO$3,$BO$4,AI12)))))))) -> 0 | AK12: FALSE | AL12: =IF(Calc_S="No","",IF(AF12="","",IF(AK12=TRUE,"C",IF(AND(AK12=FALSE,AG12<TODAY()),"L","")))) ->  | AO12: 2.1 | AP12: 1 | AQ12: 0 | AR12: 0 | AT12: 2.1 | AU12: 1 | AV12: 0 | AW12: 0 | BC12: Sample , Ch 3 | BD12: =IF(AF12="","",IF(AK12=TRUE,1,IF(AND(AK12=FALSE,AG12<TODAY()),1,0))) -> 1 | BE12: =IF(AF12="","",IF(AND(AK12=TRUE,AH12=""),0,IF(AK12=TRUE,AJ12,0))) -> 0 | BF12: 1.43 | BI12: MQ, MLM Points | BJ12: =IF(BD2="Yes",3.025,3.75) -> 3.75 | BK12: =AP6+AU6 -> 47 | BL12: =AR6+AW6 -> 0 | BM12: =IF(BK12=0,0,BL12/BK12) -> 0 | BN12: =BM12*BJ12 -> 0 | BQ12: =BJ12 -> 3.75
C13: 2.2 | D13: ='1) My Tasks'!H11 -> 2025-09-06 | E13: 6 | H13: FALSE | J13: =IF(Calc_S="No","",IF(C13="","",IF(H13=TRUE,"C",IF(AND(H13=FALSE,D13<TODAY()),"L",IF(AND(F13<=0,D13<TODAY()+2),"D",""))))) ->  | N13: 2.2 | O13: ='1) My Tasks'!P11 -> 2025-09-07 | R13: FALSE | X13: Extra 2a | Y13: ='1) My Tasks'!X11 -> 2025-09-09 | AA13: FALSE | AB13: =IF(Calc_S="No","",IF(X13="","",IF(AA13=TRUE,"C",IF(AND(AA13=FALSE,Y13<TODAY()),"L",IF(AND(AA13=FALSE,Y13<TODAY()+2),"D",""))))) ->  | AF13: Chapter 4 | AG13: 2025-10-12 | AI13: 0 | AJ13: =IF(AI13>=$BH$3,$BH$4,IF(AI13>=$BI$3,$BI$4,IF(AI13>=$BJ$3,$BJ$4,IF(AI13>=$BK$3,$BK$4,IF(AI13>=$BL$3,$BL$4,IF(AI13>=$BM$3,$BM$4,IF(AI13>=$BN$3,$BN$4,IF(AI13>=$BO$3,$BO$4,AI13)))))))) -> 0 | AK13: FALSE | AL13: =IF(Calc_S="No","",IF(AF13="","",IF(AK13=TRUE,"C",IF(AND(AK13=FALSE,AG13<TODAY()),"L","")))) ->  | AO13: 2.2 | AP13: 1 | AQ13: 0 | AR13: 0 | AT13: 2.2 | AU13: 1 | AV13: 0 | AW13: 0 | AY13: Extra 2a | AZ13: 1 | BA13: 0 | BC13: Sample , Ch 4 | BD13: =IF(AF13="","",IF(AK13=TRUE,1,IF(AND(AK13=FALSE,AG13<TODAY()),1,0))) -> 1 | BE13: =IF(AF13="","",IF(AND(AK13=TRUE,AH13=""),0,IF(AK13=TRUE,AJ13,0))) -> 0 | BF13: 1.43 | BI13: Extra Work | BJ13: 1.25 | BK13: =AY6*10 -> 80 | BL13: =BA6 -> 0 | BM13: =IF(BK13=0,0,BL13/BK13) -> 0 | BN13: =BM13*BJ13 -> 0 | BQ13: =BJ13 -> 1.25
C14: 2.3 | D14: ='1) My Tasks'!H12 -> 2025-09-13 | E14: 6 | H14: FALSE | J14: =IF(Calc_S="No","",IF(C14="","",IF(H14=TRUE,"C",IF(AND(H14=FALSE,D14<TODAY()),"L",IF(AND(F14<=0,D14<TODAY()+2),"D",""))))) ->  | N14: 2.3 | O14: ='1) My Tasks'!P12 -> 2025-09-14 | R14: FALSE | X14: Extra 2b | Y14: ='1) My Tasks'!X12 -> 2025-09-16 | AA14: FALSE | AB14: =IF(Calc_S="No","",IF(X14="","",IF(AA14=TRUE,"C",IF(AND(AA14=FALSE,Y14<TODAY()),"L",IF(AND(AA14=FALSE,Y14<TODAY()+2),"D",""))))) ->  | AO14: 2.3 | AP14: 1 | AQ14: 0 | AR14: 0 | AT14: 2.3 | AU14: 1 | AV14: 0 | AW14: 0 | AY14: Extra 2b | AZ14: 1 | BA14: 0 | BI14: MLM Samples | BJ14: =BF9 -> 8.58 | BK14: =BD9*100 -> 600 | BL14: =SUM(BE10:BE16) -> 0 | BM14: =IF(BK14=0,0,BL14/BK14) -> 0 | BN14: =BM14*BJ14 -> 0 | BQ14: =6*1.43 -> 8.58
AF15: Chapter 5 | AG15: ='1) My Tasks'!AG31 -> 2025-11-23 | AI15: 0 | AJ15: =IF(AI15>=$BH$3,$BH$4,IF(AI15>=$BI$3,$BI$4,IF(AI15>=$BJ$3,$BJ$4,IF(AI15>=$BK$3,$BK$4,IF(AI15>=$BL$3,$BL$4,IF(AI15>=$BM$3,$BM$4,IF(AI15>=$BN$3,$BN$4,IF(AI15>=$BO$3,$BO$4,AI15)))))))) -> 0 | AK15: FALSE | AL15: =IF(Calc_S="No","",IF(AF15="","",IF(AK15=TRUE,"C",IF(AND(AK15=FALSE,AG15<TODAY()),"L","")))) ->  | BC15: Sample , Ch 5 | BD15: =IF(AF15="","",IF(AK15=TRUE,1,IF(AND(AK15=FALSE,AG15<TODAY()),1,0))) -> 1 | BE15: =IF(AF15="","",IF(AND(AK15=TRUE,AH15=""),0,IF(AK15=TRUE,AJ15,0))) -> 0 | BF15: 1.43 | BN15: =SUM(BN12:BN14) -> 0 | BQ15: =SUM(BQ12:BQ14) -> 13.58
C16: 3.1 | D16: ='1) My Tasks'!H14 -> 2025-09-13 | E16: 4 | H16: FALSE | J16: =IF(Calc_S="No","",IF(C16="","",IF(H16=TRUE,"C",IF(AND(H16=FALSE,D16<TODAY()),"L",IF(AND(F16<=0,D16<TODAY()+2),"D",""))))) ->  | N16: 3.1 | O16: ='1) My Tasks'!P14 -> 2025-09-14 | R16: FALSE | AF16: Chapter 6,7 | AG16: =AG15 -> 2025-11-23 | AI16: 0 | AJ16: =IF(AI16>=$BH$3,$BH$4,IF(AI16>=$BI$3,$BI$4,IF(AI16>=$BJ$3,$BJ$4,IF(AI16>=$BK$3,$BK$4,IF(AI16>=$BL$3,$BL$4,IF(AI16>=$BM$3,$BM$4,IF(AI16>=$BN$3,$BN$4,IF(AI16>=$BO$3,$BO$4,AI16)))))))) -> 0 | AK16: FALSE | AL16: =IF(Calc_S="No","",IF(AF16="","",IF(AK16=TRUE,"C",IF(AND(AK16=FALSE,AG16<TODAY()),"L","")))) ->  | AO16: 3.1 | AP16: 1 | AQ16: 0 | AR16: 0 | AT16: 3.1 | AU16: 1 | AV16: 0 | AW16: 0 | BC16: Sample , Ch 6,7 | BD16: =IF(AF16="","",IF(AK16=TRUE,1,IF(AND(AK16=FALSE,AG16<TODAY()),1,0))) -> 1 | BE16: =IF(AF16="","",IF(AND(AK16=TRUE,AH16=""),0,IF(AK16=TRUE,AJ16,0))) -> 0 | BF16: 1.43
C17: 3.2 | D17: ='1) My Tasks'!H15 -> 2025-09-20 | E17: 4 | H17: FALSE | J17: =IF(Calc_S="No","",IF(C17="","",IF(H17=TRUE,"C",IF(AND(H17=FALSE,D17<TODAY()),"L",IF(AND(F17<=0,D17<TODAY()+2),"D",""))))) ->  | N17: 3.2 | O17: ='1) My Tasks'!P15 -> 2025-09-21 | R17: FALSE | AO17: 3.2 | AP17: 1 | AQ17: 0 | AR17: 0 | AT17: 3.2 | AU17: 1 | AV17: 0 | AW17: 0 | BI17: Practice Exam | BJ17: =BF4 -> 0 | BK17: 100 | BL17: =BE4 -> 0 | BM17: =BL17/BK17 -> 0 | BN17: =BJ17*BM17 -> 0
C18: 3.3 | D18: ='1) My Tasks'!H16 -> 2025-09-20 | E18: 6 | H18: FALSE | J18: =IF(Calc_S="No","",IF(C18="","",IF(H18=TRUE,"C",IF(AND(H18=FALSE,D18<TODAY()),"L",IF(AND(F18<=0,D18<TODAY()+2),"D",""))))) ->  | N18: 3.3 | O18: ='1) My Tasks'!P16 -> 2025-09-21 | R18: FALSE | AO18: 3.3 | AP18: 1 | AQ18: 0 | AR18: 0 | AT18: 3.3 | AU18: 1 | AV18: 0 | AW18: 0 | BJ18: Bonus Added: | BK18: =1% -> 0.01
N19: Ch 3 Mix | O19: ='1) My Tasks'!P17 -> 2025-09-23 | R19: FALSE | X19: Extra 3 | Y19: ='1) My Tasks'!X17 -> 2025-09-25 | AA19: FALSE | AB19: =IF(Calc_S="No","",IF(X19="","",IF(AA19=TRUE,"C",IF(AND(AA19=FALSE,Y19<TODAY()),"L",IF(AND(AA19=FALSE,Y19<TODAY()+2),"D",""))))) ->  | AT19: Ch 3 Mix | AU19: 1 | AV19: 0 | AW19: 0 | AY19: Extra 3 | AZ19: 1 | BA19: 0 | BN19: Min MLM | BO19: 74.5
BD20: =IF(AF20="","",IF(AK20=TRUE,1,0)) ->  | BE20: =IF(AF20="","",IF(AND(AK20=TRUE,P20=""),0,IF(AK20=TRUE,AJ20,0))) ->  | BI20: Bonus
C21: 4.1 | D21: ='1) My Tasks'!H19 -> 2025-09-27 | E21: 6 | H21: FALSE | J21: =IF(Calc_S="No","",IF(C21="","",IF(H21=TRUE,"C",IF(AND(H21=FALSE,D21<TODAY()),"L",IF(AND(F21<=0,D21<TODAY()+2),"D",""))))) ->  | N21: 4.1 | O21: ='1) My Tasks'!P19 -> 2025-09-28 | R21: FALSE | AG21: Start | AH21: Ends | AI21: Score | AO21: 4.1 | AP21: 1 | AQ21: 0 | AR21: 0 | AT21: 4.1 | AU21: 1 | AV21: 0 | AW21: 0 | BI21: =BK18/10 -> 0.001 | BQ21: =BD34 -> 0.05 | BR21: =BD35 -> 0.15 | BS21: =BD33 -> 0.15
C22: 4.2 | D22: ='1) My Tasks'!H20 -> 2025-09-27 | E22: 4 | H22: FALSE | J22: =IF(Calc_S="No","",IF(C22="","",IF(H22=TRUE,"C",IF(AND(H22=FALSE,D22<TODAY()),"L",IF(AND(F22<=0,D22<TODAY()+2),"D",""))))) ->  | N22: 4.2 | O22: ='1) My Tasks'!P20 -> 2025-09-28 | R22: FALSE | AF22: Midterm 1 | AG22: ='1) My Tasks'!AG22 -> 2025-10-09 | AH22: ='1) My Tasks'!AG24 -> 2025-10-13 | AJ22: FALSE | AK22: =IF(Calc_S="No","",IF(AF22="","",IF(AJ22=TRUE,"C",IF(AND(AJ22=FALSE,AH22<TODAY()),"Zero (Late)","")))) ->  | AO22: 4.2 | AP22: 1 | AQ22: 0 | AR22: 0 | AT22: 4.2 | AU22: 1 | AV22: 0 | AW22: 0 | BC22: Midterm 1 | BD22: =IF(AF22="","",IF(AND(AJ22=FALSE,AH22<TODAY()-5),1,IF(AJ22=TRUE,1,0))) -> 1 | BE22: =IF(AF22="","",IF(AND(AJ22=TRUE,AI22=""),0,IF(AJ22=TRUE,AI22,0))) -> 0 | BI22: Participation | BJ22: =SUM(BJ12:BJ14) -> 13.58 | BK22: =BN15 -> 0 | BN22: Before Mid 1 | BO22: 1 | BQ22: =AF34 -> MQ | BR22: MLM | BS22: Part.
C23: 4.3 | D23: ='1) My Tasks'!H21 -> 2025-10-04 | E23: 4 | H23: FALSE | J23: =IF(Calc_S="No","",IF(C23="","",IF(H23=TRUE,"C",IF(AND(H23=FALSE,D23<TODAY()),"L",IF(AND(F23<=0,D23<TODAY()+2),"D",""))))) ->  | N23: 4.3 | O23: ='1) My Tasks'!P21 -> 2025-10-05 | R23: FALSE | AG23: =AG22 -> 2025-10-09 | AH23: =AH22 -> 2025-10-13 | AO23: 4.3 | AP23: 1 | AQ23: 0 | AR23: 0 | AT23: 4.3 | AU23: 1 | AV23: 0 | AW23: 0 | BD23: =IF(AF26="","",IF(AND(AK26=FALSE,#REF!<TODAY()-5),1,IF(AK26=TRUE,1,0))) ->  | BE23: =IF(AF26="","",IF(AND(AK26=TRUE,AI26=""),0,IF(AK26=TRUE,AI26,0))) ->  | BI23: Practice Exam | BJ23: =IF(BD2="Yes",BF4,0) -> 0 | BK23: =IF(BD2="Yes",BN17,0) -> 0 | BN23: After Mid 1 | BO23: 2 | BQ23: 0 | BR23: 0 | BS23: 0
C24: 4.4 | D24: ='1) My Tasks'!H22 -> 2025-10-04 | E24: 6 | H24: FALSE | J24: =IF(Calc_S="No","",IF(C24="","",IF(H24=TRUE,"C",IF(AND(H24=FALSE,D24<TODAY()),"L",IF(AND(F24<=0,D24<TODAY()+2),"D",""))))) ->  | N24: 4.4 | O24: ='1) My Tasks'!P22 -> 2025-10-05 | R24: FALSE | AO24: 4.4 | AP24: 1 | AQ24: 0 | AR24: 0 | AT24: 4.4 | AU24: 1 | AV24: 0 | AW24: 0 | BI24: Part Points | BJ24: =SUM(BJ22:BJ23) -> 13.58 | BK24: =IF(BD2="Yes",SUM(BK22:BK23),BK22) -> 0 | BL24: All with Bonus | BN24: After Mid 2 | BO24: 3
N25: Ch 4 Mix | O25: ='1) My Tasks'!P23 -> 2025-10-07 | R25: FALSE | X25: Extra 4 | Y25: ='1) My Tasks'!X23 -> 2025-10-09 | AA25: FALSE | AB25: =IF(Calc_S="No","",IF(X25="","",IF(AA25=TRUE,"C",IF(AND(AA25=FALSE,Y25<TODAY()),"L",IF(AND(AA25=FALSE,Y25<TODAY()+2),"D",""))))) ->  | AF25: Midterm 2 | AG25: ='1) My Tasks'!AG34 -> 2025-11-20 | AH25: ='1) My Tasks'!AG36 -> 2025-11-24 | AJ25: FALSE | AK25: =IF(Calc_S="No","",IF(AF25="","",IF(AJ25=TRUE,"C",IF(AND(AJ25=FALSE,AH25<TODAY()),"Zero (Late)","")))) ->  | AT25: Ch 4 Mix | AU25: 1 | AV25: 0 | AW25: 0 | AY25: Extra 4 | AZ25: 1 | BA25: 0 | BC25: Midterm 2 | BD25: =IF(AF25="","",IF(AND(AJ25=FALSE,AH25<TODAY()-5),1,IF(AJ25=TRUE,1,0))) -> 0 | BE25: =IF(AF25="","",IF(AND(AJ25=TRUE,AI25=""),0,IF(AJ25=TRUE,AI25,0))) -> 0 | BI25: Participation | BJ25: 0.15 | BK25: =BK24/BJ24+BI21*BA41 -> 0 | BL25: =BJ25*BK25*100 -> 0 | BN25: After Final | BO25: 4 | BQ25: =BD36 -> 0.2 | BR25: =BD38 -> 0.2 | BS25: =BD40 -> 0.25
AG26: =AG25 -> 2025-11-20 | AH26: =AH25 -> 2025-11-24 | AM26: =IF(AF26="","",IF(AK26=TRUE,"C",IF(AND(AK26=FALSE,#REF!<TODAY()),"L",""))) -> 
C27: 5.1 | D27: ='1) My Tasks'!H25 -> 2025-10-18 | E27: 5 | H27: FALSE | I27: =IF(Calc_S="No","",IF(C27="","",IF(AND(H27=TRUE,F27=""),0,IF(AND(H27=FALSE,D27<TODAY()),0,IF(AND(H27=TRUE,G27>=0.4),1,IF(AND(H27=TRUE,G27<0.4),0,"")))))) ->  | J27: =IF(Calc_S="No","",IF(C27="","",IF(H27=TRUE,"C",IF(AND(H27=FALSE,D27<TODAY()),"L",IF(AND(F27<=0,D27<TODAY()+2),"D",""))))) ->  | N27: 5.1 | O27: ='1) My Tasks'!P25 -> 2025-10-19 | R27: FALSE | S27: =IF(Calc_S="No","",IF(N27="","",IF(AND(R27=TRUE,P27=""),0,IF(AND(R27=FALSE,O27<TODAY()),0,IF(AND(R27=TRUE,Q27>=0.4),1,IF(AND(R27=TRUE,Q27<0.4),0,"")))))) ->  | T27: =IF(Calc_S="No","",IF(N27="","",IF(R27=TRUE,"C",IF(AND(R27=FALSE,O27<TODAY()),"L",IF(AND(P27<=0,O27<TODAY()+2),"D",""))))) ->  | AO27: 5.1 | AP27: 1 | AQ27: 0 | AR27: 0 | AT27: 5.1 | AU27: 1 | AV27: 0 | AW27: 0 | BQ27: =AF39 -> Midterm 1 | BR27: =AG39 -> Midterm 1 | BS27: =AH39 -> Final | BU27: Min Mid
C28: 5.2 | D28: ='1) My Tasks'!H26 -> 2025-10-18 | E28: 4 | H28: FALSE | J28: =IF(Calc_S="No","",IF(C28="","",IF(H28=TRUE,"C",IF(AND(H28=FALSE,D28<TODAY()),"L",IF(AND(F28<=0,D28<TODAY()+2),"D",""))))) ->  | N28: 5.2 | O28: ='1) My Tasks'!P26 -> 2025-10-19 | R28: FALSE | S28: =IF(Calc_S="No","",IF(N28="","",IF(AND(R28=TRUE,P28=""),0,IF(AND(R28=FALSE,O28<TODAY()),0,IF(AND(R28=TRUE,Q28>=0.4),1,IF(AND(R28=TRUE,Q28<0.4),0,"")))))) ->  | T28: =IF(Calc_S="No","",IF(N28="","",IF(R28=TRUE,"C",IF(AND(R28=FALSE,O28<TODAY()),"L",IF(AND(P28<=0,O28<TODAY()+2),"D",""))))) ->  | X28: Extra 5a | Y28: ='1) My Tasks'!X26 -> 2025-10-21 | AA28: FALSE | AB28: =IF(Calc_S="No","",IF(X28="","",IF(AA28=TRUE,"C",IF(AND(AA28=FALSE,Y28<TODAY()),"L",IF(AND(AA28=FALSE,Y28<TODAY()+2),"D",""))))) ->  | AO28: 5.2 | AP28: 1 | AQ28: 0 | AR28: 0 | AT28: 5.2 | AU28: 1 | AV28: 0 | AW28: 0 | AY28: Extra 5a | AZ28: 1 | BA28: 0 | BI28: Bonus | BN28: Selected | BQ28: =IF(AF41="",0,AF41) -> 0 | BR28: =IF(AG41="",0,AG41) -> 0 | BS28: =IF(AH41="",0,AH41) -> 0 | BU28: =MIN(BQ40:BR40) -> 0
C29: 5.3 | D29: ='1) My Tasks'!H27 -> 2025-10-25 | E29: 4 | H29: FALSE | J29: =IF(Calc_S="No","",IF(C29="","",IF(H29=TRUE,"C",IF(AND(H29=FALSE,D29<TODAY()),"L",IF(AND(F29<=0,D29<TODAY()+2),"D",""))))) ->  | N29: 5.3 | O29: ='1) My Tasks'!P27 -> 2025-10-26 | R29: FALSE | S29: =IF(Calc_S="No","",IF(N29="","",IF(AND(R29=TRUE,P29=""),0,IF(AND(R29=FALSE,O29<TODAY()),0,IF(AND(R29=TRUE,Q29>=0.4),1,IF(AND(R29=TRUE,Q29<0.4),0,"")))))) ->  | T29: =IF(Calc_S="No","",IF(N29="","",IF(R29=TRUE,"C",IF(AND(R29=FALSE,O29<TODAY()),"L",IF(AND(P29<=0,O29<TODAY()+2),"D",""))))) ->  | AF29: Final Exam | AG29: ='1) My Tasks'!AG38 -> 2025-12-11 | AH29: ='1) My Tasks'!AG40 -> 2025-12-15 | AJ29: FALSE | AK29: =IF(Calc_S="No","",IF(AF29="","",IF(AJ29=TRUE,"C",IF(AND(AJ29=FALSE,AH29<TODAY()),"Zero (Late)","")))) ->  | AO29: 5.3 | AP29: 1 | AQ29: 0 | AR29: 0 | AT29: 5.3 | AU29: 1 | AV29: 0 | AW29: 0 | BC29: Final Exam | BD29: =IF(AF29="","",IF(AND(AJ29=FALSE,AH29<TODAY()-5),1,IF(AJ29=TRUE,1,0))) -> 0 | BE29: =IF(AF29="","",IF(AND(AJ29=TRUE,AI29=""),0,IF(AJ29=TRUE,AI29,0))) -> 0 | BI29: =BK18 -> 0.01 | BN29: =AJ33 -> After Final | BO29: =VLOOKUP(BN29,BN22:BO25,2,FALSE) -> 4
C30: 5.4 | D30: ='1) My Tasks'!H28 -> 2025-10-25 | E30: 4 | H30: FALSE | J30: =IF(Calc_S="No","",IF(C30="","",IF(H30=TRUE,"C",IF(AND(H30=FALSE,D30<TODAY()),"L",IF(AND(F30<=0,D30<TODAY()+2),"D",""))))) ->  | N30: 5.4 | O30: ='1) My Tasks'!P28 -> 2025-10-26 | R30: FALSE | S30: =IF(Calc_S="No","",IF(N30="","",IF(AND(R30=TRUE,P30=""),0,IF(AND(R30=FALSE,O30<TODAY()),0,IF(AND(R30=TRUE,Q30>=0.4),1,IF(AND(R30=TRUE,Q30<0.4),0,"")))))) ->  | T30: =IF(Calc_S="No","",IF(N30="","",IF(R30=TRUE,"C",IF(AND(R30=FALSE,O30<TODAY()),"L",IF(AND(P30<=0,O30<TODAY()+2),"D",""))))) ->  | AG30: =AG29 -> 2025-12-11 | AH30: =AH29 -> 2025-12-15 | AO30: 5.4 | AP30: 1 | AQ30: 0 | AR30: 0 | AT30: 5.4 | AU30: 1 | AV30: 0 | AW30: 0 | BI30: MQ | BJ30: 0.05 | BK30: =AQ6+BI29*BA41 -> 0 | BL30: =BJ30*BK30 -> 0 | BO30: =IF(BO29=1,35,IF(BO29=2,55,IF(BO29=3,75,100))) -> 100
N31: Ch 5 Mix | O31: ='1) My Tasks'!P29 -> 2025-10-28 | R31: FALSE | S31: =IF(Calc_S="No","",IF(N31="","",IF(AND(R31=TRUE,P31=""),0,IF(AND(R31=FALSE,O31<TODAY()),0,IF(AND(R31=TRUE,Q31>=0.4),1,IF(AND(R31=TRUE,Q31<0.4),0,"")))))) ->  | T31: =IF(Calc_S="No","",IF(N31="","",IF(R31=TRUE,"C",IF(AND(R31=FALSE,O31<TODAY()),"L",IF(AND(P31<=0,O31<TODAY()+2),"D",""))))) ->  | X31: Extra 5b | Y31: ='1) My Tasks'!X29 -> 2025-10-30 | AA31: FALSE | AB31: =IF(Calc_S="No","",IF(X31="","",IF(AA31=TRUE,"C",IF(AND(AA31=FALSE,Y31<TODAY()),"L",IF(AND(AA31=FALSE,Y31<TODAY()+2),"D",""))))) ->  | AT31: Ch 5 Mix | AU31: 1 | AV31: 0 | AW31: 0 | AY31: Extra 5b | AZ31: 1 | BA31: 0 | BI31: MLM | BJ31: 0.15 | BK31: =AV6+BI29*BA41 -> 0 | BL31: =BJ31*BK31 -> 0 | BQ31: Case | BR31: Total | BS31: %
AG32: =IF(AND(AG35>0,AG35<BO19),"Low","") ->  | AJ32: Your Grade:
C33: 6.1 | D33: ='1) My Tasks'!H31 -> 2025-11-01 | E33: 4 | H33: FALSE | I33: =IF(Calc_S="No","",IF(C33="","",IF(AND(H33=TRUE,F33=""),0,IF(AND(H33=FALSE,D33<TODAY()),0,IF(AND(H33=TRUE,G33>=0.4),1,IF(AND(H33=TRUE,G33<0.4),0,"")))))) ->  | J33: =IF(Calc_S="No","",IF(C33="","",IF(H33=TRUE,"C",IF(AND(H33=FALSE,D33<TODAY()),"L",IF(AND(F33<=0,D33<TODAY()+2),"D",""))))) ->  | N33: 6.1 | O33: ='1) My Tasks'!P31 -> 2025-11-02 | R33: FALSE | S33: =IF(Calc_S="No","",IF(N33="","",IF(AND(R33=TRUE,P33=""),0,IF(AND(R33=FALSE,O33<TODAY()),0,IF(AND(R33=TRUE,Q33>=0.4),1,IF(AND(R33=TRUE,Q33<0.4),0,"")))))) ->  | T33: =IF(Calc_S="No","",IF(N33="","",IF(R33=TRUE,"C",IF(AND(R33=FALSE,O33<TODAY()),"L",IF(AND(P33<=0,O33<TODAY()+2),"D",""))))) ->  | AF33: A | AG33: B | AH33: C | AJ33: After Final | AO33: 6.1 | AP33: 1 | AQ33: 0 | AR33: 0 | AT33: 6.1 | AU33: 1 | AV33: 0 | AW33: 0 | BC33: Part | BD33: 0.15 | BE33: =(BK24/BJ24)*100 -> 0 | BF33: =BD33*BE33 -> 0 | BQ33: 1 | BR33: 35 | BS33: =(BQ21*BQ23+BR21*BR23+BS21*BS23)/BO30 -> 0
C34: 6.2 | D34: ='1) My Tasks'!H32 -> 2025-11-01 | E34: 4 | H34: FALSE | J34: =IF(Calc_S="No","",IF(C34="","",IF(H34=TRUE,"C",IF(AND(H34=FALSE,D34<TODAY()),"L",IF(AND(F34<=0,D34<TODAY()+2),"D",""))))) ->  | N34: 6.2 | O34: ='1) My Tasks'!P32 -> 2025-11-02 | R34: FALSE | S34: =IF(Calc_S="No","",IF(N34="","",IF(AND(R34=TRUE,P34=""),0,IF(AND(R34=FALSE,O34<TODAY()),0,IF(AND(R34=TRUE,Q34>=0.4),1,IF(AND(R34=TRUE,Q34<0.4),0,"")))))) ->  | T34: =IF(Calc_S="No","",IF(N34="","",IF(R34=TRUE,"C",IF(AND(R34=FALSE,O34<TODAY()),"L",IF(AND(P34<=0,O34<TODAY()+2),"D",""))))) ->  | AF34: MQ | AG34: MLM | AH34: Part. | AO34: 6.2 | AP34: 1 | AQ34: 0 | AR34: 0 | AT34: 6.2 | AU34: 1 | AV34: 0 | AW34: 0 | BC34: MQ | BD34: 0.05 | BE34: =AQ6 -> 0 | BF34: =BD34*BE34 -> 0 | BI34: Midterm 1 | BJ34: 0.2 | BK34: =BE36 -> 0 | BL34: =BJ34*BK34 -> 0 | BQ34: 2 | BR34: 55 | BS34: =(BQ21*BQ23+BR21*BR23+BS21*BS23+BQ25*BQ28)/BO30 -> 0
C35: 6.3 | D35: ='1) My Tasks'!H33 -> 2025-11-08 | E35: 5 | H35: FALSE | J35: =IF(Calc_S="No","",IF(C35="","",IF(H35=TRUE,"C",IF(AND(H35=FALSE,D35<TODAY()),"L",IF(AND(F35<=0,D35<TODAY()+2),"D",""))))) ->  | N35: 6.3 | O35: ='1) My Tasks'!P33 -> 2025-11-09 | Q35: =IF(AND(R35=TRUE,P35=""),0,IF(P35="","",IF(P35=0,0,(P35/10)))) ->  | R35: FALSE | S35: =IF(Calc_S="No","",IF(N35="","",IF(AND(R35=TRUE,P35=""),0,IF(AND(R35=FALSE,O35<TODAY()),0,IF(AND(R35=TRUE,Q35>=0.4),1,IF(AND(R35=TRUE,Q35<0.4),0,"")))))) ->  | T35: =IF(Calc_S="No","",IF(N35="","",IF(R35=TRUE,"C",IF(AND(R35=FALSE,O35<TODAY()),"L",IF(AND(P35<=0,O35<TODAY()+2),"D",""))))) ->  | AF35: =BK30 -> 0 | AG35: =BK31 -> 0 | AH35: =BK25*100 -> 0 | AJ35: =IF(SUM(AF35:AH36,AG34:AH42)=0,"",IF(BO29=1,BS33,IF(BO29=2,BS34,IF(BO29=3,BS35,IF(BO29=4,BS36,""))))) ->  | AL35: =IF(OR(AJ35="",AJ35=0,AJ35=""),"",LOOKUP(AJ35,{0,"F";0.6,"D-";0.64,"D";0.67,"D+";0.7,"C-";0.74,"C";0.77,"C+";0.8,"B-";0.84,"B";0.87,"B+";0.895,"A-";0.94,"A";0.98,"A+"})) ->  | AO35: 6.3 | AP35: 1 | AQ35: 0 | AR35: 0 | AT35: 6.3 | AU35: =IF(O35="","",IF(R35=TRUE,1,IF(AND(R35=FALSE,O35<TODAY()-1),1,0))) -> 1 | AV35: =IF(O35="","",IF(AND(R35=TRUE,P35=""),0,IF(R35=TRUE,Q35*100,0))) -> 0 | AW35: =IF(N35="","",IF(AND(R35=TRUE,P35=""),0,IF(R35=TRUE,S35,0))) -> 0 | BC35: MLM | BD35: 0.15 | BE35: =AV6 -> 0 | BF35: =BD35*BE35 -> 0 | BI35: Midterm 2 | BJ35: 0.2 | BK35: =BE38 -> 0 | BL35: =BJ35*BK35 -> 0 | BQ35: 3 | BR35: 75 | BS35: =(BQ21*BQ23+BR21*BR23+BS21*BS23+BQ25*BQ28+BR25*BR28)/BO30 -> 0
N36: 6.3 (inverse) | O36: ='1) My Tasks'!P34 -> 2025-11-09 | Q36: =IF(AND(R36=TRUE,P36=""),0,IF(P36="","",IF(P36=0,0,(P36/10)))) ->  | R36: FALSE | S36: =IF(Calc_S="No","",IF(N36="","",IF(AND(R36=TRUE,P36=""),0,IF(AND(R36=FALSE,O36<TODAY()),0,IF(AND(R36=TRUE,Q36>=0.4),1,IF(AND(R36=TRUE,Q36<0.4),0,"")))))) ->  | T36: =IF(Calc_S="No","",IF(N36="","",IF(R36=TRUE,"C",IF(AND(R36=FALSE,O36<TODAY()),"L",IF(AND(P36<=0,O36<TODAY()+2),"D",""))))) ->  | AT36: 6.3 (inverse) | AU36: =IF(O36="","",IF(R36=TRUE,1,IF(AND(R36=FALSE,O36<TODAY()-1),1,0))) -> 1 | AV36: =IF(O36="","",IF(AND(R36=TRUE,P36=""),0,IF(R36=TRUE,Q36*100,0))) -> 0 | AW36: =IF(N36="","",IF(AND(R36=TRUE,P36=""),0,IF(R36=TRUE,S36,0))) -> 0 | BC36: Mid 1 | BD36: 0.2 | BE36: =IF(BO29=1,0,BE22) -> 0 | BF36: =BD36*BE36 -> 0 | BI36: Final | BJ36: 0.25 | BK36: =BE40 -> 0 | BL36: =BJ36*BK36 -> 0 | BQ36: 4 | BR36: 100 | BS36: =(BQ21*BQ23+BR21*BR23+BS21*BS23+BQ25*BQ28+BR25*BR28+BS25*BS28)/BO30 -> 0
C38: 7.1 | D38: ='1) My Tasks'!H35 -> 2025-11-11 | E38: 5 | H38: FALSE | J38: =IF(Calc_S="No","",IF(C38="","",IF(H38=TRUE,"C",IF(AND(H38=FALSE,D38<TODAY()),"L",IF(AND(F38<=0,D38<TODAY()+2),"D",""))))) ->  | N38: 7.1 | O38: ='1) My Tasks'!P36 -> 2025-11-12 | R38: FALSE | S38: =IF(Calc_S="No","",IF(N38="","",IF(AND(R38=TRUE,P38=""),0,IF(AND(R38=FALSE,O38<TODAY()),0,IF(AND(R38=TRUE,Q38>=0.4),1,IF(AND(R38=TRUE,Q38<0.4),0,"")))))) ->  | T38: =IF(Calc_S="No","",IF(N38="","",IF(R38=TRUE,"C",IF(AND(R38=FALSE,O38<TODAY()),"L",IF(AND(P38<=0,O38<TODAY()+2),"D",""))))) ->  | AF38: D | AG38: E | AJ38: =IF(AND(BO29=4,AH41=""),"No Final",IF(AND(BO29=4,AH41=0),"No Final",IF(AND(BO29=4,AI29=0),"",IF(BO29<>4,"",IF(AND(BO29=4,BR23<BO19,BS28>BU28),"No Change, Low MLM",IF(OR(BR23<BO19,BS28<=BU28),"No Change","Lowest Score was Replaced")))))) -> No Final | AO38: 7.1 | AP38: 1 | AQ38: 0 | AR38: 0 | AT38: 7.1 | AU38: 1 | AV38: 0 | AW38: 0 | BC38: Mid 2 | BD38: 0.2 | BE38: =IF(BO29<3,0,BE25) -> 0 | BF38: =BD38*BE38 -> 0 | BL38: =SUM(BL25:BL37) -> 0
C39: 7.2 | D39: ='1) My Tasks'!H36 -> 2025-11-15 | E39: 6 | H39: FALSE | J39: =IF(Calc_S="No","",IF(C39="","",IF(H39=TRUE,"C",IF(AND(H39=FALSE,D39<TODAY()),"L",IF(AND(F39<=0,D39<TODAY()+2),"D",""))))) ->  | N39: 7.2, 7.3 | O39: ='1) My Tasks'!P37 -> 2025-11-16 | R39: FALSE | S39: =IF(Calc_S="No","",IF(N39="","",IF(AND(R39=TRUE,P39=""),0,IF(AND(R39=FALSE,O39<TODAY()),0,IF(AND(R39=TRUE,Q39>=0.4),1,IF(AND(R39=TRUE,Q39<0.4),0,"")))))) ->  | T39: =IF(Calc_S="No","",IF(N39="","",IF(R39=TRUE,"C",IF(AND(R39=FALSE,O39<TODAY()),"L",IF(AND(P39<=0,O39<TODAY()+2),"D",""))))) ->  | X39: Extra 7 | Y39: ='1) My Tasks'!X37 -> 2025-11-18 | AA39: FALSE | AB39: =IF(Calc_S="No","",IF(X39="","",IF(AA39=TRUE,"C",IF(AND(AA39=FALSE,Y39<TODAY()),"L",IF(AND(AA39=FALSE,Y39<TODAY()+2),"D",""))))) ->  | AF39: Midterm 1 | AG39: Midterm 1 | AH39: Final | AO39: 7.2 | AP39: 1 | AQ39: 0 | AR39: 0 | AT39: 7.2, 7.3 | AU39: 1 | AV39: 0 | AW39: 0 | AY39: Extra 7 | AZ39: 1 | BA39: 0 | BQ39: Mid 1 | BR39: Mid 2 | BS39: Final
C40: 7.3 | D40: ='1) My Tasks'!H37 -> 2025-11-15 | E40: 6 | H40: FALSE | J40: =IF(Calc_S="No","",IF(C40="","",IF(H40=TRUE,"C",IF(AND(H40=FALSE,D40<TODAY()),"L",IF(AND(F40<=0,D40<TODAY()+2),"D",""))))) ->  | AO40: 7.3 | AP40: 1 | AQ40: 0 | AR40: 0 | AZ40: =IF(W40="","",IF(AA40=TRUE,1,IF(AND(AA40=FALSE,Y40<TODAY()-2),1,0))) ->  | BA40: =IF(W40="","",IF(AND(AA40=TRUE,Z40=""),0,IF(AA40=TRUE,Z40,0))) ->  | BC40: Final | BD40: 0.25 | BE40: =IF(BO29<4,0,BE29) -> 0 | BF40: =BD40*BE40 -> 0 | BK40: Your Average | BP40: Regular | BQ40: =BQ28 -> 0 | BR40: =BR28 -> 0 | BS40: =BS28 -> 0 | BT40: =BS36 -> 0 | BU40: =IF(BT40=0,"",BT40) -> 
AF41: =IF(BO29>=2,IF(AJ22=TRUE,AI22,""),"") ->  | AG41: =IF(BO29>=3,IF(AJ25=TRUE,AI25,""),"") ->  | AH41: =IF(BO29>=4,IF(AJ29=TRUE,AI29,""),"") ->  | AJ41: =IF(OR(AH41="",AH41=0),"",IF(BS42="No",AJ35,IF(AJ38="","",BT41))) ->  | AL41: =IF(AJ41="","",LOOKUP(AJ41,{0,"F";0.6,"D-";0.64,"D";0.67,"D+";0.7,"C-";0.74,"C";0.77,"C+";0.8,"B-";0.84,"B";0.87,"B+";0.895,"A-";0.94,"A";0.98,"A+"})) ->  | AY41: Bonus | AZ41: 0 | BA41: =IF(X42="","",IF(AND(AA42=TRUE,Z42=""),0,IF(AA42=TRUE,Z42,0))) -> 0 | BK41: With Bonus | BL41: =BL38/BO30 -> 0 | BP41: Lowest Dropped | BQ41: =IF(BS28="","",IF(AND(BQ40<>BR40,BQ40=BU28),BS40,BQ40)) -> 0 | BR41: =IF(BS28="","",IF(AND(BQ40<>BR40,BR40=BU28),BS40,IF(AND(BQ40=BR40,BR40<BS40),BS40,BR40))) -> 0 | BS41: =BS40 -> 0 | BT41: =IF(BS28="","",((BQ21*BQ23+BR21*BR23+BS21*BS23+BQ25*BQ41+BR25*BR41+BS25*BS41)/BR36)) -> 0
C42: 9.1 | D42: ='1) My Tasks'!H39 -> 2025-12-01 | E42: 6 | H42: FALSE | J42: =IF(C42="","",IF(H42=TRUE,"C",IF(AND(H42=FALSE,D42<TODAY()),"L",IF(AND(F42<=0,D42<TODAY()+2),"D","")))) ->  | N42: 9.1 | O42: ='1) My Tasks'!P39 -> 2025-12-02 | R42: FALSE | S42: =IF(Calc_S="No","",IF(N42="","",IF(AND(R42=TRUE,P42=""),0,IF(AND(R42=FALSE,O42<TODAY()),0,IF(AND(R42=TRUE,Q42>=0.4),1,IF(AND(R42=TRUE,Q42<0.4),0,"")))))) ->  | T42: =IF(Calc_S="No","",IF(N42="","",IF(R42=TRUE,"C",IF(AND(R42=FALSE,O42<TODAY()),"L",IF(AND(P42<=0,O42<TODAY()+2),"D",""))))) ->  | X42: Bonus | Y42: ='1) My Tasks'!X39 -> 2025-11-25 | AA42: FALSE | AB42: =IF(Calc_S="No","",IF(X42="","",IF(AA42=TRUE,"C",IF(AND(AA42=FALSE,Y42<TODAY()),"L",IF(AND(AA42=FALSE,Y42<TODAY()+2),"D",""))))) ->  | AO42: 9.1 | AP42: 0 | AQ42: 0 | AR42: 0 | AT42: 9.1 | AU42: 0 | AV42: 0 | AW42: 0 | BE42: No Bonus | BF42: =SUM(BF33:BF40) -> 0 | BS42: =IF(AH41="","",IF(AND(BO29=4,AI29=0),"",IF(BO29<>4,"",IF(OR(BR23<BO19,BS28<=BU28),"No","Yes")))) -> 
C43: 9.2 | D43: ='1) My Tasks'!H40 -> 2025-12-06 | E43: 4 | H43: FALSE | N43: 9.2 | O43: ='1) My Tasks'!P40 -> 2025-12-07 | R43: FALSE | S43: =IF(Calc_S="No","",IF(N43="","",IF(AND(R43=TRUE,P43=""),0,IF(AND(R43=FALSE,O43<TODAY()),0,IF(AND(R43=TRUE,Q43>=0.4),1,IF(AND(R43=TRUE,Q43<0.4),0,"")))))) ->  | T43: =IF(Calc_S="No","",IF(N43="","",IF(R43=TRUE,"C",IF(AND(R43=FALSE,O43<TODAY()),"L",IF(AND(P43<=0,O43<TODAY()+2),"D",""))))) ->  | AO43: 9.2 | AP43: 0 | AQ43: 0 | AR43: 0 | AT43: 9.2 | AU43: 0 | AV43: 0 | AW43: 0 | BC43: =IF(BO29>1,1,SUM(AF35:AH36)) -> 1 | BF43: =BF42/BO30 -> 0
AO45: =IF(AND(AG35=0,BO29=4),"No MLM",IF(AG35=0,"",IF(AG35<BO19,"Low MLM",""))) -> No MLM
AF46: Note: If your MLM score at least 75, then the final exam will replace the lowest of Midterm 1 or 2, but not both.

Sheet 3) My Calendar
V1: =IF(AND(V9>TODAY()-7,V9<+TODAY()+14),1,"Out") -> Out | W1: =IF(AND(W9>TODAY()-7,W9<+TODAY()+14),1,"Out") -> Out | X1: Out | Y1: Out | Z1: Out | AA1: Out | AB1: Out | AC1: Out | AD1: Out | AE1: Out | AF1: Out | AG1: Out | AH1: Out | AI1: Out | AJ1: Out | AK1: Out | AL1: Out | AM1: Out | AN1: Out | AO1: Out | AP1: Out | AQ1: Out | AR1: Out | AS1: Out | AT1: Out | AU1: Out | AV1: Out | AW1: Out | AX1: Out | AY1: Out | AZ1: Out | BA1: Out | BB1: Out | BC1: Out | BD1: Out | BE1: Out | BF1: Out | BG1: Out | BH1: Out | BI1: Out | BJ1: Out | BK1: Out | BL1: Out | BM1: Out | BN1: Out | BO1: Out | BP1: Out | BQ1: Out | BR1: Out | BS1: Out | BT1: Out | BU1: Out | BV1: Out | BW1: Out | BX1: Out | BY1: Out | BZ1: Out | CA1: Out | CB1: Out | CC1: Out | CD1: Out | CE1: Out | CF1: Out | CG1: Out | CH1: Out | CI1: =IF(AND(CI9>TODAY()-7,CI9<+TODAY()+14),1,"Out") -> Out | CJ1: Out | CK1: Out | CL1: Out | CM1: Out | CN1: Out | CO1: Out | CP1: Out | CQ1: Out | CR1: Out | CS1: Out | CT1: Out | CU1: Out | CV1: Out | CW1: Out | CX1: Out | CY1: Out | CZ1: Out | DA1: Out | DB1: Out | DC1: Out | DD1: Out | DE1: Out | DF1: Out | DG1: 1 | DH1: 1 | DI1: 1 | DJ1: 1 | DK1: 1 | DL1: 1 | DM1: 1 | DN1: 1 | DO1: 1 | DP1: 1 | DQ1: 1 | DR1: 1 | DS1: 1 | DT1: 1 | DU1: 1 | DV1: 1 | DW1: 1 | DX1: 1 | DY1: 1 | DZ1: 1 | EA1: Out | EB1: Out | EC1: Out | ED1: Out | EE1: Out
AO5: =IF(AL9="","",(AL9)) -> 2025-09-10 | AV5: Activate? | BA5: No | BT5: =IF(BP9="","",(BP9)) -> 2025-10-10 | CX5: =IF(CX9="","",(CX9)) -> 2025-11-13 | DT5: =IF(DT9="","",(DT9)) -> 2025-12-05
C7: First Day | D7: * Samples: MLM Samples (open until Final) | W7: =IF(W9="","",IF(MONTH(V9)=MONTH(W9),"",(W9))) ->  | X7: =IF(X9="","",IF(MONTH(W9)=MONTH(X9),"",(X9))) ->  | AC7: =IF(AC9="","",IF(MONTH(AB9)=MONTH(AC9),"",(AC9))) -> 2025-09-01 | BG7: =IF(BG9="","",IF(MONTH(BF9)=MONTH(BG9),"",(BG9))) -> 2025-10-01 | CJ7: =IF(CJ9="","",IF(MONTH(CI9)=MONTH(CJ9),"",(CJ9))) ->  | CL7: =IF(CL9="","",IF(MONTH(CK9)=MONTH(CL9),"",(CL9))) -> 2025-11-01 | DP7: =IF(DP9="","",IF(MONTH(DO9)=MONTH(DP9),"",(DP9))) -> 2025-12-01
C8: 2025-08-25 | D8: Ends | F8: 2025-12-15 | J8: Today | L8: =TODAY() -> 2025-11-28 | V8: =CHOOSE(WEEKDAY(V9),"N","M","T","W","R","F","S") -> M | W8: =CHOOSE(WEEKDAY(W9),"N","M","T","W","R","F","S") -> T | X8: W | Y8: R | Z8: F | AA8: S | AB8: N | AC8: M | AD8: T | AE8: W | AF8: R | AG8: F | AH8: S | AI8: N | AJ8: M | AK8: T | AL8: W | AM8: R | AN8: F | AO8: S | AP8: N | AQ8: M | AR8: T | AS8: W | AT8: R | AU8: F | AV8: S | AW8: N | AX8: M | AY8: T | AZ8: W | BA8: R | BB8: F | BC8: S | BD8: N | BE8: M | BF8: T | BG8: W | BH8: R | BI8: F | BJ8: S | BK8: N | BL8: M | BM8: T | BN8: W | BO8: R | BP8: F | BQ8: S | BR8: N | BS8: M | BT8: T | BU8: W | BV8: R | BW8: F | BX8: S | BY8: N | BZ8: M | CA8: T | CB8: W | CC8: R | CD8: F | CE8: S | CF8: N | CG8: M | CH8: T | CI8: =CHOOSE(WEEKDAY(CI9),"N","M","T","W","R","F","S") -> W | CJ8: R | CK8: F | CL8: S | CM8: N | CN8: M | CO8: T | CP8: W | CQ8: R | CR8: F | CS8: S | CT8: N | CU8: M | CV8: T | CW8: W | CX8: R | CY8: F | CZ8: S | DA8: N | DB8: M | DC8: T | DD8: W | DE8: R | DF8: F | DG8: S | DH8: N | DI8: M | DJ8: T | DK8: W | DL8: R | DM8: F | DN8: S | DO8: N | DP8: M | DQ8: T | DR8: W | DS8: R | DT8: F | DU8: S | DV8: N | DW8: M | DX8: T | DY8: W | DZ8: R | EA8: F | EB8: S | EC8: N | ED8: M
B9: Row | C9: Date | D9: Day | E9: Event | F9: MQ | G9: Column1 | H9: MLM | I9: Column2 | J9: Part. | K9: Column3 | L9: Exams | M9: Column4 | N9: Status | O9: Type | P9: Status2 | Q9: Mon | R9: Month | S9: Active | T9: Comments | V9: =C8 -> 2025-08-25 | W9: =IF(V9>$F$8,"",V9+1) -> 2025-08-26 | X9: 2025-08-27 | Y9: 2025-08-28 | Z9: 2025-08-29 | AA9: 2025-08-30 | AB9: 2025-08-31 | AC9: 2025-09-01 | AD9: 2025-09-02 | AE9: 2025-09-03 | AF9: 2025-09-04 | AG9: 2025-09-05 | AH9: 2025-09-06 | AI9: 2025-09-07 | AJ9: 2025-09-08 | AK9: 2025-09-09 | AL9: 2025-09-10 | AM9: 2025-09-11 | AN9: 2025-09-12 | AO9: 2025-09-13 | AP9: 2025-09-14 | AQ9: 2025-09-15 | AR9: 2025-09-16 | AS9: 2025-09-17 | AT9: 2025-09-18 | AU9: 2025-09-19 | AV9: 2025-09-20 | AW9: 2025-09-21 | AX9: 2025-09-22 | AY9: 2025-09-23 | AZ9: 2025-09-24 | BA9: 2025-09-25 | BB9: 2025-09-26 | BC9: 2025-09-27 | BD9: 2025-09-28 | BE9: 2025-09-29 | BF9: 2025-09-30 | BG9: 2025-10-01 | BH9: 2025-10-02 | BI9: 2025-10-03 | BJ9: 2025-10-04 | BK9: 2025-10-05 | BL9: 2025-10-06 | BM9: 2025-10-07 | BN9: 2025-10-08 | BO9: 2025-10-09 | BP9: 2025-10-10 | BQ9: 2025-10-11 | BR9: 2025-10-12 | BS9: 2025-10-13 | BT9: 2025-10-14 | BU9: 2025-10-15 | BV9: 2025-10-16 | BW9: 2025-10-17 | BX9: 2025-10-18 | BY9: 2025-10-19 | BZ9: 2025-10-20 | CA9: 2025-10-21 | CB9: 2025-10-22 | CC9: 2025-10-23 | CD9: 2025-10-24 | CE9: 2025-10-25 | CF9: 2025-10-26 | CG9: 2025-10-27 | CH9: 2025-10-28 | CI9: =IF(CH9>$F$8,"",CH9+1) -> 2025-10-29 | CJ9: 2025-10-30 | CK9: 2025-10-31 | CL9: 2025-11-01 | CM9: 2025-11-02 | CN9: 2025-11-03 | CO9: 2025-11-04 | CP9: 2025-11-05 | CQ9: 2025-11-06 | CR9: 2025-11-07 | CS9: 2025-11-08 | CT9: 2025-11-09 | CU9: 2025-11-10 | CV9: 2025-11-11 | CW9: 2025-11-12 | CX9: 2025-11-13 | CY9: 2025-11-14 | CZ9: 2025-11-15 | DA9: 2025-11-16 | DB9: 2025-11-17 | DC9: 2025-11-18 | DD9: 2025-11-19 | DE9: 2025-11-20 | DF9: 2025-11-21 | DG9: 2025-11-22 | DH9: 2025-11-23 | DI9: 2025-11-24 | DJ9: 2025-11-25 | DK9: 2025-11-26 | DL9: 2025-11-27 | DM9: 2025-11-28 | DN9: 2025-11-29 | DO9: 2025-11-30 | DP9: 2025-12-01 | DQ9: 2025-12-02 | DR9: 2025-12-03 | DS9: 2025-12-04 | DT9: 2025-12-05 | DU9: 2025-12-06 | DV9: 2025-12-07 | DW9: 2025-12-08 | DX9: 2025-12-09 | DY9: 2025-12-10 | DZ9: 2025-12-11 | EA9: 2025-12-12 | EB9: 2025-12-13 | EC9: 2025-12-14 | ED9: 2025-12-15
B10: 1 | C10: =C8 -> 2025-08-25 | D10: 2025-08-25 | F10: =IFERROR(VLOOKUP(C10,MQ_S,3,FALSE),"") ->  | G10: =IFERROR(VLOOKUP(C10,MQ_L,3,FALSE),"") ->  | H10: =IFERROR(VLOOKUP(C10,MLM_S,3,FALSE),"") ->  | I10: =IFERROR(VLOOKUP(C10,MLM_L,3,FALSE),"") ->  | J10: =IFERROR(VLOOKUP(C10,Ext_S,2,FALSE),"") ->  | K10: =IFERROR(VLOOKUP(C10,Ext_L,3,FALSE),"") ->  | L10: =IFERROR(IF(Class="OL",VLOOKUP(C10,Exams_OL,3,FALSE),IF(Class="TC",VLOOKUP(C10,Exams_TC,3,FALSE))),"") ->  | M10: =IFERROR(IF(Class="OL",VLOOKUP(C10,Exams_OLL,7,FALSE),IF(Class="TC",VLOOKUP(C10,Exams_TCL,7,FALSE))),"") ->  | N10: =IF(Calc2="No","",IF(OR(G10="C",I10="C",K10="C",M10=1),"C",IF(T10="","",IF(C10<TODAY(),"L",IF(C10<=TODAY()+6,"D",IF(C10>TODAY()+2,"OK","")))))) ->  | O10: =IF(L10<>"","Test",IF(F10<>"","MQ",IF(H10<>"","MLM",IF(J10<>"","Part.","")))) ->  | P10: =IF(N10="C","Comp",IF(N10="D","Due",IF(N10="L","Late",IF(N10="Ok","OK","")))) ->  | Q10: =MONTH(C10) -> 8 | R10: =VLOOKUP(Q10,Month,2,FALSE) -> Aug | S10: =IF(OR(C10<TODAY()-7,C10<+TODAY()+14),1,"Out") -> 1 | T10: =IF(L10<>"",3,IF(H10<>"",2,IF(F10<>"",1,IF(J10<>"",4,"")))) ->  | V10: =IF($N10="","",IF(AND($N10="C",V$9=$C10),1,IF(AND($N10="L",V$9=$C10),3,IF(AND($N10="D",V$9=$C10),2,"")))) ->  | W10: =IF($N10="","",IF(AND($N10="C",W$9=$C10),1,IF(AND($N10="L",W$9=$C10),3,IF(AND($N10="D",W$9=$C10),2,"")))) ->  | AM10: =IF($N10="","",IF(AND($N10="C",AM$9=$C10),1,IF(AND($N10="L",AM$9=$C10),3,IF(AND($N10="D",AM$9=$C10),2,"")))) ->  | BC10: =IF($N10="","",IF(AND($N10="C",BC$9=$C10),1,IF(AND($N10="L",BC$9=$C10),3,IF(AND($N10="D",BC$9=$C10),2,"")))) ->  | BS10: =IF($N10="","",IF(AND($N10="C",BS$9=$C10),1,IF(AND($N10="L",BS$9=$C10),3,IF(AND($N10="D",BS$9=$C10),2,"")))) ->  | CI10: =IF($N10="","",IF(AND($N10="C",CI$9=$C10),1,IF(AND($N10="L",CI$9=$C10),3,IF(AND($N10="D",CI$9=$C10),2,"")))) ->  | CY10: =IF($N10="","",IF(AND($N10="C",CY$9=$C10),1,IF(AND($N10="L",CY$9=$C10),3,IF(AND($N10="D",CY$9=$C10),2,"")))) ->  | DO10: =IF($N10="","",IF(AND($N10="C",DO$9=$C10),1,IF(AND($N10="L",DO$9=$C10),3,IF(AND($N10="D",DO$9=$C10),2,"")))) ->  | EE10: =IF($N10="","",IF(AND($N10="C",EE$9=$C10),1,IF(AND($N10="L",EE$9=$C10),3,IF(AND($N10="D",EE$9=$C10),2,"")))) ->  | EU10: =IF($N10="","",IF(AND($N10="C",EU$9=$C10),1,IF(AND($N10="L",EU$9=$C10),3,IF(AND($N10="D",EU$9=$C10),2,"")))) ->  | FK10: =IF($N10="","",IF(AND($N10="C",FK$9=$C10),1,IF(AND($N10="L",FK$9=$C10),3,IF(AND($N10="D",FK$9=$C10),2,"")))) ->  | GA10: =IF($N10="","",IF(AND($N10="C",GA$9=$C10),1,IF(AND($N10="L",GA$9=$C10),3,IF(AND($N10="D",GA$9=$C10),2,"")))) ->  | GQ10: =IF($N10="","",IF(AND($N10="C",GQ$9=$C10),1,IF(AND($N10="L",GQ$9=$C10),3,IF(AND($N10="D",GQ$9=$C10),2,"")))) -> 
B11: =IF(C11<=$F$8,1+B10,"") -> 2 | C11: =C10+1 -> 2025-08-26 | D11: 2025-08-26 | L11: =IFERROR(IF(Class="OL",VLOOKUP(C11,Exams_OL,3,FALSE),IF(Class="TC",VLOOKUP(C11,Exams_TC,3,FALSE))),"") ->  | P11: =IF(N11="C","Comp",IF(N11="D","Due",IF(N11="L","Late",IF(N11="Ok","OK","")))) ->  | Q11: 8 | R11: Aug | S11: 1 | V11: =IF($N11="","",IF(AND($N11="C",V$9=$C11),1,IF(AND($N11="L",V$9=$C11),3,IF(AND($N11="D",V$9=$C11),2,"")))) -> 
B12: 3 | C12: =C11+1 -> 2025-08-27 | D12: 2025-08-27 | Q12: 8 | R12: Aug | S12: 1
B13: 4 | C13: 2025-08-28 | D13: 2025-08-28 | Q13: 8 | R13: Aug | S13: 1
B14: 5 | C14: 2025-08-29 | D14: 2025-08-29 | Q14: 8 | R14: Aug | S14: 1
B15: 6 | C15: 2025-08-30 | D15: 2025-08-30 | F15: 1.1 ,1.2 | O15: MQ | Q15: 8 | R15: Aug | S15: 1 | T15: 1
B16: 7 | C16: 2025-08-31 | D16: 2025-08-31 | H16: 1.1 ,1.2 | O16: MLM | Q16: 8 | R16: Aug | S16: 1 | T16: 2
B17: 8 | C17: 2025-09-01 | D17: 2025-09-01 | E17: Labor Day | Q17: 9 | R17: Sep | S17: 1
B18: 9 | C18: 2025-09-02 | D18: =C18 -> 2025-09-02 | J18: Extra 1 | O18: Part. | Q18: 9 | R18: Sep | S18: 1 | T18: 4
B19: 10 | C19: 2025-09-03 | D19: 2025-09-03 | Q19: 9 | R19: Sep | S19: 1
B20: 11 | C20: 2025-09-04 | D20: 2025-09-04 | Q20: 9 | R20: Sep | S20: 1
B21: 12 | C21: 2025-09-05 | D21: 2025-09-05 | Q21: 9 | R21: Sep | S21: 1
B22: 13 | C22: 2025-09-06 | D22: 2025-09-06 | F22: 2.1 ,2.2 | O22: MQ | Q22: 9 | R22: Sep | S22: 1 | T22: 1
B23: 14 | C23: 2025-09-07 | D23: 2025-09-07 | H23: 2.1 ,2.2 | O23: MLM | Q23: 9 | R23: Sep | S23: 1 | T23: 2
B24: 15 | C24: 2025-09-08 | D24: 2025-09-08 | Q24: 9 | R24: Sep | S24: 1
B25: 16 | C25: 2025-09-09 | D25: =C25 -> 2025-09-09 | J25: Extra 2a | O25: Part. | Q25: 9 | R25: Sep | S25: 1 | T25: 4 | AL25: =IF($N25="","",IF(AND($N25="C",AL$9=$C25),1,IF(AND($N25="L",AL$9=$C25),3,IF(AND($N25="D",AL$9=$C25),2,"")))) ->  | BB25: =IF($N25="","",IF(AND($N25="C",BB$9=$C25),1,IF(AND($N25="L",BB$9=$C25),3,IF(AND($N25="D",BB$9=$C25),2,"")))) ->  | BR25: =IF($N25="","",IF(AND($N25="C",BR$9=$C25),1,IF(AND($N25="L",BR$9=$C25),3,IF(AND($N25="D",BR$9=$C25),2,"")))) ->  | CH25: =IF($N25="","",IF(AND($N25="C",CH$9=$C25),1,IF(AND($N25="L",CH$9=$C25),3,IF(AND($N25="D",CH$9=$C25),2,"")))) ->  | CX25: =IF($N25="","",IF(AND($N25="C",CX$9=$C25),1,IF(AND($N25="L",CX$9=$C25),3,IF(AND($N25="D",CX$9=$C25),2,"")))) ->  | DN25: =IF($N25="","",IF(AND($N25="C",DN$9=$C25),1,IF(AND($N25="L",DN$9=$C25),3,IF(AND($N25="D",DN$9=$C25),2,"")))) ->  | ED25: =IF($N25="","",IF(AND($N25="C",ED$9=$C25),1,IF(AND($N25="L",ED$9=$C25),3,IF(AND($N25="D",ED$9=$C25),2,"")))) ->  | ET25: =IF($N25="","",IF(AND($N25="C",ET$9=$C25),1,IF(AND($N25="L",ET$9=$C25),3,IF(AND($N25="D",ET$9=$C25),2,"")))) ->  | FJ25: =IF($N25="","",IF(AND($N25="C",FJ$9=$C25),1,IF(AND($N25="L",FJ$9=$C25),3,IF(AND($N25="D",FJ$9=$C25),2,"")))) ->  | FZ25: =IF($N25="","",IF(AND($N25="C",FZ$9=$C25),1,IF(AND($N25="L",FZ$9=$C25),3,IF(AND($N25="D",FZ$9=$C25),2,"")))) ->  | GP25: =IF($N25="","",IF(AND($N25="C",GP$9=$C25),1,IF(AND($N25="L",GP$9=$C25),3,IF(AND($N25="D",GP$9=$C25),2,"")))) -> 
B26: 17 | C26: 2025-09-10 | D26: 2025-09-10 | Q26: 9 | R26: Sep | S26: 1
B27: 18 | C27: 2025-09-11 | D27: 2025-09-11 | Q27: 9 | R27: Sep | S27: 1 | V27: =IF($N27="","",IF(AND($N27="C",V$9=$C27),1,IF(AND($N27="L",V$9=$C27),3,IF(AND($N27="D",V$9=$C27),2,"")))) -> 
B28: 19 | C28: 2025-09-12 | D28: 2025-09-12 | Q28: 9 | R28: Sep | S28: 1
B29: 20 | C29: 2025-09-13 | D29: 2025-09-13 | F29: 2.3 ,3.1 | O29: MQ | Q29: 9 | R29: Sep | S29: 1 | T29: 1
B30: 21 | C30: 2025-09-14 | D30: 2025-09-14 | H30: 2.3 ,3.1 | O30: MLM | Q30: 9 | R30: Sep | S30: 1 | T30: 2
B31: 22 | C31: 2025-09-15 | D31: 2025-09-15 | Q31: 9 | R31: Sep | S31: 1
B32: 23 | C32: 2025-09-16 | D32: =C32 -> 2025-09-16 | J32: Extra 2b | O32: Part. | Q32: 9 | R32: Sep | S32: 1 | T32: 4
B33: 24 | C33: 2025-09-17 | D33: 2025-09-17 | Q33: 9 | R33: Sep | S33: 1
B34: 25 | C34: 2025-09-18 | D34: 2025-09-18 | Q34: 9 | R34: Sep | S34: 1
B35: 26 | C35: 2025-09-19 | D35: 2025-09-19 | Q35: 9 | R35: Sep | S35: 1
B36: 27 | C36: 2025-09-20 | D36: 2025-09-20 | F36: 3.2 ,3.3 | O36: MQ | Q36: 9 | R36: Sep | S36: 1 | T36: 1
B37: 28 | C37: 2025-09-21 | D37: 2025-09-21 | H37: 3.2 ,3.3 | O37: MLM | Q37: 9 | R37: Sep | S37: 1 | T37: 2
B38: 29 | C38: 2025-09-22 | D38: 2025-09-22 | Q38: 9 | R38: Sep | S38: 1
B39: 30 | C39: 2025-09-23 | D39: 2025-09-23 | H39: Ch 3 Mix | O39: MLM | Q39: 9 | R39: Sep | S39: 1 | T39: 2
B40: 31 | C40: 2025-09-24 | D40: 2025-09-24 | Q40: 9 | R40: Sep | S40: 1
B41: 32 | C41: 2025-09-25 | D41: =C41 -> 2025-09-25 | J41: Extra 3 | O41: Part. | Q41: 9 | R41: Sep | S41: 1 | T41: 4 | AL41: =IF($N41="","",IF(AND($N41="C",AL$9=$C41),1,IF(AND($N41="L",AL$9=$C41),3,IF(AND($N41="D",AL$9=$C41),2,"")))) ->  | BB41: =IF($N41="","",IF(AND($N41="C",BB$9=$C41),1,IF(AND($N41="L",BB$9=$C41),3,IF(AND($N41="D",BB$9=$C41),2,"")))) ->  | BR41: =IF($N41="","",IF(AND($N41="C",BR$9=$C41),1,IF(AND($N41="L",BR$9=$C41),3,IF(AND($N41="D",BR$9=$C41),2,"")))) ->  | CH41: =IF($N41="","",IF(AND($N41="C",CH$9=$C41),1,IF(AND($N41="L",CH$9=$C41),3,IF(AND($N41="D",CH$9=$C41),2,"")))) ->  | CX41: =IF($N41="","",IF(AND($N41="C",CX$9=$C41),1,IF(AND($N41="L",CX$9=$C41),3,IF(AND($N41="D",CX$9=$C41),2,"")))) ->  | DN41: =IF($N41="","",IF(AND($N41="C",DN$9=$C41),1,IF(AND($N41="L",DN$9=$C41),3,IF(AND($N41="D",DN$9=$C41),2,"")))) ->  | ED41: =IF($N41="","",IF(AND($N41="C",ED$9=$C41),1,IF(AND($N41="L",ED$9=$C41),3,IF(AND($N41="D",ED$9=$C41),2,"")))) ->  | ET41: =IF($N41="","",IF(AND($N41="C",ET$9=$C41),1,IF(AND($N41="L",ET$9=$C41),3,IF(AND($N41="D",ET$9=$C41),2,"")))) ->  | FJ41: =IF($N41="","",IF(AND($N41="C",FJ$9=$C41),1,IF(AND($N41="L",FJ$9=$C41),3,IF(AND($N41="D",FJ$9=$C41),2,"")))) ->  | FZ41: =IF($N41="","",IF(AND($N41="C",FZ$9=$C41),1,IF(AND($N41="L",FZ$9=$C41),3,IF(AND($N41="D",FZ$9=$C41),2,"")))) ->  | GP41: =IF($N41="","",IF(AND($N41="C",GP$9=$C41),1,IF(AND($N41="L",GP$9=$C41),3,IF(AND($N41="D",GP$9=$C41),2,"")))) -> 
B42: 33 | C42: 2025-09-26 | D42: 2025-09-26 | F42: =IFERROR(VLOOKUP(C42,MQ_S,3,FALSE),"") ->  | G42: =IFERROR(VLOOKUP(C42,MQ_L,3,FALSE),"") ->  | H42: =IFERROR(VLOOKUP(C42,MLM_S,3,FALSE),"") ->  | I42: =IFERROR(VLOOKUP(C42,MLM_L,3,FALSE),"") ->  | J42: =IFERROR(VLOOKUP(C42,Ext_S,2,FALSE),"") ->  | K42: =IFERROR(VLOOKUP(C42,Ext_L,3,FALSE),"") ->  | L42: =IFERROR(IF(Class="OL",VLOOKUP(C42,Exams_OL,3,FALSE),IF(Class="TC",VLOOKUP(C42,Exams_TC,3,FALSE))),"") ->  | M42: =IFERROR(IF(Class="OL",VLOOKUP(C42,Exams_OLL,7,FALSE),IF(Class="TC",VLOOKUP(C42,Exams_TCL,7,FALSE))),"") ->  | N42: =IF(Calc2="No","",IF(OR(G42="C",I42="C",K42="C",M42=1),"C",IF(T42="","",IF(C42<TODAY(),"L",IF(C42<=TODAY()+6,"D",IF(C42>TODAY()+2,"OK","")))))) ->  | Q42: 9 | R42: =VLOOKUP(Q42,Month,2,FALSE) -> Sep | S42: 1 | AK42: =IF($N42="","",IF(AND($N42="C",AK$9=$C42),1,IF(AND($N42="L",AK$9=$C42),3,IF(AND($N42="D",AK$9=$C42),2,"")))) -> 
B43: 34 | C43: 2025-09-27 | D43: 2025-09-27 | F43: 4.1 ,4.2 | O43: MQ | Q43: 9 | R43: Sep | S43: 1 | T43: 1 | V43: =IF($N43="","",IF(AND($N43="C",V$9=$C43),1,IF(AND($N43="L",V$9=$C43),3,IF(AND($N43="D",V$9=$C43),2,"")))) -> 
B44: 35 | C44: 2025-09-28 | D44: 2025-09-28 | H44: 4.1 ,4.2 | O44: MLM | Q44: 9 | R44: Sep | S44: 1 | T44: 2
B45: 36 | C45: 2025-09-29 | D45: 2025-09-29 | Q45: 9 | R45: Sep | S45: 1
B46: 37 | C46: 2025-09-30 | D46: 2025-09-30 | Q46: 9 | R46: Sep | S46: 1
B47: 38 | C47: 2025-10-01 | D47: 2025-10-01 | Q47: 10 | R47: Oct | S47: 1
B48: 39 | C48: 2025-10-02 | D48: 2025-10-02 | Q48: 10 | R48: Oct | S48: 1
B49: 40 | C49: 2025-10-03 | D49: 2025-10-03 | Q49: 10 | R49: Oct | S49: 1
B50: 41 | C50: 2025-10-04 | D50: 2025-10-04 | F50: 4.3 ,4.4 | O50: MQ | Q50: 10 | R50: Oct | S50: 1 | T50: 1
B51: 42 | C51: 2025-10-05 | D51: 2025-10-05 | H51: 4.3 ,4.4 | O51: MLM | Q51: 10 | R51: Oct | S51: 1 | T51: 2
B52: 43 | C52: 2025-10-06 | D52: 2025-10-06 | Q52: 10 | R52: Oct | S52: 1
B53: 44 | C53: 2025-10-07 | D53: 2025-10-07 | H53: Ch 4 Mix | O53: MLM | Q53: 10 | R53: Oct | S53: 1 | T53: 2
B54: 45 | C54: 2025-10-08 | D54: 2025-10-08 | Q54: 10 | R54: Oct | S54: 1
B55: 46 | C55: 2025-10-09 | D55: =C55 -> 2025-10-09 | J55: Extra 4 | L55: Midterm 1 | M55: 0 | O55: Test | Q55: 10 | R55: Oct | S55: 1 | T55: 3
B56: 47 | C56: 2025-10-10 | D56: 2025-10-10 | L56: Midterm 1 | M56: 0 | O56: Test | Q56: 10 | R56: Oct | S56: 1 | T56: 3 | BA56: =IF($N56="","",IF(AND($N56="C",BA$9=$C56),1,IF(AND($N56="L",BA$9=$C56),3,IF(AND($N56="D",BA$9=$C56),2,"")))) ->  | BQ56: =IF($N56="","",IF(AND($N56="C",BQ$9=$C56),1,IF(AND($N56="L",BQ$9=$C56),3,IF(AND($N56="D",BQ$9=$C56),2,"")))) ->  | CG56: =IF($N56="","",IF(AND($N56="C",CG$9=$C56),1,IF(AND($N56="L",CG$9=$C56),3,IF(AND($N56="D",CG$9=$C56),2,"")))) ->  | CW56: =IF($N56="","",IF(AND($N56="C",CW$9=$C56),1,IF(AND($N56="L",CW$9=$C56),3,IF(AND($N56="D",CW$9=$C56),2,"")))) ->  | DM56: =IF($N56="","",IF(AND($N56="C",DM$9=$C56),1,IF(AND($N56="L",DM$9=$C56),3,IF(AND($N56="D",DM$9=$C56),2,"")))) ->  | EC56: =IF($N56="","",IF(AND($N56="C",EC$9=$C56),1,IF(AND($N56="L",EC$9=$C56),3,IF(AND($N56="D",EC$9=$C56),2,"")))) ->  | ES56: =IF($N56="","",IF(AND($N56="C",ES$9=$C56),1,IF(AND($N56="L",ES$9=$C56),3,IF(AND($N56="D",ES$9=$C56),2,"")))) ->  | FI56: =IF($N56="","",IF(AND($N56="C",FI$9=$C56),1,IF(AND($N56="L",FI$9=$C56),3,IF(AND($N56="D",FI$9=$C56),2,"")))) ->  | FY56: =IF($N56="","",IF(AND($N56="C",FY$9=$C56),1,IF(AND($N56="L",FY$9=$C56),3,IF(AND($N56="D",FY$9=$C56),2,"")))) ->  | GO56: =IF($N56="","",IF(AND($N56="C",GO$9=$C56),1,IF(AND($N56="L",GO$9=$C56),3,IF(AND($N56="D",GO$9=$C56),2,"")))) -> 
B57: 48 | C57: 2025-10-11 | D57: 2025-10-11 | Q57: 10 | R57: Oct | S57: 1
B58: 49 | C58: 2025-10-12 | D58: 2025-10-12 | J58: Samples 1-4 | O58: Part. | Q58: 10 | R58: Oct | S58: 1 | T58: 4 | AL58: =IF($N58="","",IF(AND($N58="C",AL$9=$C58),1,IF(AND($N58="L",AL$9=$C58),3,IF(AND($N58="D",AL$9=$C58),2,"")))) -> 
B59: 50 | C59: 2025-10-13 | D59: =C59 -> 2025-10-13 | L59: Midterm 1 | M59: 0 | O59: Test | Q59: 10 | R59: Oct | S59: 1 | T59: 3 | V59: =IF($N59="","",IF(AND($N59="C",V$9=$C59),1,IF(AND($N59="L",V$9=$C59),3,IF(AND($N59="D",V$9=$C59),2,"")))) -> 
B60: 51 | C60: 2025-10-14 | D60: 2025-10-14 | Q60: 10 | R60: Oct | S60: 1
B61: 52 | C61: 2025-10-15 | D61: 2025-10-15 | Q61: 10 | R61: Oct | S61: 1
B62: 53 | C62: 2025-10-16 | D62: 2025-10-16 | Q62: 10 | R62: Oct | S62: 1
B63: 54 | C63: 2025-10-17 | D63: 2025-10-17 | Q63: 10 | R63: Oct | S63: 1
B64: 55 | C64: 2025-10-18 | D64: 2025-10-18 | F64: 5.1 ,5.2 | O64: MQ | Q64: 10 | R64: Oct | S64: 1 | T64: 1
B65: 56 | C65: 2025-10-19 | D65: 2025-10-19 | H65: 5.1 ,5.2 | O65: MLM | Q65: 10 | R65: Oct | S65: 1 | T65: 2
B66: 57 | C66: 2025-10-20 | D66: 2025-10-20 | E66: Fall Break | Q66: 10 | R66: Oct | S66: 1
B67: 58 | C67: 2025-10-21 | D67: =C67 -> 2025-10-21 | J67: Extra 5a | O67: Part. | Q67: 10 | R67: Oct | S67: 1 | T67: 4
B68: 59 | C68: 2025-10-22 | D68: 2025-10-22 | Q68: 10 | R68: Oct | S68: 1
B69: 60 | C69: 2025-10-23 | D69: 2025-10-23 | Q69: 10 | R69: Oct | S69: 1
B70: 61 | C70: 2025-10-24 | D70: 2025-10-24 | Q70: 10 | R70: Oct | S70: 1
B71: 62 | C71: 2025-10-25 | D71: 2025-10-25 | F71: 5.3 ,5.4 | O71: MQ | Q71: 10 | R71: =VLOOKUP(Q71,Month,2,FALSE) -> Oct | S71: 1 | T71: 1
B72: 63 | C72: 2025-10-26 | D72: 2025-10-26 | E72: Last day for W | H72: 5.3 ,5.4 | O72: MLM | Q72: 10 | R72: Oct | S72: 1 | T72: 2 | BB72: =IF($N72="","",IF(AND($N72="C",BB$9=$C72),1,IF(AND($N72="L",BB$9=$C72),3,IF(AND($N72="D",BB$9=$C72),2,"")))) ->  | BR72: =IF($N72="","",IF(AND($N72="C",BR$9=$C72),1,IF(AND($N72="L",BR$9=$C72),3,IF(AND($N72="D",BR$9=$C72),2,"")))) ->  | CH72: =IF($N72="","",IF(AND($N72="C",CH$9=$C72),1,IF(AND($N72="L",CH$9=$C72),3,IF(AND($N72="D",CH$9=$C72),2,"")))) ->  | CX72: =IF($N72="","",IF(AND($N72="C",CX$9=$C72),1,IF(AND($N72="L",CX$9=$C72),3,IF(AND($N72="D",CX$9=$C72),2,"")))) ->  | DN72: =IF($N72="","",IF(AND($N72="C",DN$9=$C72),1,IF(AND($N72="L",DN$9=$C72),3,IF(AND($N72="D",DN$9=$C72),2,"")))) ->  | ED72: =IF($N72="","",IF(AND($N72="C",ED$9=$C72),1,IF(AND($N72="L",ED$9=$C72),3,IF(AND($N72="D",ED$9=$C72),2,"")))) ->  | ET72: =IF($N72="","",IF(AND($N72="C",ET$9=$C72),1,IF(AND($N72="L",ET$9=$C72),3,IF(AND($N72="D",ET$9=$C72),2,"")))) ->  | FJ72: =IF($N72="","",IF(AND($N72="C",FJ$9=$C72),1,IF(AND($N72="L",FJ$9=$C72),3,IF(AND($N72="D",FJ$9=$C72),2,"")))) ->  | FZ72: =IF($N72="","",IF(AND($N72="C",FZ$9=$C72),1,IF(AND($N72="L",FZ$9=$C72),3,IF(AND($N72="D",FZ$9=$C72),2,"")))) ->  | GP72: =IF($N72="","",IF(AND($N72="C",GP$9=$C72),1,IF(AND($N72="L",GP$9=$C72),3,IF(AND($N72="D",GP$9=$C72),2,"")))) -> 
B73: 64 | C73: 2025-10-27 | D73: 2025-10-27 | Q73: 10 | R73: Oct | S73: 1
B74: 65 | C74: 2025-10-28 | D74: 2025-10-28 | F74: =IFERROR(VLOOKUP(C74,MQ_S,3,FALSE),"") ->  | G74: =IFERROR(VLOOKUP(C74,MQ_L,3,FALSE),"") ->  | H74: =IFERROR(VLOOKUP(C74,MLM_S,3,FALSE),"") -> Ch 5 Mix | I74: =IFERROR(VLOOKUP(C74,MLM_L,3,FALSE),"") ->  | J74: =IFERROR(VLOOKUP(C74,Ext_S,2,FALSE),"") ->  | K74: =IFERROR(VLOOKUP(C74,Ext_L,3,FALSE),"") ->  | L74: =IFERROR(IF(Class="OL",VLOOKUP(C74,Exams_OL,3,FALSE),IF(Class="TC",VLOOKUP(C74,Exams_TC,3,FALSE))),"") ->  | M74: =IFERROR(IF(Class="OL",VLOOKUP(C74,Exams_OLL,7,FALSE),IF(Class="TC",VLOOKUP(C74,Exams_TCL,7,FALSE))),"") ->  | N74: =IF(Calc2="No","",IF(OR(G74="C",I74="C",K74="C",M74=1),"C",IF(T74="","",IF(C74<TODAY(),"L",IF(C74<=TODAY()+6,"D",IF(C74>TODAY()+2,"OK","")))))) ->  | O74: =IF(L74<>"","Test",IF(F74<>"","MQ",IF(H74<>"","MLM",IF(J74<>"","Part.","")))) -> MLM | Q74: =MONTH(C74) -> 10 | R74: Oct | S74: =IF(OR(C74<TODAY()-7,C74<+TODAY()+14),1,"Out") -> 1 | T74: =IF(L74<>"",3,IF(H74<>"",2,IF(F74<>"",1,IF(J74<>"",4,"")))) -> 2 | AK74: =IF($N74="","",IF(AND($N74="C",AK$9=$C74),1,IF(AND($N74="L",AK$9=$C74),3,IF(AND($N74="D",AK$9=$C74),2,"")))) ->  | BA74: =IF($N74="","",IF(AND($N74="C",BA$9=$C74),1,IF(AND($N74="L",BA$9=$C74),3,IF(AND($N74="D",BA$9=$C74),2,"")))) -> 
B75: =IF(C75<=$F$8,1+B74,"") -> 66 | C75: 2025-10-29 | D75: 2025-10-29 | P75: =IF(N75="C","Comp",IF(N75="D","Due",IF(N75="L","Late",IF(N75="Ok","OK","")))) ->  | Q75: 10 | R75: Oct | S75: 1 | V75: =IF($N75="","",IF(AND($N75="C",V$9=$C75),1,IF(AND($N75="L",V$9=$C75),3,IF(AND($N75="D",V$9=$C75),2,"")))) -> 
B76: 67 | C76: =C75+1 -> 2025-10-30 | D76: =C76 -> 2025-10-30 | J76: Extra 5b | O76: Part. | Q76: 10 | R76: Oct | S76: 1 | T76: 4
B77: 68 | C77: 2025-10-31 | D77: 2025-10-31 | Q77: 10 | R77: Oct | S77: 1
B78: 69 | C78: 2025-11-01 | D78: 2025-11-01 | F78: 6.1 ,6.2 | O78: MQ | Q78: 11 | R78: Nov | S78: 1 | T78: 1
B79: 70 | C79: 2025-11-02 | D79: 2025-11-02 | H79: 6.1 ,6.2 | O79: MLM | Q79: 11 | R79: Nov | S79: 1 | T79: 2
B80: 71 | C80: 2025-11-03 | D80: 2025-11-03 | Q80: 11 | R80: Nov | S80: 1
B81: 72 | C81: 2025-11-04 | D81: 2025-11-04 | Q81: 11 | R81: Nov | S81: 1
B82: 73 | C82: 2025-11-05 | D82: 2025-11-05 | Q82: 11 | R82: Nov | S82: 1
B83: 74 | C83: 2025-11-06 | D83: 2025-11-06 | Q83: 11 | R83: Nov | S83: 1
B84: 75 | C84: 2025-11-07 | D84: 2025-11-07 | Q84: 11 | R84: Nov | S84: 1
B85: 76 | C85: 2025-11-08 | D85: 2025-11-08 | F85: 6.3 | O85: MQ | Q85: 11 | R85: Nov | S85: 1 | T85: 1
B86: 77 | C86: 2025-11-09 | D86: 2025-11-09 | H86: 6.3 ,6.3 (inv) | O86: MLM | Q86: 11 | R86: Nov | S86: 1 | T86: 2
B87: 78 | C87: 2025-11-10 | D87: 2025-11-10 | Q87: 11 | R87: Nov | S87: 1 | BQ87: =IF($N87="","",IF(AND($N87="C",BQ$9=$C87),1,IF(AND($N87="L",BQ$9=$C87),3,IF(AND($N87="D",BQ$9=$C87),2,"")))) ->  | CG87: =IF($N87="","",IF(AND($N87="C",CG$9=$C87),1,IF(AND($N87="L",CG$9=$C87),3,IF(AND($N87="D",CG$9=$C87),2,"")))) ->  | CW87: =IF($N87="","",IF(AND($N87="C",CW$9=$C87),1,IF(AND($N87="L",CW$9=$C87),3,IF(AND($N87="D",CW$9=$C87),2,"")))) ->  | DM87: =IF($N87="","",IF(AND($N87="C",DM$9=$C87),1,IF(AND($N87="L",DM$9=$C87),3,IF(AND($N87="D",DM$9=$C87),2,"")))) ->  | EC87: =IF($N87="","",IF(AND($N87="C",EC$9=$C87),1,IF(AND($N87="L",EC$9=$C87),3,IF(AND($N87="D",EC$9=$C87),2,"")))) ->  | ES87: =IF($N87="","",IF(AND($N87="C",ES$9=$C87),1,IF(AND($N87="L",ES$9=$C87),3,IF(AND($N87="D",ES$9=$C87),2,"")))) ->  | FI87: =IF($N87="","",IF(AND($N87="C",FI$9=$C87),1,IF(AND($N87="L",FI$9=$C87),3,IF(AND($N87="D",FI$9=$C87),2,"")))) ->  | FY87: =IF($N87="","",IF(AND($N87="C",FY$9=$C87),1,IF(AND($N87="L",FY$9=$C87),3,IF(AND($N87="D",FY$9=$C87),2,"")))) ->  | GO87: =IF($N87="","",IF(AND($N87="C",GO$9=$C87),1,IF(AND($N87="L",GO$9=$C87),3,IF(AND($N87="D",GO$9=$C87),2,"")))) -> 
B88: 79 | C88: 2025-11-11 | D88: 2025-11-11 | F88: 7.1 | O88: MQ | Q88: 11 | R88: Nov | S88: 1 | T88: 1
B89: 80 | C89: 2025-11-12 | D89: 2025-11-12 | H89: 7.1 | O89: MLM | Q89: 11 | R89: Nov | S89: 1 | T89: 2 | AZ89: =IF($N89="","",IF(AND($N89="C",AZ$9=$C89),1,IF(AND($N89="L",AZ$9=$C89),3,IF(AND($N89="D",AZ$9=$C89),2,"")))) -> 
B90: 81 | C90: 2025-11-13 | D90: 2025-11-13 | Q90: 11 | R90: Nov | S90: 1 | AL90: =IF($N90="","",IF(AND($N90="C",AL$9=$C90),1,IF(AND($N90="L",AL$9=$C90),3,IF(AND($N90="D",AL$9=$C90),2,"")))) ->  | BP90: =IF($N90="","",IF(AND($N90="C",BP$9=$C90),1,IF(AND($N90="L",BP$9=$C90),3,IF(AND($N90="D",BP$9=$C90),2,"")))) -> 
B91: 82 | C91: 2025-11-14 | D91: 2025-11-14 | Q91: 11 | R91: Nov | S91: 1 | V91: =IF($N91="","",IF(AND($N91="C",V$9=$C91),1,IF(AND($N91="L",V$9=$C91),3,IF(AND($N91="D",V$9=$C91),2,"")))) -> 
B92: 83 | C92: 2025-11-15 | D92: 2025-11-15 | F92: 7.2,7.3 | O92: MQ | Q92: 11 | R92: Nov | S92: 1 | T92: 1
B93: 84 | C93: 2025-11-16 | D93: 2025-11-16 | H93: 7.2, 7.3 | O93: MLM | Q93: 11 | R93: Nov | S93: 1 | T93: 2
B94: 85 | C94: 2025-11-17 | D94: 2025-11-17 | Q94: 11 | R94: Nov | S94: 1
B95: 86 | C95: 2025-11-18 | D95: =C95 -> 2025-11-18 | J95: Extra 7 | O95: Part. | Q95: 11 | R95: Nov | S95: 1 | T95: 4
B96: 87 | C96: 2025-11-19 | D96: 2025-11-19 | Q96: 11 | R96: Nov | S96: 1
B97: 88 | C97: 2025-11-20 | D97: 2025-11-20 | L97: Midterm 2 | M97: 0 | O97: Test | Q97: 11 | R97: Nov | S97: 1 | T97: 3
B98: 89 | C98: 2025-11-21 | D98: 2025-11-21 | L98: Midterm 2 | M98: 0 | O98: Test | Q98: 11 | R98: Nov | S98: 1 | T98: 3
B99: 90 | C99: 2025-11-22 | D99: 2025-11-22 | Q99: 11 | R99: Nov | S99: 1
B100: 91 | C100: 2025-11-23 | D100: 2025-11-23 | J100: Samples 5-7 | O100: Part. | Q100: 11 | R100: Nov | S100: 1 | T100: 4
B101: 92 | C101: 2025-11-24 | D101: =C101 -> 2025-11-24 | L101: Midterm 2 | M101: 0 | O101: Test | Q101: 11 | R101: Nov | S101: 1 | T101: 3
B102: 93 | C102: 2025-11-25 | D102: 2025-11-25 | J102: Bonus | O102: Part. | Q102: 11 | R102: =VLOOKUP(Q102,Month,2,FALSE) -> Nov | S102: 1 | T102: 4
B103: 94 | C103: 2025-11-26 | D103: =C103 -> 2025-11-26 | Q103: 11 | R103: Nov | S103: 1 | CF103: =IF($N103="","",IF(AND($N103="C",CF$9=$C103),1,IF(AND($N103="L",CF$9=$C103),3,IF(AND($N103="D",CF$9=$C103),2,"")))) ->  | CV103: =IF($N103="","",IF(AND($N103="C",CV$9=$C103),1,IF(AND($N103="L",CV$9=$C103),3,IF(AND($N103="D",CV$9=$C103),2,"")))) ->  | DL103: =IF($N103="","",IF(AND($N103="C",DL$9=$C103),1,IF(AND($N103="L",DL$9=$C103),3,IF(AND($N103="D",DL$9=$C103),2,"")))) ->  | EB103: =IF($N103="","",IF(AND($N103="C",EB$9=$C103),1,IF(AND($N103="L",EB$9=$C103),3,IF(AND($N103="D",EB$9=$C103),2,"")))) ->  | ER103: =IF($N103="","",IF(AND($N103="C",ER$9=$C103),1,IF(AND($N103="L",ER$9=$C103),3,IF(AND($N103="D",ER$9=$C103),2,"")))) ->  | FH103: =IF($N103="","",IF(AND($N103="C",FH$9=$C103),1,IF(AND($N103="L",FH$9=$C103),3,IF(AND($N103="D",FH$9=$C103),2,"")))) ->  | FX103: =IF($N103="","",IF(AND($N103="C",FX$9=$C103),1,IF(AND($N103="L",FX$9=$C103),3,IF(AND($N103="D",FX$9=$C103),2,"")))) ->  | GN103: =IF($N103="","",IF(AND($N103="C",GN$9=$C103),1,IF(AND($N103="L",GN$9=$C103),3,IF(AND($N103="D",GN$9=$C103),2,"")))) -> 
B104: 95 | C104: 2025-11-27 | D104: 2025-11-27 | E104: Thanksgiving | Q104: 11 | R104: Nov | S104: 1
B105: 96 | C105: 2025-11-28 | D105: 2025-11-28 | E105: Thanksgiving | Q105: 11 | R105: Nov | S105: 1 | BB105: =IF($N105="","",IF(AND($N105="C",BB$9=$C105),1,IF(AND($N105="L",BB$9=$C105),3,IF(AND($N105="D",BB$9=$C105),2,"")))) -> 
B106: 97 | C106: 2025-11-29 | D106: 2025-11-29 | E106: Thanksgiving | F106: =IFERROR(VLOOKUP(C106,MQ_S,3,FALSE),"") ->  | G106: =IFERROR(VLOOKUP(C106,MQ_L,3,FALSE),"") ->  | H106: =IFERROR(VLOOKUP(C106,MLM_S,3,FALSE),"") ->  | I106: =IFERROR(VLOOKUP(C106,MLM_L,3,FALSE),"") ->  | J106: =IFERROR(VLOOKUP(C106,Ext_S,2,FALSE),"") ->  | K106: =IFERROR(VLOOKUP(C106,Ext_L,3,FALSE),"") ->  | L106: =IFERROR(IF(Class="OL",VLOOKUP(C106,Exams_OL,3,FALSE),IF(Class="TC",VLOOKUP(C106,Exams_TC,3,FALSE))),"") ->  | M106: =IFERROR(IF(Class="OL",VLOOKUP(C106,Exams_OLL,7,FALSE),IF(Class="TC",VLOOKUP(C106,Exams_TCL,7,FALSE))),"") ->  | N106: =IF(Calc2="No","",IF(OR(G106="C",I106="C",K106="C",M106=1),"C",IF(T106="","",IF(C106<TODAY(),"L",IF(C106<=TODAY()+6,"D",IF(C106>TODAY()+2,"OK","")))))) ->  | Q106: 11 | R106: Nov | S106: 1 | AK106: =IF($N106="","",IF(AND($N106="C",AK$9=$C106),1,IF(AND($N106="L",AK$9=$C106),3,IF(AND($N106="D",AK$9=$C106),2,"")))) ->  | BA106: =IF($N106="","",IF(AND($N106="C",BA$9=$C106),1,IF(AND($N106="L",BA$9=$C106),3,IF(AND($N106="D",BA$9=$C106),2,"")))) ->  | BR106: =IF($N106="","",IF(AND($N106="C",BR$9=$C106),1,IF(AND($N106="L",BR$9=$C106),3,IF(AND($N106="D",BR$9=$C106),2,"")))) -> 
B107: 98 | C107: 2025-11-30 | D107: 2025-11-30 | E107: Thanksgiving | Q107: 11 | R107: Nov | S107: 1 | V107: =IF($N107="","",IF(AND($N107="C",V$9=$C107),1,IF(AND($N107="L",V$9=$C107),3,IF(AND($N107="D",V$9=$C107),2,"")))) -> 
B108: 99 | C108: 2025-12-01 | D108: 2025-12-01 | F108: 9.1 | O108: MQ | Q108: 12 | R108: Dec | S108: 1 | T108: 1
B109: 100 | C109: 2025-12-02 | D109: 2025-12-02 | H109: 9.1 | O109: MLM | Q109: 12 | R109: Dec | S109: 1 | T109: 2
B110: 101 | C110: 2025-12-03 | D110: 2025-12-03 | Q110: 12 | R110: Dec | S110: 1
B111: 102 | C111: 2025-12-04 | D111: 2025-12-04 | Q111: 12 | R111: Dec | S111: 1
B112: 103 | C112: 2025-12-05 | D112: 2025-12-05 | Q112: 12 | R112: Dec | S112: 1
B113: 104 | C113: 2025-12-06 | D113: 2025-12-06 | Q113: 12 | R113: Dec | S113: 1
B114: 105 | C114: 2025-12-07 | D114: 2025-12-07 | H114: 9.2 | O114: MLM | Q114: 12 | R114: Dec | S114: 1 | T114: 2
B115: 106 | C115: 2025-12-08 | D115: 2025-12-08 | Q115: 12 | R115: Dec | S115: 1
B116: 107 | C116: 2025-12-09 | D116: 2025-12-09 | Q116: 12 | R116: Dec | S116: 1
B117: 108 | C117: 2025-12-10 | D117: 2025-12-10 | Q117: 12 | R117: Dec | S117: 1
B118: 109 | C118: 2025-12-11 | D118: 2025-12-11 | L118: Final Exam | M118: 0 | O118: Test | Q118: 12 | R118: Dec | S118: 1 | T118: 3 | CU118: =IF($N118="","",IF(AND($N118="C",CU$9=$C118),1,IF(AND($N118="L",CU$9=$C118),3,IF(AND($N118="D",CU$9=$C118),2,"")))) ->  | DK118: =IF($N118="","",IF(AND($N118="C",DK$9=$C118),1,IF(AND($N118="L",DK$9=$C118),3,IF(AND($N118="D",DK$9=$C118),2,"")))) ->  | EA118: =IF($N118="","",IF(AND($N118="C",EA$9=$C118),1,IF(AND($N118="L",EA$9=$C118),3,IF(AND($N118="D",EA$9=$C118),2,"")))) ->  | EQ118: =IF($N118="","",IF(AND($N118="C",EQ$9=$C118),1,IF(AND($N118="L",EQ$9=$C118),3,IF(AND($N118="D",EQ$9=$C118),2,"")))) ->  | FG118: =IF($N118="","",IF(AND($N118="C",FG$9=$C118),1,IF(AND($N118="L",FG$9=$C118),3,IF(AND($N118="D",FG$9=$C118),2,"")))) ->  | FW118: =IF($N118="","",IF(AND($N118="C",FW$9=$C118),1,IF(AND($N118="L",FW$9=$C118),3,IF(AND($N118="D",FW$9=$C118),2,"")))) ->  | GM118: =IF($N118="","",IF(AND($N118="C",GM$9=$C118),1,IF(AND($N118="L",GM$9=$C118),3,IF(AND($N118="D",GM$9=$C118),2,"")))) -> 
B119: 110 | C119: 2025-12-12 | D119: 2025-12-12 | L119: Final Exam | M119: 0 | O119: Test | Q119: 12 | R119: Dec | S119: Out | T119: 3 | CH119: =IF($N119="","",IF(AND($N119="C",CH$9=$C119),1,IF(AND($N119="L",CH$9=$C119),3,IF(AND($N119="D",CH$9=$C119),2,"")))) -> 
B120: 111 | C120: 2025-12-13 | D120: 2025-12-13 | Q120: 12 | R120: Dec | S120: Out
B121: 112 | C121: 2025-12-14 | D121: 2025-12-14 | Q121: 12 | R121: Dec | S121: Out | AZ121: =IF($N121="","",IF(AND($N121="C",AZ$9=$C121),1,IF(AND($N121="L",AZ$9=$C121),3,IF(AND($N121="D",AZ$9=$C121),2,"")))) ->  | BQ121: =IF($N121="","",IF(AND($N121="C",BQ$9=$C121),1,IF(AND($N121="L",BQ$9=$C121),3,IF(AND($N121="D",BQ$9=$C121),2,"")))) -> 
B122: 113 | C122: 2025-12-15 | D122: 2025-12-15 | L122: Final Exam | M122: 0 | O122: Test | Q122: 12 | R122: Dec | S122: Out | T122: 3 | AL122: =IF($N122="","",IF(AND($N122="C",AL$9=$C122),1,IF(AND($N122="L",AL$9=$C122),3,IF(AND($N122="D",AL$9=$C122),2,"")))) ->  | BP122: =IF($N122="","",IF(AND($N122="C",BP$9=$C122),1,IF(AND($N122="L",BP$9=$C122),3,IF(AND($N122="D",BP$9=$C122),2,"")))) ->  | CG122: =IF($N122="","",IF(AND($N122="C",CG$9=$C122),1,IF(AND($N122="L",CG$9=$C122),3,IF(AND($N122="D",CG$9=$C122),2,"")))) ->  | ED122: =IF($N122="","",IF(AND($N122="C",ED$9=$C122),1,IF(AND($N122="L",ED$9=$C122),3,IF(AND($N122="D",ED$9=$C122),2,"")))) -> 
V123: =IF($N123="","",IF(AND($N123="C",V$9=$C123),1,IF(AND($N123="L",V$9=$C123),3,IF(AND($N123="D",V$9=$C123),2,"")))) -> 
H124: * Samples: MLM Samples (open until Final)

Sheet 4) Reg Calendar
AZ1: From
I2: Calendar Year: | N2: 2025 | AL2: Common State Holidays | AZ2: 2009 | BB2: Election | BF2: Christmas | BM2: Good Friday | BO2: New Year | BQ2: Indep | BS2: Veterans
AL3: Event Name | AP3: Day | AQ3: Date | BB3: 2009 Election Day, Primary | BC3: None | BD3: Non | BF3: 2009 | BG3: =BF3&"a" -> 2009a | BH3: Christmas Day (Washington Birthday) | BI3: 2009-12-24 | BJ3: =BI3 -> 2009-12-24 | BL3: 2009 | BM3: 2009-04-10 | BN3: =BM3 -> 2009-04-10 | BO3: 2009-01-01 | BP3: =BO3 -> 2009-01-01 | BQ3: 2009-07-03 | BR3: =BQ3 -> 2009-07-03 | BS3: 2009-11-11 | BT3: =BS3 -> 2009-11-11
AZ4: Until | BB4: 2009 Election Day, General | BC4: None | BD4: Non | BF4: 2009 | BG4: =BF4&"b" -> 2009b | BH4: Christmas Day | BI4: 2009-12-25 | BJ4: =BI4 -> 2009-12-25 | BL4: 2010 | BM4: 2010-04-02 | BN4: =BM4 -> 2010-04-02 | BO4: 2010-01-01 | BP4: =BO4 -> 2010-01-01 | BQ4: 2010-07-05 | BR4: =BQ4 -> 2010-07-05 | BS4: 2010-11-11 | BT4: =BS4 -> 2010-11-11 | BV4: 1 | BW4: Jan
C5: January | K5: February | S5: March | AA5: April | AL5: New Year’s Day | AP5: =AQ5 -> 2025-01-01 | AQ5: =IF($CD$5=1,VLOOKUP($CA$6,BL1:BT60,4,FALSE),DATE($CA$6,1,1)) -> 2025-01-01 | AZ5: 2035 | BB5: 2010 Election Day, Primary | BC5: 2010-11-02 | BD5: =BC5 -> 2010-11-02 | BF5: 2010 | BG5: =BF5&"a" -> 2010a | BH5: Christmas Day (Washington Birthday) | BI5: 2010-12-23 | BJ5: =BI5 -> 2010-12-23 | BL5: 2011 | BM5: 2011-04-22 | BN5: 2011-04-22 | BO5: 2010-12-31 | BP5: 2010-12-31 | BQ5: 2011-07-04 | BR5: 2011-07-04 | BS5: 2011-11-11 | BT5: 2011-11-11 | BV5: 2 | BW5: Feb | CD5: =IF(AND(CA6>=AZ2,CA6<=AZ5),1,0) -> 1900-01-01
C6: Su | D6: Mo | E6: Tu | F6: We | G6: Th | H6: Fr | I6: Sa | K6: Su | L6: Mo | M6: Tu | N6: We | O6: Th | P6: Fr | Q6: Sa | S6: Su | T6: Mo | U6: Tu | V6: We | W6: Th | X6: Fr | Y6: Sa | AA6: Su | AB6: Mo | AC6: Tu | AD6: We | AE6: Th | AF6: Fr | AG6: Sa | BB6: 2010 Election Day, General | BC6: 2010-05-04 | BD6: 2010-05-04 | BF6: 2010 | BG6: =BF6&"b" -> 2010b | BH6: Christmas Day | BI6: 2010-12-24 | BJ6: 2010-12-24 | BL6: 2012 | BM6: 2012-04-06 | BN6: 2012-04-06 | BO6: 2012-01-02 | BP6: 2012-01-02 | BQ6: 2012-07-04 | BR6: 2012-07-04 | BS6: 2012-11-12 | BT6: 2012-11-12 | BV6: 3 | BW6: Mar | BZ6: Major Dates for: | CA6: =N2 -> 2025
C7: =IF(AND(YEAR(JanM)=$N$2,MONTH(JanM)=1),JanM, "") ->  | D7: =IF(AND(YEAR(JanM+1)=$N$2,MONTH(JanM+1)=1),JanM+1, "") ->  | E7: =IF(AND(YEAR(JanM+2)=$N$2,MONTH(JanM+2)=1),JanM+2, "") ->  | F7: =IF(AND(YEAR(JanM+3)=$N$2,MONTH(JanM+3)=1),JanM+3, "") -> 2025-01-01 | G7: =IF(AND(YEAR(JanM+4)=$N$2,MONTH(JanM+4)=1),JanM+4, "") -> 2025-01-02 | H7: =IF(AND(YEAR(JanM+5)=$N$2,MONTH(JanM+5)=1),JanM+5, "") -> 2025-01-03 | I7: =IF(AND(YEAR(JanM+6)=$N$2,MONTH(JanM+6)=1),JanM+6, "") -> 2025-01-04 | K7: =IF(AND(YEAR(FebM)=$N$2,MONTH(FebM)=2),FebM, "") ->  | L7: =IF(AND(YEAR(FebM+1)=$N$2,MONTH(FebM+1)=2),FebM+1, "") ->  | M7: =IF(AND(YEAR(FebM+2)=$N$2,MONTH(FebM+2)=2),FebM+2, "") ->  | N7: =IF(AND(YEAR(FebM+3)=$N$2,MONTH(FebM+3)=2),FebM+3, "") ->  | O7: =IF(AND(YEAR(FebM+4)=$N$2,MONTH(FebM+4)=2),FebM+4, "") ->  | P7: =IF(AND(YEAR(FebM+5)=$N$2,MONTH(FebM+5)=2),FebM+5, "") ->  | Q7: =IF(AND(YEAR(FebM+6)=$N$2,MONTH(FebM+6)=2),FebM+6, "") -> 2025-02-01 | S7: =IF(AND(YEAR(MarM)=$N$2,MONTH(MarM)=3),MarM, "") ->  | T7: =IF(AND(YEAR(MarM+1)=$N$2,MONTH(MarM+1)=3),MarM+1, "") ->  | U7: =IF(AND(YEAR(MarM+2)=$N$2,MONTH(MarM+2)=3),MarM+2, "") ->  | V7: =IF(AND(YEAR(MarM+3)=$N$2,MONTH(MarM+3)=3),MarM+3, "") ->  | W7: =IF(AND(YEAR(MarM+4)=$N$2,MONTH(MarM+4)=3),MarM+4, "") ->  | X7: =IF(AND(YEAR(MarM+5)=$N$2,MONTH(MarM+5)=3),MarM+5, "") ->  | Y7: =IF(AND(YEAR(MarM+6)=$N$2,MONTH(MarM+6)=3),MarM+6, "") -> 2025-03-01 | AA7: =IF(AND(YEAR(AprM)=$N$2,MONTH(AprM)=4),AprM, "") ->  | AB7: =IF(AND(YEAR(AprM+1)=$N$2,MONTH(AprM+1)=4),AprM+1, "") ->  | AC7: =IF(AND(YEAR(AprM+2)=$N$2,MONTH(AprM+2)=4),AprM+2, "") -> 2025-04-01 | AD7: =IF(AND(YEAR(AprM+3)=$N$2,MONTH(AprM+3)=4),AprM+3, "") -> 2025-04-02 | AE7: =IF(AND(YEAR(AprM+4)=$N$2,MONTH(AprM+4)=4),AprM+4, "") -> 2025-04-03 | AF7: =IF(AND(YEAR(AprM+5)=$N$2,MONTH(AprM+5)=4),AprM+5, "") -> 2025-04-04 | AG7: =IF(AND(YEAR(AprM+6)=$N$2,MONTH(AprM+6)=4),AprM+6, "") -> 2025-04-05 | AL7: MLK day, third Monday in January | AP7: =AQ7 -> 2025-01-20 | AQ7: =DATE(CA6,1,1)+IF(2<WEEKDAY(DATE(CA6,1,1)),7-WEEKDAY(DATE(CA6,1,1))+2,2-WEEKDAY(DATE(CA6,1,1)))+((3-1)*7) -> 2025-01-20 | AS7: =AQ7 -> 2025-01-20 | BB7: 2011 Election Day, Primary | BC7: 2011-05-03 | BD7: =BC7 -> 2011-05-03 | BF7: 2011 | BG7: =BF7&"a" -> 2011a | BH7: Christmas Day (Washington Birthday) | BI7: 2011-12-23 | BJ7: =BI7 -> 2011-12-23 | BL7: 2013 | BM7: 2013-03-29 | BN7: 2013-03-29 | BO7: 2013-01-01 | BP7: 2013-01-01 | BQ7: 2013-07-04 | BR7: 2013-07-04 | BS7: 2013-11-11 | BT7: 2013-11-11 | BV7: 4 | BW7: Apr
C8: =IF(AND(YEAR(JanM+7)=$N$2,MONTH(JanM+7)=1),JanM+7, "") -> 2025-01-05 | D8: =IF(AND(YEAR(JanM+8)=$N$2,MONTH(JanM+8)=1),JanM+8, "") -> 2025-01-06 | E8: =IF(AND(YEAR(JanM+9)=$N$2,MONTH(JanM+9)=1),JanM+9, "") -> 2025-01-07 | F8: =IF(AND(YEAR(JanM+10)=$N$2,MONTH(JanM+10)=1),JanM+10, "") -> 2025-01-08 | G8: =IF(AND(YEAR(JanM+11)=$N$2,MONTH(JanM+11)=1),JanM+11, "") -> 2025-01-09 | H8: =IF(AND(YEAR(JanM+12)=$N$2,MONTH(JanM+12)=1),JanM+12, "") -> 2025-01-10 | I8: =IF(AND(YEAR(JanM+13)=$N$2,MONTH(JanM+13)=1),JanM+13, "") -> 2025-01-11 | K8: =IF(AND(YEAR(FebM+7)=$N$2,MONTH(FebM+7)=2),FebM+7, "") -> 2025-02-02 | L8: =IF(AND(YEAR(FebM+8)=$N$2,MONTH(FebM+8)=2),FebM+8, "") -> 2025-02-03 | M8: =IF(AND(YEAR(FebM+9)=$N$2,MONTH(FebM+9)=2),FebM+9, "") -> 2025-02-04 | N8: =IF(AND(YEAR(FebM+10)=$N$2,MONTH(FebM+10)=2),FebM+10, "") -> 2025-02-05 | O8: =IF(AND(YEAR(FebM+11)=$N$2,MONTH(FebM+11)=2),FebM+11, "") -> 2025-02-06 | P8: =IF(AND(YEAR(FebM+12)=$N$2,MONTH(FebM+12)=2),FebM+12, "") -> 2025-02-07 | Q8: =IF(AND(YEAR(FebM+13)=$N$2,MONTH(FebM+13)=2),FebM+13, "") -> 2025-02-08 | S8: =IF(AND(YEAR(MarM+7)=$N$2,MONTH(MarM+7)=3),MarM+7, "") -> 2025-03-02 | T8: =IF(AND(YEAR(MarM+8)=$N$2,MONTH(MarM+8)=3),MarM+8, "") -> 2025-03-03 | U8: =IF(AND(YEAR(MarM+9)=$N$2,MONTH(MarM+9)=3),MarM+9, "") -> 2025-03-04 | V8: =IF(AND(YEAR(MarM+10)=$N$2,MONTH(MarM+10)=3),MarM+10, "") -> 2025-03-05 | W8: =IF(AND(YEAR(MarM+11)=$N$2,MONTH(MarM+11)=3),MarM+11, "") -> 2025-03-06 | X8: =IF(AND(YEAR(MarM+12)=$N$2,MONTH(MarM+12)=3),MarM+12, "") -> 2025-03-07 | Y8: =IF(AND(YEAR(MarM+13)=$N$2,MONTH(MarM+13)=3),MarM+13, "") -> 2025-03-08 | AA8: =IF(AND(YEAR(AprM+7)=$N$2,MONTH(AprM+7)=4),AprM+7, "") -> 2025-04-06 | AB8: =IF(AND(YEAR(AprM+8)=$N$2,MONTH(AprM+8)=4),AprM+8, "") -> 2025-04-07 | AC8: =IF(AND(YEAR(AprM+9)=$N$2,MONTH(AprM+9)=4),AprM+9, "") -> 2025-04-08 | AD8: =IF(AND(YEAR(AprM+10)=$N$2,MONTH(AprM+10)=4),AprM+10, "") -> 2025-04-09 | AE8: =IF(AND(YEAR(AprM+11)=$N$2,MONTH(AprM+11)=4),AprM+11, "") -> 2025-04-10 | AF8: =IF(AND(YEAR(AprM+12)=$N$2,MONTH(AprM+12)=4),AprM+12, "") -> 2025-04-11 | AG8: =IF(AND(YEAR(AprM+13)=$N$2,MONTH(AprM+13)=4),AprM+13, "") -> 2025-04-12 | BB8: 2011 Election Day, General | BC8: 2011-11-08 | BD8: =BC8 -> 2011-11-08 | BF8: 2011 | BG8: =BF8&"b" -> 2011b | BH8: Christmas Day | BI8: 2011-12-26 | BJ8: =BI8 -> 2011-12-26 | BL8: 2014 | BM8: 2014-04-18 | BN8: 2014-04-18 | BO8: 2014-01-01 | BP8: 2014-01-01 | BQ8: 2014-07-04 | BR8: 2014-07-04 | BS8: 2014-11-11 | BT8: 2014-11-11 | BV8: 5 | BW8: May
C9: =IF(AND(YEAR(JanM+14)=$N$2,MONTH(JanM+14)=1),JanM+14, "") -> 2025-01-12 | D9: =IF(AND(YEAR(JanM+15)=$N$2,MONTH(JanM+15)=1),JanM+15, "") -> 2025-01-13 | E9: =IF(AND(YEAR(JanM+16)=$N$2,MONTH(JanM+16)=1),JanM+16, "") -> 2025-01-14 | F9: =IF(AND(YEAR(JanM+17)=$N$2,MONTH(JanM+17)=1),JanM+17, "") -> 2025-01-15 | G9: =IF(AND(YEAR(JanM+18)=$N$2,MONTH(JanM+18)=1),JanM+18, "") -> 2025-01-16 | H9: =IF(AND(YEAR(JanM+19)=$N$2,MONTH(JanM+19)=1),JanM+19, "") -> 2025-01-17 | I9: =IF(AND(YEAR(JanM+20)=$N$2,MONTH(JanM+20)=1),JanM+20, "") -> 2025-01-18 | K9: =IF(AND(YEAR(FebM+14)=$N$2,MONTH(FebM+14)=2),FebM+14, "") -> 2025-02-09 | L9: =IF(AND(YEAR(FebM+15)=$N$2,MONTH(FebM+15)=2),FebM+15, "") -> 2025-02-10 | M9: =IF(AND(YEAR(FebM+16)=$N$2,MONTH(FebM+16)=2),FebM+16, "") -> 2025-02-11 | N9: =IF(AND(YEAR(FebM+17)=$N$2,MONTH(FebM+17)=2),FebM+17, "") -> 2025-02-12 | O9: =IF(AND(YEAR(FebM+18)=$N$2,MONTH(FebM+18)=2),FebM+18, "") -> 2025-02-13 | P9: =IF(AND(YEAR(FebM+19)=$N$2,MONTH(FebM+19)=2),FebM+19, "") -> 2025-02-14 | Q9: =IF(AND(YEAR(FebM+20)=$N$2,MONTH(FebM+20)=2),FebM+20, "") -> 2025-02-15 | S9: =IF(AND(YEAR(MarM+14)=$N$2,MONTH(MarM+14)=3),MarM+14, "") -> 2025-03-09 | T9: =IF(AND(YEAR(MarM+15)=$N$2,MONTH(MarM+15)=3),MarM+15, "") -> 2025-03-10 | U9: =IF(AND(YEAR(MarM+16)=$N$2,MONTH(MarM+16)=3),MarM+16, "") -> 2025-03-11 | V9: =IF(AND(YEAR(MarM+17)=$N$2,MONTH(MarM+17)=3),MarM+17, "") -> 2025-03-12 | W9: =IF(AND(YEAR(MarM+18)=$N$2,MONTH(MarM+18)=3),MarM+18, "") -> 2025-03-13 | X9: =IF(AND(YEAR(MarM+19)=$N$2,MONTH(MarM+19)=3),MarM+19, "") -> 2025-03-14 | Y9: =IF(AND(YEAR(MarM+20)=$N$2,MONTH(MarM+20)=3),MarM+20, "") -> 2025-03-15 | AA9: =IF(AND(YEAR(AprM+14)=$N$2,MONTH(AprM+14)=4),AprM+14, "") -> 2025-04-13 | AB9: =IF(AND(YEAR(AprM+15)=$N$2,MONTH(AprM+15)=4),AprM+15, "") -> 2025-04-14 | AC9: =IF(AND(YEAR(AprM+16)=$N$2,MONTH(AprM+16)=4),AprM+16, "") -> 2025-04-15 | AD9: =IF(AND(YEAR(AprM+17)=$N$2,MONTH(AprM+17)=4),AprM+17, "") -> 2025-04-16 | AE9: =IF(AND(YEAR(AprM+18)=$N$2,MONTH(AprM+18)=4),AprM+18, "") -> 2025-04-17 | AF9: =IF(AND(YEAR(AprM+19)=$N$2,MONTH(AprM+19)=4),AprM+19, "") -> 2025-04-18 | AG9: =IF(AND(YEAR(AprM+20)=$N$2,MONTH(AprM+20)=4),AprM+20, "") -> 2025-04-19 | AL9: Spring Break | AN9: =IF(CA6=2029,DATE(CA6,3,1)+IF(4<WEEKDAY(DATE(CA6,3,1)),7-WEEKDAY(DATE(CA6,3,1))+1,1-WEEKDAY(DATE(CA6,3,1)))+((1)*7),DATE(CA6,3,1)+IF(4<WEEKDAY(DATE(CA6,3,1)),7-WEEKDAY(DATE(CA6,3,1))+1,1-WEEKDAY(DATE(CA6,3,1)))+((2)*7)) -> 2025-03-16 | AP9: Until | AQ9: =AN9+7 -> 2025-03-23 | BB9: 2012 Election Day, Primary | BC9: 2012-05-08 | BD9: 2012-05-08 | BF9: 2012 | BG9: =BF9&"a" -> 2012a | BH9: Christmas Day (Washington Birthday) | BI9: 2012-12-24 | BJ9: =BI9 -> 2012-12-24 | BL9: 2015 | BM9: 2015-04-03 | BN9: 2015-04-03 | BO9: 2015-01-01 | BP9: 2015-01-01 | BQ9: 2015-07-03 | BR9: 2015-07-03 | BS9: 2015-11-11 | BT9: 2015-11-11 | BV9: 6 | BW9: Jun
C10: =IF(AND(YEAR(JanM+21)=$N$2,MONTH(JanM+21)=1),JanM+21, "") -> 2025-01-19 | D10: =IF(AND(YEAR(JanM+22)=$N$2,MONTH(JanM+22)=1),JanM+22, "") -> 2025-01-20 | E10: =IF(AND(YEAR(JanM+23)=$N$2,MONTH(JanM+23)=1),JanM+23, "") -> 2025-01-21 | F10: =IF(AND(YEAR(JanM+24)=$N$2,MONTH(JanM+24)=1),JanM+24, "") -> 2025-01-22 | G10: =IF(AND(YEAR(JanM+25)=$N$2,MONTH(JanM+25)=1),JanM+25, "") -> 2025-01-23 | H10: =IF(AND(YEAR(JanM+26)=$N$2,MONTH(JanM+26)=1),JanM+26, "") -> 2025-01-24 | I10: =IF(AND(YEAR(JanM+27)=$N$2,MONTH(JanM+27)=1),JanM+27, "") -> 2025-01-25 | K10: =IF(AND(YEAR(FebM+21)=$N$2,MONTH(FebM+21)=2),FebM+21, "") -> 2025-02-16 | L10: =IF(AND(YEAR(FebM+22)=$N$2,MONTH(FebM+22)=2),FebM+22, "") -> 2025-02-17 | M10: =IF(AND(YEAR(FebM+23)=$N$2,MONTH(FebM+23)=2),FebM+23, "") -> 2025-02-18 | N10: =IF(AND(YEAR(FebM+24)=$N$2,MONTH(FebM+24)=2),FebM+24, "") -> 2025-02-19 | O10: =IF(AND(YEAR(FebM+25)=$N$2,MONTH(FebM+25)=2),FebM+25, "") -> 2025-02-20 | P10: =IF(AND(YEAR(FebM+26)=$N$2,MONTH(FebM+26)=2),FebM+26, "") -> 2025-02-21 | Q10: =IF(AND(YEAR(FebM+27)=$N$2,MONTH(FebM+27)=2),FebM+27, "") -> 2025-02-22 | S10: =IF(AND(YEAR(MarM+21)=$N$2,MONTH(MarM+21)=3),MarM+21, "") -> 2025-03-16 | T10: =IF(AND(YEAR(MarM+22)=$N$2,MONTH(MarM+22)=3),MarM+22, "") -> 2025-03-17 | U10: =IF(AND(YEAR(MarM+23)=$N$2,MONTH(MarM+23)=3),MarM+23, "") -> 2025-03-18 | V10: =IF(AND(YEAR(MarM+24)=$N$2,MONTH(MarM+24)=3),MarM+24, "") -> 2025-03-19 | W10: =IF(AND(YEAR(MarM+25)=$N$2,MONTH(MarM+25)=3),MarM+25, "") -> 2025-03-20 | X10: =IF(AND(YEAR(MarM+26)=$N$2,MONTH(MarM+26)=3),MarM+26, "") -> 2025-03-21 | Y10: =IF(AND(YEAR(MarM+27)=$N$2,MONTH(MarM+27)=3),MarM+27, "") -> 2025-03-22 | AA10: =IF(AND(YEAR(AprM+21)=$N$2,MONTH(AprM+21)=4),AprM+21, "") -> 2025-04-20 | AB10: =IF(AND(YEAR(AprM+22)=$N$2,MONTH(AprM+22)=4),AprM+22, "") -> 2025-04-21 | AC10: =IF(AND(YEAR(AprM+23)=$N$2,MONTH(AprM+23)=4),AprM+23, "") -> 2025-04-22 | AD10: =IF(AND(YEAR(AprM+24)=$N$2,MONTH(AprM+24)=4),AprM+24, "") -> 2025-04-23 | AE10: =IF(AND(YEAR(AprM+25)=$N$2,MONTH(AprM+25)=4),AprM+25, "") -> 2025-04-24 | AF10: =IF(AND(YEAR(AprM+26)=$N$2,MONTH(AprM+26)=4),AprM+26, "") -> 2025-04-25 | AG10: =IF(AND(YEAR(AprM+27)=$N$2,MONTH(AprM+27)=4),AprM+27, "") -> 2025-04-26 | BB10: 2012 Election Day, General | BC10: 2012-11-06 | BD10: 2012-11-06 | BF10: 2012 | BG10: =BF10&"b" -> 2012b | BH10: Christmas Day | BI10: 2012-12-25 | BJ10: =BI10 -> 2012-12-25 | BL10: 2016 | BM10: 2016-03-25 | BN10: 2016-03-25 | BO10: 2016-01-01 | BP10: 2016-01-01 | BQ10: 2016-07-04 | BR10: 2016-07-04 | BS10: 2016-11-11 | BT10: 2016-11-11 | BV10: 7 | BW10: Jul
C11: =IF(AND(YEAR(JanM+28)=$N$2,MONTH(JanM+28)=1),JanM+28, "") -> 2025-01-26 | D11: =IF(AND(YEAR(JanM+29)=$N$2,MONTH(JanM+29)=1),JanM+29, "") -> 2025-01-27 | E11: =IF(AND(YEAR(JanM+30)=$N$2,MONTH(JanM+30)=1),JanM+30, "") -> 2025-01-28 | F11: =IF(AND(YEAR(JanM+31)=$N$2,MONTH(JanM+31)=1),JanM+31, "") -> 2025-01-29 | G11: =IF(AND(YEAR(JanM+32)=$N$2,MONTH(JanM+32)=1),JanM+32, "") -> 2025-01-30 | H11: =IF(AND(YEAR(JanM+33)=$N$2,MONTH(JanM+33)=1),JanM+33, "") -> 2025-01-31 | I11: =IF(AND(YEAR(JanM+34)=$N$2,MONTH(JanM+34)=1),JanM+34, "") ->  | K11: =IF(AND(YEAR(FebM+28)=$N$2,MONTH(FebM+28)=2),FebM+28, "") -> 2025-02-23 | L11: =IF(AND(YEAR(FebM+29)=$N$2,MONTH(FebM+29)=2),FebM+29, "") -> 2025-02-24 | M11: =IF(AND(YEAR(FebM+30)=$N$2,MONTH(FebM+30)=2),FebM+30, "") -> 2025-02-25 | N11: =IF(AND(YEAR(FebM+31)=$N$2,MONTH(FebM+31)=2),FebM+31, "") -> 2025-02-26 | O11: =IF(AND(YEAR(FebM+32)=$N$2,MONTH(FebM+32)=2),FebM+32, "") -> 2025-02-27 | P11: =IF(AND(YEAR(FebM+33)=$N$2,MONTH(FebM+33)=2),FebM+33, "") -> 2025-02-28 | Q11: =IF(AND(YEAR(FebM+34)=$N$2,MONTH(FebM+34)=2),FebM+34, "") ->  | S11: =IF(AND(YEAR(MarM+28)=$N$2,MONTH(MarM+28)=3),MarM+28, "") -> 2025-03-23 | T11: =IF(AND(YEAR(MarM+29)=$N$2,MONTH(MarM+29)=3),MarM+29, "") -> 2025-03-24 | U11: =IF(AND(YEAR(MarM+30)=$N$2,MONTH(MarM+30)=3),MarM+30, "") -> 2025-03-25 | V11: =IF(AND(YEAR(MarM+31)=$N$2,MONTH(MarM+31)=3),MarM+31, "") -> 2025-03-26 | W11: =IF(AND(YEAR(MarM+32)=$N$2,MONTH(MarM+32)=3),MarM+32, "") -> 2025-03-27 | X11: =IF(AND(YEAR(MarM+33)=$N$2,MONTH(MarM+33)=3),MarM+33, "") -> 2025-03-28 | Y11: =IF(AND(YEAR(MarM+34)=$N$2,MONTH(MarM+34)=3),MarM+34, "") -> 2025-03-29 | AA11: =IF(AND(YEAR(AprM+28)=$N$2,MONTH(AprM+28)=4),AprM+28, "") -> 2025-04-27 | AB11: =IF(AND(YEAR(AprM+29)=$N$2,MONTH(AprM+29)=4),AprM+29, "") -> 2025-04-28 | AC11: =IF(AND(YEAR(AprM+30)=$N$2,MONTH(AprM+30)=4),AprM+30, "") -> 2025-04-29 | AD11: =IF(AND(YEAR(AprM+31)=$N$2,MONTH(AprM+31)=4),AprM+31, "") -> 2025-04-30 | AE11: =IF(AND(YEAR(AprM+32)=$N$2,MONTH(AprM+32)=4),AprM+32, "") ->  | AF11: =IF(AND(YEAR(AprM+33)=$N$2,MONTH(AprM+33)=4),AprM+33, "") ->  | AG11: =IF(AND(YEAR(AprM+34)=$N$2,MONTH(AprM+34)=4),AprM+34, "") ->  | AL11: Good Friday (varies per year) | AP11: =AQ11 -> 2025-04-18 | AQ11: =IF($CD$5=1,VLOOKUP($CA$6,BL1:BT60,2,FALSE),"") -> 2025-04-18 | BB11: 2013 Election Day, Primary | BC11: None | BD11: Non | BF11: 2013 | BG11: =BF11&"a" -> 2013a | BH11: Christmas Day (Washington Birthday) | BI11: 2013-12-24 | BJ11: =BI11 -> 2013-12-24 | BL11: 2017 | BM11: 2017-04-14 | BN11: 2017-04-14 | BO11: 2017-01-02 | BP11: 2017-01-02 | BQ11: 2017-07-04 | BR11: 2017-07-04 | BS11: 2017-11-10 | BT11: 2017-11-10 | BV11: 8 | BW11: Aug
C12: =IF(AND(YEAR(JanM+35)=$N$2,MONTH(JanM+35)=1),JanM+35, "") ->  | D12: =IF(AND(YEAR(JanM+36)=$N$2,MONTH(JanM+36)=1),JanM+36, "") ->  | E12: =IF(AND(YEAR(JanM+37)=$N$2,MONTH(JanM+37)=1),JanM+37, "") ->  | F12: =IF(AND(YEAR(JanM+38)=$N$2,MONTH(JanM+38)=1),JanM+38, "") ->  | G12: =IF(AND(YEAR(JanM+39)=$N$2,MONTH(JanM+39)=1),JanM+39, "") ->  | H12: =IF(AND(YEAR(JanM+40)=$N$2,MONTH(JanM+40)=1),JanM+40, "") ->  | I12: =IF(AND(YEAR(JanM+41)=$N$2,MONTH(JanM+41)=1),JanM+41, "") ->  | S12: =IF(AND(YEAR(MarM+35)=$N$2,MONTH(MarM+35)=3),MarM+35, "") -> 2025-03-30 | T12: =IF(AND(YEAR(MarM+36)=$N$2,MONTH(MarM+36)=3),MarM+36, "") -> 2025-03-31 | U12: =IF(AND(YEAR(MarM+37)=$N$2,MONTH(MarM+37)=3),MarM+37, "") ->  | V12: =IF(AND(YEAR(MarM+38)=$N$2,MONTH(MarM+38)=3),MarM+38, "") ->  | W12: =IF(AND(YEAR(MarM+39)=$N$2,MONTH(MarM+39)=3),MarM+39, "") ->  | X12: =IF(AND(YEAR(MarM+40)=$N$2,MONTH(MarM+40)=3),MarM+40, "") ->  | Y12: =IF(AND(YEAR(MarM+41)=$N$2,MONTH(MarM+41)=3),MarM+41, "") ->  | AA12: =IF(AND(YEAR(AprM+35)=$N$2,MONTH(AprM+35)=4),AprM+35, "") ->  | AB12: =IF(AND(YEAR(AprM+36)=$N$2,MONTH(AprM+36)=4),AprM+36, "") ->  | AC12: =IF(AND(YEAR(AprM+37)=$N$2,MONTH(AprM+37)=4),AprM+37, "") ->  | AD12: =IF(AND(YEAR(AprM+38)=$N$2,MONTH(AprM+38)=4),AprM+38, "") ->  | AE12: =IF(AND(YEAR(AprM+39)=$N$2,MONTH(AprM+39)=4),AprM+39, "") ->  | AF12: =IF(AND(YEAR(AprM+40)=$N$2,MONTH(AprM+40)=4),AprM+40, "") ->  | AG12: =IF(AND(YEAR(AprM+41)=$N$2,MONTH(AprM+41)=4),AprM+41, "") ->  | BB12: 2013 Election Day, General | BC12: None | BD12: Non | BF12: 2013 | BG12: =BF12&"b" -> 2013b | BH12: Christmas Day | BI12: 2013-12-25 | BJ12: =BI12 -> 2013-12-25 | BL12: 2018 | BM12: 2018-03-30 | BN12: 2018-03-30 | BO12: 2018-01-01 | BP12: 2018-01-01 | BQ12: 2018-07-04 | BR12: 2018-07-04 | BS12: 2018-11-12 | BT12: 2018-11-12 | BV12: 9 | BW12: Sep
AL13: Memorial Day, Last Monday in May | AP13: =AQ13 -> 2025-05-26 | AQ13: =DATE(CA6,6,1)+IF(2<WEEKDAY(DATE(CA6,6,1)),7-WEEKDAY(DATE(CA6,6,1))+2,2-WEEKDAY(DATE(CA6,6,1)))+((1-1)*7)-7 -> 2025-05-26 | AS13: =AQ13 -> 2025-05-26 | BB13: 2014 Election Day, Primary | BC13: 2014-05-06 | BD13: 2014-05-06 | BF13: 2014 | BG13: =BF13&"a" -> 2014a | BH13: Christmas Day (Washington Birthday) | BI13: 2014-12-26 | BJ13: =BI13 -> 2014-12-26 | BL13: 2019 | BM13: 2019-04-19 | BN13: 2019-04-19 | BO13: 2019-01-01 | BP13: 2019-01-01 | BQ13: 2019-07-04 | BR13: 2019-07-04 | BS13: 2019-11-11 | BT13: 2019-11-11 | BV13: 10 | BW13: Oct
C14: May | K14: June | S14: July | AA14: August | BB14: 2014 Election Day, General | BC14: 2014-11-04 | BD14: 2014-11-04 | BF14: 2014 | BG14: =BF14&"b" -> 2014b | BH14: Christmas Day | BI14: 2014-12-25 | BJ14: 2014-12-25 | BL14: 2020 | BM14: 2020-04-10 | BN14: 2020-04-10 | BO14: 2020-01-01 | BP14: 2020-01-01 | BQ14: 2020-07-03 | BR14: 2020-07-03 | BS14: 2020-11-11 | BT14: 2020-11-11 | BV14: 11 | BW14: Nov
C15: Su | D15: Mo | E15: Tu | F15: We | G15: Th | H15: Fr | I15: Sa | K15: Su | L15: Mo | M15: Tu | N15: We | O15: Th | P15: Fr | Q15: Sa | S15: Su | T15: Mo | U15: Tu | V15: We | W15: Th | X15: Fr | Y15: Sa | AA15: Su | AB15: Mo | AC15: Tu | AD15: We | AE15: Th | AF15: Fr | AG15: Sa | AL15: Independence Day | AP15: =AQ15 -> 2025-07-04 | AQ15: =IF($CD$5=1,VLOOKUP($CA$6,BL1:BT60,6,FALSE),DATE(CA6,7,4)) -> 2025-07-04 | AS15: =AQ15 -> 2025-07-04 | BB15: 2015 Election Day, Primary | BC15: 2015-05-05 | BD15: 2015-05-05 | BF15: 2015 | BG15: =BF15&"a" -> 2015a | BH15: Christmas Day (Washington Birthday) | BI15: 2015-12-24 | BJ15: 2015-12-24 | BL15: 2021 | BM15: 2021-04-02 | BN15: 2021-04-02 | BO15: 2021-01-01 | BP15: 2021-01-01 | BQ15: 2021-07-05 | BR15: 2021-07-05 | BS15: 2021-11-11 | BT15: 2021-11-11 | BV15: 12 | BW15: Dec
C16: =IF(AND(YEAR(MayM)=$N$2,MONTH(MayM)=5),MayM, "") ->  | D16: =IF(AND(YEAR(MayM+1)=$N$2,MONTH(MayM+1)=5),MayM+1, "") ->  | E16: =IF(AND(YEAR(MayM+2)=$N$2,MONTH(MayM+2)=5),MayM+2, "") ->  | F16: =IF(AND(YEAR(MayM+3)=$N$2,MONTH(MayM+3)=5),MayM+3, "") ->  | G16: =IF(AND(YEAR(MayM+4)=$N$2,MONTH(MayM+4)=5),MayM+4, "") -> 2025-05-01 | H16: =IF(AND(YEAR(MayM+5)=$N$2,MONTH(MayM+5)=5),MayM+5, "") -> 2025-05-02 | I16: =IF(AND(YEAR(MayM+6)=$N$2,MONTH(MayM+6)=5),MayM+6, "") -> 2025-05-03 | K16: =IF(AND(YEAR(JunM)=$N$2,MONTH(JunM)=6),JunM, "") -> 2025-06-01 | L16: =IF(AND(YEAR(JunM+1)=$N$2,MONTH(JunM+1)=6),JunM+1, "") -> 2025-06-02 | M16: =IF(AND(YEAR(JunM+2)=$N$2,MONTH(JunM+2)=6),JunM+2, "") -> 2025-06-03 | N16: =IF(AND(YEAR(JunM+3)=$N$2,MONTH(JunM+3)=6),JunM+3, "") -> 2025-06-04 | O16: =IF(AND(YEAR(JunM+4)=$N$2,MONTH(JunM+4)=6),JunM+4, "") -> 2025-06-05 | P16: =IF(AND(YEAR(JunM+5)=$N$2,MONTH(JunM+5)=6),JunM+5, "") -> 2025-06-06 | Q16: =IF(AND(YEAR(JunM+6)=$N$2,MONTH(JunM+6)=6),JunM+6, "") -> 2025-06-07 | S16: =IF(AND(YEAR(JulM)=$N$2,MONTH(JulM)=7),JulM, "") ->  | T16: =IF(AND(YEAR(JulM+1)=$N$2,MONTH(JulM+1)=7),JulM+1, "") ->  | U16: =IF(AND(YEAR(JulM+2)=$N$2,MONTH(JulM+2)=7),JulM+2, "") -> 2025-07-01 | V16: =IF(AND(YEAR(JulM+3)=$N$2,MONTH(JulM+3)=7),JulM+3, "") -> 2025-07-02 | W16: =IF(AND(YEAR(JulM+4)=$N$2,MONTH(JulM+4)=7),JulM+4, "") -> 2025-07-03 | X16: =IF(AND(YEAR(JulM+5)=$N$2,MONTH(JulM+5)=7),JulM+5, "") -> 2025-07-04 | Y16: =IF(AND(YEAR(JulM+6)=$N$2,MONTH(JulM+6)=7),JulM+6, "") -> 2025-07-05 | AA16: =IF(AND(YEAR(AugM)=$N$2,MONTH(AugM)=8),AugM, "") ->  | AB16: =IF(AND(YEAR(AugM+1)=$N$2,MONTH(AugM+1)=8),AugM+1, "") ->  | AC16: =IF(AND(YEAR(AugM+2)=$N$2,MONTH(AugM+2)=8),AugM+2, "") ->  | AD16: =IF(AND(YEAR(AugM+3)=$N$2,MONTH(AugM+3)=8),AugM+3, "") ->  | AE16: =IF(AND(YEAR(AugM+4)=$N$2,MONTH(AugM+4)=8),AugM+4, "") ->  | AF16: =IF(AND(YEAR(AugM+5)=$N$2,MONTH(AugM+5)=8),AugM+5, "") -> 2025-08-01 | AG16: =IF(AND(YEAR(AugM+6)=$N$2,MONTH(AugM+6)=8),AugM+6, "") -> 2025-08-02 | BB16: 2015 Election Day, General | BC16: 2015-11-03 | BD16: 2015-11-03 | BF16: 2015 | BG16: =BF16&"b" -> 2015b | BH16: Christmas Day | BI16: 2015-12-25 | BJ16: 2015-12-25 | BL16: 2022 | BM16: 2022-04-15 | BN16: 2022-04-15 | BO16: 2021-12-31 | BP16: 2021-12-31 | BQ16: 2022-07-04 | BR16: 2022-07-04 | BS16: 2022-11-11 | BT16: 2022-11-11
C17: =IF(AND(YEAR(MayM+7)=$N$2,MONTH(MayM+7)=5),MayM+7, "") -> 2025-05-04 | D17: =IF(AND(YEAR(MayM+8)=$N$2,MONTH(MayM+8)=5),MayM+8, "") -> 2025-05-05 | E17: =IF(AND(YEAR(MayM+9)=$N$2,MONTH(MayM+9)=5),MayM+9, "") -> 2025-05-06 | F17: =IF(AND(YEAR(MayM+10)=$N$2,MONTH(MayM+10)=5),MayM+10, "") -> 2025-05-07 | G17: =IF(AND(YEAR(MayM+11)=$N$2,MONTH(MayM+11)=5),MayM+11, "") -> 2025-05-08 | H17: =IF(AND(YEAR(MayM+12)=$N$2,MONTH(MayM+12)=5),MayM+12, "") -> 2025-05-09 | I17: =IF(AND(YEAR(MayM+13)=$N$2,MONTH(MayM+13)=5),MayM+13, "") -> 2025-05-10 | K17: =IF(AND(YEAR(JunM+7)=$N$2,MONTH(JunM+7)=6),JunM+7, "") -> 2025-06-08 | L17: =IF(AND(YEAR(JunM+8)=$N$2,MONTH(JunM+8)=6),JunM+8, "") -> 2025-06-09 | M17: =IF(AND(YEAR(JunM+9)=$N$2,MONTH(JunM+9)=6),JunM+9, "") -> 2025-06-10 | N17: =IF(AND(YEAR(JunM+10)=$N$2,MONTH(JunM+10)=6),JunM+10, "") -> 2025-06-11 | O17: =IF(AND(YEAR(JunM+11)=$N$2,MONTH(JunM+11)=6),JunM+11, "") -> 2025-06-12 | P17: =IF(AND(YEAR(JunM+12)=$N$2,MONTH(JunM+12)=6),JunM+12, "") -> 2025-06-13 | Q17: =IF(AND(YEAR(JunM+13)=$N$2,MONTH(JunM+13)=6),JunM+13, "") -> 2025-06-14 | S17: =IF(AND(YEAR(JulM+7)=$N$2,MONTH(JulM+7)=7),JulM+7, "") -> 2025-07-06 | T17: =IF(AND(YEAR(JulM+8)=$N$2,MONTH(JulM+8)=7),JulM+8, "") -> 2025-07-07 | U17: =IF(AND(YEAR(JulM+9)=$N$2,MONTH(JulM+9)=7),JulM+9, "") -> 2025-07-08 | V17: =IF(AND(YEAR(JulM+10)=$N$2,MONTH(JulM+10)=7),JulM+10, "") -> 2025-07-09 | W17: =IF(AND(YEAR(JulM+11)=$N$2,MONTH(JulM+11)=7),JulM+11, "") -> 2025-07-10 | X17: =IF(AND(YEAR(JulM+12)=$N$2,MONTH(JulM+12)=7),JulM+12, "") -> 2025-07-11 | Y17: =IF(AND(YEAR(JulM+13)=$N$2,MONTH(JulM+13)=7),JulM+13, "") -> 2025-07-12 | AA17: =IF(AND(YEAR(AugM+7)=$N$2,MONTH(AugM+7)=8),AugM+7, "") -> 2025-08-03 | AB17: =IF(AND(YEAR(AugM+8)=$N$2,MONTH(AugM+8)=8),AugM+8, "") -> 2025-08-04 | AC17: =IF(AND(YEAR(AugM+9)=$N$2,MONTH(AugM+9)=8),AugM+9, "") -> 2025-08-05 | AD17: =IF(AND(YEAR(AugM+10)=$N$2,MONTH(AugM+10)=8),AugM+10, "") -> 2025-08-06 | AE17: =IF(AND(YEAR(AugM+11)=$N$2,MONTH(AugM+11)=8),AugM+11, "") -> 2025-08-07 | AF17: =IF(AND(YEAR(AugM+12)=$N$2,MONTH(AugM+12)=8),AugM+12, "") -> 2025-08-08 | AG17: =IF(AND(YEAR(AugM+13)=$N$2,MONTH(AugM+13)=8),AugM+13, "") -> 2025-08-09 | AL17: Labor Day, first Monday in September | AP17: =AQ17 -> 2025-09-01 | AQ17: =DATE(CA6,9,1)+IF(2<WEEKDAY(DATE(CA6,9,1)),7-WEEKDAY(DATE(CA6,9,1))+2,2-WEEKDAY(DATE(CA6,9,1)))+((1-1)*7) -> 2025-09-01 | AS17: =AQ17 -> 2025-09-01 | BB17: 2016 Election Day, Primary | BC17: 2016-05-03 | BD17: 2016-05-03 | BF17: 2016 | BG17: =BF17&"a" -> 2016a | BH17: Christmas Day (Washington Birthday) | BI17: 2016-12-23 | BJ17: 2016-12-23 | BL17: 2023 | BM17: 2023-04-07 | BN17: 2023-04-07 | BO17: 2023-01-02 | BP17: 2023-01-02 | BQ17: 2023-07-04 | BR17: 2023-07-04 | BS17: 2023-11-10 | BT17: 2023-11-10
C18: =IF(AND(YEAR(MayM+14)=$N$2,MONTH(MayM+14)=5),MayM+14, "") -> 2025-05-11 | D18: =IF(AND(YEAR(MayM+15)=$N$2,MONTH(MayM+15)=5),MayM+15, "") -> 2025-05-12 | E18: =IF(AND(YEAR(MayM+16)=$N$2,MONTH(MayM+16)=5),MayM+16, "") -> 2025-05-13 | F18: =IF(AND(YEAR(MayM+17)=$N$2,MONTH(MayM+17)=5),MayM+17, "") -> 2025-05-14 | G18: =IF(AND(YEAR(MayM+18)=$N$2,MONTH(MayM+18)=5),MayM+18, "") -> 2025-05-15 | H18: =IF(AND(YEAR(MayM+19)=$N$2,MONTH(MayM+19)=5),MayM+19, "") -> 2025-05-16 | I18: =IF(AND(YEAR(MayM+20)=$N$2,MONTH(MayM+20)=5),MayM+20, "") -> 2025-05-17 | K18: =IF(AND(YEAR(JunM+14)=$N$2,MONTH(JunM+14)=6),JunM+14, "") -> 2025-06-15 | L18: =IF(AND(YEAR(JunM+15)=$N$2,MONTH(JunM+15)=6),JunM+15, "") -> 2025-06-16 | M18: =IF(AND(YEAR(JunM+16)=$N$2,MONTH(JunM+16)=6),JunM+16, "") -> 2025-06-17 | N18: =IF(AND(YEAR(JunM+17)=$N$2,MONTH(JunM+17)=6),JunM+17, "") -> 2025-06-18 | O18: =IF(AND(YEAR(JunM+18)=$N$2,MONTH(JunM+18)=6),JunM+18, "") -> 2025-06-19 | P18: =IF(AND(YEAR(JunM+19)=$N$2,MONTH(JunM+19)=6),JunM+19, "") -> 2025-06-20 | Q18: =IF(AND(YEAR(JunM+20)=$N$2,MONTH(JunM+20)=6),JunM+20, "") -> 2025-06-21 | S18: =IF(AND(YEAR(JulM+14)=$N$2,MONTH(JulM+14)=7),JulM+14, "") -> 2025-07-13 | T18: =IF(AND(YEAR(JulM+15)=$N$2,MONTH(JulM+15)=7),JulM+15, "") -> 2025-07-14 | U18: =IF(AND(YEAR(JulM+16)=$N$2,MONTH(JulM+16)=7),JulM+16, "") -> 2025-07-15 | V18: =IF(AND(YEAR(JulM+17)=$N$2,MONTH(JulM+17)=7),JulM+17, "") -> 2025-07-16 | W18: =IF(AND(YEAR(JulM+18)=$N$2,MONTH(JulM+18)=7),JulM+18, "") -> 2025-07-17 | X18: =IF(AND(YEAR(JulM+19)=$N$2,MONTH(JulM+19)=7),JulM+19, "") -> 2025-07-18 | Y18: =IF(AND(YEAR(JulM+20)=$N$2,MONTH(JulM+20)=7),JulM+20, "") -> 2025-07-19 | AA18: =IF(AND(YEAR(AugM+14)=$N$2,MONTH(AugM+14)=8),AugM+14, "") -> 2025-08-10 | AB18: =IF(AND(YEAR(AugM+15)=$N$2,MONTH(AugM+15)=8),AugM+15, "") -> 2025-08-11 | AC18: =IF(AND(YEAR(AugM+16)=$N$2,MONTH(AugM+16)=8),AugM+16, "") -> 2025-08-12 | AD18: =IF(AND(YEAR(AugM+17)=$N$2,MONTH(AugM+17)=8),AugM+17, "") -> 2025-08-13 | AE18: =IF(AND(YEAR(AugM+18)=$N$2,MONTH(AugM+18)=8),AugM+18, "") -> 2025-08-14 | AF18: =IF(AND(YEAR(AugM+19)=$N$2,MONTH(AugM+19)=8),AugM+19, "") -> 2025-08-15 | AG18: =IF(AND(YEAR(AugM+20)=$N$2,MONTH(AugM+20)=8),AugM+20, "") -> 2025-08-16 | BB18: 2016 Election Day, General | BC18: 2016-11-08 | BD18: 2016-11-08 | BF18: 2016 | BG18: =BF18&"b" -> 2016b | BH18: Christmas Day | BI18: 2016-12-26 | BJ18: 2016-12-26 | BL18: 2024 | BM18: 2024-03-29 | BN18: 2024-03-29 | BO18: 2024-01-01 | BP18: 2024-01-01 | BQ18: 2024-07-04 | BR18: 2024-07-04 | BS18: 2024-11-11 | BT18: 2024-11-11
C19: =IF(AND(YEAR(MayM+21)=$N$2,MONTH(MayM+21)=5),MayM+21, "") -> 2025-05-18 | D19: =IF(AND(YEAR(MayM+22)=$N$2,MONTH(MayM+22)=5),MayM+22, "") -> 2025-05-19 | E19: =IF(AND(YEAR(MayM+23)=$N$2,MONTH(MayM+23)=5),MayM+23, "") -> 2025-05-20 | F19: =IF(AND(YEAR(MayM+24)=$N$2,MONTH(MayM+24)=5),MayM+24, "") -> 2025-05-21 | G19: =IF(AND(YEAR(MayM+25)=$N$2,MONTH(MayM+25)=5),MayM+25, "") -> 2025-05-22 | H19: =IF(AND(YEAR(MayM+26)=$N$2,MONTH(MayM+26)=5),MayM+26, "") -> 2025-05-23 | I19: =IF(AND(YEAR(MayM+27)=$N$2,MONTH(MayM+27)=5),MayM+27, "") -> 2025-05-24 | K19: =IF(AND(YEAR(JunM+21)=$N$2,MONTH(JunM+21)=6),JunM+21, "") -> 2025-06-22 | L19: =IF(AND(YEAR(JunM+22)=$N$2,MONTH(JunM+22)=6),JunM+22, "") -> 2025-06-23 | M19: =IF(AND(YEAR(JunM+23)=$N$2,MONTH(JunM+23)=6),JunM+23, "") -> 2025-06-24 | N19: =IF(AND(YEAR(JunM+24)=$N$2,MONTH(JunM+24)=6),JunM+24, "") -> 2025-06-25 | O19: =IF(AND(YEAR(JunM+25)=$N$2,MONTH(JunM+25)=6),JunM+25, "") -> 2025-06-26 | P19: =IF(AND(YEAR(JunM+26)=$N$2,MONTH(JunM+26)=6),JunM+26, "") -> 2025-06-27 | Q19: =IF(AND(YEAR(JunM+27)=$N$2,MONTH(JunM+27)=6),JunM+27, "") -> 2025-06-28 | S19: =IF(AND(YEAR(JulM+21)=$N$2,MONTH(JulM+21)=7),JulM+21, "") -> 2025-07-20 | T19: =IF(AND(YEAR(JulM+22)=$N$2,MONTH(JulM+22)=7),JulM+22, "") -> 2025-07-21 | U19: =IF(AND(YEAR(JulM+23)=$N$2,MONTH(JulM+23)=7),JulM+23, "") -> 2025-07-22 | V19: =IF(AND(YEAR(JulM+24)=$N$2,MONTH(JulM+24)=7),JulM+24, "") -> 2025-07-23 | W19: =IF(AND(YEAR(JulM+25)=$N$2,MONTH(JulM+25)=7),JulM+25, "") -> 2025-07-24 | X19: =IF(AND(YEAR(JulM+26)=$N$2,MONTH(JulM+26)=7),JulM+26, "") -> 2025-07-25 | Y19: =IF(AND(YEAR(JulM+27)=$N$2,MONTH(JulM+27)=7),JulM+27, "") -> 2025-07-26 | AA19: =IF(AND(YEAR(AugM+21)=$N$2,MONTH(AugM+21)=8),AugM+21, "") -> 2025-08-17 | AB19: =IF(AND(YEAR(AugM+22)=$N$2,MONTH(AugM+22)=8),AugM+22, "") -> 2025-08-18 | AC19: =IF(AND(YEAR(AugM+23)=$N$2,MONTH(AugM+23)=8),AugM+23, "") -> 2025-08-19 | AD19: =IF(AND(YEAR(AugM+24)=$N$2,MONTH(AugM+24)=8),AugM+24, "") -> 2025-08-20 | AE19: =IF(AND(YEAR(AugM+25)=$N$2,MONTH(AugM+25)=8),AugM+25, "") -> 2025-08-21 | AF19: =IF(AND(YEAR(AugM+26)=$N$2,MONTH(AugM+26)=8),AugM+26, "") -> 2025-08-22 | AG19: =IF(AND(YEAR(AugM+27)=$N$2,MONTH(AugM+27)=8),AugM+27, "") -> 2025-08-23 | AL19: Columbus Day | AP19: =AQ19 -> 2025-10-13 | AQ19: =(DATE(CA6,10,1)+IF(2<WEEKDAY(DATE(CA6,10,1)),7-WEEKDAY(DATE(CA6,10,1))+2,2-WEEKDAY(DATE(CA6,10,1)))+((2-1)*7)) -> 2025-10-13 | AS19: =AQ19 -> 2025-10-13 | BB19: 2017 Election Day, Primary | BC19: None | BD19: None | BF19: 2017 | BG19: =BF19&"a" -> 2017a | BH19: Christmas Day (Washington Birthday) | BI19: 2017-12-25 | BJ19: 2017-12-25 | BL19: 2025 | BM19: 2025-04-18 | BN19: 2025-04-18 | BO19: 2025-01-01 | BP19: 2025-01-01 | BQ19: 2025-07-04 | BR19: 2025-07-04 | BS19: 2025-11-11 | BT19: 2025-11-11
C20: =IF(AND(YEAR(MayM+28)=$N$2,MONTH(MayM+28)=5),MayM+28, "") -> 2025-05-25 | D20: =IF(AND(YEAR(MayM+29)=$N$2,MONTH(MayM+29)=5),MayM+29, "") -> 2025-05-26 | E20: =IF(AND(YEAR(MayM+30)=$N$2,MONTH(MayM+30)=5),MayM+30, "") -> 2025-05-27 | F20: =IF(AND(YEAR(MayM+31)=$N$2,MONTH(MayM+31)=5),MayM+31, "") -> 2025-05-28 | G20: =IF(AND(YEAR(MayM+32)=$N$2,MONTH(MayM+32)=5),MayM+32, "") -> 2025-05-29 | H20: =IF(AND(YEAR(MayM+33)=$N$2,MONTH(MayM+33)=5),MayM+33, "") -> 2025-05-30 | I20: =IF(AND(YEAR(MayM+34)=$N$2,MONTH(MayM+34)=5),MayM+34, "") -> 2025-05-31 | K20: =IF(AND(YEAR(JunM+28)=$N$2,MONTH(JunM+28)=6),JunM+28, "") -> 2025-06-29 | L20: =IF(AND(YEAR(JunM+29)=$N$2,MONTH(JunM+29)=6),JunM+29, "") -> 2025-06-30 | M20: =IF(AND(YEAR(JunM+30)=$N$2,MONTH(JunM+30)=6),JunM+30, "") ->  | N20: =IF(AND(YEAR(JunM+31)=$N$2,MONTH(JunM+31)=6),JunM+31, "") ->  | O20: =IF(AND(YEAR(JunM+32)=$N$2,MONTH(JunM+32)=6),JunM+32, "") ->  | P20: =IF(AND(YEAR(JunM+33)=$N$2,MONTH(JunM+33)=6),JunM+33, "") ->  | Q20: =IF(AND(YEAR(JunM+34)=$N$2,MONTH(JunM+34)=6),JunM+34, "") ->  | S20: =IF(AND(YEAR(JulM+28)=$N$2,MONTH(JulM+28)=7),JulM+28, "") -> 2025-07-27 | T20: =IF(AND(YEAR(JulM+29)=$N$2,MONTH(JulM+29)=7),JulM+29, "") -> 2025-07-28 | U20: =IF(AND(YEAR(JulM+30)=$N$2,MONTH(JulM+30)=7),JulM+30, "") -> 2025-07-29 | V20: =IF(AND(YEAR(JulM+31)=$N$2,MONTH(JulM+31)=7),JulM+31, "") -> 2025-07-30 | W20: =IF(AND(YEAR(JulM+32)=$N$2,MONTH(JulM+32)=7),JulM+32, "") -> 2025-07-31 | X20: =IF(AND(YEAR(JulM+33)=$N$2,MONTH(JulM+33)=7),JulM+33, "") ->  | Y20: =IF(AND(YEAR(JulM+34)=$N$2,MONTH(JulM+34)=7),JulM+34, "") ->  | AA20: =IF(AND(YEAR(AugM+28)=$N$2,MONTH(AugM+28)=8),AugM+28, "") -> 2025-08-24 | AB20: =IF(AND(YEAR(AugM+29)=$N$2,MONTH(AugM+29)=8),AugM+29, "") -> 2025-08-25 | AC20: =IF(AND(YEAR(AugM+30)=$N$2,MONTH(AugM+30)=8),AugM+30, "") -> 2025-08-26 | AD20: =IF(AND(YEAR(AugM+31)=$N$2,MONTH(AugM+31)=8),AugM+31, "") -> 2025-08-27 | AE20: =IF(AND(YEAR(AugM+32)=$N$2,MONTH(AugM+32)=8),AugM+32, "") -> 2025-08-28 | AF20: =IF(AND(YEAR(AugM+33)=$N$2,MONTH(AugM+33)=8),AugM+33, "") -> 2025-08-29 | AG20: =IF(AND(YEAR(AugM+34)=$N$2,MONTH(AugM+34)=8),AugM+34, "") -> 2025-08-30 | AL20: Fall Break | AN20: =(DATE(CA6,10,1)+IF(2<WEEKDAY(DATE(CA6,10,1)),7-WEEKDAY(DATE(CA6,10,1))+2,2-WEEKDAY(DATE(CA6,10,1)))+((2-1)*7)+7) -> 2025-10-20 | AP20: Until | AQ20: =AN20+1 -> 2025-10-21 | BB20: 2017 Election Day, General | BC20: None | BD20: None | BF20: 2017 | BG20: =BF20&"b" -> 2017b | BH20: Christmas Day | BI20: 2017-12-26 | BJ20: 2017-12-26 | BL20: 2026 | BM20: 2026-04-03 | BN20: 2026-04-03 | BO20: 2026-01-01 | BP20: 2026-01-01 | BQ20: 2026-07-03 | BR20: 2026-07-03 | BS20: 2026-11-11 | BT20: 2026-11-11
C21: =IF(AND(YEAR(MayM+35)=$N$2,MONTH(MayM+35)=5),MayM+35, "") ->  | D21: =IF(AND(YEAR(MayM+36)=$N$2,MONTH(MayM+36)=5),MayM+36, "") ->  | E21: =IF(AND(YEAR(MayM+37)=$N$2,MONTH(MayM+37)=5),MayM+37, "") ->  | F21: =IF(AND(YEAR(MayM+38)=$N$2,MONTH(MayM+38)=5),MayM+38, "") ->  | G21: =IF(AND(YEAR(MayM+39)=$N$2,MONTH(MayM+39)=5),MayM+39, "") ->  | H21: =IF(AND(YEAR(MayM+40)=$N$2,MONTH(MayM+40)=5),MayM+40, "") ->  | I21: =IF(AND(YEAR(MayM+41)=$N$2,MONTH(MayM+41)=5),MayM+41, "") ->  | K21: =IF(AND(YEAR(JunM+35)=$N$2,MONTH(JunM+35)=6),JunM+35, "") ->  | L21: =IF(AND(YEAR(JunM+36)=$N$2,MONTH(JunM+36)=6),JunM+36, "") ->  | M21: =IF(AND(YEAR(JunM+37)=$N$2,MONTH(JunM+37)=6),JunM+37, "") ->  | N21: =IF(AND(YEAR(JunM+38)=$N$2,MONTH(JunM+38)=6),JunM+38, "") ->  | O21: =IF(AND(YEAR(JunM+39)=$N$2,MONTH(JunM+39)=6),JunM+39, "") ->  | P21: =IF(AND(YEAR(JunM+40)=$N$2,MONTH(JunM+40)=6),JunM+40, "") ->  | Q21: =IF(AND(YEAR(JunM+41)=$N$2,MONTH(JunM+41)=6),JunM+41, "") ->  | S21: =IF(AND(YEAR(JulM+35)=$N$2,MONTH(JulM+35)=7),JulM+35, "") ->  | T21: =IF(AND(YEAR(JulM+36)=$N$2,MONTH(JulM+36)=7),JulM+36, "") ->  | U21: =IF(AND(YEAR(JulM+37)=$N$2,MONTH(JulM+37)=7),JulM+37, "") ->  | V21: =IF(AND(YEAR(JulM+38)=$N$2,MONTH(JulM+38)=7),JulM+38, "") ->  | W21: =IF(AND(YEAR(JulM+39)=$N$2,MONTH(JulM+39)=7),JulM+39, "") ->  | X21: =IF(AND(YEAR(JulM+40)=$N$2,MONTH(JulM+40)=7),JulM+40, "") ->  | Y21: =IF(AND(YEAR(JulM+41)=$N$2,MONTH(JulM+41)=7),JulM+41, "") ->  | AA21: =IF(AND(YEAR(AugM+35)=$N$2,MONTH(AugM+35)=8),AugM+35, "") -> 2025-08-31 | AB21: =IF(AND(YEAR(AugM+36)=$N$2,MONTH(AugM+36)=8),AugM+36, "") ->  | AC21: =IF(AND(YEAR(AugM+37)=$N$2,MONTH(AugM+37)=8),AugM+37, "") ->  | AD21: =IF(AND(YEAR(AugM+38)=$N$2,MONTH(AugM+38)=8),AugM+38, "") ->  | AE21: =IF(AND(YEAR(AugM+39)=$N$2,MONTH(AugM+39)=8),AugM+39, "") ->  | AF21: =IF(AND(YEAR(AugM+40)=$N$2,MONTH(AugM+40)=8),AugM+40, "") ->  | AG21: =IF(AND(YEAR(AugM+41)=$N$2,MONTH(AugM+41)=8),AugM+41, "") ->  | BB21: 2018 Election Day, Primary | BC21: 2018-05-08 | BD21: 2018-05-08 | BF21: 2018 | BG21: =BF21&"a" -> 2018a | BH21: Christmas Day (Washington Birthday) | BI21: 2018-12-24 | BJ21: 2018-12-24 | BL21: 2027 | BM21: 2027-03-26 | BN21: 2027-03-26 | BO21: 2027-01-01 | BP21: 2027-01-01 | BQ21: 2027-07-05 | BR21: 2027-07-05 | BS21: 2027-11-11 | BT21: 2027-11-11
AL22: Veterans Day | AP22: =AQ22 -> 2025-11-11 | AQ22: =IF($CD$5=1,VLOOKUP($CA$6,BL1:BT60,8,FALSE),DATE(CA6,11,11)) -> 2025-11-11 | AS22: =AQ22 -> 2025-11-11 | BB22: 2018 Election Day, General | BC22: 2018-11-06 | BD22: 2018-11-06 | BF22: 2018 | BG22: =BF22&"b" -> 2018b | BH22: Christmas Day | BI22: 2018-12-25 | BJ22: 2018-12-25 | BL22: 2028 | BM22: 2028-04-14 | BN22: 2028-04-14 | BO22: 2027-12-31 | BP22: 2027-12-31 | BQ22: 2028-07-04 | BR22: 2028-07-04 | BS22: 2028-11-10 | BT22: 2028-11-10
C23: September | K23: October | S23: November | AA23: December | BB23: 2019 Election Day, Primary | BC23: 2019-05-07 | BD23: 2019-05-07 | BF23: 2019 | BG23: =BF23&"a" -> 2019a | BH23: Christmas Day (Washington Birthday) | BI23: 2019-12-24 | BJ23: 2019-12-24 | BL23: 2029 | BM23: 2029-03-30 | BN23: 2029-03-30 | BO23: 2029-01-01 | BP23: 2029-01-01 | BQ23: 2029-07-04 | BR23: 2029-07-04 | BS23: 2029-11-12 | BT23: 2029-11-12
C24: Su | D24: Mo | E24: Tu | F24: We | G24: Th | H24: Fr | I24: Sa | K24: Su | L24: Mo | M24: Tu | N24: We | O24: Th | P24: Fr | Q24: Sa | S24: Su | T24: Mo | U24: Tu | V24: We | W24: Th | X24: Fr | Y24: Sa | AA24: Su | AB24: Mo | AC24: Tu | AD24: We | AE24: Th | AF24: Fr | AG24: Sa | AL24: Thanksgiving Day | AP24: =AQ24 -> 2025-11-27 | AQ24: =DATE(CA6,11,1)+IF(5<WEEKDAY(DATE(CA6,11,1)),7-WEEKDAY(DATE(CA6,11,1))+5,5-WEEKDAY(DATE(CA6,11,1)))+((3)*7) -> 2025-11-27 | BB24: 2019 Election Day, General | BC24: 2019-11-05 | BD24: 2019-11-05 | BF24: 2019 | BG24: =BF24&"b" -> 2019b | BH24: Christmas Day | BI24: 2019-12-25 | BJ24: 2019-12-25 | BL24: 2030 | BM24: 2030-04-19 | BN24: 2030-04-19 | BO24: 2030-01-01 | BP24: 2030-01-01 | BQ24: 2030-07-04 | BR24: 2030-07-04 | BS24: 2030-11-11 | BT24: 2030-11-11
C25: =IF(AND(YEAR(SepM)=$N$2,MONTH(SepM)=9),SepM, "") ->  | D25: =IF(AND(YEAR(SepM+1)=$N$2,MONTH(SepM+1)=9),SepM+1, "") -> 2025-09-01 | E25: =IF(AND(YEAR(SepM+2)=$N$2,MONTH(SepM+2)=9),SepM+2, "") -> 2025-09-02 | F25: =IF(AND(YEAR(SepM+3)=$N$2,MONTH(SepM+3)=9),SepM+3, "") -> 2025-09-03 | G25: =IF(AND(YEAR(SepM+4)=$N$2,MONTH(SepM+4)=9),SepM+4, "") -> 2025-09-04 | H25: =IF(AND(YEAR(SepM+5)=$N$2,MONTH(SepM+5)=9),SepM+5, "") -> 2025-09-05 | I25: =IF(AND(YEAR(SepM+6)=$N$2,MONTH(SepM+6)=9),SepM+6, "") -> 2025-09-06 | K25: =IF(AND(YEAR(OctM)=$N$2,MONTH(OctM)=10),OctM, "") ->  | L25: =IF(AND(YEAR(OctM+1)=$N$2,MONTH(OctM+1)=10),OctM+1, "") ->  | M25: =IF(AND(YEAR(OctM+2)=$N$2,MONTH(OctM+2)=10),OctM+2, "") ->  | N25: =IF(AND(YEAR(OctM+3)=$N$2,MONTH(OctM+3)=10),OctM+3, "") -> 2025-10-01 | O25: =IF(AND(YEAR(OctM+4)=$N$2,MONTH(OctM+4)=10),OctM+4, "") -> 2025-10-02 | P25: =IF(AND(YEAR(OctM+5)=$N$2,MONTH(OctM+5)=10),OctM+5, "") -> 2025-10-03 | Q25: =IF(AND(YEAR(OctM+6)=$N$2,MONTH(OctM+6)=10),OctM+6, "") -> 2025-10-04 | S25: =IF(AND(YEAR(NovM)=$N$2,MONTH(NovM)=11),NovM, "") ->  | T25: =IF(AND(YEAR(NovM+1)=$N$2,MONTH(NovM+1)=11),NovM+1, "") ->  | U25: =IF(AND(YEAR(NovM+2)=$N$2,MONTH(NovM+2)=11),NovM+2, "") ->  | V25: =IF(AND(YEAR(NovM+3)=$N$2,MONTH(NovM+3)=11),NovM+3, "") ->  | W25: =IF(AND(YEAR(NovM+4)=$N$2,MONTH(NovM+4)=11),NovM+4, "") ->  | X25: =IF(AND(YEAR(NovM+5)=$N$2,MONTH(NovM+5)=11),NovM+5, "") ->  | Y25: =IF(AND(YEAR(NovM+6)=$N$2,MONTH(NovM+6)=11),NovM+6, "") -> 2025-11-01 | AA25: =IF(AND(YEAR(DecM)=$N$2,MONTH(DecM)=12),DecM, "") ->  | AB25: =IF(AND(YEAR(DecM+1)=$N$2,MONTH(DecM+1)=12),DecM+1, "") -> 2025-12-01 | AC25: =IF(AND(YEAR(DecM+2)=$N$2,MONTH(DecM+2)=12),DecM+2, "") -> 2025-12-02 | AD25: =IF(AND(YEAR(DecM+3)=$N$2,MONTH(DecM+3)=12),DecM+3, "") -> 2025-12-03 | AE25: =IF(AND(YEAR(DecM+4)=$N$2,MONTH(DecM+4)=12),DecM+4, "") -> 2025-12-04 | AF25: =IF(AND(YEAR(DecM+5)=$N$2,MONTH(DecM+5)=12),DecM+5, "") -> 2025-12-05 | AG25: =IF(AND(YEAR(DecM+6)=$N$2,MONTH(DecM+6)=12),DecM+6, "") -> 2025-12-06 | AL25: Thanksgiving Day | AP25: =AQ25 -> 2025-11-28 | AQ25: =AQ24+1 -> 2025-11-28 | AS25: =AQ25 -> 2025-11-28 | AZ25: =$CA$6&"a" -> 2025a | BB25: 2020 Election Day, Primary | BC25: 2020-05-05 | BD25: 2020-05-05 | BF25: 2020 | BG25: =BF25&"a" -> 2020a | BH25: Christmas Day (Washington Birthday) | BI25: 2020-12-24 | BJ25: 2020-12-24 | BL25: 2031 | BM25: 2031-04-11 | BN25: 2031-04-11 | BO25: 2031-01-01 | BP25: 2031-01-01 | BQ25: 2031-07-04 | BR25: 2031-07-04 | BS25: 2031-11-11 | BT25: 2031-11-11
C26: =IF(AND(YEAR(SepM+7)=$N$2,MONTH(SepM+7)=9),SepM+7, "") -> 2025-09-07 | D26: =IF(AND(YEAR(SepM+8)=$N$2,MONTH(SepM+8)=9),SepM+8, "") -> 2025-09-08 | E26: =IF(AND(YEAR(SepM+9)=$N$2,MONTH(SepM+9)=9),SepM+9, "") -> 2025-09-09 | F26: =IF(AND(YEAR(SepM+10)=$N$2,MONTH(SepM+10)=9),SepM+10, "") -> 2025-09-10 | G26: =IF(AND(YEAR(SepM+11)=$N$2,MONTH(SepM+11)=9),SepM+11, "") -> 2025-09-11 | H26: =IF(AND(YEAR(SepM+12)=$N$2,MONTH(SepM+12)=9),SepM+12, "") -> 2025-09-12 | I26: =IF(AND(YEAR(SepM+13)=$N$2,MONTH(SepM+13)=9),SepM+13, "") -> 2025-09-13 | K26: =IF(AND(YEAR(OctM+7)=$N$2,MONTH(OctM+7)=10),OctM+7, "") -> 2025-10-05 | L26: =IF(AND(YEAR(OctM+8)=$N$2,MONTH(OctM+8)=10),OctM+8, "") -> 2025-10-06 | M26: =IF(AND(YEAR(OctM+9)=$N$2,MONTH(OctM+9)=10),OctM+9, "") -> 2025-10-07 | N26: =IF(AND(YEAR(OctM+10)=$N$2,MONTH(OctM+10)=10),OctM+10, "") -> 2025-10-08 | O26: =IF(AND(YEAR(OctM+11)=$N$2,MONTH(OctM+11)=10),OctM+11, "") -> 2025-10-09 | P26: =IF(AND(YEAR(OctM+12)=$N$2,MONTH(OctM+12)=10),OctM+12, "") -> 2025-10-10 | Q26: =IF(AND(YEAR(OctM+13)=$N$2,MONTH(OctM+13)=10),OctM+13, "") -> 2025-10-11 | S26: =IF(AND(YEAR(NovM+7)=$N$2,MONTH(NovM+7)=11),NovM+7, "") -> 2025-11-02 | T26: =IF(AND(YEAR(NovM+8)=$N$2,MONTH(NovM+8)=11),NovM+8, "") -> 2025-11-03 | U26: =IF(AND(YEAR(NovM+9)=$N$2,MONTH(NovM+9)=11),NovM+9, "") -> 2025-11-04 | V26: =IF(AND(YEAR(NovM+10)=$N$2,MONTH(NovM+10)=11),NovM+10, "") -> 2025-11-05 | W26: =IF(AND(YEAR(NovM+11)=$N$2,MONTH(NovM+11)=11),NovM+11, "") -> 2025-11-06 | X26: =IF(AND(YEAR(NovM+12)=$N$2,MONTH(NovM+12)=11),NovM+12, "") -> 2025-11-07 | Y26: =IF(AND(YEAR(NovM+13)=$N$2,MONTH(NovM+13)=11),NovM+13, "") -> 2025-11-08 | AA26: =IF(AND(YEAR(DecM+7)=$N$2,MONTH(DecM+7)=12),DecM+7, "") -> 2025-12-07 | AB26: =IF(AND(YEAR(DecM+8)=$N$2,MONTH(DecM+8)=12),DecM+8, "") -> 2025-12-08 | AC26: =IF(AND(YEAR(DecM+9)=$N$2,MONTH(DecM+9)=12),DecM+9, "") -> 2025-12-09 | AD26: =IF(AND(YEAR(DecM+10)=$N$2,MONTH(DecM+10)=12),DecM+10, "") -> 2025-12-10 | AE26: =IF(AND(YEAR(DecM+11)=$N$2,MONTH(DecM+11)=12),DecM+11, "") -> 2025-12-11 | AF26: =IF(AND(YEAR(DecM+12)=$N$2,MONTH(DecM+12)=12),DecM+12, "") -> 2025-12-12 | AG26: =IF(AND(YEAR(DecM+13)=$N$2,MONTH(DecM+13)=12),DecM+13, "") -> 2025-12-13 | AZ26: =$CA$6&"b" -> 2025b | BB26: 2020 Election Day, General | BC26: 2020-11-03 | BD26: 2020-11-03 | BF26: 2020 | BG26: =BF26&"b" -> 2020b | BH26: Christmas Day | BI26: 2020-12-25 | BJ26: 2020-12-25 | BL26: 2032 | BM26: 2032-03-26 | BN26: 2032-03-26 | BO26: 2032-01-01 | BP26: 2032-01-01 | BQ26: 2032-07-05 | BR26: 2032-07-05 | BS26: 2032-11-11 | BT26: 2032-11-11
C27: =IF(AND(YEAR(SepM+14)=$N$2,MONTH(SepM+14)=9),SepM+14, "") -> 2025-09-14 | D27: =IF(AND(YEAR(SepM+15)=$N$2,MONTH(SepM+15)=9),SepM+15, "") -> 2025-09-15 | E27: =IF(AND(YEAR(SepM+16)=$N$2,MONTH(SepM+16)=9),SepM+16, "") -> 2025-09-16 | F27: =IF(AND(YEAR(SepM+17)=$N$2,MONTH(SepM+17)=9),SepM+17, "") -> 2025-09-17 | G27: =IF(AND(YEAR(SepM+18)=$N$2,MONTH(SepM+18)=9),SepM+18, "") -> 2025-09-18 | H27: =IF(AND(YEAR(SepM+19)=$N$2,MONTH(SepM+19)=9),SepM+19, "") -> 2025-09-19 | I27: =IF(AND(YEAR(SepM+20)=$N$2,MONTH(SepM+20)=9),SepM+20, "") -> 2025-09-20 | K27: =IF(AND(YEAR(OctM+14)=$N$2,MONTH(OctM+14)=10),OctM+14, "") -> 2025-10-12 | L27: =IF(AND(YEAR(OctM+15)=$N$2,MONTH(OctM+15)=10),OctM+15, "") -> 2025-10-13 | M27: =IF(AND(YEAR(OctM+16)=$N$2,MONTH(OctM+16)=10),OctM+16, "") -> 2025-10-14 | N27: =IF(AND(YEAR(OctM+17)=$N$2,MONTH(OctM+17)=10),OctM+17, "") -> 2025-10-15 | O27: =IF(AND(YEAR(OctM+18)=$N$2,MONTH(OctM+18)=10),OctM+18, "") -> 2025-10-16 | P27: =IF(AND(YEAR(OctM+19)=$N$2,MONTH(OctM+19)=10),OctM+19, "") -> 2025-10-17 | Q27: =IF(AND(YEAR(OctM+20)=$N$2,MONTH(OctM+20)=10),OctM+20, "") -> 2025-10-18 | S27: =IF(AND(YEAR(NovM+14)=$N$2,MONTH(NovM+14)=11),NovM+14, "") -> 2025-11-09 | T27: =IF(AND(YEAR(NovM+15)=$N$2,MONTH(NovM+15)=11),NovM+15, "") -> 2025-11-10 | U27: =IF(AND(YEAR(NovM+16)=$N$2,MONTH(NovM+16)=11),NovM+16, "") -> 2025-11-11 | V27: =IF(AND(YEAR(NovM+17)=$N$2,MONTH(NovM+17)=11),NovM+17, "") -> 2025-11-12 | W27: =IF(AND(YEAR(NovM+18)=$N$2,MONTH(NovM+18)=11),NovM+18, "") -> 2025-11-13 | X27: =IF(AND(YEAR(NovM+19)=$N$2,MONTH(NovM+19)=11),NovM+19, "") -> 2025-11-14 | Y27: =IF(AND(YEAR(NovM+20)=$N$2,MONTH(NovM+20)=11),NovM+20, "") -> 2025-11-15 | AA27: =IF(AND(YEAR(DecM+14)=$N$2,MONTH(DecM+14)=12),DecM+14, "") -> 2025-12-14 | AB27: =IF(AND(YEAR(DecM+15)=$N$2,MONTH(DecM+15)=12),DecM+15, "") -> 2025-12-15 | AC27: =IF(AND(YEAR(DecM+16)=$N$2,MONTH(DecM+16)=12),DecM+16, "") -> 2025-12-16 | AD27: =IF(AND(YEAR(DecM+17)=$N$2,MONTH(DecM+17)=12),DecM+17, "") -> 2025-12-17 | AE27: =IF(AND(YEAR(DecM+18)=$N$2,MONTH(DecM+18)=12),DecM+18, "") -> 2025-12-18 | AF27: =IF(AND(YEAR(DecM+19)=$N$2,MONTH(DecM+19)=12),DecM+19, "") -> 2025-12-19 | AG27: =IF(AND(YEAR(DecM+20)=$N$2,MONTH(DecM+20)=12),DecM+20, "") -> 2025-12-20 | AL27: Christmas Day | AP27: =AQ27 -> 2025-12-25 | AQ27: =IF($CD$5=1,VLOOKUP($AZ$26,BG1:BI60,3,FALSE),DATE(CA6,12,25)) -> 2025-12-25 | AS27: =AQ27 -> 2025-12-25 | BB27: 2021 Election Day, Primary | BC27: 2021-05-04 | BD27: 2021-05-04 | BF27: 2021 | BG27: =BF27&"a" -> 2021a | BH27: Christmas Day (Washington Birthday) | BI27: 2021-12-23 | BJ27: 2021-12-23 | BL27: 2033 | BM27: 2033-04-15 | BN27: 2033-04-15 | BO27: 2032-12-31 | BP27: 2032-12-31 | BQ27: 2033-07-04 | BR27: 2033-07-04 | BS27: 2033-11-11 | BT27: 2033-11-11
C28: =IF(AND(YEAR(SepM+21)=$N$2,MONTH(SepM+21)=9),SepM+21, "") -> 2025-09-21 | D28: =IF(AND(YEAR(SepM+22)=$N$2,MONTH(SepM+22)=9),SepM+22, "") -> 2025-09-22 | E28: =IF(AND(YEAR(SepM+23)=$N$2,MONTH(SepM+23)=9),SepM+23, "") -> 2025-09-23 | F28: =IF(AND(YEAR(SepM+24)=$N$2,MONTH(SepM+24)=9),SepM+24, "") -> 2025-09-24 | G28: =IF(AND(YEAR(SepM+25)=$N$2,MONTH(SepM+25)=9),SepM+25, "") -> 2025-09-25 | H28: =IF(AND(YEAR(SepM+26)=$N$2,MONTH(SepM+26)=9),SepM+26, "") -> 2025-09-26 | I28: =IF(AND(YEAR(SepM+27)=$N$2,MONTH(SepM+27)=9),SepM+27, "") -> 2025-09-27 | K28: =IF(AND(YEAR(OctM+21)=$N$2,MONTH(OctM+21)=10),OctM+21, "") -> 2025-10-19 | L28: =IF(AND(YEAR(OctM+22)=$N$2,MONTH(OctM+22)=10),OctM+22, "") -> 2025-10-20 | M28: =IF(AND(YEAR(OctM+23)=$N$2,MONTH(OctM+23)=10),OctM+23, "") -> 2025-10-21 | N28: =IF(AND(YEAR(OctM+24)=$N$2,MONTH(OctM+24)=10),OctM+24, "") -> 2025-10-22 | O28: =IF(AND(YEAR(OctM+25)=$N$2,MONTH(OctM+25)=10),OctM+25, "") -> 2025-10-23 | P28: =IF(AND(YEAR(OctM+26)=$N$2,MONTH(OctM+26)=10),OctM+26, "") -> 2025-10-24 | Q28: =IF(AND(YEAR(OctM+27)=$N$2,MONTH(OctM+27)=10),OctM+27, "") -> 2025-10-25 | S28: =IF(AND(YEAR(NovM+21)=$N$2,MONTH(NovM+21)=11),NovM+21, "") -> 2025-11-16 | T28: =IF(AND(YEAR(NovM+22)=$N$2,MONTH(NovM+22)=11),NovM+22, "") -> 2025-11-17 | U28: =IF(AND(YEAR(NovM+23)=$N$2,MONTH(NovM+23)=11),NovM+23, "") -> 2025-11-18 | V28: =IF(AND(YEAR(NovM+24)=$N$2,MONTH(NovM+24)=11),NovM+24, "") -> 2025-11-19 | W28: =IF(AND(YEAR(NovM+25)=$N$2,MONTH(NovM+25)=11),NovM+25, "") -> 2025-11-20 | X28: =IF(AND(YEAR(NovM+26)=$N$2,MONTH(NovM+26)=11),NovM+26, "") -> 2025-11-21 | Y28: =IF(AND(YEAR(NovM+27)=$N$2,MONTH(NovM+27)=11),NovM+27, "") -> 2025-11-22 | AA28: =IF(AND(YEAR(DecM+21)=$N$2,MONTH(DecM+21)=12),DecM+21, "") -> 2025-12-21 | AB28: =IF(AND(YEAR(DecM+22)=$N$2,MONTH(DecM+22)=12),DecM+22, "") -> 2025-12-22 | AC28: =IF(AND(YEAR(DecM+23)=$N$2,MONTH(DecM+23)=12),DecM+23, "") -> 2025-12-23 | AD28: =IF(AND(YEAR(DecM+24)=$N$2,MONTH(DecM+24)=12),DecM+24, "") -> 2025-12-24 | AE28: =IF(AND(YEAR(DecM+25)=$N$2,MONTH(DecM+25)=12),DecM+25, "") -> 2025-12-25 | AF28: =IF(AND(YEAR(DecM+26)=$N$2,MONTH(DecM+26)=12),DecM+26, "") -> 2025-12-26 | AG28: =IF(AND(YEAR(DecM+27)=$N$2,MONTH(DecM+27)=12),DecM+27, "") -> 2025-12-27 | AZ28: =$CA$6&"a" -> 2025a | BB28: 2021 Election Day, General | BC28: 2021-11-02 | BD28: 2021-11-02 | BF28: 2021 | BG28: =BF28&"b" -> 2021b | BH28: Christmas Day | BI28: 2021-12-24 | BJ28: 2021-12-24 | BL28: 2034 | BM28: 2034-04-07 | BN28: 2034-04-07 | BO28: 2034-01-02 | BP28: 2034-01-02 | BQ28: 2034-07-04 | BR28: 2034-07-04 | BS28: 2034-11-10 | BT28: 2034-11-10
C29: =IF(AND(YEAR(SepM+28)=$N$2,MONTH(SepM+28)=9),SepM+28, "") -> 2025-09-28 | D29: =IF(AND(YEAR(SepM+29)=$N$2,MONTH(SepM+29)=9),SepM+29, "") -> 2025-09-29 | E29: =IF(AND(YEAR(SepM+30)=$N$2,MONTH(SepM+30)=9),SepM+30, "") -> 2025-09-30 | F29: =IF(AND(YEAR(SepM+31)=$N$2,MONTH(SepM+31)=9),SepM+31, "") ->  | G29: =IF(AND(YEAR(SepM+32)=$N$2,MONTH(SepM+32)=9),SepM+32, "") ->  | H29: =IF(AND(YEAR(SepM+33)=$N$2,MONTH(SepM+33)=9),SepM+33, "") ->  | I29: =IF(AND(YEAR(SepM+34)=$N$2,MONTH(SepM+34)=9),SepM+34, "") ->  | K29: =IF(AND(YEAR(OctM+28)=$N$2,MONTH(OctM+28)=10),OctM+28, "") -> 2025-10-26 | L29: =IF(AND(YEAR(OctM+29)=$N$2,MONTH(OctM+29)=10),OctM+29, "") -> 2025-10-27 | M29: =IF(AND(YEAR(OctM+30)=$N$2,MONTH(OctM+30)=10),OctM+30, "") -> 2025-10-28 | N29: =IF(AND(YEAR(OctM+31)=$N$2,MONTH(OctM+31)=10),OctM+31, "") -> 2025-10-29 | O29: =IF(AND(YEAR(OctM+32)=$N$2,MONTH(OctM+32)=10),OctM+32, "") -> 2025-10-30 | P29: =IF(AND(YEAR(OctM+33)=$N$2,MONTH(OctM+33)=10),OctM+33, "") -> 2025-10-31 | Q29: =IF(AND(YEAR(OctM+34)=$N$2,MONTH(OctM+34)=10),OctM+34, "") ->  | S29: =IF(AND(YEAR(NovM+28)=$N$2,MONTH(NovM+28)=11),NovM+28, "") -> 2025-11-23 | T29: =IF(AND(YEAR(NovM+29)=$N$2,MONTH(NovM+29)=11),NovM+29, "") -> 2025-11-24 | U29: =IF(AND(YEAR(NovM+30)=$N$2,MONTH(NovM+30)=11),NovM+30, "") -> 2025-11-25 | V29: =IF(AND(YEAR(NovM+31)=$N$2,MONTH(NovM+31)=11),NovM+31, "") -> 2025-11-26 | W29: =IF(AND(YEAR(NovM+32)=$N$2,MONTH(NovM+32)=11),NovM+32, "") -> 2025-11-27 | X29: =IF(AND(YEAR(NovM+33)=$N$2,MONTH(NovM+33)=11),NovM+33, "") -> 2025-11-28 | Y29: =IF(AND(YEAR(NovM+34)=$N$2,MONTH(NovM+34)=11),NovM+34, "") -> 2025-11-29 | AA29: =IF(AND(YEAR(DecM+28)=$N$2,MONTH(DecM+28)=12),DecM+28, "") -> 2025-12-28 | AB29: =IF(AND(YEAR(DecM+29)=$N$2,MONTH(DecM+29)=12),DecM+29, "") -> 2025-12-29 | AC29: =IF(AND(YEAR(DecM+30)=$N$2,MONTH(DecM+30)=12),DecM+30, "") -> 2025-12-30 | AD29: =IF(AND(YEAR(DecM+31)=$N$2,MONTH(DecM+31)=12),DecM+31, "") -> 2025-12-31 | AE29: =IF(AND(YEAR(DecM+32)=$N$2,MONTH(DecM+32)=12),DecM+32, "") ->  | AF29: =IF(AND(YEAR(DecM+33)=$N$2,MONTH(DecM+33)=12),DecM+33, "") ->  | AG29: =IF(AND(YEAR(DecM+34)=$N$2,MONTH(DecM+34)=12),DecM+34, "") ->  | AZ29: =$CA$6&"b" -> 2025b | BB29: 2022 Election Day, Primary | BC29: 2022-05-03 | BD29: 2022-05-03 | BF29: 2022 | BG29: =BF29&"a" -> 2022a | BH29: Christmas Day (Washington Birthday) | BI29: 2022-12-23 | BJ29: 2022-12-23 | BL29: 2035 | BM29: 2035-03-23 | BN29: 2035-03-23 | BO29: 2035-01-01 | BP29: 2035-01-01 | BQ29: 2035-07-04 | BR29: 2035-07-04 | BS29: 2035-11-12 | BT29: 2035-11-12
C30: =IF(AND(YEAR(SepM+35)=$N$2,MONTH(SepM+35)=9),SepM+35, "") ->  | D30: =IF(AND(YEAR(SepM+36)=$N$2,MONTH(SepM+36)=9),SepM+36, "") ->  | E30: =IF(AND(YEAR(SepM+37)=$N$2,MONTH(SepM+37)=9),SepM+37, "") ->  | F30: =IF(AND(YEAR(SepM+38)=$N$2,MONTH(SepM+38)=9),SepM+38, "") ->  | G30: =IF(AND(YEAR(SepM+39)=$N$2,MONTH(SepM+39)=9),SepM+39, "") ->  | H30: =IF(AND(YEAR(SepM+40)=$N$2,MONTH(SepM+40)=9),SepM+40, "") ->  | I30: =IF(AND(YEAR(SepM+41)=$N$2,MONTH(SepM+41)=9),SepM+41, "") ->  | K30: =IF(AND(YEAR(OctM+35)=$N$2,MONTH(OctM+35)=10),OctM+35, "") ->  | L30: =IF(AND(YEAR(OctM+36)=$N$2,MONTH(OctM+36)=10),OctM+36, "") ->  | M30: =IF(AND(YEAR(OctM+37)=$N$2,MONTH(OctM+37)=10),OctM+37, "") ->  | N30: =IF(AND(YEAR(OctM+38)=$N$2,MONTH(OctM+38)=10),OctM+38, "") ->  | O30: =IF(AND(YEAR(OctM+39)=$N$2,MONTH(OctM+39)=10),OctM+39, "") ->  | P30: =IF(AND(YEAR(OctM+40)=$N$2,MONTH(OctM+40)=10),OctM+40, "") ->  | Q30: =IF(AND(YEAR(OctM+41)=$N$2,MONTH(OctM+41)=10),OctM+41, "") ->  | S30: =IF(AND(YEAR(NovM+35)=$N$2,MONTH(NovM+35)=11),NovM+35, "") -> 2025-11-30 | T30: =IF(AND(YEAR(NovM+36)=$N$2,MONTH(NovM+36)=11),NovM+36, "") ->  | U30: =IF(AND(YEAR(NovM+37)=$N$2,MONTH(NovM+37)=11),NovM+37, "") ->  | V30: =IF(AND(YEAR(NovM+38)=$N$2,MONTH(NovM+38)=11),NovM+38, "") ->  | W30: =IF(AND(YEAR(NovM+39)=$N$2,MONTH(NovM+39)=11),NovM+39, "") ->  | X30: =IF(AND(YEAR(NovM+40)=$N$2,MONTH(NovM+40)=11),NovM+40, "") ->  | Y30: =IF(AND(YEAR(NovM+41)=$N$2,MONTH(NovM+41)=11),NovM+41, "") ->  | AA30: =IF(AND(YEAR(DecM+35)=$N$2,MONTH(DecM+35)=12),DecM+35, "") ->  | AB30: =IF(AND(YEAR(DecM+36)=$N$2,MONTH(DecM+36)=12),DecM+36, "") ->  | AC30: =IF(AND(YEAR(DecM+37)=$N$2,MONTH(DecM+37)=12),DecM+37, "") ->  | AD30: =IF(AND(YEAR(DecM+38)=$N$2,MONTH(DecM+38)=12),DecM+38, "") ->  | AE30: =IF(AND(YEAR(DecM+39)=$N$2,MONTH(DecM+39)=12),DecM+39, "") ->  | AF30: =IF(AND(YEAR(DecM+40)=$N$2,MONTH(DecM+40)=12),DecM+40, "") ->  | AG30: =IF(AND(YEAR(DecM+41)=$N$2,MONTH(DecM+41)=12),DecM+41, "") ->  | BB30: 2022 Election Day, General | BC30: 2022-11-08 | BD30: 2022-11-08 | BF30: 2022 | BG30: =BF30&"b" -> 2022b | BH30: Christmas Day | BI30: 2022-12-26 | BJ30: 2022-12-26
F31: Holiday | J31: School Break | BB31: 2023 Election Day, Primary | BC31: 2023-05-02 | BD31: 2023-05-02 | BF31: 2023 | BG31: =BF31&"a" -> 2023a | BH31: Christmas Day (Washington Birthday) | BI31: 2023-12-25 | BJ31: 2023-12-25
BB32: 2023 Election Day, General | BC32: 2023-11-07 | BD32: 2023-11-07 | BF32: 2023 | BG32: =BF32&"b" -> 2023b | BH32: Christmas Day | BI32: 2023-12-26 | BJ32: 2023-12-26
BB33: 2024 Election Day, Primary | BC33: 2024-05-07 | BD33: 2024-05-07 | BF33: 2024 | BG33: =BF33&"a" -> 2024a | BH33: Christmas Day (Washington Birthday) | BI33: 2024-12-24 | BJ33: 2024-12-24
BB34: 2024 Election Day, General | BC34: 2024-11-05 | BD34: 2024-11-05 | BF34: 2024 | BG34: =BF34&"b" -> 2024b | BH34: Christmas Day | BI34: 2014-12-25 | BJ34: 2014-12-25
BB35: 2025 Election Day, Primary | BC35: 2025-05-06 | BD35: 2025-05-06 | BF35: 2025 | BG35: =BF35&"a" -> 2025a | BH35: Christmas Day (Washington Birthday) | BI35: 2025-12-24 | BJ35: 2025-12-24
AK36: =DATE(CA6,10,1)+IF(2<WEEKDAY(DATE(CA6,10,1)),7-WEEKDAY(DATE(CA6,10,1))+2,2-WEEKDAY(DATE(CA6,10,1)))+((2-1)*7) -> 2025-10-13 | AP36: 2026 | AQ36: 2026-03-15 | BB36: 2025 Election Day, General | BC36: 2025-11-04 | BD36: 2025-11-04 | BF36: 2025 | BG36: =BF36&"b" -> 2025b | BH36: Christmas Day | BI36: 2025-12-25 | BJ36: 2025-12-25
AP37: 2023 | AQ37: 2026-03-12 | BB37: 2026 Election Day, Primary | BC37: 2026-05-05 | BD37: 2026-05-05 | BF37: 2026 | BG37: =BF37&"a" -> 2026a | BH37: Christmas Day (Washington Birthday) | BI37: 2026-12-24 | BJ37: 2026-12-24
BB38: 2026 Election Day, General | BC38: 2026-11-03 | BD38: 2026-11-03 | BF38: 2026 | BG38: =BF38&"b" -> 2026b | BH38: Christmas Day | BI38: 2026-12-25 | BJ38: 2026-12-25
BB39: 2027 Election Day, Primary | BC39: 2027-05-04 | BD39: 2027-05-04 | BF39: 2027 | BG39: =BF39&"a" -> 2027a | BH39: Christmas Day (Washington Birthday) | BI39: 2027-12-23 | BJ39: 2027-12-23
C40: =IF(AND(YEAR(FebM+35)=$N$2,MONTH(FebM+35)=2),FebM+35, "") ->  | D40: =IF(AND(YEAR(FebM+36)=$N$2,MONTH(FebM+36)=2),FebM+36, "") ->  | E40: =IF(AND(YEAR(FebM+37)=$N$2,MONTH(FebM+37)=2),FebM+37, "") ->  | F40: =IF(AND(YEAR(FebM+38)=$N$2,MONTH(FebM+38)=2),FebM+38, "") ->  | G40: =IF(AND(YEAR(FebM+39)=$N$2,MONTH(FebM+39)=2),FebM+39, "") ->  | H40: =IF(AND(YEAR(FebM+40)=$N$2,MONTH(FebM+40)=2),FebM+40, "") ->  | I40: =IF(AND(YEAR(FebM+41)=$N$2,MONTH(FebM+41)=2),FebM+41, "") ->  | BB40: 2027 Election Day, General | BC40: 2027-11-02 | BD40: 2027-11-02 | BF40: 2027 | BG40: =BF40&"b" -> 2027b | BH40: Christmas Day | BI40: 2027-12-24 | BJ40: 2027-12-24
BB41: 2028 Election Day, Primary | BC41: 2028-05-02 | BD41: 2028-05-02 | BF41: 2028 | BG41: =BF41&"a" -> 2028a | BH41: Christmas Day (Washington Birthday) | BI41: 2028-12-25 | BJ41: 2028-12-25
BB42: 2028 Election Day, General | BC42: 2028-11-07 | BD42: 2028-11-07 | BF42: 2028 | BG42: =BF42&"b" -> 2028b | BH42: Christmas Day | BI42: 2028-12-26 | BJ42: 2028-12-26
BB43: 2029 Election Day, Primary | BC43: 2029-05-08 | BD43: 2029-05-08 | BF43: 2029 | BG43: =BF43&"a" -> 2029a | BH43: Christmas Day (Washington Birthday) | BI43: 2029-12-24 | BJ43: 2029-12-24
BB44: 2029 Election Day, General | BC44: 2029-11-06 | BD44: 2029-11-06 | BF44: 2029 | BG44: =BF44&"b" -> 2029b | BH44: Christmas Day | BI44: 2029-12-25 | BJ44: 2029-12-25
BB45: 2030 Election Day, Primary | BC45: 2030-05-07 | BD45: 2030-05-07 | BF45: 2030 | BG45: =BF45&"a" -> 2030a | BH45: Christmas Day (Washington Birthday) | BI45: 2030-12-24 | BJ45: 2030-12-24
BB46: 2030 Election Day, General | BC46: 2030-11-05 | BD46: 2030-11-05 | BF46: 2030 | BG46: =BF46&"b" -> 2030b | BH46: Christmas Day | BI46: 2030-12-25 | BJ46: 2030-12-25
BB47: 2031 Election Day, Primary | BC47: 2031-05-06 | BD47: 2031-05-06 | BF47: 2031 | BG47: =BF47&"a" -> 2031a | BH47: Christmas Day (Washington Birthday) | BI47: 2031-12-24 | BJ47: 2031-12-24
BB48: 2031 Election Day, General | BC48: 2031-11-04 | BD48: 2031-11-04 | BF48: 2031 | BG48: =BF48&"b" -> 2031b | BH48: Christmas Day | BI48: 2031-12-25 | BJ48: 2031-12-25
BB49: 2032 Election Day, Primary | BC49: 2032-05-04 | BD49: 2032-05-04 | BF49: 2032 | BG49: =BF49&"a" -> 2032a | BH49: Christmas Day (Washington Birthday) | BI49: 2032-12-23 | BJ49: 2032-12-23
BB50: 2032 Election Day, General | BC50: 2032-11-02 | BD50: 2032-11-02 | BF50: 2032 | BG50: =BF50&"b" -> 2032b | BH50: Christmas Day | BI50: 2032-12-24 | BJ50: 2032-12-24
BB51: 2033 Election Day, Primary | BC51: 2033-05-03 | BD51: 2033-05-03 | BF51: 2033 | BG51: =BF51&"a" -> 2033a | BH51: Christmas Day (Washington Birthday) | BI51: 2033-12-23 | BJ51: 2033-12-23
BB52: 2033 Election Day, General | BC52: 2033-11-08 | BD52: 2033-11-08 | BF52: 2033 | BG52: =BF52&"b" -> 2033b | BH52: Christmas Day | BI52: 2033-12-26 | BJ52: 2033-12-26
BB53: 2034 Election Day, Primary | BC53: 2034-05-02 | BD53: 2034-05-02 | BF53: 2034 | BG53: =BF53&"a" -> 2034a | BH53: Christmas Day (Washington Birthday) | BI53: 2034-12-25 | BJ53: 2034-12-25
BB54: 2034 Election Day, General | BC54: 2034-11-07 | BD54: 2034-11-07 | BF54: 2034 | BG54: =BF54&"b" -> 2034b | BH54: Christmas Day | BI54: 2034-12-26 | BJ54: 2034-12-26
BB55: 2035 Election Day, Primary | BC55: 2035-05-08 | BD55: 2035-05-08 | BF55: 2035 | BG55: =BF55&"a" -> 2035a | BH55: Christmas Day (Washington Birthday) | BI55: 2035-12-24 | BJ55: 2035-12-24
BB56: 2035 Election Day, General | BC56: 2034-11-07 | BD56: 2034-11-07 | BF56: 2035 | BG56: =BF56&"b" -> 2035b | BH56: Christmas Day | BI56: 2035-12-25 | BJ56: 2035-12-25

Sheet 5) Logic
G2: Logical Equivalence: When two statements have identical last column in the truth tables | V2: Yes | Y2: No | Z2: No | AB2: T | AE2: No
V3: No | Y3: Yes | Z3: Yes | AB3: F | AE3: Yes
C4: Tautology = valid argument: the elements of the last column are all T | L4: Contradiction: The elements of the last column are all F
C8: Conjunction | D8: ∧ (And) | F8: it is true only when both are true | K8: Conditional | L8: → (If...then) | N8: it is always true unless the first is T and the second is F
C9: Disjunction | D9: ∨ (Or) | F9: it is true when either one or both are true | K9: Biconditional | L9: ↔ (If and only if) | N9: it is true when both are true or both are false
AB10: T
AB11: F
E14: Not p | F14: Not q | G14: p And q | H14: p Or q | I14: p | M14: if p then q | N14: if q then p | O14: if and only if | P14: p | Q14: (p → q) | R14: (p → q)
C15: p | D15: q | E15: ¬ p | F15: ¬ q | G15: p ∧ q | H15: p ∨ q | I15: ∨ (p ∧ q) | K15: p | L15: q | M15: p → q | N15: q → p | O15: p ↔ q | P15: ∧ (q → p) | Q15: ∧ (q → p) | R15: ∨ (q → p)
C16: T | D16: T | E16: F | F16: F | G16: T | H16: T | I16: T | K16: T | L16: T | M16: T | N16: T | O16: T | P16: T | Q16: T | R16: T
C17: T | D17: F | E17: F | F17: T | G17: F | H17: T | I17: T | K17: T | L17: F | M17: F | N17: T | O17: F | P17: T | Q17: F | R17: T
C18: F | D18: T | E18: T | F18: F | G18: F | H18: T | I18: F | K18: F | L18: T | M18: T | N18: F | O18: F | P18: F | Q18: F | R18: T
C19: F | D19: F | E19: T | F19: T | G19: F | H19: F | I19: F | K19: F | L19: F | M19: T | N19: T | O19: T | P19: F | Q19: T | R19: T
C24: A) Fill the following truth table (errors will be in red) | I24: (¬ p ∧ q) | K24: (¬ p ∧ q) | N24: q | Q24: (¬ p → q) | R24: (¬ p → q)
C25: p | D25: q | E25: ¬p | F25: ¬q | G25: ¬ p ∧ q | H25: p ∨ ¬ q | I25: ∧ (p ∨ ¬ q) | J25: ¬ p ∧ ¬ q | K25: V (¬ p ∧ ¬ q) | L25: ¬ p → q | M25: q → p | N25: ∧ (¬ p → q) | O25: ¬ p ↔ q | P25: p ↔ ¬ p | Q25: V (q → p) | R25: ∧ ( q → p)
C26: T | D26: T
C27: T | D27: F
C28: F | D28: T
C29: F | D29: F
C30: Highlight? Yes, No | L30: Highlight? Yes, No | O30: Highlight? Yes, No
C31: Yes | D31: Yes | E31: No | F31: No | G31: No | H31: No | J31: No | L31: No | M31: Yes | O31: No | P31: No
C38: B) Fill the following truth table (errors will be in red) | I38: (p ∨ q) | N38: q | Q38: (p → r) | R38: (p → r)
C39: p | D39: q | E39: r | F39: p ∧ q | G39: p ∨ q | H39: p ∧ r | I39: ∧ (p ∧ r) | J39: p → q | K39: p → r | L39: r → q | M39: q → r | N39: ∧ ( p → q) | O39: p ↔ r | P39: q↔ r | Q39: ∧ (r → q) | R39: V (r → q)
C40: T | D40: T | E40: T
C41: T | D41: T | E41: F
C42: T | D42: F | E42: T
C43: T | D43: F | E43: F
C44: F | D44: T | E44: T
C45: F | D45: T | E45: F
C46: F | D46: F | E46: T
C47: F | D47: F | E47: F
C48: Highlight? Yes, No | J48: Highlight? Yes, No | O48: Highlight? Yes, No | R48: =IF(COUNTIF(R40:R47,"T")=8,"Tautology","") -> 
C49: Yes | D49: Yes | E49: Yes | F49: No | G49: No | H49: No | J49: No | K49: No | L49: No | M49: No | O49: No | P49: No | R49: =IF(COUNTIF(R40:R47,"T")=8,"Valid Argument","") -> 
I51: (¬ p ∧ q) | N51: (¬ p ∧ ¬ q) | Q51: (¬ p ∧ q) | R51: (¬ p → q)
C52: p | D52: q | E52: ¬p | F52: ¬q | G52: ¬ p ∧ q | H52: p ∨ ¬ q | I52: ∧ (p ∨ ¬ q) | J52: ¬ p ∧ ¬ q | K52: ¬ p → q | L52: ¬ p → q | M52: q → p | N52: (¬ q → p) | O52: ¬ p ↔ q | P52: p ↔ ¬ p | Q52: V (¬ p ∨ ¬ q) | R52: ∧ (¬ q → p)
C53: T | D53: T | E53: F | F53: F | G53: F | H53: T | I53: F | J53: F | K53: F | L53: T | M53: T | N53: T | O53: F | P53: F | Q53: T | R53: T
C54: T | D54: F | E54: F | F54: T | G54: F | H54: T | I54: F | J54: F | K54: F | L54: T | M54: T | N54: F | O54: T | P54: F | Q54: T | R54: T
C55: F | D55: T | E55: T | F55: F | G55: T | H55: F | I55: F | J55: F | K55: T | L55: T | M55: F | N55: T | O55: T | P55: F | Q55: T | R55: F
C56: F | D56: F | E56: T | F56: T | G56: F | H56: T | I56: F | J56: T | K56: T | L56: F | M56: T | N56: F | O56: F | P56: F | Q56: T | R56: F
C57: 4 | D57: 4 | E57: 4 | F57: 4 | G57: 4 | H57: 4 | I57: 4 | J57: 4 | K57: 4 | L57: 4 | M57: 4 | N57: 4 | O57: 4 | P57: 4
I59: (p ∨ q) | N59: p → | Q59: (p → r) | R59: (p → r)
C60: p | D60: q | E60: r | F60: p ∧ q | G60: p ∨ q | H60: p ∧ r | I60: ∧ (p ∧ r) | J60: p → q | K60: p → r | L60: r → q | M60: q → r | N60: (q → r) | O60: p ↔ r | P60: q↔ r | Q60: ∧ (r → q) | R60: V (r → q)
C61: T | D61: T | E61: T | F61: T | G61: T | H61: T | I61: T | J61: T | K61: T | L61: T | M61: T | N61: T | O61: T | P61: T | Q61: T | R61: T
C62: T | D62: T | E62: F | F62: T | G62: T | H62: F | I62: F | J62: T | K62: F | L62: T | M62: F | N62: T | O62: F | P62: F | Q62: F | R62: T
C63: T | D63: F | E63: T | F63: F | G63: T | H63: T | I63: T | J63: F | K63: T | L63: F | M63: T | N63: F | O63: T | P63: F | Q63: F | R63: T
C64: T | D64: F | E64: F | F64: F | G64: T | H64: F | I64: F | J64: F | K64: F | L64: T | M64: T | N64: F | O64: F | P64: T | Q64: F | R64: T
C65: F | D65: T | E65: T | F65: F | G65: T | H65: F | I65: F | J65: T | K65: T | L65: T | M65: T | N65: T | O65: F | P65: T | Q65: T | R65: T
C66: F | D66: T | E66: F | F66: F | G66: T | H66: F | I66: F | J66: T | K66: T | L66: T | M66: F | N66: T | O66: T | P66: F | Q66: T | R66: T
C67: F | D67: F | E67: T | F67: F | G67: F | H67: F | I67: F | J67: T | K67: T | L67: F | M67: T | N67: F | O67: F | P67: F | Q67: F | R67: T
C68: F | D68: F | E68: F | F68: F | G68: F | H68: F | I68: F | J68: T | K68: T | L68: T | M68: T | N68: F | O68: T | P68: T | Q68: T | R68: T
C69: 8 | D69: 8 | E69: 8 | F69: 8 | G69: 8 | H69: 8 | I69: 8 | J69: 8 | K69: 8 | L69: 8 | M69: 8 | N69: 8 | O69: 8 | P69: 8

Sheet 6) Calc
Y1: Permutation | AD1: Combination
C2: Enter in the Green cells only. | Y2: n = | Z2: r = | AB2: Ans | AD2: n = | AE2: r = | AF2: Ans
AB3: =IF(OR(Z3="",Z3="",),"",PERMUT(Y3,Z3)) ->  | AC3: FALSE | AF3: =IF(OR(AE3="",AE3="",),"",COMBIN(AD3,AE3)) ->  | AG3: FALSE | AM3: =IF(AC3=TRUE,AB3,0) -> 0 | AN3: =IF(AC3=FALSE,1,IF(AC3=TRUE,IF(AB3="",1,AB3))) -> 1 | AP3: =IF(AG3=TRUE,AF3,0) -> 0 | AQ3: =IF(AG3=FALSE,1,IF(AG3=TRUE,IF(AF3="",1,AF3))) -> 1 | AS3: Sum
B4: Permutation | D4: n | E4: r | N4: Combination | P4: n | Q4: r | AB4: =IF(OR(Z4="",Z4="",),"",COMBIN(Y4,Z4)) ->  | AC4: FALSE | AG4: FALSE | AM4: 0 | AN4: =IF(AC4=FALSE,1,IF(AC4=TRUE,IF(AB4="",1,AB4))) -> 1 | AP4: =IF(AG4=TRUE,AF4,0) -> 0 | AQ4: =IF(AG4=FALSE,1,IF(AG4=TRUE,IF(AF4="",1,AF4))) -> 1 | AS4: Mult | BM4: or P ( | BN4: =IF(AND(D5="",E5=""),"",D5) ->  | BO4: , | BP4: =IF(AND(D5="",E5=""),"",E5) ->  | BQ4: )
B5: P(n, r) | G5: = | H5: =IF(OR(D5="",E5=""),"",PERMUT(D5,E5)) ->  | N5: C(n, r) | S5: = | T5: =IF(OR(P5="",Q5="",),"",COMBIN(P5,Q5)) ->  | AC5: FALSE | AG5: FALSE | AM5: 0 | AN5: 1 | AP5: =IF(AG5=TRUE,AF5,0) -> 0 | AQ5: =IF(AG5=FALSE,1,IF(AG5=TRUE,IF(AF5="",1,AF5))) -> 1
AC6: FALSE | AG6: FALSE | AM6: 0 | AN6: 1 | AO6: =IF(AC7=TRUE,AB7,1) -> 1 | AP6: =IF(AG6=TRUE,AF6,0) -> 0 | AQ6: =IF(AG6=FALSE,1,IF(AG6=TRUE,IF(AF6="",1,AF6))) -> 1 | BM6: or C ( | BN6: =IF(AND(P5="",Q5=""),"",P5) ->  | BO6: , | BP6: =IF(AND(P5="",Q5=""),"",Q5) ->  | BQ6: )
AC7: FALSE | AG7: FALSE | AM7: 0 | AN7: 1 | AP7: 0 | AQ7: 1
AC8: FALSE | AG8: FALSE | AM8: 0 | AN8: 1 | AP8: =IF(AG8=TRUE,AF8,0) -> 0 | AQ8: 1 | BM8: or | BN8: =IF(P10="","",P10) ->  | BP8: =IF(Q10="","",Q10) -> 
B9: Factorial x! | D9: x = | E9: Factorial | N9: Power | P9: x | Q9: to the power | AC9: FALSE | AG9: FALSE | AM9: 0 | AN9: 1 | AP9: =IF(AG9=TRUE,AF9,0) -> 0 | AQ9: 1
E10: ! | G10: = | H10: =IF(D10="","","! =") ->  | I10: =IF(D10="","",FACT(D10)) ->  | S10: = | T10: =IF(OR(P10="",Q10=""),"",POWER(P10,Q10)) ->  | Y10: Sum | Z10: =IF(Y10="Sum",AM10,"") ->  | AD10: Sum | AE10: =IF(AD10="Sum",AP10,"") ->  | AM10: =IF(MAX(AM3:AM9)=0,"",SUM(AM3:AM9)) ->  | AN10: =IF(MAX(AN3:AN9)=1,"",AN3*AN4*AN5*AN6*AN7*AN8*AN9) ->  | AP10: =IF(MAX(AP3:AP9)=0,"",SUM(AP3:AP9)) ->  | AQ10: =IF(MAX(AQ3:AQ9)=1,"",AQ3*AQ4*AQ5*AQ6*AQ7*AQ8*AQ9) ->  | AS10: =AQ3*AQ4*AQ5*AQ6*AQ7*AQ8*AQ9 -> 1
Y11: Mult | Z11: =IF(Y11="Mult",AN10,"") ->  | AD11: Mult | AE11: =IF(AD11="Mult",AQ10,"") -> 
AM14: =IF(AE14=TRUE,AD14,0) -> 0
B15: Bernoulli Trials: | AP15: =IF(MAX(AP3:AP13)=0,"",SUM(AP3:AP13)) ->  | BT15: =BP16 ->  | BW15: =IF(OR(BN16="",BP16=""),"",BN16-BP16) -> 
D16: P = C(n , r). pr.qn-r | O16: n = | P16: r = | Q16: p = | S16: q = | U16: Ans. | Y16: 1- Ans. | BM16: C ( | BN16: =IF(F19="","",F19) ->  | BO16: , | BP16: =IF(J19="","",J19) ->  | BQ16: ) | BR16: . ( | BS16: =IF(F21="","",F21) ->  | BT16: ) . | BU16: ( | BV16: =K21 ->  | BW16: )
S17: =IF(Q17="","",1-Q17) ->  | U17: =IF(OR(O17="",P17="",Q17=""),"",COMBIN(O17,P17)*$Q17^P17*(1-$Q17)^(O17-P17)) ->  | X17: FALSE | Y17: =IF(OR(U17=0,U17=""),"",1-U17) ->  | AP17: =IF(X17=TRUE,U17,0) -> 0
S18: =IF(Q18="","",1-Q18) ->  | U18: =IF(OR(O18="",P18="",Q18=""),"",COMBIN(O18,P18)*$Q18^P18*(1-$Q18)^(O18-P18)) ->  | X18: FALSE | AP18: 0
B19: Enter n, r and p in each. | E19: n = | I19: r = | U19: =IF(OR(O19="",P19="",Q19=""),"",COMBIN(O19,P19)*$Q19^P19*(1-$Q19)^(O19-P19)) ->  | X19: FALSE | AP19: 0
X20: FALSE | AC20: Sum of the checked | AP20: 0
E21: p = | J21: Then q = | K21: =IF(F21="","",1-F21) ->  | X21: FALSE | AC21: Bernoulli probabilities: | AP21: 0
X22: FALSE | AC22: Ans. | AP22: 0
X23: FALSE | AC23: =AP33 ->  | AE23: Or | AF23: =AC23 ->  | AP23: 0
B24: =IF(OR(J19="",F19="",F21=""),"","looks like:") ->  | X24: FALSE | AP24: 0
X25: FALSE | AP25: 0
F26: Decimal | K26: Percentage | X26: FALSE | AP26: 0
C27: Answer | E27: P = | F27: =IF(OR(J19="",F19="",F21=""),"",COMBIN(F19,J19)*F21^J19*(1-F21)^(F19-J19)) ->  | K27: =IF(F27="","",F27) ->  | X27: FALSE | AC27: 1 - Sum Above: | AP27: 0
X28: FALSE | AC28: 1 - Ans. | AP28: 0
D29: =IF(OR(F27=0,F27=""),"","All except above: ") ->  | G29: =IF(OR(F27=0,F27=""),"",1) ->  | H29: =IF(OR(F27=0,F27=""),""," - ") ->  | I29: =IF(OR(F27=0,F27="",J19="",F19="",F21=""),"",F27) ->  | X29: FALSE | AC29: =IF(OR(AC23=0,AC23=""),"",1-AC23) ->  | AE29: Or | AF29: =AC29 ->  | AP29: 0
G30: =IF(OR(F27=0,F27=""),""," = ") ->  | H30: =IF(OR(F27=0,F27="",J19="",F19="",F21=""),"",1-F27) ->  | X30: FALSE | AP30: 0
G31: =IF(OR(F27=0,F27=""),""," = ") ->  | H31: =IF(OR(F27=0,F27="",J19="",F19="",F21=""),"",H30) ->  | X31: FALSE | AP31: 0
X32: FALSE | AP32: 0
AP33: =IF(MAX(AP17:AP32)=0,"",SUM(AP17:AP32)) -> 

Sheet 7) 5.2
G2: Fill Green Cells Only
D4: Section 5.1 Main Points | J4: Section 5.2 | S4: Question from MLM, section 5.2 :
C5: Mean, Average | I5: Expected Value Only
D6: Example: | E6: The scores in one exam | J6: x | K6: p | L6: x.p | R6: One option in a roulette game is to bet $11 on red. ​
D7: N of Students | E7: Score | F7: Total Points | L7: =IF(K7="","",K7*J7) ->  | R7: (There are 18 red​ compartments, 18 black​ compartments,
L8: =IF(K8="","",K8*J8) ->  | R8: and 2 compartments that are neither red nor​ black.)
D9: 1 | E9: 95 | F9: =D9*E9 -> 95 | L9: =IF(K9="","",K9*J9) ->  | N9: Fill Green Cells Only | R9: If the ball lands on​ red, you get to keep the $11 you paid to play the​ game, and you are awarded $12.
D10: 3 | E10: 93 | F10: =D10*E10 -> 279 | L10: =IF(K10="","",K10*J10) ->  | R10: If the ball lands​ elsewhere, you are awarded​ nothing, and the $11 that you bet is collected.
D11: 5 | E11: 91 | F11: 455 | L11: =IF(K11="","",K11*J11) -> 
D12: 4 | E12: 86 | F12: 344 | L12: =IF(K12="","",K12*J12) ->  | R12: Write down the probability distribution for the earnings from this type of bet and find the expected value.
D13: 5 | E13: 80 | F13: 400
D14: 8 | E14: 70 | F14: 560 | L14: =IF(K14="","",K14*J14) ->  | S14: Case | T14: $ Earning | U14: Prob | V14: Mult
D15: 11 | E15: 60 | F15: 660 | K15: µ | L15: =SUM(L7:L14) -> 0 | S15: 18 Red | T15: 12 | U15: 18/38 = 9/19 | V15: =T15*AE18 -> 5.684210526
C16: Total | D16: =SUM(D9:D15) -> 37 | F16: =SUM(F9:F15) -> 2793 | S16: 18 Black & 2 neither | T16: -11 | U16: 20/38 = 10/19 | V16: =T16*AE19 -> -5.789473684
D17: Average = | E17: =F16&" / "&D16 &" =" -> 2793 / 37 = | F17: =F16/D16 -> 75.48648649 | I17: Variance and Standard Deviation | S17: Total: 38 Compartments | U17: Sum | V17: =SUM(V15:V16) -> -0.1052631579
J18: x | K18: p | L18: x.p | M18: x - µ | N18: (x - µ)2 | O18: p*(x - µ )2 | U18: Or Expected value : | V18: $ -0.11 | AE18: =9/19 -> 0.4736842105
L19: =IF(J19="","",K19*J19) ->  | M19: =IF(J19="","",J19-$L$27) ->  | N19: =IF(J19="","",M19^2) ->  | O19: =IF(K19="","",K19*N19) ->  | AE19: =10/19 -> 0.5263157895
C20: GPA | L20: =IF(J20="","",K20*J20) ->  | N20: =IF(J20="","",M20^2) ->  | O20: =IF(K20="","",K20*N20) -> 
C21: Grade | D21: Value | E21: Credits of Grade | F21: Points | L21: =IF(J21="","",K21*J21) ->  | N21: =IF(J21="","",M21^2) ->  | O21: =IF(K21="","",K21*N21) ->  | R21: Similar Examples: You can change the numbers in the green cells
L22: =IF(J22="","",K22*J22) ->  | N22: =IF(J22="","",M22^2) ->  | O22: =IF(K22="","",K22*N22) ->  | R22: (There are 18 red​ compartments, 18 black​ compartments,
C23: A | D23: 4 | E23: 5 | F23: =D23*E23 -> 20 | L23: =IF(J23="","",K23*J23) ->  | N23: =IF(J23="","",M23^2) ->  | O23: =IF(K23="","",K23*N23) ->  | R23: and 2 compartments that are neither red nor​ black.)
C24: B | D24: 3 | E24: 15 | F24: =D24*E24 -> 45 | L24: =IF(J24="","",K24*J24) ->  | N24: =IF(J24="","",M24^2) ->  | O24: =IF(K24="","",K24*N24) ->  | S24: You pay: | T24: 19 | U24: to play the game
C25: C | D25: 2 | E25: 22 | F25: 44 | S25: You get: | T25: 20 | U25: If you bet on Red
C26: D | D26: 1 | E26: 6 | F26: 6
C27: F | D27: 0 | E27: 3 | F27: 0 | K27: µ | L27: =SUM(L19:L26) -> 0 | N27: Var | O27: =SUM(O19:O26) -> 0 | S27: Case | T27: $ Earning | U27: Prob | V27: Mult
D28: Total | E28: =SUM(E23:E27) -> 51 | F28: =SUM(F23:F27) -> 115 | N28: Std Dev | O28: =SQRT(O27) -> 0 | S28: 18 Red | T28: =T25 -> 20 | U28: 18/38 = 9/19 | V28: =T28*AE31 -> 9.473684211
S29: 18 Black & 2 neither | T29: =-1*T24 -> -19 | U29: 20/38 = 10/19 | V29: =T29*AE34 -> -10
D30: =E28&" Credits with "&F28&" points" -> 51 Credits with 115 points | N30: or: | O30: =O28 -> 0 | S30: Total: 38 Compartments | U30: Sum | V30: =SUM(V28:V29) -> -0.5263157895
C31: GPA = | D31: =F28&" / "&E28& " =" -> 115 / 51 = | E31: =F28/E28 -> 2.254901961 | AE31: =9/19 -> 0.4736842105
K33: Common Question, If: | L33: 5000 | M33: Tickets | R33: Common Question, If: | T33: 2000 | U33: Tckets
C34: Median: number at the midpoint of a ranked data. | J34: are sold at​ $1 each for a charity raffle. Tickets are to be drawn | S34: are sold at​ $1 each for a charity raffle. Tickets are to be drawn | AE34: =10/19 -> 0.5263157895
C35: Data must be ranked from smallest to largest. | J35: at random and monetary prizes awarded as​ follows: | S35: at random and monetary prizes awarded as​ follows:
D36: 2
D37: 3 | J37: # of prizes | K37: $ | S37: # of prizes | T37: $
D38: 4 | J38: 1 | K38: 600 | M38: Fill Green Cells Only | S38: 1 | T38: 1200 | V38: Fill Green Cells Only
D39: 4 | J39: 3 | K39: 200 | S39: 3 | T39: 400
D40: 5 | J40: 5 | K40: 10 | S40: 5 | T40: 60
D41: 6 | J41: 20 | K41: 5 | S41: 20 | T41: 5
D42: 8 | E42: Median= | F42: =MEDIAN(D36:D43) -> 4.5
D43: 9
J44: What is the expected value of this raffle if you buy 1​ ticket? | S44: What is the expected value of this raffle if you buy 1​ ticket?
J45: Total number of tickets is: | L45: =L33 -> 5000 | S45: Total number of tickets is: | T45: =T33 -> 2000
C46: Mode: the number or numbers that occur most often
D47: 1 | J47: X | K47: N number of each | L47: ="Prob = N/"&L33 -> Prob = N/5000 | M47: X.P | S47: X | T47: N number of each | U47: ="Prob = N/"&T33 -> Prob = N/2000 | V47: X.P
D48: 2
D49: 3 | J49: =K38 -> 600 | K49: =J38 -> 1 | L49: =K49/$L$33 -> 0.0002 | M49: =L49*J49 -> 0.12 | S49: =T38 -> 1200 | T49: =S38 -> 1 | U49: =T49/2000 -> 0.0005 | V49: =U49*S49 -> 0.6
D50: 4 | J50: =K39 -> 200 | K50: =J39 -> 3 | L50: =K50/$L$33 -> 0.0006 | M50: =L50*J50 -> 0.12 | S50: =T39 -> 400 | T50: =S39 -> 3 | U50: =T50/2000 -> 0.0015 | V50: =U50*S50 -> 0.6
D51: 7 | J51: =K40 -> 10 | K51: =J40 -> 5 | L51: =K51/$L$33 -> 0.001 | M51: =L51*J51 -> 0.01 | S51: =T40 -> 60 | T51: =S40 -> 5 | U51: =T51/2000 -> 0.0025 | V51: =U51*S51 -> 0.15
D52: 7 | J52: =K41 -> 5 | K52: =J41 -> 20 | L52: =K52/$L$33 -> 0.004 | M52: =L52*J52 -> 0.02 | S52: =T41 -> 5 | T52: =S41 -> 20 | U52: =T52/2000 -> 0.01 | V52: =U52*S52 -> 0.05
D53: 9 | E53: Mode = | F53: =IFERROR(_xlfn.MODE.MULT(D47:D56),"No Mode") -> 9 | J53: =K42 -> 0 | K53: =J42 -> 0 | L53: =K53/$L$33 -> 0 | M53: =L53*J53 -> 0 | S53: =T42 -> 0 | T53: =S42 -> 0 | U53: =T53/2000 -> 0 | V53: =U53*S53 -> 0
D54: 9 | L54: E(X) | M54: =SUM(M49:M53) -> 0.27 | U54: E(X) | V54: =SUM(V49:V53) -> 1.4
D55: 9
D56: 13 | I56: You paid $1, you get back : | L56: =M54 -> 0.27 | M56: gain/Loss: | N56: =M54-1 -> -0.73 | O56: (Loss ) | S56: You paid $1, and you get back : | T56: =V54 -> 1.4 | U56: Your gain/Loss: | V56: =V54-1 -> 0.4 | W56: (profit)

Sheet 7) 5.2b
B2: Section 5.2, #9 | J2: Section 5.5, similar to #5 | Q2: Value of X | R2: P
B3: Two coins are randomly selected from two quarters and two dimes. A random variable | J3: Find the expected value and the standard deviation for the probability density function: | Q3: 1 | R3: 0.4
B4: is defined as the value of the coins (in cents). Find the expected value of X. | J4: Solution: | Q4: 2 | R4: 0.3
B5: Outcomes | C5: x =Cents | D5: p | F5: x.p | J5: Value of X | K5: P | L5: x.p | Q5: 4 | R5: 0.2
B6: 2 Q | C6: 50 | D6: C(2,2) / C(4,2) = | E6: =1/6 -> 0.1666666667 | F6: =IF(B6="","",E6*C6) -> 8.333333333 | J6: 1 | K6: 0.4 | L6: =IF(K6="","",K6*J6) -> 0.4 | Q6: 6 | R6: 0.1
B7: 1 Q. 1 D | C7: 35 | D7: C(2,1). C(2,1) / C(4,2) = | E7: =4/6 -> 0.6666666667 | F7: =IF(B7="","",E7*C7) -> 23.33333333 | J7: 2 | K7: 0.3 | L7: =IF(K7="","",K7*J7) -> 0.6
B8: 2 D | C8: 20 | D8: C(2,2) / C(4,2) = | E8: =1/6 -> 0.1666666667 | F8: 3.333333333 | J8: 4 | K8: 0.2 | L8: 0.8
E9: µ | F9: =SUM(F6:F8) -> 35 | G9: cents | J9: 6 | K9: 0.1 | L9: 0.6
K10: Expected Value µ | L10: =SUM(L6:L9) -> 2.4
B11: Similar Example:
B12: Two coins are randomly selected from two nickels and six quarters. A random variable | J12: x | K12: p | L12: x.p | M12: x - µ | N12: (x - µ)2 | O12: p.(x - µ )2
B13: is defined as the value of the coins (in cents). Find the expected value of X. | J13: 1 | K13: 0.4 | L13: =IF(J13="","",K13*J13) -> 0.4 | M13: =IF(J13="","",J13-$L$17) -> -1.4 | N13: =IF(J13="","",M13^2) -> 1.96 | O13: =IF(K13="","",K13*N13) -> 0.784
B14: Outcomes | C14: x =Cents | D14: p | F14: x.p | J14: 2 | K14: 0.3 | L14: =IF(J14="","",K14*J14) -> 0.6 | M14: =IF(J14="","",J14-$L$17) -> -0.4 | N14: =IF(J14="","",M14^2) -> 0.16 | O14: =IF(K14="","",K14*N14) -> 0.048
B15: 2 Q | C15: 50 | D15: C(6,2) / C(8,2) = | E15: =15/28 -> 0.5357142857 | F15: =IF(B15="","",E15*C15) -> 26.78571429 | J15: 4 | K15: 0.2 | L15: =IF(J15="","",K15*J15) -> 0.8 | M15: =IF(J15="","",J15-$L$17) -> 1.6 | N15: =IF(J15="","",M15^2) -> 2.56 | O15: =IF(K15="","",K15*N15) -> 0.512
B16: 1 Q. 1 N | C16: 30 | D16: C(6,1). C(2,1) / C(8,2) = | E16: =12/28 -> 0.4285714286 | F16: =IF(B16="","",E16*C16) -> 12.85714286 | J16: 6 | K16: 0.1 | L16: =IF(J16="","",K16*J16) -> 0.6 | M16: =IF(J16="","",J16-$L$17) -> 3.6 | N16: =IF(J16="","",M16^2) -> 12.96 | O16: =IF(K16="","",K16*N16) -> 1.296
B17: 2 N | C17: 10 | D17: C(2,2) / C(8,2) = | E17: =1/28 -> 0.03571428571 | F17: 0.3571428571 | K17: µ | L17: =SUM(L13:L16) -> 2.4 | N17: Var | O17: =SUM(O13:O16) -> 2.64
E18: µ | F18: =SUM(F15:F17) -> 40 | G18: cents | N18: Std Dev | O18: =SQRT(O17) -> 1.624807681
B21: Section 5.5, #3 | J21: Full Example
B22: Two coins are selected at random from a pocket containing three quarters, two dimes, | J22: An experiment consists of flipping a coin with P(H) = 1/3 until a total of two heads occur or two tails occur.
B23: and one nickel. What is the expected amount in cents of the two coins selected? | J23: A random variable X is defined as the number of times the coin was flipped. Find the expected value of X
B24: Outcomes | C24: x =Cents | D24: p | F24: x.p | J24: Outcomes | K24: x = N | L24: p | N24: x.p
B25: 2 Q | C25: 50 | D25: C(3,2) / C(6,2) = | E25: =3/15 -> 0.2 | F25: =IF(B25="","",E25*C25) -> 10 | J25: 2 H | K25: 2 | L25: 1/3.1/3 = | M25: =1/9 -> 0.1111111111 | N25: =IF(J25="","",M25*K25) -> 0.2222222222
B26: 2 D | C26: 20 | D26: C(2,2) / C(6,2) = | E26: =1/15 -> 0.06666666667 | F26: =IF(B26="","",E26*C26) -> 1.333333333 | J26: 2 H, 1T | K26: 3 | L26: 2.(1/3.1/3.2/3) = | M26: =4/27 -> 0.1481481481 | N26: =IF(J26="","",M26*K26) -> 0.4444444444
B27: 1 Q, 1 D | C27: 35 | D27: C(3,1). C(2,1) / C6,2) = | E27: =6/15 -> 0.4 | F27: 14 | J27: 2 T, 1 H | K27: 3 | L27: 2.(2/3.2/3.1/3) = | M27: =8/27 -> 0.2962962963 | N27: 0.8888888889
B28: 1 Q, 1 N | C28: 30 | D28: C(2,1). C(1,1) / C6,2) = | E28: =3/15 -> 0.2 | F28: 6 | J28: 2 T | K28: 2 | L28: 2/3 . 2/3 = | M28: =4/9 -> 0.4444444444 | N28: 0.8888888889
B29: 1 D, 1 N | C29: 15 | D29: C(3,1). C(1,1) / C6,2) = | E29: =2/15 -> 0.1333333333 | F29: 2 | M29: µ | N29: =SUM(N25:N28) -> 2.444444444
E30: µ | F30: =SUM(F25:F29) -> 33.33333333 | G30: cents
J31: To find the variance and Standard deviation: | AP31: x | AQ31: p | AR31: x.p | AS31: x - µ | AT31: (x - µ)2 | AU31: p.(x - µ )2
AP32: 2 | AQ32: =1/9 -> 0.1111111111 | AR32: =IF(AP32="","",AQ32*AP32) -> 0.2222222222 | AS32: =IF(AP32="","",AP32-$N$29) -> -0.4444444444 | AT32: =IF(AP32="","",AS32^2) -> 0.1975308642 | AU32: =IF(AQ32="","",AQ32*AT32) -> 0.0219478738
AP33: 3 | AQ33: =4/27 -> 0.1481481481 | AR33: =IF(AP33="","",AQ33*AP33) -> 0.4444444444 | AS33: =IF(AP33="","",AP33-$N$29) -> 0.5555555556 | AT33: =IF(AP33="","",AS33^2) -> 0.3086419753 | AU33: =IF(AQ33="","",AQ33*AT33) -> 0.04572473708
AP34: 3 | AQ34: =8/27 -> 0.2962962963 | AR34: =IF(AP34="","",AQ34*AP34) -> 0.8888888889 | AS34: 0.5555555556 | AT34: =IF(AP34="","",AS34^2) -> 0.3086419753 | AU34: =IF(AQ34="","",AQ34*AT34) -> 0.09144947417
AP35: 2 | AQ35: =4/9 -> 0.4444444444 | AR35: =IF(AP35="","",AQ35*AP35) -> 0.8888888889 | AS35: -0.4444444444 | AT35: =IF(AP35="","",AS35^2) -> 0.1975308642 | AU35: =IF(AQ35="","",AQ35*AT35) -> 0.0877914952
P36: Note: if it was a fair coin, then | AQ36: µ | AR36: =SUM(AR32:AR35) -> 2.444444444 | AT36: Var | AU36: =SUM(AU32:AU35) -> 0.2469135802
P37: P(H) and P(T) are equal to 1/2. | AT37: Std Dev | AU37: =SQRT(AU36) -> 0.496903995

Sheet 8) 5.3
B2: First, read the example below, then use the template to solve a problem. | Q2: Fill Green Cells Only
B3: Example: | E3: Let X to be a normal variable with mean 400 and standard deviation 40. Find the following cases: | N3: Section 5.3: Random Variable Template | Z3: Example 1: | AA3: A teacher says that the top | AB3: 0.15 | AC3: will received an A on the last test.
AA4: If the mean is: | AB4: 75 | AQ4: =100-(AB3*100) -> 85 | AR4: =AQ4/100 -> 0.85
B5: Given: | N5: Given: | S5: Fill | AA5: and standard deviation | AB5: 8 | AR5: =IF(AB3="","",IF(OR(AR4>0.97,AR4<0.05,AR4=19),NORMSINV(AR4+0.0001),IF(AR4<>0,NORMSINV(AR4+0.001),NORMSINV(AR4+0.0007)))) -> 1.040731886 | AT5: =IF(AR8<0,LEFT(AR8,4),LEFT(AR8,3)) -> 1.0
D6: Expected Value, Mean = | G6: 400 | P6: Expected Value, Mean = | S6: 100 | AA6: Find the minimum score required to get an A. | AR6: 0 | AT6: =IF(AND(AR8>=0,AR4=3),0,IF(AND(AR8<0,AR4=5),0,IF(AND(AR8>=0,AR4=1),0,IF(AND(AR8<0,AR4=3),0,RIGHT(AR8,1))))) -> 4
D7: Standard Deviation = | G7: 40 | P7: Standard Deviation = | S7: 10 | AR7: 0
Z8: Solution: | AA8: We usually use the Z-score table to find the probability (area to the left) | AR8: =IF(OR(AR4="",AR4>=100%,AR4<=0,AR6<>AR7),"",ROUND(AR5,2)) -> 1.04
AA9: Given, the right area or top: | AB9: =AB3 -> 0.15 | AD9: So, the left area is: | AE9: =1-AB3 -> 0.85 | AR9: =IF(AB3="","",IF(OR(AR4>0.97,AR4<0.05,AR4=19),NORMSINV(AR4+0.0001),IF(AR4<>0,NORMSINV(AR4+0.002),NORMSINV(AR4+0.0007)))) -> 1.0450497
D10: To find Z-score: | E10: If x = | F10: 350 | G10: =" Then Z = ("&F10&" - "&G6&") / "&G7 -> Then Z = (350 - 400) / 40 | P10: To find Z-score: | Q10: If x = | R10: 120 | S10: =IF(OR(S6="",S7="",R10=""),"", " Then Z = ("&R10&" - "&S6&") / "&S7) -> Then Z = (120 - 100) / 10
G11: Z = | H11: =(F10-G6)/G7 -> -1.25 | S11: =IF(T11="",""," Z = ") -> Z = | T11: =IF(OR(S6="",S7="",R10=""),"",(R10-S6)/S7) -> 2 | AB11: Using the table backward, the closest to: | AC11: =AE9 -> 0.85 | AD11: is: | AE11: =ROUND(NORMSDIST(AR8),4) -> 0.8508
AD12: is in row: | AE12: =AT5 -> 1.0
C13: Case 1: | E13: Pr ( x < 350) | O13: Case 1: at most | Q13: Pr( x < a) | AD13: Column: | AE13: =AT6/100 -> 0.04
V14: Answer: | AD14: Or, Z-score: | AE14: =IF(OR(AR4="",AR4>=100%,AR4<=0,AR6<>AR7),"",ROUND(AR5,2)) -> 1.04 | AI14: =IF(S15="","",ROUND(S15,2)) -> 2
N15: Pr( x < | P15: 120 | Q15: or | R15: P ( Z < | S15: =IF(OR(S6="",S7="",P15=""),"",(P15-S6)/S7) -> 2 | T15: P = | V15: =IF(OR(S6="",S7="",P15=""),"",NORMSDIST(AI14)) -> 0.9772498681 | AA15: The Z-Score formula is:
J16: Answer: | V16: =V15 -> 0.9772498681
D17: Pr( x < | E17: 350 | F17: or P ( Z < | G17: -1.25 | H17: P = | J17: 0.1056
AA18: =AE14&" = (x - "&AB4&" ) / "&AB5 -> 1.04 = (x - 75 ) / 8 | AB18: Solve for x : | AD18: =AE14*AB5+AB4 -> 83.32
C20: Case 2: | E20: Pr (x > 420) | O20: Case 2: at least | Q20: Pr( x > b)
V21: Answer: | Z21: Example 2: | AA21: Assume that the readings on the thermometers are normally distributed with:
J23: Answer: | N23: Pr( x > | P23: 120 | Q23: or | R23: P( Z > | S23: =IF(OR(S6="",S7="",P23=""),"",(P23-S6)/S7) -> 2 | T23: P = | V23: =IF(OR(S6="",S7="",P23=""),"",1-NORMSDIST(AI23)) -> 0.02275013195 | AA23: If the mean is: | AB23: 0 | AI23: =IF(S23="","",ROUND(S23,2)) -> 2
D24: Pr( x > | E24: 420 | F24: or P ( Z > | G24: 0.5 | H24: P = | J24: 0.3085 | V24: =V23 -> 0.02275013195 | AA24: and standard deviation | AB24: 1
Z26: A thermometer is randomly selected and tested. find the temperature reading corresponding
AA27: to | AB27: 0.89 | AC27: percentile.
C28: Case 3: | E28: Pr (360 < x < 410) | O28: Case 3: between | Q28: Pr( a < x < b) | AQ28: =(AB27*100) -> 89 | AR28: =AQ28/100 -> 0.89
Z29: Solution: | AB29: Using the table backward, the closest to: | AC29: =AB27 -> 0.89 | AD29: is: | AE29: =ROUND(NORMSDIST(AR32),4) -> 0.8907 | AR29: =IF(AB27="","",IF(OR(AR28>0.97,AR28<0.05,AR28=19),NORMSINV(AR28+0.0001),IF(AR28<>0,NORMSINV(AR28+0.001),NORMSINV(AR28+0.0007)))) -> 1.231863709 | AT29: =IF(AR32<0,LEFT(AR32,4),LEFT(AR32,3)) -> 1.2
O30: 75 | P30: < x < | Q30: 105 | R30: =IF(OR(S6="",S7="",O30=""),"",(O30-S6)/S7) -> -2.5 | S30: < Z < | T30: =IF(OR(S6="",S7="",Q30=""),"",(Q30-S6)/S7) -> 0.5 | AD30: is in row: | AE30: =AT29 -> 1.2 | AI30: =IF(R30="","",ROUND(R30,2)) -> -2.5 | AJ30: =IF(T30="","",ROUND(T30,2)) -> 0.5 | AR30: 0 | AT30: =IF(AND(AR32>=0,AR28=3),0,IF(AND(AR32<0,AR28=5),0,IF(AND(AR32>=0,AR28=1),0,IF(AND(AR32<0,AR28=3),0,RIGHT(AR32,1))))) -> 3
AD31: Column: | AE31: =AT30/100 -> 0.03 | AR31: 0
B32: 360 | D32: < x < | E32: 410 | F32: -1 | G32: < Z < | H32: 0.25 | R32: =IF(OR(S6="",S7="",O30="",Q30=""),"",NORMSDIST(AI30)) -> 0.006209665326 | S32: < P < | T32: =IF(OR(S6="",S7="",O30="",Q30=""),"",NORMSDIST(AJ30)) -> 0.6914624613 | AD32: Or, Z-score: | AE32: =IF(OR(AR28="",AR28>=100%,AR28<=0,AR30<>AR31),"",ROUND(AR29,2)) -> 1.23 | AR32: =IF(OR(AR28="",AR28>=100%,AR28<=0,AR30<>AR31),"",ROUND(AR29,2)) -> 1.23
F33: 0.1586552539 | G33: < P < | H33: 0.5987063257 | J33: Answer: | Z33: The Z-Score formula is: | AR33: =IF(AB27="","",IF(OR(AR28>0.97,AR28<0.05,AR28=19),NORMSINV(AR28+0.0001),IF(AR28<>0,NORMSINV(AR28+0.002),NORMSINV(AR28+0.0007)))) -> 1.237234599
H34: P = | J34: 0.4401 | P34: =IF(V34<0,"Error, negative answer","") ->  | S34: Answer: | T34: P = | V34: =IF(OR(R32="",T32=""),"",(T32-R32)) -> 0.6852527959
V35: =V34 -> 0.6852527959 | AA35: =AE32&" = (x - "&AB23&" ) / "&AB24 -> 1.23 = (x - 0 ) / 1 | AB35: Solve for x : | AD35: =AE32*AB24+AB23 -> 1.23
D37: The above is just an example already filled and solved

Sheet 9) Sec 5.4
B1: First, read the example below, then use the template on the right | N1: Fill the Green cell only.
B2: Example: | D2: A coin with Pr(Tails) = 0.4 flipped 200 times. Find the probability of the 4 cases below: | N2: Section 5.4: The Normal Approximation Method Template
B4: Given: | H4: Then: | N4: Given: | Q4: Fill | T4: Then:
D5: n = | E5: 200 | H5: q = 1- p | J5: 0.6 | P5: n = | T5: q = 1- p | U5: = | V5: =IF(Q6="","",1-Q6) -> 
D6: Pr = | E6: 0.4 | J6: 80 | P6: Pr = | U6: = | V6: =IF(OR(Q5="",Q6=""),"",Q5*Q6) -> 
J7: 6.928 | Q7: =IF(Q6>1,"Pr error","") ->  | U7: = | V7: =IF(OR(Q5="",Q6=""),"",SQRT(Q5*Q6*(1-Q6))) -> 
C10: Case 1: | E10: Getting at Most 65 tails | O10: Case 1: | Q10: At Most
D12: Original | F12: Approximation | P12: Original | R12: Approximation
D13: Pr( x < | E13: 65 | F13: x < | G13: 65.5 | J13: Answer: | P13: Pr( x < | R13: x < | S13: =IF(Q13="","",Q13+0.5) ->  | V13: Answer:
F14: Z < | G14: -2.092894726 | I14: P = | J14: 0.018 | R14: Z < | S14: =IF(OR(Q5="",Q6="",Q13=""),"",(S13-V6)/V7) ->  | U14: P = | V14: =IF(OR(Q5="",Q6="",Q13=""),"",NORMSDIST(Z14)) ->  | Z14: =IF(S14="","",ROUND(S14,2)) -> 
C17: Case 2: | E17: Getting at Least 65 tails | O17: Case 2: | Q17: At Least
D19: Original | F19: Approximation | P19: Original | R19: Approximation
D20: Pr( x > | E20: 65 | F20: x > | G20: 64.5 | J20: Answer: | P20: Pr( x > | R20: x > | S20: =IF(Q20="","",Q20-0.5) ->  | V20: Answer:
F21: Z > | G21: -2.237232293 | I21: P = | J21: 0.987 | R21: Z > | S21: =IF(OR(Q5="",Q6="",Q20=""),"",(S20-V6)/V7) ->  | U21: P = | V21: =IF(OR(Q5="",Q6="",Q20=""),"",1-NORMSDIST(Z21)) ->  | Z21: =IF(S21="","",ROUND(S21,2)) -> 
C24: Case 3: | E24: Getting Exactly 65 tails | O24: Case 3: | Q24: Exactly
D26: Original | F26: Approximation | P26: Original | R26: Approximation
D27: Pr( x = | E27: 65 | F27: 64.5 | G27: < x < | H27: 65.5 | P27: Pr( x = | R27: =IF(Q27="","",Q27-0.5) ->  | S27: < x < | T27: =IF(Q27="","",Q27+0.5) -> 
F28: -2.237232293 | G28: < Z < | H28: -2.092894726 | J28: Answer: | R28: =IF(OR(Q5="",Q6="",Q27=""),"",(R27-V6)/V7) ->  | S28: < Z < | T28: =IF(OR(Q5="",Q6="",Q27=""),"",(T27-V6)/V7) ->  | V28: Answer: | Z28: =IF(R28="","",ROUND(R28,2)) ->  | AB28: =IF(T28="","",ROUND(T28,2)) -> 
F29: 0.01263558089 | G29: < P < | H29: 0.01817927659 | I29: P = | J29: 0.006 | R29: =IF(OR(Q5="",Q6="",Z28=""),"",NORMSDIST(R28)) ->  | S29: < P < | T29: =IF(OR(Q5="",Q6="",Q27=""),"",NORMSDIST(AB28)) ->  | U29: P = | V29: =IF(OR(R29="",T29=""),"",ABS(R29-T29)) -> 
C32: Case 4: | E32: Getting Between 65 and 100 tails | O32: Case 4: | Q32: Between | V32: =IF(V37<0,"Error, negative answer","") -> 
C34: Original | F34: Approximation | P34: Original | R34: Approximation
C35: 65 | D35: < x < | E35: 100 | F35: 64.5 | G35: < x < | H35: 100.5 | P35: < x < | R35: =IF(O36="","",O36-0.5) ->  | S35: < x < | T35: =IF(Q36="","",Q36+0.5) -> 
F36: -2.237232293 | G36: < Z < | H36: 2.95892013 | J36: Answer: | R36: =IF(OR(Q5="",Q6="",O36=""),"",(R35-V6)/V7) ->  | S36: < Z < | T36: =IF(OR(Q5="",Q6="",Q36=""),"",(T35-V6)/V7) ->  | V36: Answer: | Z36: =IF(R36="","",ROUND(R36,2)) ->  | AB36: =IF(T36="","",ROUND(T36,2)) -> 
F37: 0.01263558089 | G37: < P < | H37: 0.9984564045 | I37: P = | J37: 0.986 | R37: =IF(OR(Q5="",Q6="",O36=""),"",NORMSDIST(Z36)) ->  | S37: < P < | T37: =IF(OR(Q5="",Q6="",Q36=""),"",NORMSDIST(AB36)) ->  | U37: P = | V37: =IF(OR(R37="",T37=""),"",(T37-R37)) -> 
D40: The above is just an example already filled and solved

Sheet 9) Sec 5.4b
B1: First, read the example below, then use the template on the right | N1: Fill the Green cell only.
B2: Example: | E2: A coin with Pr(Tails) = 0.4 flipped 200 times. Find the probability of the 4 cases below: | N2: Section 5.4: The Normal Approximation Method Template
B4: Given: | H4: Then: | N4: Given: | Q4: Fill | T4: Then:
D5: n = | E5: 200 | H5: q = 1- p | J5: 0.6 | P5: n = | T5: q = 1- p | U5: = | V5: =IF(Q6="","",1-Q6) -> 
D6: Pr = | E6: 0.4 | J6: 80 | P6: Pr = | U6: = | V6: =IF(OR(Q5="",Q6=""),"",Q5*Q6) -> 
J7: 6.928 | Q7: =IF(Q6>1,"Pr error","") ->  | U7: = | V7: =IF(OR(Q5="",Q6=""),"",SQRT(Q5*Q6*(1-Q6))) -> 
C10: Case 1: | E10: getting at most 65 tails; Pr ( x < 65) or Pr( x < 65.5) | O10: Case 1: | Q10: At Most
F12: Probability Of: | P12: Original | R12: Approximation
D13: Pr( x < | E13: 65 | F13: x < | G13: 65.5 | J13: Answer: | P13: Pr( x < | R13: x < | S13: =IF(Q13="","",Q13+0.5) ->  | V13: Answer:
F14: Z < | G14: -2.092894726 | I14: P = | J14: 0.018 | R14: Z < | S14: =IF(OR(Q5="",Q6="",Q13=""),"",(S13-V6)/V7) ->  | U14: P = | V14: =IF(OR(Q5="",Q6="",Q13=""),"",NORMSDIST(Z14)) ->  | Z14: =IF(S14="","",ROUND(S14,2)) -> 
C17: Case 2: | E17: getting at least 65 tails; Pr ( x > 65) or Pr( x > 64.5) | O17: Case 2: | Q17: At Least
F19: Normal Approx. | P19: Original | R19: Approximation
D20: Pr( x > | E20: 65 | F20: x > | G20: 64.5 | J20: Answer: | P20: Pr( x > | R20: x > | S20: =IF(Q20="","",Q20-0.5) ->  | V20: Answer:
F21: Z > | G21: -2.237232293 | I21: P = | J21: 0.987 | R21: Z > | S21: =IF(OR(Q5="",Q6="",Q20=""),"",(S20-V6)/V7) ->  | U21: P = | V21: =IF(OR(Q5="",Q6="",Q20=""),"",1-NORMSDIST(Z21)) ->  | Z21: =IF(S21="","",ROUND(S21,2)) ->  | AD21: Example 1 : A coin with Pr[Tails] = 0.4 is flipped 200 times. Find the probabilty:
C24: Case 3: | E24: getting 65 tails; Pr ( x = 65) or Pr( 64.5 < x < 65.5) | O24: Case 3: | Q24: Exactly | AD24: a) of getting between 65 and 100 tails b) of getting exactly 65 tails | AH24: Answer: Answer: | AI24: 0.9859 0.0057
AD25: c) of getting at least 65 tails | AH25: Answer: | AI25: 0.9875
F26: Normal Approx. | P26: Original | R26: Approximation
D27: Pr( x = | E27: 65 | F27: 64.5 | G27: < x < | H27: 65.5 | P27: Pr( x = | R27: =IF(Q27="","",Q27-0.5) ->  | S27: < x < | T27: =IF(Q27="","",Q27+0.5) ->  | AD27: d) of getting at most 100 tails | AH27: Answer: | AI27: 0.9985
F28: -2.237232293 | G28: < Z < | H28: -2.092894726 | J28: Answer: | R28: =IF(OR(Q5="",Q6="",Q27=""),"",(R27-V6)/V7) ->  | S28: < Z < | T28: =IF(OR(Q5="",Q6="",Q27=""),"",(T27-V6)/V7) ->  | V28: Answer: | Z28: =IF(R28="","",ROUND(R28,2)) ->  | AB28: =IF(T28="","",ROUND(T28,2)) ->  | AD28: Example 2 : Assume that IQ scores are normally distributed with mean 100 and standard deviation 15. What is the probability that a randomly chosen person will have an IQ at most 105? Answer: Expected value and standard deviation are given. Therefore No approximation to be used. Find Z-score, then use the table, and you will get 0.6293
F29: 0.01263558089 | G29: < P < | H29: 0.01817927659 | I29: P = | J29: 0.006 | R29: =IF(OR(Q5="",Q6="",Z28=""),"",NORMSDIST(R28)) ->  | S29: < P < | T29: =IF(OR(Q5="",Q6="",Q27=""),"",NORMSDIST(AB28)) ->  | U29: P = | V29: =IF(OR(R29="",T29=""),"",ABS(R29-T29)) -> 
C32: Case 4: | E32: getting between 65 and 100 tails; Pr ( 65 < x < 100) or Pr( 64.5 < x < 100.5) | O32: Case 4: | Q32: Between | V32: =IF(V37<0,"Error, negative answer","") -> 
AD33: Example 3. A fair pair of dice is rolled 138 times. Find the probability that the same point comes up on both dice at least 28 times. (Answer: 0.1515)
F34: Normal Approx. | P34: Original | R34: Approximation
D35: Pr of: | F35: 64.5 | G35: < x < | H35: 100.5 | P35: < x < | R35: =IF(O36="","",O36-0.5) ->  | S35: < x < | T35: =IF(Q36="","",Q36+0.5) -> 
C36: 65 | D36: < x < | E36: 100 | F36: -2.237232293 | G36: < Z < | H36: 2.95892013 | J36: Answer: | R36: =IF(OR(Q5="",Q6="",O36=""),"",(R35-V6)/V7) ->  | S36: < Z < | T36: =IF(OR(Q5="",Q6="",Q36=""),"",(T35-V6)/V7) ->  | V36: Answer: | Z36: =IF(R36="","",ROUND(R36,2)) ->  | AB36: =IF(T36="","",ROUND(T36,2)) ->  | AD36: Example 4. A fair die is rolled 140 times. Find the probability that itt comes up larger than 4 at least 55 times. (Answer: 0.0808)
F37: 0.01263558089 | G37: < P < | H37: 0.9984564045 | I37: P = | J37: 0.986 | R37: =IF(OR(Q5="",Q6="",O36=""),"",NORMSDIST(Z36)) ->  | S37: < P < | T37: =IF(OR(Q5="",Q6="",Q36=""),"",NORMSDIST(AB36)) ->  | U37: P = | V37: =IF(OR(R37="",T37=""),"",(T37-R37)) -> 
D40: The above is just an example already filled and solved

Sheet 10) 6.1
B2: Section 6.1 : Solving Graphically | I2: =IF(AND(C9=0,D9=0,F9=0),"","Line 1") -> Line 1 | O2: =IF(AND(C21=0,D21=0,F21=0),"","Line 2") -> Line 2 | U2: =IF(OR(I2="",O2=""),"","Line 1 & 2") -> Line 1 & 2 | X2: Select a Point
I3: =IF(I2="","","x-intercept") -> x-intercept | L3: =IF(I2="","","y-intercept") -> y-intercept | O3: =IF(O2="","","x-intercept") -> x-intercept | R3: =IF(O2="","","y-intercept") -> y-intercept | U3: =IF(U2="","","Intersection Point") -> Intersection Point | X3: x | Z3: y | AM3: =IF(AND(J3="",K3=""),"",IF($O$2="Line 1",$AS$4*$J$3,IF($O$2="Line 2",$AW$4*$J$3,IF($O$2="Line 3",$BA$4*$J$3,IF($O$2="Line 4",$BE$4*$J$3,""))))) ->  | AN3: =IF(AND(J3="",K3=""),"",IF($R$2="Line 1",$AT$5*$K$3,IF($R$2="Line 2",$AX$5*$K$3,IF($R$2="Line 3",$BB$5*$K$3,IF($R$2="Line 4",$BF$5*$K$3,""))))) ->  | AO3: =IF(AND(J3="",K3=""),"",IF(OR(BL29="",BM29="",,BL29="N.S."),"",$BL$29*$J$3+$BM$29*$K$3)) ->  | AP3: =IF(AND(J3="",K3=""),"",IF(OR(BL32="",BM32="",BL32="N.S."),"",$BL$32*$J$3+$BM$32*$K$3)) ->  | AR3: =IF(BJ12="","","Line 1") -> Line 1 | AS3: =IF(BJ12="","","x") -> x | AT3: =IF(BJ12="","","y") -> y | AU3: =AX9 -> R | AV3: =IF(BJ13="","","Line 2") -> Line 2 | AW3: =IF(BJ13="","","x") -> x | AX3: =IF(BJ13="","","y") -> y | AY3: =AX16 -> R | AZ3: =IF(BJ14="","","Line 3") ->  | BA3: =IF(BJ14="","","x") ->  | BB3: =IF(BJ14="","","y") ->  | BC3: =AX33 -> None | BD3: =IF(BJ15="","","Line 4") ->  | BE3: =IF(BJ15="","","x") ->  | BF3: =IF(BJ15="","","y") ->  | BG3: =AX41 -> None
C4: Fill Green Cells | I4: =IF(I2="","", "x = "&$BM$25) -> x = 1 | J4: =IF(I2="","", "y = 0") -> y = 0 | L4: =IF(I2="","", "x = 0") -> x = 0 | M4: =IF(I2="","", "y = "&$BM$26) -> y = 1.67 | O4: =IF(O2="","", "x = "&$BM$30) -> x = 1 | P4: =IF(O2="","", "y = 0") -> y = 0 | R4: =IF(O2="","", "x = 0") -> x = 0 | S4: =IF(O2="","", "y = "&$BM$31) -> y = 0.4 | U4: =IF(U2="","", "x = "&$BL$29) -> x = 1 | V4: =IF(U2="","", "y = "&$BM$29) -> y = 0 | AL4: =IF(AND(X4="",Z4=""),"","Selected") ->  | AM4: =IF(X4="",0,X4) -> 0 | AR4: =IF(AR3="","","x-intercept") -> x-intercept | AS4: =IF(AX9="H","",IF($C$9+$D$9+$F$9=0,"",IF($D$9=0,$F$9/$C$9,IF($D$9="","",IF($C$9=0,0,$F$9/$C$9))))) -> 1 | AT4: =IF(OR(AX9="H",$BJ$12=""),"",0) -> 0 | AV4: =IF(AV3="","","x-intercept") -> x-intercept | AW4: =IF(AX16="H","",IF($C$21+$D$21+$F$21=0,"",IF($D$21=0,$F$21/$C$21,IF($D$21="","",IF($C$21=0,0,$F$21/$C$21))))) -> 1 | AX4: =IF(OR(AX16="H",$BJ$13=""),"",0) -> 0 | AZ4: =IF(AZ3="","","x-intercept") ->  | BA4: =IF(AX33="H","",IF($C$33+$D$33+$F$33=0,"",IF($D$33=0,$F$33/$C$33,IF($D$33="","",IF($C$33=0,0,$F$33/$C$33))))) ->  | BB4: =IF(OR(AX33="H",$BJ$14=""),"",0) ->  | BD4: =IF(BD3="","","x-intercept") ->  | BE4: =IF(AX41="H","",IF($C$45+$D$45+$F$45=0,"",IF($D$45=0,$F$45/$C$45,IF($D$45="","",IF($C$45=0,0,$F$45/$C$45))))) ->  | BF4: =IF(OR(AX41="H",$BJ$15=""),"",0) -> 
AM5: =IF(Z4="",0,Z4) -> 0 | AR5: =IF(AR3="","","y-intercept") -> y-intercept | AS5: =IF(OR($BJ$12="",AX9="V"),"",0) -> 0 | AT5: =IF(AX9="V","",IF($C$9+$D$9+$F$9=0,"",IF($C$9=0,$F$9/$D$9,IF($D$9=0,0,IF($C$9="","",$F$9/$D$9))))) -> 1.666666667 | AV5: =IF(AV3="","","y-intercept") -> y-intercept | AW5: =IF(OR($BJ$13="",AX16="V"),"",0) -> 0 | AX5: =IF(AX16="V","",IF($C$21+$D$21+$F$21=0,"",IF($C$21=0,$F$21/$D$21,IF($D$21=0,0,IF($C$21="","",$F$21/$D$21))))) -> 0.4 | AZ5: =IF(AZ3="","","y-intercept") ->  | BA5: =IF(OR($BJ$14="",AX33="V"),"",0) ->  | BB5: =IF(AX33="V","",IF($C$33+$D$33+$F$33=0,"",IF($C$33=0,$F$33/$D$33,IF($D$33=0,0,IF($C$33="","",$F$33/$D$33))))) ->  | BD5: =IF(BD3="","","y-intercept") ->  | BE5: =IF(OR($BJ$15="",AX41="V"),"",0) ->  | BF5: =IF(AX41="V","",IF($C$45+$D$45+$F$45=0,"",IF($C$45=0,$F$45/$D$45,IF($D$45=0,0,IF($C$45="","",$F$45/$D$45))))) -> 
AY7: Slope
B8: Line 1 | C8: x | D8: y | AB8: =IF(O2="","","Case") -> Case | AJ8: Intersection Points: | AT8: x | AU8: x | AV8: x | BB8: Line 1_Line 2
C9: 5 | D9: 3 | E9: = | F9: 5 | AB9: =IF(O2="","",IF(AK13="Dep","Consistent, Dependent, Infinite Number of Solutions",IF(AK13="N.S.","Inconsistent, Independent, No solution","Consistent, Independent, one solution"))) -> Consistent, Independent, one solution | AT9: =IF(AND(F9=0,D9=0),0,IF($AX$9="H",$AT$12*-4,IF($AX$9="V",$AT$12,IF($D$14="","",ROUND($D$14,2))))) -> -5 | AU9: =IF(AND(F9=0,D9=0),0,IF($AX$9="H",$AT$12*4,IF($AX$9="V",$AT$12,IF($D$15="","",ROUND($D$15,2))))) -> 0 | AV9: =IF(AND(F9=0,D9=0),0,IF($AX$9="H",$AT$12*8,IF($AX$9="V",$AT$12,IF($D$16="","",ROUND($D$16,2))))) -> 5 | AW9: =AJ13 -> 1 | AX9: =IF(AND(C9=0,D9=0,F9=0),"None",IF(E12="Vertical Line","V",IF(E12="Horizontal Line","H","R"))) -> R | AY9: =IF(AND(F9=0,D9=0),"",IF(AND(C9=0,D9=0,F9<>0),"",IF(AND(C9=0,D9=0,F9=0),"",IF(E12="",(-1*C9)/D9,"")))) -> -1.666666667 | BB9: =MMULT(MINVERSE($BB$12:$BC$13), $BD$12:$BD$13) -> 1
C10: =IF(C9+D9+F9=0,"",IF(OR(C9=0,C9=""),"0 x",ROUND(C9,2)&" x")) -> 5 x | D10: =IF(C9+D9+F9=0,"",IF(OR(D9=0,D9=""),"+ 0 y",IF(D9>0,"+ "&ROUND(D9,2)&" y",D9&" y"))) -> + 3 y | E10: =IF(E9="","",IF(C9+D9+F9=0,"",E9)) -> = | F10: =IF(C9+D9+F9=0,"",F9) -> 5 | AT10: =IF(AND(F9=0,D9=0),0,IF($AX$9="H",$AT$12,IF($AX$9="v",-4*$AT$12,IF($D$9="","",IF($D$9=0,$C$9,IF($D$14="","",($D$14*-$C$9+$F$9)/$D$9)))))) -> 10 | AU10: =IF(AND(F9=0,D9=0),0,IF($AX$9="H",$AT$12,IF($AX$9="v",4*$AT$12,IF($D$9="","",IF($D$9=0,$C$9,IF($D$15="","",($D$15*-$C$9+$F$9)/$D$9)))))) -> 1.666666667 | AV10: =IF(AND(F9=0,D9=0),0,IF($AX$9="H",$AT$12,IF($AX$9="v",8*$AT$12,IF($D$9="","",IF($D$9=0,$C$9,IF($D$16="","",($D$16*-$C$9+$F$9)/$D$9)))))) -> -6.666666667 | AW10: =AK13 -> 0 | BB10: -1.110223025e-16
AJ11: =IF(BJ13="","","Line 1 and 2:") -> Line 1 and 2:
B12: =IF(AND(C9=0,D9=0,F9=0),"",IF(AND(C9=0,F9=0),"",IF(AND(C9=0,D9=0,F9<>0),"",IF(AND(D9=0,F9=0),"",IF(D9=0,"Isolate x:","Isolate y:"))))) -> Isolate y: | C12: =IF(AND(C9=0,D9=0,F9=0),"",IF(AND(C9=0,F9=0),"",IF(AND(D9=0,F9=0),"",IF(AND(C9=0,D9=0,F9<>0),"",IF(C9=0,"y = "&F9&"/"&D9&" = "&ROUND(F9/D9,2),IF(D9=0,"x = "&F9&"/"&C9&" = "&ROUND(F9/C9,2),IF(F9<0,"y = ("&-C9&" x "&F10&") / "&D9,"y = ("&-C9&" x + "&F10&") / "&D9))))))) -> y = (-5 x + 5) / 3 | E12: =IF(AND(C9=0,D9<>0,F9<>0),"Horizontal Line",IF(AND(C9<>0,D9=0,F9<>0),"Vertical Line",IF(AND(C9=0,D9=0,F9<>0),"No Solution",""))) ->  | G12: =IF(AND(C9=0,D9=0,F9<>0),"",IF(AY9="","",IF(AY9>0,"Rising Line",IF(AY9<0,"Falling Line","")))) -> Falling Line | AJ12: =IF(BJ13="","",IF(BB17="","","x")) -> x | AK12: =IF(BJ13="","",IF(BB18="","","y")) -> y | AT12: =IF(AX9="V",F9/C9,IF(AX9="H",F9/D9,"R")) -> R | BA12: 1 | BB12: =$C$9 -> 5 | BC12: =$D$9 -> 3 | BD12: =$F$9 -> 5 | BJ12: =IF(AND(C9=0,D9=0,F9=0),"","Line 1") -> Line 1
AJ13: =IF(AJ12="",0,IF(BB17="",0,BB17)) -> 1 | AK13: =IF(AK12="",0,IF(BB18="",0,BB18)) -> 0 | BA13: 2 | BB13: =$C$21 -> 2 | BC13: =$D$21 -> 5 | BD13: =$F$21 -> 2 | BJ13: =IF(AND(C21=0,D21=0,F21=0),"","Line 2") -> Line 2 | BK13: =IF($BJ$13="","",IF($BJ$13<>"","Line 1 & 2","")) -> Line 1 & 2 | BL13: =AJ13 -> 1 | BM13: =AK13 -> 0
B14: Enter Values | C14: x = | D14: -5 | F14: y = | G14: =IF(E12="Horizontal Line",F9/D9,IF(OR($E$12="No Solution",$G$12=""),"",AT10)) -> 10 | H14: =IF(OR($E$12="No Solution",$E$12="Vertical Line",$E$12="Horizontal Line",$AX$9="None"),"",IF(AND(D14=0,G14<>0,D14<>""),"Y Intercept",IF(AND(D14<>0,G14=0),"X Intercept",""))) ->  | BA14: 3 | BJ14: =IF(AND(C33=0,D33=0,F33=0),"","Line 3") ->  | BK14: =IF($BJ$14="","",IF($BJ$14<>"","Line 2 & 3","")) ->  | BL14: =AJ17 ->  | BM14: =AK17 -> 
C15: x = | D15: 0 | F15: y = | G15: =IF(E12="Horizontal Line",F9/D9,IF(OR($E$12="No Solution",$G$12=""),"",AU10)) -> 1.666666667 | H15: =IF(OR($E$12="No Solution",$E$12="Vertical Line",$E$12="Horizontal Line",$AX$9="None"),"",IF(AND(D15=0,G15<>0,D15<>""),"Y Intercept",IF(AND(D15<>0,G15=0),"X Intercept",""))) -> Y Intercept | AB15: =IF(O2="","",IF(AK13="Dep","y depends on x","")) ->  | AJ15: =IF(BJ14="","","Line 2 and 3:") ->  | AT15: Line 2 | AY15: Slope | BA15: 1 | BJ15: =IF(AND(C45=0,D45=0,F45=0),"","Line 4") ->  | BK15: =IF($BJ$14="","",IF($BJ$14<>"","Line 1 & 3","")) ->  | BL15: =AJ22 ->  | BM15: =AK22 -> 
C16: x = | D16: 5 | F16: y = | G16: =IF(E12="Horizontal Line",F9/D9,IF(OR($E$12="No Solution",$G$12=""),"",AV10)) -> -6.666666667 | H16: =IF(OR($E$12="No Solution",$E$12="Vertical Line",$E$12="Horizontal Line",$AX$9="None"),"",IF(AND(D16=0,G16<>0,D16<>""),"Y Intercept",IF(AND(D16<>0,G16=0),"X Intercept",""))) ->  | AJ16: =IF(BJ14="","","x") ->  | AK16: =IF(BJ14="","","y") ->  | AT16: =IF(AND(F21=0,D21=0),0,IF($AX$16="H",$AT$19*-4,IF($AX$16="V",$AT$19,IF($D$26="","",ROUND($D$26,2))))) -> -5 | AU16: =IF(AND(F21=0,D21=0),0,IF($AX$16="H",$AT$19*4,IF($AX$16="V",$AT$19,IF($D$27="","",ROUND($D$27,2))))) -> 0 | AV16: =IF(AND(F21=0,D21=0),0,IF($AX$16="H",$AT$19*8,IF($AX$16="V",$AT$19,IF($D$28="","",ROUND($D$28,2))))) -> 5 | AX16: =IF(AND(C21=0,D21=0,F21=0),"None",IF(E24="Vertical Line","V",IF(E24="Horizontal Line","H","R"))) -> R | AY16: =IF(AND(F21=0,D21=0),"",IF(AND(C21=0,D21=0,F21<>0),"",IF(AND(C21=0,D21=0,F21=0),"",IF(E24="",(-1*C21)/D21,"")))) -> -0.4 | BK16: =IF($BJ$15="","",IF($BJ$15<>"","Line 1 & 4","")) ->  | BL16: =AJ34 -> 0 | BM16: =AK34 -> 0
AB17: =IF(O2="","",IF(AK13="Dep",C12,"")) ->  | AJ17: =IF(AJ16="","",IF(BC17="","",BC17)) ->  | AK17: =IF(AK16="","",IF(BC18="","",BC18)) ->  | AT17: =IF(AND(F21=0,D21=0),0,IF($AX$16="H",$AT$19,IF($AX$16="v",-4*$AT$19,IF($D$21="","",IF($D$21=0,$C$21,IF($D$26="","",($D$26*-$C$21+$F$21)/$D$21)))))) -> 2.4 | AU17: =IF(AND(F21=0,D21=0),0,IF($AX$16="H",$AT$19,IF($AX$16="v",4*$AT$19,IF($D$21="","",IF($D$21=0,$C$21,IF($D$27="","",($D$27*-$C$21+$F$21)/$D$21)))))) -> 0.4 | AV17: =IF(AND(F21=0,D21=0),0,IF($AX$16="H",$AT$19,IF($AX$16="v",8*$AT$19,IF($D$21="","",IF($D$21=0,$C$21,IF($D$28="","",($D$28*-$C$21+$F$21)/$D$21)))))) -> -1.6 | BB17: =IF(AND(O2<>"",G14=G26,G15=G27,G16=G28),"Dep",IFERROR(BB9,"N.S.")) -> 1 | BK17: =IF($BJ$15="","",IF($BJ$15<>"","Line 2 & 4","")) ->  | BL17: =AJ39 -> 0 | BM17: =AK39 -> 0
AB18: =IF(O2="","",IF(AK13="Dep","x = any value","")) ->  | BB18: =IF(AND(O2<>"",G14=G26,G15=G27,G16=G28),"Dep",IF(BB17="N.S.","N.S.",ROUND(BB10,2))) -> 0 | BK18: =IF($BJ$15="","",IF($BJ$15<>"","Line 3 & 4","")) ->  | BL18: =AJ44 -> 0 | BM18: =AK44 -> 0
AT19: =IF(AX16="V",F21/C21,IF(AX16="H",F21/D21,"R")) -> R
B20: Line 2 | C20: x | D20: y | AJ20: =IF(BJ14="","","Line 1 and 3:") ->  | BK20: Line 1 | BL20: =$AS$4 -> 1 | BM20: =$AT$5 -> 1.666666667
C21: 2 | D21: 5 | E21: = | F21: 2 | AJ21: =IF(BJ14="","","x") ->  | AK21: =IF(BJ14="","","y") ->  | BB21: Line 1_Line 4 | BC21: Line 2_Line 4 | BD21: Line 3_Line 4 | BK21: Line 2 | BL21: =$AW$4 -> 1 | BM21: =$AX$5 -> 0.4
C22: =IF(C21+D21+F21=0,"",IF(OR(C21=0,C21=""),"0 x",ROUND(C21,2)&" x")) -> 2 x | D22: =IF(C21+D21+F21=0,"",IF(OR(D21=0,D21=""),"+ 0 y",IF(D21>0,"+ "&ROUND(D21,2)&" y",D21&" y"))) -> + 5 y | E22: =IF(E21="","",IF(C21+D21+F21=0,"",E21)) -> = | F22: =IF(C21+D21+F21=0,"",F21) -> 2 | AJ22: =IF(AJ21="","",IF(BD17="","",BD17)) ->  | AK22: =IF(AK21="","",IF(BD18="","",BD18)) ->  | BB22: =MMULT(MINVERSE($BB$25:$BC$26), $BE$25:$BE$26) ->  | BC22: =MMULT(MINVERSE($BB$31:$BC$32), $BE$31:$BE$32) ->  | BD22: =MMULT(MINVERSE($BB$38:$BC$39), $BE$38:$BE$39) ->  | BK22: Line 3 | BL22: =$BA$4 ->  | BM22: =$BB$5 -> 
BK23: Line 4 | BL23: =$BE$4 ->  | BM23: =$BF$5 -> 
B24: =IF(AND(C21=0,D21=0,F21=0),"",IF(AND(C21=0,F21=0),"",IF(AND(C21=0,D21=0,F21<>0),"",IF(AND(D21=0,F21=0),"",IF(D21=0,"Isolate x:","Isolate y:"))))) -> Isolate y: | C24: =IF(AND(C21=0,D21=0,F21=0),"",IF(AND(C21=0,F21=0),"",IF(AND(D21=0,F21=0),"",IF(AND(C21=0,D21=0,F21<>0),"",IF(C21=0,"y = "&F21&"/"&D21&" = "&ROUND(F21/D21,2),IF(D21=0,"x = "&F21&"/"&C21&" = "&ROUND(F21/C21,2),IF(F21<0,"y = ("&-C21&" x "&F22&") / "&D21,"y = ("&-C21&" x + "&F22&") / "&D21))))))) -> y = (-2 x + 2) / 5 | E24: =IF(AND(C21=0,D21<>0,F21<>0),"Horizontal Line",IF(AND(C21<>0,D21=0,F21<>0),"Vertical Line",IF(AND(C21=0,D21=0,F21<>0),"No Solution",""))) ->  | G24: =IF(AND(C21=0,D21=0,F21<>0),"",IF(AY16="","",IF(AY16>0,"Rising Line",IF(AY16<0,"Falling Line","")))) -> Falling Line
BA25: 1 | BB25: =$C$9 -> 5 | BC25: =$D$9 -> 3 | BE25: =$F$9 -> 5 | BK25: Line 1 | BL25: =IFERROR(VLOOKUP(BK25,BK20:BM23,2,FALSE),"") -> 1 | BM25: =IF(BL25="","",ROUND(BL25,2)) -> 1
B26: Enter Values | C26: x = | D26: -5 | F26: y = | G26: =IF(E24="Horizontal Line",F21/D21,IF(OR($E$24="No Solution",$G$24=""),"",AT17)) -> 2.4 | H26: =IF(OR($E$24="No Solution",$E$24="Vertical Line",$E$24="Horizontal Line",$AX$16="None"),"",IF(AND(D26=0,G26<>0,D26<>""),"Y Intercept",IF(AND(D26<>0,G26=0),"X Intercept",""))) ->  | BA26: 4 | BB26: =$C$45 -> 0 | BC26: =$D$45 -> 0 | BE26: =$F$45 -> 0 | BK26: Line 1 | BL26: =IFERROR(VLOOKUP(BK26,BK20:BM23,3,FALSE),"") -> 1.666666667 | BM26: =IF(BL26="","",ROUND(BL26,2)) -> 1.67
C27: x = | D27: 0 | F27: y = | G27: =IF(E24="Horizontal Line",F21/D21,IF(OR($E$24="No Solution",$G$24=""),"",AU17)) -> 0.4 | H27: =IF(OR($E$24="No Solution",$E$24="Vertical Line",$E$24="Horizontal Line",$AX$16="None"),"",IF(AND(D27=0,G27<>0,D27<>""),"Y Intercept",IF(AND(D27<>0,G27=0),"X Intercept",""))) -> Y Intercept
C28: x = | D28: 5 | F28: y = | G28: =IF(E24="Horizontal Line",F21/D21,IF(OR($E$24="No Solution",$G$24=""),"",AV17)) -> -1.6 | H28: =IF(OR($E$24="No Solution",$E$24="Vertical Line",$E$24="Horizontal Line",$AX$16="None"),"",IF(AND(D28=0,G28<>0,D28<>""),"Y Intercept",IF(AND(D28<>0,G28=0),"X Intercept",""))) ->  | BB28: =IFERROR(BB22,"N.S.") -> N.S. | BC28: =IFERROR(BC22,"N.S.") -> N.S. | BD28: =IFERROR(BD22,"N.S.") -> N.S. | BK28: =U2 -> Line 1 & 2 | BL28: =IFERROR(VLOOKUP(BK28,BK12:BM17,2,FALSE),"") -> 1 | BM28: =IFERROR(VLOOKUP(BK28,BK13:BM18,3,FALSE),"") -> 0
BB29: =IF(BB28="N.S.","N.S.",BB23) -> N.S. | BC29: =IF(BC28="N.S.","N.S.",BC23) -> N.S. | BD29: =IF(BD28="N.S.","N.S.",BD23) -> N.S. | BL29: =IF(BL28="Dep","Dep",IF(BL28="N.S.","N.S.",IF(BL28="","",ROUND(BL28,2)))) -> 1 | BM29: =IF(BM28="Dep","Dep",IF(BM28="N.S.","N.S.",IF(BM28="","",ROUND(BM28,2)))) -> 0
BK30: Line 2 | BL30: =IFERROR(VLOOKUP(BK30,BK20:BM23,2,FALSE),"") -> 1 | BM30: =IF(BL30="","",ROUND(BL30,2)) -> 1
BA31: 2 | BB31: =$C$21 -> 2 | BC31: =$D$21 -> 5 | BE31: =$F$21 -> 2 | BK31: Line 2 | BL31: =IFERROR(VLOOKUP(BK31,BK20:BM23,3,FALSE),"") -> 0.4 | BM31: =IF(BL31="","",ROUND(BL31,2)) -> 0.4
AJ32: =IF(BJ15="","","Line 1 and 4:") ->  | AT32: Line 3 | AY32: Slope | BA32: 4 | BB32: =$C$45 -> 0 | BC32: =$D$45 -> 0 | BE32: =$F$45 -> 0 | BM32: =IF(BM31="N.S.","N.S.",IF(BM31="","",ROUND(BM31,2))) -> 0.4
AJ33: =IF(BJ15="","","x") ->  | AK33: =IF(BJ15="","","y") ->  | AT33: =IF($AX$33="H",$AT$36*-2,IF($AX$33="V",$AT$36,IF($D$38="","",ROUND($D$38,2)))) ->  | AU33: =IF($AX$33="H",$AT$36*2,IF($AX$33="V",$AT$36,IF($D$39="","",ROUND($D$39,2)))) ->  | AV33: =IF($AX$33="H",$AT$36*4,IF($AX$33="V",$AT$36,IF($D$40="","",ROUND($D$40,2)))) ->  | AX33: =IF(AND(C33=0,D33=0,F33=0),"None",IF(E36="Vertical Line","V",IF(E36="Horizontal Line","H","R"))) -> None | AY33: =IF(AND(F33=0,D33=0),"",IF(AND(C33=0,D33=0,F33<>0),"",IF(AND(C33=0,D33=0,F33=0),"",IF(E36="",(-1*C33)/D33,"")))) -> 
AJ34: =IF(AJ33="",0,IF(BB28="","",BB28)) -> 0 | AK34: =IF(AK33="",0,IF(BB29="","",BB29)) -> 0 | AT34: =IF(AND(F33=0,D33=0),"",IF(AND(F33=0,D33=0),"",IF($AX$33="H",$AT$36,IF($AX$33="v",-2*$AT$36,IF($D$33="","",IF($D$33=0,$C$33,IF($D$38="","",($D$38*-$C$33+$F$33)/$D$33))))))) ->  | AU34: =IF(AND(F33=0,D33=0),"",IF(AND(F33=0,D33=0),"",IF($AX$33="H",$AT$36,IF($AX$33="v",2*$AT$36,IF($D$33="","",IF($D$33=0,$C$33,IF($D$39="","",($D$39*-$C$33+$F$33)/$D$33))))))) ->  | AV34: =IF(AND(F33=0,D33=0),"",IF(AND(F33=0,D33=0),"",IF($AX$33="H",$AT$36,IF($AX$33="v",4*$AT$36,IF($D$33="","",IF($D$33=0,$C$33,IF($D$40="","",($D$40*-$C$33+$F$33)/$D$33))))))) -> 
AT36: =IF(AX33="V",F33/C33,IF(AX33="H",F33/D33,"R")) -> R
AJ37: =IF(BJ15="","","Line 2 and 4:") -> 
AJ38: =IF(BJ15="","","x") ->  | AK38: =IF(BJ15="","","y") ->  | BA38: 3 | BB38: =$C$33 -> 0 | BC38: =$D$33 -> 0 | BE38: =$F$33 -> 0
AJ39: =IF(AJ38="",0,IF(BC28="","",BC28)) -> 0 | AK39: =IF(AK38="",0,IF(BC29="","",BC29)) -> 0 | BA39: 4 | BB39: =$C$45 -> 0 | BC39: =$D$45 -> 0 | BE39: =$F$45 -> 0
AT40: Line 4 | AY40: Slope
AT41: =IF($AX$41="H",$AT$44*-2,IF($AX$41="V",$AT$44,IF($D$50="","",ROUND($D$50,2)))) ->  | AU41: =IF($AX$41="H",$AT$44*-2,IF($AX$41="V",$AT$44,IF($D$51="","",ROUND($D$51,2)))) ->  | AV41: =IF($AX$41="H",$AT$44*-2,IF($AX$41="V",$AT$44,IF($D$52="","",ROUND($D$52,2)))) ->  | AX41: =IF(AND(C45=0,D45=0,F45=0),"None",IF(E48="Vertical Line","V",IF(E48="Horizontal Line","H","R"))) -> None | AY41: =IF(AND(F45=0,D45=0),"",IF(AND(C45=0,D45=0,F45<>0),"",IF(AND(C45=0,D45=0,F45=0),"",IF(E48="",(-1*C45)/D45,"")))) ->  | BB41: =IFERROR(BB38,"") -> 0 | BC41: 0 | BD41: 0 | BE41: 0
AJ42: =IF(BJ15="","","Line 3 and 4:") ->  | AT42: =IF(AND(F45=0,D50=0),"",IF(AND(F45=0,D50=0),"",IF($AX$41="H",$AT$44,IF($AX$41="v",-2*$AT$44,IF($D$45="","",IF($D$45=0,$C$45,IF($D$50="","",($D$50*-$C$45+$F$45)/$D$45))))))) ->  | AU42: =IF(AND(F45=0,D51=0),"",IF(AND(F45=0,D51=0),"",IF($AX$41="H",$AT$44,IF($AX$41="v",2*$AT$44,IF($D$45="","",IF($D$45=0,$C$45,IF($D$51="","",($D$51*-$C$45+$F$45)/$D$45))))))) ->  | AV42: =IF(AND(F45=0,D52=0),"",IF(AND(F45=0,D52=0),"",IF($AX$41="H",$AT$44,IF($AX$41="v",4*$AT$44,IF($D$45="","",IF($D$45=0,$C$45,IF($D$52="","",($D$52*-$C$45+$F$45)/$D$45))))))) ->  | BB42: 0 | BC42: 0 | BD42: 0 | BE42: 0
AJ43: =IF(BJ15="","","x") ->  | AK43: =IF(BJ15="","","y") -> 
AJ44: =IF(AJ43="",0,IF(BD28="","",BD28)) -> 0 | AK44: =IF(AK43="",0,IF(BD29="","",BD29)) -> 0 | AT44: =IF(AX41="V",F45/C45,IF(AX41="H",F45/D45,"R")) -> R

Sheet 11) All Int.
C2: Solving 2 Equations, 2 Unknowns Using the All-Integer Method. | R2: Solving 3 Equations, 3 Unknowns Using the All-Integer Method.
C3: (Not to be used for special cases such as: no solution or dependent) | R3: (Not to be used for special cases such as: no solution or dependent)
B5: Setup the initial table without decimals or fractions | P5: Setup the initial table without decimals or fractions
B6: (see example below): | P6: (see example below):
I7: x | J7: y | M7: Comment | W7: x | X7: y | Y7: z | AB7: Comment
C8: x | D8: y | I8: =IF($D$11=1,C9,"") -> 2 | J8: =IF($D$11=1,D9,"") -> 2 | K8: =IF($D$11=1,E9,"") -> 2 | L8: =IF(AND(I8=0,J8=0,K8=0),1,IF(AND(I8=0,J8=0,K8<>0),2,IF(I8=0,3,0))) -> 0 | M8: =IF(L8=1,"Linearly Dependent",IF(L8=2,"No Solution",IF(L8=3,"Pivot = 0",""))) ->  | Q8: x | R8: y | S8: z | W8: =IF($R$12=1,Q9,"") -> 1 | X8: =IF($R$12=1,R9,"") -> 2 | Y8: =IF($R$12=1,S9,"") -> 3 | Z8: =IF($R$12=1,T9,"") -> 4 | AA8: =IF(AND(W8=0,X8=0,Y8=0,Z8=0),1,IF(AND(W8=0,X8=0,Y8=0,Z8<>0),2,IF(W8=0,3,0))) -> 0 | AB8: =IF(AA8=1,"Linearly Dependent",IF(AA8=2,"No Solution",IF(AA8=3,"Pivot = 0",""))) -> 
C9: 2 | D9: 2 | E9: 2 | I9: =IF(AND($D$11=1,$L$8=0),C10,"") -> 1 | J9: =IF(AND($D$11=1,$L$8=0),D10,"") -> 3 | K9: =IF(AND($D$11=1,$L$8=0),E10,"") -> 5 | L9: =IF(AND(I9=0,J9=0,K9=0),1,IF(AND(I9=0,J9=0,K9<>0),2,0)) -> 0 | M9: =IF(L9=1,"Linearly Dependent",IF(L9=2,"No Solution",IF(L9=3,"Pivot = 0",""))) ->  | Q9: 1 | R9: 2 | S9: 3 | T9: 4 | W9: =IF(AND($R$12=1,$AA$8=0),Q10,"") -> 5 | X9: 4 | Y9: 6 | Z9: 5 | AA9: =IF(AND(W9=0,X9=0,Y9=0,Z9=0),1,IF(AND(W9=0,X9=0,Y9=0,Z9<>0),2,0)) -> 0 | AB9: =IF(AA9=1,"Linearly Dependent",IF(AA9=2,"No Solution",IF(AA9=3,"Pivot = 0",""))) -> 
C10: 1 | D10: 3 | E10: 5 | L10: =SUM(L8:L9) -> 0 | Q10: 5 | R10: 4 | S10: 6 | T10: 5 | W10: 5 | X10: 7 | Y10: 8 | Z10: 9 | AA10: =IF(AND(W10=0,X10=0,Y10=0,Z10=0),1,IF(AND(W10=0,X10=0,Y10=0,Z10<>0),2,0)) -> 0 | AB10: =IF(AA10=1,"Linearly Dependent",IF(AA10=2,"No Solution",IF(AA10=3,"Pivot = 0",""))) -> 
D11: =IF(COUNT(C9:E10)<=2,0,1) -> 1 | I11: =IF(AND($D$11=1,$L$10=0),I8,"") -> 2 | J11: =IF(AND($D$11=1,$L$10=0),J8,"") -> 2 | K11: =IF(AND($D$11=1,$L$10=0),K8,"") -> 2 | L11: =IF(AND(I11=0,J11=0,K11=0),1,IF(AND(I11=0,J11=0,K11<>0),2,0)) -> 0 | M11: =IF(L11=1,"Linearly Dependent",IF(L11=2,"No Solution",IF(L11=3,"Pivot = 0",""))) ->  | Q11: 5 | R11: 7 | S11: 8 | T11: 9 | AA11: =SUM(AA8:AA10) -> 0
I12: =IF(AND($D$11=1,$L$10=0),0,"") -> 0 | J12: =IF(AND($D$11=1,$L$10=0),((J9*I8)-(I9*J8)),"") -> 4 | K12: =IF(AND($D$11=1,$L$10=0),((I8*K9)-(I9*K8)),"") -> 8 | L12: =IF(AND(I12=0,J12=0,K12=0),1,IF(AND(I12=0,J12=0,K12<>0),2,IF(J12=0,3,0))) -> 0 | M12: =IF(L12=1,"Linearly Dependent",IF(L12=2,"No Solution",IF(L12=3,"Pivot = 0",""))) ->  | R12: =IF(COUNT(Q9:T11)<=7,0,1) -> 1 | W12: =IF(AND($R$12=1,$AA$11=0),W8,"") -> 1 | X12: =IF(AND($R$12=1,$AA$11=0),X8,"") -> 2 | Y12: =IF(AND($R$12=1,$AA$11=0),Y8,"") -> 3 | Z12: =IF(AND($R$12=1,$AA$11=0),Z8,"") -> 4 | AA12: =IF(AND(W12=0,X12=0,Y12=0,Z12=0),1,IF(AND(W12=0,X12=0,Y12=0,Z12<>0),2,0)) -> 0 | AB12: =IF(AA12=1,"Linearly Dependent",IF(AA12=2,"No Solution",IF(AA12=3,"Pivot = 0",""))) -> 
B13: =IF(B14="",""," Comment:") ->  | L13: =SUM(L7:L12) -> 0 | P13: =IF(P14="",""," Comment:") ->  | W13: =IF(AND($R$12=1,$AA$11=0),0,"") -> 0 | X13: =IF(AND($R$12=1,$AA$11=0),((X9*W8)-(W9*X8)),"") -> -6 | Y13: =IF(AND($R$12=1,$AA$11=0),((W8*Y9)-(W9*Y8)),"") -> -9 | Z13: =IF(AND($R$12=1,$AA$11=0),((W8*Z9)-(W9*Z8)),"") -> -15 | AA13: =IF(AND(W13=0,X13=0,Y13=0,Z13=0),1,IF(AND(W13=0,X13=0,Y13=0,Z13<>0),2,IF(X13=0,3,0))) -> 0 | AB13: =IF(AA13=1,"Linearly Dependent",IF(AA13=2,"No Solution",IF(AA13=3,"Pivot = 0",""))) -> 
B14: =IF(OR(L10=1,L13=1,L16=1),AD64,IF(OR(L10=2,L13=2,L16=2),AD70,IF(OR(L10=3,L13=3,L16=3),AD76,""))) ->  | I14: =IF(AND($D$11=1,$L$13=0),J12,"") -> 4 | J14: =IF(AND($D$11=1,$L$13=0),0,"") -> 0 | K14: =IF(AND($D$11=1,$L$13=0),(((J12*K11)-(J11*K12))/I8),"") -> -4 | L14: =IF(AND(I14=0,J14=0,K14=0),1,IF(AND(I14=0,J14=0,K14<>0),2,0)) -> 0 | M14: =IF(L14=1,"Linearly Dependent",IF(L14=2,"No Solution",IF(L14=3,"Pivot = 0",""))) ->  | P14: =IF(OR(AA11=1,AA15=1,AA19=1,AA23=1),AD64,IF(OR(AA11=2,AA15=2,AA19=2,AA23=2),AD70,IF(OR(AA11=3,AA15=3,AA19=3,AA23=3),AD76,""))) ->  | W14: =IF(AND($R$12=1,$AA$11=0),0,"") -> 0 | X14: =IF(AND($R$12=1,$AA$11=0),((W8*X10)-(W10*X8)),"") -> -3 | Y14: =IF(AND($R$12=1,$AA$11=0),((W8*Y10)-(W10*Y8)),"") -> -7 | Z14: =IF(AND($R$12=1,$AA$11=0),((W8*Z10)-(W10*Z8)),"") -> -11 | AA14: =IF(AND(W14=0,X14=0,Y14=0,Z14=0),1,IF(AND(W14=0,X14=0,Y14=0,Z14<>0),2,0)) -> 0 | AB14: =IF(AA14=1,"Linearly Dependent",IF(AA14=2,"No Solution",IF(AA14=3,"Pivot = 0",""))) -> 
I15: =IF(AND($D$11=1,$L$13=0),0,"") -> 0 | J15: =IF(AND($D$11=1,$L$13=0),J12,"") -> 4 | K15: =IF(AND($D$11=1,$L$13=0),K12,"") -> 8 | L15: =IF(AND(I15=0,J15=0,K15=0),1,IF(AND(I15=0,J15=0,K15<>0),2,0)) -> 0 | M15: =IF(L15=1,"Linearly Dependent",IF(L15=2,"No Solution",IF(L15=3,"Pivot = 0",""))) ->  | AA15: =SUM(AA8:AA14) -> 0
L16: =SUM(L7:L15) -> 0 | W16: =IF(AND($R$12=1,$AA$15=0),X13,"") -> -6 | X16: =IF(AND($R$12=1,$AA$15=0),0,"") -> 0 | Y16: =IF(AND($R$12=1,$AA$15=0),(((X13*Y12)-(X12*Y13))/W8),"") -> 0 | Z16: =IF(AND($R$12=1,$AA$15=0),(((X13*Z12)-(X12*Z13))/W8),"") -> 6 | AA16: =IF(AND(W16=0,X16=0,Y16=0,Z16=0),1,IF(AND(W16=0,X16=0,Y16=0,Z16<>0),2,0)) -> 0 | AB16: =IF(AA16=1,"Linearly Dependent",IF(AA16=2,"No Solution",IF(AA16=3,"Pivot = 0",""))) -> 
I17: =IF(AND($D$11=1,$L$16=0),I14/J12,"") -> 1 | J17: =IF(AND($D$11=1,$L$16=0),0,"") -> 0 | K17: =IF(AND($D$11=1,$L$16=0),K14/J12,"") -> -1 | W17: =IF(AND($R$12=1,$AA$15=0),0,"") -> 0 | X17: =IF(AND($R$12=1,$AA$15=0),X13,"") -> -6 | Y17: =IF(AND($R$12=1,$AA$15=0),Y13,"") -> -9 | Z17: =IF(AND($R$12=1,$AA$15=0),Z13,"") -> -15 | AA17: =IF(AND(W17=0,X17=0,Y17=0,Z17=0),1,IF(AND(W17=0,X17=0,Y17=0,Z17<>0),2,0)) -> 0 | AB17: =IF(AA17=1,"Linearly Dependent",IF(AA17=2,"No Solution",IF(AA17=3,"Pivot = 0",""))) ->  | AC17: =IF(X13=0,3,"") -> 
I18: =IF(AND($D$11=1,$L$16=0),0,"") -> 0 | J18: =IF(AND($D$11=1,$L$16=0),J15/J12,"") -> 1 | K18: =IF(AND($D$11=1,$L$16=0),K15/J12,"") -> 2 | W18: =IF(AND($R$12=1,$AA$15=0),0,"") -> 0 | X18: =IF(AND($R$12=1,$AA$15=0),0,"") -> 0 | Y18: =IF(AND($R$12=1,$AA$15=0),(((X13*Y14)-(X14*Y13))/W8),"") -> 15 | Z18: =IF(AND($R$12=1,$AA$15=0),(((X13*Z14)-(X14*Z13))/W8),"") -> 21 | AA18: =IF(AND(W18=0,X18=0,Y18=0,Z18=0),1,IF(AND(W18=0,X18=0,Y18=0,Z18<>0),2,IF(Y18=0,3,0))) -> 0 | AB18: =IF(AA18=1,"Linearly Dependent",IF(AA18=2,"No Solution",IF(AA18=3,"Pivot = 0",""))) -> 
AA19: =SUM(AA8:AA18) -> 0
B20: Example: | C20: For the following set of equations: | P20: Example: For the following set of equations: | W20: =IF(AND($R$12=1,$AA$19=0),Y18,"") -> 15 | X20: =IF(AND($R$12=1,$AA$19=0),0,"") -> 0 | Y20: =IF(AND($R$12=1,$AA$19=0),0,"") -> 0 | Z20: =IF(AND($R$12=1,$AA$19=0),(((Y18*Z16)-(Y16*Z18))/X13),"") -> -15 | AA20: =IF(AND(W20=0,X20=0,Y20=0,Z20=0),1,IF(AND(W20=0,X20=0,Y20=0,Z20<>0),2,0)) -> 0 | AB20: =IF(AA20=1,"Linearly Dependent",IF(AA20=2,"No Solution",IF(AA20=3,"Pivot = 0",""))) -> 
C21: 0.2x - 0.1y = 0.4 | R21: 2x + y - 3z =5 | W21: =IF(AND($R$12=1,$AA$19=0),0,"") -> 0 | X21: =IF(AND($R$12=1,$AA$19=0),Y18,"") -> 15 | Y21: =IF(AND($R$12=1,$AA$19=0),0,"") -> 0 | Z21: =IF(AND($R$12=1,$AA$19=0),(((Y18*Z17)-(Y17*Z18))/X13),"") -> 6 | AA21: =IF(AND(W21=0,X21=0,Y21=0,Z21=0),1,IF(AND(W21=0,X21=0,Y21=0,Z21<>0),2,0)) -> 0 | AB21: =IF(AA21=1,"Linearly Dependent",IF(AA21=2,"No Solution",IF(AA21=3,"Pivot = 0",""))) -> 
C22: 0.1x + 0.1y = 0.5 | K22: x = | M22: =IF(AND($D$11=1,$M$19=0),K17,"") -> -1 | R22: 2y - z = 5 | W22: =IF(AND($R$12=1,$AA$19=0),0,"") -> 0 | X22: =IF(AND($R$12=1,$AA$19=0),0,"") -> 0 | Y22: =IF(AND($R$12=1,$AA$19=0),Y18,"") -> 15 | Z22: =IF(AND($R$12=1,$AA$19=0),Z18,"") -> 21 | AA22: =IF(AND(W22=0,X22=0,Y22=0,Z22=0),1,IF(AND(W22=0,X22=0,Y22=0,Z22<>0),2,0)) -> 0 | AB22: =IF(AA22=1,"Linearly Dependent",IF(AA22=2,"No Solution",IF(AA22=3,"Pivot = 0",""))) -> 
K23: y = | M23: =IF(AND($D$11=1,$M$19=0),K18,"") -> 2 | R23: 2x + y + 2z = 6 | AA23: =SUM(AA8:AA22) -> 0
B24: Multiply each equation by 10 to remove decimals: | W24: =IF(AND($R$12=1,$AA$23=0),W20/Y18,"") -> 1 | X24: =IF(AND($R$12=1,$AA$23=0),0,"") -> 0 | Y24: =IF(AND($R$12=1,$AA$23=0),0,"") -> 0 | Z24: =IF(AND($R$12=1,$AA$23=0),Z20/Y18,"") -> -1
B25: Setup table: | P25: The setup table is: | W25: =IF(AND($R$12=1,$AA$23=0),0,"") -> 0 | X25: =IF(AND($R$12=1,$AA$23=0),X21/Y18,"") -> 1 | Y25: =IF(AND($R$12=1,$AA$23=0),0,"") -> 0 | Z25: =IF(AND($R$12=1,$AA$23=0),Z21/Y18,"") -> 0.4
C26: x | D26: y | Q26: x | R26: y | S26: z | W26: =IF(AND($R$12=1,$AA$23=0),0,"") -> 0 | X26: =IF(AND($R$12=1,$AA$23=0),0,"") -> 0 | Y26: =IF(AND($R$12=1,$AA$23=0),Y22/Y18,"") -> 1 | Z26: =IF(AND($R$12=1,$AA$23=0),Z22/Y18,"") -> 1.4
C27: 2 | D27: -1 | E27: 4 | Q27: 2 | R27: 1 | S27: 3 | T27: 5
C28: 1 | D28: 1 | E28: 5 | Q28: 0 | R28: 2 | S28: -1 | T28: 5 | Z28: x = | AA28: =IF(AB28<>"","=","") -> = | AB28: =IF(AND($R$12=1,$AA$23=0),Z24,"") -> -1
Q29: 2 | R29: 1 | S29: 2 | T29: 6 | Z29: y = | AA29: =IF(AB29<>"","=","") -> = | AB29: =IF(AND($R$12=1,$AA$23=0),Z25,"") -> 0.4
Z30: z = | AA30: =IF(AB30<>"","=","") -> = | AB30: =IF(AND($R$12=1,$AA$23=0),Z26,"") -> 1.4
C33: Note: First Pivot cannot be = 0. Try to rearrange the original set of equations by switching rows in the setup table. Switch between rows 1 and 2.
D35: Linear Dependent because the row is all 0s. | P35: No Solution because the row is all 0s on the left, and nonzero number in the right.
I38: Regular Calculator to solve 2 or 3 linear equations:
C40: x | D40: y | E40: = | Q40: x | R40: y | S40: z | T40: =
C41: 5 | D41: 3 | E41: 3 | G41: x = | H41: =IF(OR(L41<3,L42<3),"",VLOOKUP(C40,$D$85:$E$86,2,FALSE)) -> 0 | L41: =COUNT(C41:E41) -> 3 | Q41: 4 | R41: 2 | S41: 3 | T41: 7 | V41: x = | W41: =IF(OR(Z41<4,Z42<4,Z43<4),"",VLOOKUP(Q40,$R$85:$S$88,2,FALSE)) -> 0.9166666667 | Z41: =COUNT(Q41:T41) -> 4
C42: 2 | D42: 3 | E42: 3 | G42: y = | H42: =IF(OR(L41<3,L42<3),"",VLOOKUP(D40,$D$85:$E$86,2,FALSE)) -> 1 | L42: =COUNT(C42:E42) -> 3 | Q42: 4 | R42: 2 | S42: 7 | T42: 4 | V42: y = | W42: =IF(OR(Z41<4,Z42<4,Z43<4),"",VLOOKUP(R40,$R$85:$S$88,2,FALSE)) -> 2.791666667 | Z42: =COUNT(Q42:T42) -> 4
Q43: 9 | R43: 0 | S43: 3 | T43: 6 | V43: z = | W43: =IF(OR(Z41<4,Z42<4,Z43<4),"",VLOOKUP(S40,$R$85:$S$88,2,FALSE)) -> -0.75 | Z43: =COUNT(Q43:T43) -> 4
H44: =+IFERROR(H41,"None Unique Solution") -> 0 | W44: =+IFERROR(W41,"None Unique Solution") -> 0.9166666667
AD64: Linear Dependent because the row is all 0s. | AJ64: Linear Dependent because the row is all 0s.
AJ67: No Solution because the row is all 0s on the left, and nonzero number in the right.
AD70: No Solution because the row is all 0s on the left, and nonzero number in the right.
AJ71: Pivot cannot be = 0. Try to rearrange the original set of equations by switching rows in the setup table. Switch between rows 1 and 2.
AD76: Pivot cannot be = 0. Try to rearrange the original set of equations by switching rows in the setup table. Switch between rows 1 and 2 or between rows 2 and 3…etc.
F83: 2 Eq | T83: 3 Eq
E84: Variables | F84: =C40 -> x | G84: =D40 -> y | S84: Variables | T84: =Q40 -> x | U84: =R40 -> y | V84: =S40 -> z
D85: x | E85: =MMULT(F89:G90,H85:H86) -> 0 | F85: =IF(COUNT($C41:$E41)=0,1,C41) -> 5 | G85: =IF(COUNT($C41:$E41)=0,0,D41) -> 3 | H85: =E41 -> 3 | J85: =IF(ISERROR(E85),"",E85) -> 0 | R85: x | S85: =MMULT(T89:V91,W85:W87) -> 0.9166666667 | T85: =IF(COUNT($Q41:$T41)=0,1,Q41) -> 4 | U85: =IF(COUNT($Q41:$T41)=0,0,R41) -> 2 | V85: =IF(COUNT($Q41:$T41)=0,0,S41) -> 3 | W85: =T41 -> 7 | X85: =IF(ISERROR(S85),"",S85) -> 0.9166666667 | Z85: =IF(ISERROR(S85),"",S85) -> 0.9166666667
D86: y | E86: 1 | F86: =IF(COUNT($C42:$E42)=0,0,C42) -> 2 | G86: =IF(COUNT($C42:$E42)=0,1,D42) -> 3 | H86: =E42 -> 3 | J86: =IF(ISERROR(E86),"",E86) -> 1 | R86: y | S86: 2.791666667 | T86: =IF(COUNT($Q42:$T42)=0,0,Q42) -> 4 | U86: =IF(COUNT($Q42:$T42)=0,1,R42) -> 2 | V86: =IF(COUNT($Q42:$T42)=0,0,S42) -> 7 | W86: =T42 -> 4 | X86: =IF(ISERROR(S86),"",S86) -> 2.791666667 | Z86: =IF(ISERROR(S86),"",S86) -> 2.791666667
J87: =IF(ISERROR(E87),"",#REF!) ->  | R87: z | S87: -0.75 | T87: =IF(COUNT($Q43:$T43)=0,0,Q43) -> 9 | U87: =IF(COUNT($Q43:$T43)=0,0,R43) -> 0 | V87: =IF(COUNT($Q43:$T43)=0,1,S43) -> 3 | W87: =T43 -> 6 | X87: -0.75 | Z87: =IF(ISERROR(S87),"",S87) -> -0.75
J88: =IF(ISERROR(E88),"",#REF!) ->  | X88: =IF(ISERROR(S88),"",#REF!) -> 
F89: =MINVERSE(F85:G86) -> 0.3333333333 | G89: -0.3333333333 | T89: =MINVERSE(T85:V87) -> 0.08333333333 | U89: -0.08333333333 | V89: 0.1111111111
F90: -0.2222222222 | G90: 0.5555555556 | T90: 0.7083333333 | U90: -0.2083333333 | V90: -0.2222222222
T91: -0.25 | U91: 0.25 | V91: 0

Sheet 11) 3 Eq
E1: Solving 2 Equations | O1: Fill Green Cells | AD1: Solving 3 Equations | BP1: Eq 1 | BS1: Eq 1 | BW1: x
E2: x | H2: y | K2: = | AC2: x | AF2: y | AI2: z | AL2: = | BP2: Eq 2 | BS2: Eq 2 | BW2: y | BY2: +
B3: Enter Values | E3: 2 | H3: 3 | K3: 3 | Z3: Enter Values | AC3: 2 | AF3: 1 | AI3: 3 | AL3: 5 | BP3: Eq 3 | BS3: Eq 3 | BW3: z | BY3: -
E4: 4 | H4: 2 | K4: 6 | AC4: 0 | AF4: 2 | AI4: -1 | AL4: 5
AC5: 2 | AF5: 1 | AI5: 2 | AL5: 6
BF6: x | BG6: y | BR6: x | BT6: y | BV6: z
C7: Eq 1 | E7: =E3&" x" -> 2 x | G7: =IF(H3>0,"+","-") -> + | H7: =ABS(H3)&" y" -> 3 y | J7: = | L7: =K3 -> 3 | Z7: Eq 1 | AC7: =AC3&" x" -> 2 x | AE7: =IF(AF3>0,"+","-") -> + | AF7: =ABS(AF3)&" y" -> 1 y | AH7: =IF(AI3>0,"+","-") -> + | AI7: =ABS(AL3)&" z" -> 5 z | AK7: = | AL7: =AL3 -> 5 | BF7: =E3 -> 2 | BG7: =H3 -> 3 | BH7: =K3 -> 3 | BR7: =AC3 -> 2 | BT7: =AF3 -> 1 | BV7: =AI3 -> 3 | BW7: =AL3 -> 5
C8: Eq 2 | E8: =E4&" x" -> 4 x | G8: =IF(H4>0,"+","-") -> + | H8: =ABS(H4)&" y" -> 2 y | J8: = | L8: =K4 -> 6 | Z8: Eq 2 | AC8: =AC4&" x" -> 0 x | AE8: =IF(AF4>0,"+","-") -> + | AF8: =ABS(AF4)&" y" -> 2 y | AH8: =IF(AI4>0,"+","-") -> - | AI8: =ABS(AL4)&" z" -> 5 z | AK8: = | AL8: =AL4 -> 5 | BF8: =E4 -> 4 | BG8: =H4 -> 2 | BH8: =K4 -> 6 | BR8: =AC4 -> 0 | BT8: =AF4 -> 2 | BV8: =AI4 -> -1 | BW8: =AL4 -> 5
Z9: Eq 3 | AC9: =AC5&" x" -> 2 x | AE9: =IF(AF5>0,"+","-") -> + | AF9: =ABS(AF5)&" y" -> 1 y | AH9: =IF(AI5>0,"+","-") -> + | AI9: =ABS(AL5)&" z" -> 6 z | AK9: = | AL9: =AL5 -> 6 | BR9: =AC5 -> 2 | BT9: =AF5 -> 1 | BV9: =AI5 -> 2 | BW9: =AL5 -> 6
U10: a) Select Two different pairs of equations:
B11: a) Eliminate one variable:
BR13: x | BT13: y | BV13: z | BZ13: x | CB13: y | CD13: z
E14: Mult | G14: =C7 -> Eq 1 | I14: by | J14: -2 | U14: Eq 1 | X14: =IF($U$14=$BP$1,AC3,IF($U$14=$BP$2,AC4,AC5)) -> 2 | Y14: x | Z14: =IF($U$14=$BP$1,AE7,IF($U$14=$BP$2,AE8,AE9)) -> + | AA14: =IF($U$14=$BP$1,ABS(AF3),IF($U$14=$BP$2,ABS(AF4),ABS(AF5))) -> 1 | AB14: y | AC14: =IF($U$14=$BP$1,AH7,IF($U$14=$BP$2,AH8,AH9)) -> + | AD14: =IF($U$14=$BP$1,ABS(AI3),IF($U$14=$BP$2,ABS(AI4),ABS(AI5))) -> 3 | AE14: z | AF14: = | AG14: =IF($U$14=$BP$1,AL3,IF($U$14=$BP$2,AL4,AL5)) -> 5 | AJ14: Eq 2 | AM14: =IF($AJ$14=$BP$1,AC3,IF($AJ$14=$BP$2,AC4,AC5)) -> 0 | AN14: x | AO14: =IF($AJ$14=$BP$1,AE7,IF($AJ$14=$BP$2,AE8,AE9)) -> + | AP14: =IF($AJ$14=$BP$1,ABS(AF3),IF($AJ$14=$BP$2,ABS(AF4),ABS(AF5))) -> 2 | AQ14: y | AR14: =IF($AJ$14=$BP$1,AH7,IF($AJ$14=$BP$2,AH8,AH9)) -> - | AS14: =IF($AJ$14=$BP$1,ABS(AI3),IF($AJ$14=$BP$2,ABS(AI4),ABS(AI5))) -> 1 | AT14: z | AU14: = | AV14: =IF($AJ$14=$BP$1,AL3,IF($AJ$14=$BP$2,AL4,AL5)) -> 5 | BF14: x | BG14: y | BR14: =X14 -> 2 | BT14: =IF(Z14="+",AA14,-1*AA14) -> 1 | BV14: =IF(AC14="+",AD14,-1*AD14) -> 3 | BW14: =AG14 -> 5 | BZ14: =AM14 -> 0 | CB14: =IF(AO14="+",AP14,-1*AA14) -> 2 | CD14: =IF(AR14="+",AS14,-1*AS14) -> -1 | CE14: =AV14 -> 5
G15: =C8 -> Eq 2 | I15: by | J15: 1 | U15: Eq 2 | X15: =IF($U$15=$BP$1,AC3,IF($U$15=$BP$2,AC4,AC5)) -> 0 | Y15: x | Z15: =IF($U$15=$BP$1,AE7,IF($U$15=$BP$2,AE8,AE9)) -> + | AA15: =IF($U$15=$BP$1,ABS(AF3),IF($U$15=$BP$2,ABS(AF4),ABS(AF5))) -> 2 | AB15: y | AC15: =IF($U$15=$BP$1,AH7,IF($U$15=$BP$2,AH8,AH9)) -> - | AD15: =IF($U$15=$BP$1,ABS(AI3),IF($U$15=$BP$2,ABS(AI4),ABS(AI5))) -> 1 | AE15: z | AF15: = | AG15: =IF($U$15=$BP$1,AL3,IF($U$15=$BP$2,AL4,AL5)) -> 5 | AJ15: Eq 3 | AM15: =IF($AJ$15=$BP$1,AC3,IF($AJ$15=$BP$2,AC4,AC5)) -> 2 | AN15: x | AO15: =IF($AJ$15=$BP$1,AE7,IF($AJ$15=$BP$2,AE8,AE9)) -> + | AP15: =IF($AJ$15=$BP$1,ABS(AF3),IF($AJ$15=$BP$2,ABS(AF4),ABS(AF5))) -> 1 | AQ15: y | AR15: =IF($AJ$15=$BP$1,AH7,IF($AJ$15=$BP$2,AH8,AH9)) -> + | AS15: =IF($AJ$15=$BP$1,ABS(AI3),IF($AJ$15=$BP$2,ABS(AI4),ABS(AI5))) -> 2 | AT15: z | AU15: = | AV15: =IF($AJ$15=$BP$1,AL3,IF($AJ$15=$BP$2,AL4,AL5)) -> 6 | BF15: =J14*E3 -> -4 | BG15: =J14*H3 -> -6 | BH15: =J14*K3 -> -6 | BR15: =X15 -> 0 | BT15: =IF(Z15="+",AA15,-1*AA15) -> 2 | BV15: =IF(AC15="+",AD15,-1*AD15) -> -1 | BW15: =AG15 -> 5 | BZ15: =AM15 -> 2 | CB15: =IF(AO15="+",AP15,-1*AP15) -> 1 | CD15: =IF(AR15="+",AS15,-1*AS15) -> 2 | CE15: =AV15 -> 6
BF16: =J15*E4 -> 4 | BG16: =J15*H4 -> 2 | BH16: =J15*K4 -> 6
E17: =J14&" * "&G14 -> -2 * Eq 1 | F17: =IF(BF15=0,"",IF(BF15<>0,IF(BF15>0," "&BF15&" x","- "&ABS(BF15)&" x"))) -> - 4 x | H17: =IF(BG15=0,"",IF(BG15<>0,IF(BG15>0," + "&BG15&" x","- "&ABS(BG15)&" x"))) -> - 6 x | J17: =" = "&BH15 -> = -6 | U17: b) Eliminate SAME variable in both pairs. To remove: | AK17: y | BF17: =BF15+BF16 -> 0 | BG17: =BG15+BG16 -> -4 | BH17: 0
BE18: =IF(AND(COUNTIF(BF18:BG18,"x")>=1,COUNTIF(BF18:BG18,"y")>=1),"2 variables","") ->  | BF18: =IF(BF17=0,"",BF14) ->  | BG18: =IF(BG17=0,"",BG14) -> y
E19: =J15&" * "&G15 -> 1 * Eq 2 | F19: =IF(BF16=0,"",IF(BF16<>0,IF(BF16>0," "&BF16&" x","- "&ABS(BF16)&" x"))) -> 4 x | H19: =IF(BG16=0,"",IF(BG16<>0,IF(BG16>0," + "&BG16&" x","- "&ABS(BG16)&" x"))) -> + 2 x | J19: =" = "&BH16 -> = 6 | W19: Mult | Y19: =U14 -> Eq 1 | AA19: by | AB19: -2 | AF19: =IF(CH25="","",IF(CH25=AK17,CH25 &" is removed","")) -> y is removed | AL19: Mult | AN19: =AJ14 -> Eq 2 | AP19: by | AQ19: 1
Y20: =U15 -> Eq 2 | AA20: by | AB20: 1 | AN20: =AJ15 -> Eq 3 | AP20: by | AQ20: -2 | BI20: 2 Eq
B21: b) Add the two equations | BH21: Variables | BI21: =#REF! ->  | BJ21: =#REF! ->  | BR21: x | BT21: y | BV21: z | BZ21: x | CB21: y | CD21: z
X22: =AB19&" * "&U14 -> -2 * Eq 1 | Y22: =IF(BR22=0,"",IF(BR22<>0,IF(BR22>0," "&BR22&" x","- "&ABS(BR22)&" x"))) -> - 4 x | AA22: =IF(BT22=0,"",IF(BT22<>0,IF(BT22>0,"+ "&BT22&" y","- "&ABS(BT22)&" y"))) -> - 2 y | AC22: =IF(BV22=0,"",IF(BV22<>0,IF(BV22>0,"+ "&BV22&" z","- "&ABS(BV22)&" z"))) -> - 6 z | AE22: =" = "&BW22 -> = -10 | AM22: =AQ19&" * "&AJ14 -> 1 * Eq 2 | AN22: =IF(BZ22=0,"",IF(BZ22<>0,IF(BZ22>0," "&BZ22&" x","- "&ABS(BZ22)&" x"))) ->  | AP22: =IF(CB22=0,"",IF(CB22<>0,IF(CB22>0,"+ "&CB22&" y","- "&ABS(CB22)&" y"))) -> + 2 y | AR22: =IF(CD22=0,"",IF(CD22<>0,IF(CD22>0,"+ "&CD22&" z","- "&ABS(CD22)&" z"))) -> - 1 z | AT22: =" = "&CE22 -> = 5 | BD22: =IFERROR(BH22,"") -> 1.5 | BG22: x | BH22: =MMULT(BI26:BJ27,BK22:BK23) -> 1.5 | BI22: =IF(COUNT(BF15:BH15)=0,1,BF15) -> -4 | BJ22: =IF(COUNT(BF15:BH15)=0,1,BG15) -> -6 | BK22: =BH15 -> -6 | BM22: =IF(ISERROR(BH22),"",BH22) -> 1.5 | BR22: =AB19*BR14 -> -4 | BT22: =IF(BT14="-",-1*ABS(AB19*BT14),AB19*BT14) -> -2 | BV22: =IF(BV14="-",-1*ABS(AB19*BV14),AB19*BV14) -> -6 | BW22: =AB19*BW14 -> -10 | BZ22: =AQ19*BZ14 -> 0 | CB22: =AQ19*CB14 -> 2 | CD22: =AQ19*CD14 -> -1 | CE22: =AQ19*CE14 -> 5
E23: =BE18 ->  | F23: =IF(BF17=0,"",IF(BF17<>0,IF(BF17>0," "&BF17&" x","- "&ABS(BF17)&" x"))) ->  | H23: =IF(BG17=0,"",IF(BG17<>0,IF(BG17>0," + "&BG17&" y","- "&ABS(BG17)&" y"))) -> - 4 y | J23: =" = "&BH17 -> = 0 | X23: =AB20&" * "&U15 -> 1 * Eq 2 | Y23: =IF(BR23=0,"",IF(BR23<>0,IF(BR23>0," "&BR23&" x","- "&ABS(BR23)&" x"))) ->  | AA23: =IF(BT23=0,"",IF(BT23<>0,IF(BT23>0,"+ "&BT23&" y","- "&ABS(BT23)&" y"))) -> + 2 y | AC23: =IF(BV23=0,"",IF(BV23<>0,IF(BV23>0,"+ "&BV23&" z","- "&ABS(BV23)&" z"))) -> - 1 z | AE23: =" = "&BW23 -> = 5 | AM23: =AQ20&" * "&AJ15 -> -2 * Eq 3 | AN23: =IF(BZ23=0,"",IF(BZ23<>0,IF(BZ23>0," "&BZ23&" x","- "&ABS(BZ23)&" x"))) -> - 4 x | AP23: =IF(CB23=0,"",IF(CB23<>0,IF(CB23>0,"+ "&CB23&" y","- "&ABS(CB23)&" y"))) -> - 2 y | AR23: =IF(CD23=0,"",IF(CD23<>0,IF(CD23>0,"+ "&CD23&" z","- "&ABS(CD23)&" z"))) -> - 4 z | AT23: =" = "&CE23 -> = -12 | BD23: =IFERROR(BH23,"") -> 0 | BG23: y | BH23: 0 | BI23: =IF(COUNT(BF16:BH16)=0,1,BF16) -> 4 | BJ23: =IF(COUNT(BF16:BH16)=0,1,BG16) -> 2 | BK23: =BH16 -> 6 | BM23: =IF(ISERROR(BH23),"",BH23) -> 0 | BR23: =AB20*BR15 -> 0 | BT23: =IF(Z23="-",-1*ABS(AB20*BT15),AB20*BT15) -> 2 | BV23: =IF(AB23="-",-1*ABS(AB20*BV15),AB20*BV15) -> -1 | BW23: =AB20*BW15 -> 5 | BZ23: =AQ20*BZ15 -> -4 | CB23: =AQ20*CB15 -> -2 | CD23: =AQ20*CD15 -> -4 | CE23: =AQ20*CE15 -> -12
BM24: =IF(ISERROR(BH24),"",#REF!) ->  | BR24: =BR22+BR23 -> -4 | BT24: =BT22+BT23 -> 0 | BV24: -7 | BW24: -5 | BZ24: =BZ22+BZ23 -> -4 | CB24: =CB22+CB23 -> 0 | CD24: =CD22+CD23 -> -5 | CE24: =CE22+CE23 -> -7 | CG24: Removing
E25: Solution: | I25: x = | J25: =IF(E23="",BD22,"") -> 1.5 | U25: c) Add the two equations | BM25: =IF(ISERROR(BH25),"",#REF!) ->  | BP25: =IF(AND(COUNTIF(BR25:BV25,"x")>=1,COUNTIF(BR25:BV25,"y")>=1,COUNTIF(BR25:BV25,"z")>=1),"3 variables","") ->  | BR25: =IF(BR24=0,"",BR21) -> x | BT25: =IF(BT24=0,"",BT21) ->  | BV25: =IF(BV24=0,"",BV21) -> z | BX25: =IF(AND(COUNTIF(BZ25:CD25,"x")>=1,COUNTIF(BZ25:CD25,"y")>=1,COUNTIF(BZ25:CD25,"z")>=1),"3 variables","") ->  | BY25: =IF(AND(COUNTIF(CA25:CE25,"x")>=1,COUNTIF(CA25:CE25,"y")>=1,COUNTIF(CA25:CE25,"z")>=1),"Error","") ->  | BZ25: =IF(BZ24=0,"",BZ21) -> x | CB25: =IF(CB24=0,"",CB21) ->  | CD25: =IF(CD24=0,"",CD21) -> z | CH25: =IF(COUNTIF(BR25:CE25,"x")=0,"x",IF(COUNTIF(BR25:CE25,"y")=0,"y",IF(COUNTIF(BR25:CE25,"z")=0,"z",""))) -> y
BI26: =MINVERSE(BI22:BJ23) -> 0.125 | BJ26: 0.375
I27: y = | J27: =IF(E23="",BD23,"") -> 0 | M27: =IF(AND(J25="",J27=""),"",IFERROR(BH22,"N/A")) -> 1.5 | V27: =BP25 ->  | Y27: =IF(BR24=0,"",IF(BR24<>0,IF(BR24>0," "&BR24&" x","- "&ABS(BR24)&" x"))) -> - 4 x | AA27: =IF(BT24=0,"",IF(BT24<>0,IF(BT24>0,"+ "&BT24&" y","- "&ABS(BT24)&" y"))) ->  | AC27: =IF(BV24=0,"",IF(BV24<>0,IF(BV24>0,"+ "&BV24&" z","- "&ABS(BV24)&" z"))) -> - 7 z | AE27: =" = "&BW24 -> = -5 | AI27: =BX25 ->  | AN27: =IF(BZ24=0,"",IF(BZ24<>0,IF(BZ24>0," "&BZ24&" x","- "&ABS(BZ24)&" x"))) -> - 4 x | AP27: =IF(CB24=0,"",IF(CB24<>0,IF(CB24>0,"+ "&CB24&" y","- "&ABS(CB24)&" y"))) ->  | AR27: =IF(CD24=0,"",IF(CD24<>0,IF(CD24>0,"+ "&CD24&" z","- "&ABS(CD24)&" z"))) -> - 5 z | AT27: =" = "&CE24 -> = -7 | BI27: -0.25 | BJ27: -0.25
AG28: =IF(BX31<>"",BX31,IF(BX28=0," No x",IF(BX29=0," No y",IF(BX30=0," No z","")))) -> No y | BX28: =COUNTIF(BR25:CE25,"x") -> 2
AE29: =Y27 -> - 4 x | AG29: =AA27 ->  | AI29: =AC27 -> - 7 z | AK29: =AE27 -> = -5 | BX29: =COUNTIF(BR25:CE25,"y") -> 0
AE30: =AN27 -> - 4 x | AG30: =AP27 ->  | AI30: =AR27 -> - 5 z | AK30: =AT27 -> = -7 | BX30: =COUNTIF(BR25:CE25,"z") -> 2
AG31: =BX31 ->  | BX31: =IF(AND(BX28<>0,BX29<>0,BX30<>0),"3 Variables","") ->  | CC31: Regular Calculator to solve 2 inear equations:
Z32: =IF(OR(AH32="",AG31<>""),"","Solve for " & LEFT(AG32,1) &" and "&LEFT(AL32,1)&" :") -> Solve for x and z : | AG32: =IF(AG31<>"","",IFERROR(HLOOKUP(1,$BV$32:$BX$35,2,FALSE)&" = ","")) -> x = | AH32: =IF(AG31<>"","",IFERROR(CE37,"")) -> 3 | AL32: =IF(AG31<>"","",IFERROR(HLOOKUP(2,$BV$32:$BX$35,2,FALSE)&" = ","")) -> z = | AM32: =IF(AG31<>"","",IFERROR(CJ37,"")) -> -1 | AP32: =IFERROR(CE37," N/A") -> 3 | BV32: =IF(AND(BV34=0,BV35=0),0,1) -> 1 | BW32: =IF(AND(BW34=0,BW35=0),0,1+BV32) -> 0 | BX32: =IF(AND(BX34=0,BX35=0),0,1+BW32+BV32) -> 2
Z33: =IF(AH32="","","Substitute in any equation that contains the third variable.") -> Substitute in any equation that contains the third variable. | BV33: x | BW33: y | BX33: z | CC33: x | CE33: y | CG33: =
BV34: =BR24 -> -4 | BW34: =BT24 -> 0 | BX34: =BV24 -> -7 | BY34: =BW24 -> -5 | CC34: =HLOOKUP(1,$BV$32:$BX$35,3,FALSE) -> -4 | CE34: =HLOOKUP(2,$BV$32:$BX$35,3,FALSE) -> -7 | CG34: =BY34 -> -5 | CI34: =COUNT(CC34:CG34) -> 3
X35: Solution | Z35: x = | AB35: =IF(AG31<>"","",IFERROR(CA46,"")) -> 3 | AG35: y = | AI35: =IF(AG31<>"","",IFERROR(CA47,"")) -> 2 | AN35: z = | AP35: =IF(AG31<>"","",IFERROR(CA48,"")) -> -1 | BV35: =BZ24 -> -4 | BW35: =CB24 -> 0 | BX35: =CD24 -> -5 | BY35: =CE24 -> -7 | CC35: =HLOOKUP(1,$BV$32:$BX$35,4,FALSE) -> -4 | CE35: =HLOOKUP(2,$BV$32:$BX$35,4,FALSE) -> -5 | CG35: =BY35 -> -7 | CI35: =COUNT(CC35:CG35) -> 3
CD37: x = | CE37: =IF(OR(CI34<3,CI35<3),"",VLOOKUP(CC33,$CZ$60:$DA$61,2,FALSE)) -> 3 | CI37: y = | CJ37: =IF(OR(CI34<3,CI35<3),"",VLOOKUP(CE33,$CZ$60:$DA$61,2,FALSE)) -> -1
BQ43: Regular Calculator to solve 2 inear equations:
BP45: x | BR45: y | BT45: z | BV45: =
AW46: =COUNT(BP46:BV46) -> 4 | BP46: =AC3 -> 2 | BR46: =AF3 -> 1 | BT46: =AI3 -> 3 | BV46: =AL3 -> 5 | BZ46: x = | CA46: =IF(OR(AW46<4,AW47<4,AW48<4),"",VLOOKUP(BP45,$DO$60:$DP$63,2,FALSE)) -> 3
AW47: =COUNT(BP47:BV47) -> 4 | BP47: =AC4 -> 0 | BR47: =AF4 -> 2 | BT47: =AI4 -> -1 | BV47: =AL4 -> 5 | BZ47: y = | CA47: =IF(OR(AW46<4,AW47<4,AW48<4),"",VLOOKUP(BR45,$DO$60:$DP$63,2,FALSE)) -> 2
AW48: =COUNT(BP48:BV48) -> 4 | BP48: 2 | BR48: 1 | BT48: 2 | BV48: 6 | BZ48: z = | CA48: =IF(OR(AW46<4,AW47<4,AW48<4),"",VLOOKUP(BT45,$DO$60:$DP$63,2,FALSE)) -> -1
BL58: =IF(ISERROR(DP60),"",DP60) -> 3 | DB58: 2 Eq | DQ58: 3 Eq
BL59: =IF(ISERROR(DP61),"",DP61) -> 2 | DA59: Variables | DB59: =CC33 -> x | DC59: =CE33 -> y | DP59: Variables | DQ59: =BP45 -> x | DR59: =BR45 -> y | DS59: =BT45 -> z
BL60: =IF(ISERROR(DP62),"",DP62) -> -1 | CZ60: x | DA60: =MMULT(DB64:DC65,DD60:DD61) -> 3 | DB60: =IF(COUNT($CC34:$CH34)=0,1,CC34) -> -4 | DC60: =IF(COUNT($CC34:$CH34)=0,0,CE34) -> -7 | DD60: =CG34 -> -5 | DF60: =IF(ISERROR(DA60),"",DA60) -> 3 | DO60: x | DP60: =MMULT(DQ64:DS66,DT60:DT62) -> 3 | DQ60: =IF(COUNT($BP46:$BW46)=0,1,BP46) -> 2 | DR60: =IF(COUNT($BP46:$BW46)=0,0,BR46) -> 1 | DS60: =IF(COUNT($BP46:$BW46)=0,0,BT46) -> 3 | DT60: =BV46 -> 5 | DU60: =IF(ISERROR(DP60),"",DP60) -> 3
CZ61: y | DA61: -1 | DB61: =IF(COUNT($CC35:$CH35)=0,0,CC35) -> -4 | DC61: =IF(COUNT($CC35:$CH35)=0,1,CE35) -> -5 | DD61: =CG35 -> -7 | DF61: =IF(ISERROR(DA61),"",DA61) -> -1 | DO61: y | DP61: 2 | DQ61: =IF(COUNT($BP47:$BW47)=0,0,BP47) -> 0 | DR61: =IF(COUNT($BP47:$BW47)=0,1,BR47) -> 2 | DS61: =IF(COUNT($BP47:$BW47)=0,0,BT47) -> -1 | DT61: =BV47 -> 5 | DU61: =IF(ISERROR(DP61),"",DP61) -> 2
DF62: =IF(ISERROR(DA62),"",#REF!) ->  | DO62: z | DP62: -1 | DQ62: =IF(COUNT($BP48:$BW48)=0,0,BP48) -> 2 | DR62: =IF(COUNT($BP48:$BW48)=0,0,BR48) -> 1 | DS62: =IF(COUNT($BP48:$BW48)=0,1,BT48) -> 2 | DT62: =BV48 -> 6 | DU62: -1
DF63: =IF(ISERROR(DA63),"",#REF!) ->  | DU63: =IF(ISERROR(DP63),"",#REF!) -> 
DB64: =MINVERSE(DB60:DC61) -> 0.625 | DC64: -0.875 | DQ64: =MINVERSE(DQ60:DS62) -> -1.25 | DR64: -0.25 | DS64: 1.75
DB65: -0.5 | DC65: 0.5 | DQ65: 0.5 | DR65: 0.5 | DS65: -0.5
DQ66: 1 | DR66: 0 | DS66: -1

Sheet 11) Matrices
BC1: a11 | BD1: Row 1, Col 1 | BF1: 1 | BG1: 1 | BK1: =Z12 -> 1 | BL1: a11 | BM1: a11
B2: A) Multiplication Rule: Row by Column | X2: B) Finding Transpose Matrix (switch the rows and columns) | BC2: a21 | BD2: Row 2, Col 1 | BF2: 2 | BG2: 2 | BH2: =IF(K7<>F7,0,D7) -> 3 | BI2: =IF(K7<>F7,0,M7) -> 5 | BK2: =AA12 -> 2 | BL2: a12 | BM2: a21
D3: In Order to multiply two matrices: The Number of Columns in the first must be = Number of Rows in the second | BC3: a31 | BD3: Row 3, Col 1 | BF3: 3 | BG3: 3 | BK3: =AB12 -> 3 | BL3: a13 | BM3: a31
D4: Select First Matrix Dimension | J4: Select Second Matrix Dimension | Z4: Select Original A | AG4: Transpose AT | BC4: a41 | BD4: Row 4, Col 1 | BF4: 4 | BG4: 4 | BK4: =AC12 ->  | BL4: a14 | BM4: a41
Q5: Put Dimensions next to each others | Z5: Rows | AB5: Columns | AG5: Rows | AI5: Columns | BC5: a51 | BD5: Row 5, Col 1 | BF5: 5 | BG5: 5 | BK5: =AD12 ->  | BL5: a15 | BM5: a51 | BV5: 1
D6: Rows | F6: Columns | K6: Rows | M6: Columns | R6: =D7 & " x " -> 3 x | S6: =F7 -> 2 | U6: =K7 -> 2 | V6: =" x "&M7 -> x 5 | Z6: 4 | AB6: 3 | AG6: =AB6 -> 3 | AI6: =Z6 -> 4 | BC6: a12 | BD6: Row 1, Col 2 | BK6: =Z13 -> 6 | BL6: a21 | BM6: a12 | BV6: 2
D7: 3 | F7: 2 | H7: =IF(F7<>K7,"Not Equal","OK") -> OK | K7: 2 | M7: 5 | R7: The two Must be equal | BC7: a22 | BD7: Row 2, Col 2 | BK7: =AA13 -> 7 | BL7: a22 | BM7: a22 | BV7: 3
R8: =IF(F7=K7,"The Result matrix is: "&D7&" x "&M7,"Not Possible") -> The Result matrix is: 3 x 5 | Z8: A | AG8: AT | BC8: a32 | BD8: Row 3, Col 2 | BK8: =AB13 -> 8 | BL8: a23 | BM8: a32 | BV8: 4
BC9: a42 | BD9: Row 4, Col 2 | BK9: =AC13 ->  | BL9: a24 | BM9: a42 | BV9: 5
D10: =IF($F$7>=1,"C1","") -> C1 | E10: =IF($F$7>=2,"C2","") -> C2 | F10: =IF($F$7>=3,"C3","") ->  | G10: =IF($F$7>=4,"C4","") ->  | H10: =IF($F$7>=5,"C5","") ->  | K10: =IF($BI$2>=1,"C1","") -> C1 | L10: =IF($BI$2>=2,"C2","") -> C2 | M10: =IF($BI$2>=3,"C3","") -> C3 | N10: =IF($BI$2>=4,"C4","") -> C4 | O10: =IF($BI$2>=5,"C5","") -> C5 | Z10: =IF($AB$6>=1,"C1","") -> C1 | AA10: =IF($AB$6>=2,"C2","") -> C2 | AB10: =IF($AB$6>=3,"C3","") -> C3 | AC10: =IF($AB$6>=4,"C4","") ->  | AD10: =IF($AB$6>=5,"C5","") ->  | AG10: =IF($AI$6>=1,"C1","") -> C1 | AH10: =IF($AI$6>=2,"C2","") -> C2 | AI10: =IF($AI$6>=3,"C3","") -> C3 | AJ10: =IF($AI$6>=4,"C4","") -> C4 | AK10: =IF($AI$6>=5,"C5","") ->  | BC10: a52 | BD10: Row 5, Col 2 | BK10: =AD13 ->  | BL10: a25 | BM10: a52
D11: 1 | E11: =IF(D11<$F$7,1+D11,"") -> 2 | F11: =IF(E11<$F$7,1+E11,"") ->  | G11: =IF(F11<$F$7,1+F11,"") ->  | H11: =IF(G11<$F$7,1+G11,"") ->  | K11: 1 | L11: =IF(K11<$M$7,1+K11,"") -> 2 | M11: =IF(L11<$M$7,1+L11,"") -> 3 | N11: =IF(M11<$M$7,1+M11,"") -> 4 | O11: =IF(N11<$M$7,1+N11,"") -> 5 | AA11: 1 | AB11: =IF(AA11<$F$7,1+AA11,"") -> 2 | AC11: =IF(AB11<$F$7,1+AB11,"") ->  | AD11: =IF(AC11<$F$7,1+AC11,"") ->  | AE11: =IF(AD11<$F$7,1+AD11,"") ->  | AG11: 1 | AH11: =IF(AG11<$F$7,1+AG11,"") -> 2 | AI11: =IF(AH11<$F$7,1+AH11,"") ->  | AJ11: =IF(AI11<$F$7,1+AI11,"") ->  | AK11: =IF(AJ11<$F$7,1+AJ11,"") ->  | BC11: a13 | BD11: Row 1, Col 3 | BK11: =Z14 -> 11 | BL11: a31 | BM11: a13
B12: =IF($BH$2>=1,"R1","") -> R1 | C12: 1 | D12: =IF($D$7>=1,"*","") -> * | E12: =IF($F$7>=2,"*","") -> * | F12: =IF($F$7>=3,"*","") ->  | G12: =IF($F$7>=4,"*","") ->  | H12: =IF(AND($D$7>=1,$F$7>=5),"*","") ->  | J12: =IF($K$7>=1,"R1","") -> R1 | K12: =IF($K$7>=1,"*","") -> * | L12: =IF($M$7>=2,"*","") -> * | M12: =IF($M$7>=3,"*","") -> * | N12: =IF($M$7>=4,"*","") -> * | O12: =IF(AND($K$7>=1,$M$7>=5),"*","") -> * | R12: Examples of Dimensions: | Y12: =IF($Z$6>=1,"R1","") -> R1 | Z12: =IF($Z$6>=1,1,"") -> 1 | AA12: =IF($AB$6>=2,2,"") -> 2 | AB12: =IF($AB$6>=3,3,"") -> 3 | AC12: =IF($AB$6>=4,4,"") ->  | AD12: =IF(AND($Z$6>=1,$AB$6>=5),5,"") ->  | AF12: =IF($AG$6>=1,"R1","") -> R1 | AG12: =IF($AG$6>=1,1,"") -> 1 | AH12: =IF($AI$6>=2,6,"") -> 6 | AI12: =IF($AI$6>=3,11,"") -> 11 | AJ12: =IF($AI$6>=4,16,"") -> 16 | AK12: =IF(AND($Z$6>=1,$AI$6>=5),21,"") ->  | BC12: a23 | BD12: Row 2, Col 3 | BK12: =AA14 -> 12 | BL12: a32 | BM12: a23
B13: =IF($BH$2>=2,"R2","") -> R2 | C13: =IF(C12<$D$7,1+C12,"") -> 2 | D13: =IF($D$7>=2,"*","") -> * | E13: =IF(AND($F$7>=2,$D$7>=2),"*","") -> * | F13: =IF(AND($D$7>=2,$F$7>=3),"*","") ->  | G13: =IF(AND($D$7>=2,$F$7>=4),"*","") ->  | H13: =IF(AND($D$7>=2,$F$7>=5),"*","") ->  | J13: =IF($K$7>=2,"R2","") -> R2 | K13: =IF($K$7>=2,"*","") -> * | L13: =IF(AND($M$7>=2,$K$7>=2),"*","") -> * | M13: =IF(AND($K$7>=2,$M$7>=3),"*","") -> * | N13: =IF(AND($K$7>=2,$M$7>=4),"*","") -> * | O13: =IF(AND($K$7>=2,$M$7>=5),"*","") -> * | Q13: a34 :Element in Row 3 and Column 4 | Y13: =IF($Z$6>=2,"R2","") -> R2 | Z13: =IF($Z$6>=2,6,"") -> 6 | AA13: =IF(AND($AB$6>=2,$Z$6>=2),7,"") -> 7 | AB13: =IF(AND($Z$6>=2,$AB$6>=3),8,"") -> 8 | AC13: =IF(AND($Z$6>=2,$AB$6>=4),9,"") ->  | AD13: =IF(AND($Z$6>=2,$AB$6>=5),10,"") ->  | AF13: =IF($AG$6>=2,"R2","") -> R2 | AG13: =IF($AG$6>=2,2,"") -> 2 | AH13: =IF(AND($AI$6>=2,$AG$6>=2),7,"") -> 7 | AI13: =IF(AND($AG$6>=2,$AI$6>=3),12,"") -> 12 | AJ13: =IF(AND($AG$6>=2,$AI$6>=4),17,"") -> 17 | AK13: =IF(AND($AG$6>=2,$AI$6>=5),22,"") ->  | BC13: a33 | BD13: Row 3, Col 3 | BK13: =AB14 -> 13 | BL13: a33 | BM13: a33
B14: =IF($BH$2>=3,"R3","") -> R3 | C14: =IF(C13<$D$7,1+C13,"") -> 3 | D14: =IF($D$7>=3,"*","") -> * | E14: =IF(AND($F$7>=2,$D$7>=3),"*","") -> * | F14: =IF(AND($D$7>=3,$F$7>=3),"*","") ->  | G14: =IF(AND($D$7>=3,$F$7>=4),"*","") ->  | H14: =IF(AND($D$7>=3,$F$7>=5),"*","") ->  | J14: =IF($K$7>=3,"R3","") ->  | K14: =IF($K$7>=3,"*","") ->  | L14: =IF(AND($M$7>=2,$K$7>=3),"*","") ->  | M14: =IF(AND($K$7>=3,$M$7>=3),"*","") ->  | N14: =IF(AND($K$7>=3,$M$7>=4),"*","") ->  | O14: =IF(AND($K$7>=3,$M$7>=5),"*","") ->  | Q14: a35: Element in Row 3 and Column 5 | Y14: =IF($Z$6>=3,"R3","") -> R3 | Z14: =IF($Z$6>=3,11,"") -> 11 | AA14: =IF(AND($AB$6>=2,$Z$6>=3),12,"") -> 12 | AB14: =IF(AND($Z$6>=3,$AB$6>=3),13,"") -> 13 | AC14: =IF(AND($Z$6>=3,$AB$6>=4),14,"") ->  | AD14: =IF(AND($Z$6>=3,$AB$6>=5),15,"") ->  | AF14: =IF($AG$6>=3,"R3","") -> R3 | AG14: =IF($AG$6>=3,3,"") -> 3 | AH14: =IF(AND($AI$6>=2,$AG$6>=3),8,"") -> 8 | AI14: =IF(AND($Z$6>=3,$AB$6>=3),13,"") -> 13 | AJ14: =IF(AND($AG$6>=3,$AI$6>=4),18,"") -> 18 | AK14: =IF(AND($AG$6>=3,$AI$6>=5),23,"") ->  | BC14: a43 | BD14: Row 4, Col 3 | BK14: =AC14 ->  | BL14: a34 | BM14: a43
B15: =IF($BH$2>=4,"R4","") ->  | C15: =IF(C14<$D$7,1+C14,"") ->  | D15: =IF($D$7>=4,"*","") ->  | E15: =IF(AND($F$7>=2,$D$7>=4),"*","") ->  | F15: =IF(AND($D$7>=4,$F$7>=3),"*","") ->  | G15: =IF(AND($D$7>=4,$F$7>=4),"*","") ->  | H15: =IF(AND($D$7>=4,$F$7>=5),"*","") ->  | J15: =IF($K$7>=4,"R4","") ->  | K15: =IF($K$7>=4,"*","") ->  | L15: =IF(AND($M$7>=2,$K$7>=4),"*","") ->  | M15: =IF(AND($K$7>=4,$M$7>=3),"*","") ->  | N15: =IF(AND($K$7>=4,$M$7>=4),"*","") ->  | O15: =IF(AND($K$7>=4,$M$7>=5),"*","") ->  | Q15: a52: Element in Row 5 and Column 2 | Y15: =IF($Z$6>=4,"R4","") -> R4 | Z15: =IF($Z$6>=4,16,"") -> 16 | AA15: =IF(AND($AB$6>=2,$Z$6>=4),17,"") -> 17 | AB15: =IF(AND($Z$6>=4,$AB$6>=3),18,"") -> 18 | AC15: =IF(AND($Z$6>=4,$AB$6>=4),19,"") ->  | AD15: =IF(AND($Z$6>=4,$AB$6>=5),20,"") ->  | AF15: =IF($AG$6>=4,"R4","") ->  | AG15: =IF($AG$6>=4,4,"") ->  | AH15: =IF(AND($AI$6>=2,$AG$6>=4),9,"") ->  | AI15: =IF(AND($AG$6>=4,$AI$6>=3),14,"") ->  | AJ15: =IF(AND($AG$6>=4,$AI$6>=4),19,"") ->  | AK15: =IF(AND($AG$6>=4,$AI$6>=5),24,"") ->  | BC15: a53 | BD15: Row 5, Col 3 | BK15: =AD14 ->  | BL15: a35 | BM15: a53
B16: =IF($BH$2>=5,"R5","") ->  | C16: =IF(C15<$D$7,1+C15,"") ->  | D16: =IF($D$7>=5,"*","") ->  | E16: =IF(AND($F$7>=2,$D$7>=5),"*","") ->  | F16: =IF(AND($F$7>=3,$D$7>=5),"*","") ->  | G16: =IF(AND($D$7>=5,$F$7>=4),"*","") ->  | H16: =IF(AND($D$7>=5,$F$7>=5),"*","") ->  | J16: =IF($K$7>=5,"R5","") ->  | K16: =IF($K$7>=5,"*","") ->  | L16: =IF(AND($M$7>=2,$K$7>=5),"*","") ->  | M16: =IF(AND($M$7>=3,$K$7>=5),"*","") ->  | N16: =IF(AND($K$7>=5,$M$7>=4),"*","") ->  | O16: =IF(AND($K$7>=5,$M$7>=5),"*","") ->  | Y16: =IF($Z$6>=5,"R5","") ->  | Z16: =IF($Z$6>=5,21,"") ->  | AA16: =IF(AND($AB$6>=2,$Z$6>=5),22,"") ->  | AB16: =IF(AND($AB$6>=3,$Z$6>=5),23,"") ->  | AC16: =IF(AND($Z$6>=5,$AB$6>=4),24,"") ->  | AD16: =IF(AND($Z$6>=5,$AB$6>=5),25,"") ->  | AF16: =IF($AG$6>=5,"R5","") ->  | AG16: =IF($AG$6>=5,5,"") ->  | AH16: =IF(AND($AI$6>=2,$AG$6>=5),10,"") ->  | AI16: =IF(AND($AI$6>=3,$AG$6>=5),15,"") ->  | AJ16: =IF(AND($AG$6>=5,$AI$6>=4),20,"") ->  | AK16: =IF(AND($AG$6>=5,$AI$6>=5),25,"") ->  | BC16: a14 | BD16: Row 1, Col 4 | BK16: =Z15 -> 16 | BL16: a41 | BM16: a14
BC17: a24 | BD17: Row 2, Col 4 | BK17: =AA15 -> 17 | BL17: a42 | BM17: a24
F18: =IF(K7<>F7,"Not Possible","") ->  | Q18: Select: | S18: a33 | T18: =VLOOKUP(S18,BC1:BE26,2,FALSE) -> Row 3, Col 3 | Y18: Enter a Cell # in A | AF18: =IF(LEFT(Z22,2)="No","","In Transpose") -> In Transpose | BC18: a34 | BD18: Row 3, Col 4 | BH18: =IF(K7<>F7,0,D7) -> 3 | BI18: =IF(K7<>F7,0,M7) -> 5 | BK18: =AB15 -> 18 | BL18: a43 | BM18: a34
D19: =IF(F7=K7,"Result: ","") -> Result: | F19: =IF(K7<>F7,0,D7&" Rows") -> 3 Rows | H19: =IF(F7=K7,"By","") -> By | K19: =IF(K7<>F7,0,M7&" Col.") -> 5 Col. | AA19: 11 | AH19: =IF(LEFT(Z22,2)="No","",AA19) -> 11 | BC19: a44 | BD19: Row 4, Col 4 | BK19: =AC15 ->  | BL19: a44 | BM19: a44
R20: C1 | S20: C2 | T20: C3 | U20: C4 | V20: C5 | AD20: =IF(AH19<>"","Transposed ","") -> Transposed | BC20: a54 | BD20: Row 5, Col 4 | BK20: =AD15 ->  | BL20: a45 | BM20: a54
G21: =K10 -> C1 | H21: =L10 -> C2 | I21: =M10 -> C3 | J21: =N10 -> C4 | K21: =O10 -> C5 | Z21: Located at: | AD21: =IF(LEFT(Z22,2)="No",""," -------------->") -> --------------> | AG21: =IF(LEFT(Z22,2)="No",""," Is located at:") -> Is located at: | BC21: a15 | BD21: Row 1, Col 5 | BK21: =Z16 ->  | BL21: a51 | BM21: a15
F22: =B12 -> R1 | G22: =IF($BH$18>=1,"*","") -> * | H22: =IF($BI$18>=2,"*","") -> * | I22: =IF($BI$18>=3,"*","") -> * | J22: =IF($BI$18>=4,"*","") -> * | K22: =IF($BI$18>=5,"*","") -> * | L22: =IF(AND(F7=K7,D7<=2),"Result Matrix is: "&D7&" x "&M7,"") ->  | Q22: R1 | R22: a11 | S22: a12 | T22: a13 | U22: a14 | V22: a15 | Z22: =IFERROR(VLOOKUP(AA23,BC1:BD25,2,FALSE),"Not in the matrix") -> Row 3, Col 1 | AG22: =IF(AH19="","",IFERROR(VLOOKUP(AH23,BC1:BD25,2,FALSE),"")) -> Row 1, Col 3 | BC22: a25 | BD22: Row 2, Col 5 | BK22: =AA16 ->  | BL22: a52 | BM22: a25
F23: =B13 -> R2 | G23: =IF($BH$18>=2,"*","") -> * | H23: =IF(AND($BI$18>=2,$BH$18>=2),"*","") -> * | I23: =IF(AND($BH$18>=2,$BI$18>=3),"*","") -> * | J23: =IF(AND($BH$18>=2,$BI$18>=4),"*","") -> * | K23: =IF(AND($BH$18>=2,$BI$18>=5),"*","") -> * | Q23: R2 | R23: a21 | S23: a22 | T23: a23 | U23: a24 | V23: a25 | AA23: =IFERROR(VLOOKUP(AA19,BK1:BM25,2,FALSE),"") -> a31 | AH23: =IF(AH19="","",IFERROR(VLOOKUP(AH19,BK1:BM25,3,FALSE),"")) -> a13 | BC23: a35 | BD23: Row 3, Col 5 | BK23: =AB16 ->  | BL23: a53 | BM23: a35
F24: =B14 -> R3 | G24: =IF($BH$18>=3,"*","") -> * | H24: =IF(AND($BI$18>=2,$BH$18>=3),"*","") -> * | I24: =IF(AND($BH$18>=3,$BI$18>=3),"*","") -> * | J24: =IF(AND($BH$18>=3,$BI$18>=4),"*","") -> * | K24: =IF(AND($BH$18>=3,$BI$18>=5),"*","") -> * | L24: =IF(AND(F7=K7,D7>2),"Result Matrix is: "&D7&" x "&M7,"") -> Result Matrix is: 3 x 5 | Q24: R3 | R24: a31 | S24: a32 | T24: a33 | U24: a34 | V24: a35 | AB24: Dimension of each matrix: | BC24: a45 | BD24: Row 4, Col 5 | BK24: =AC16 ->  | BL24: a54 | BM24: a45
F25: =B15 ->  | G25: =IF($BH$18>=4,"*","") ->  | H25: =IF(AND($BI$18>=2,$BH$18>=4),"*","") ->  | I25: =IF(AND($BH$18>=4,$BI$18>=3),"*","") ->  | J25: =IF(AND($BH$18>=4,$BI$18>=4),"*","") ->  | K25: =IF(AND($BH$18>=4,$BI$18>=5),"*","") ->  | Q25: R4 | R25: a41 | S25: a42 | T25: a43 | U25: a44 | V25: a45 | AA25: Original : | AF25: Transpose: | BC25: a55 | BD25: Row 5, Col 5 | BK25: =AD16 ->  | BL25: a55 | BM25: a55
F26: =B16 ->  | G26: =IF($BH$18>=5,"*","") ->  | H26: =IF(AND($BI$18>=2,$BH$18>=5),"*","") ->  | I26: =IF(AND($BH$18>=5,$BI$18>=3),"*","") ->  | J26: =IF(AND($BH$18>=5,$BI$18>=4),"*","") ->  | K26: =IF(AND($BH$18>=5,$BI$18>=5),"*","") ->  | Q26: R5 | R26: a51 | S26: a52 | T26: a53 | U26: a54 | V26: a55 | AB26: =Z6&" x "&AB6 -> 4 x 3 | AG26: =AG6&" x "&AI6 -> 3 x 4
F27: =B16 ->  | G27: =IF($BH$18>=5,"*","") ->  | H27: =IF(AND($BI$18>=2,$BH$18>=5),"*","") ->  | J27: =IF(AND($BH$18>=5,$BI$18>=3),"*","") ->  | K27: =IF(AND($BH$18>=5,$BI$18>=4),"*","") ->  | L27: =IF(AND($BH$18>=5,$BI$18>=5),"*","") ->  | BK27: 21.66666667
AZ29: N of Col A | BC29: N of Col
D30: C) Multiplication Example: Fill the left and the right matrices to be multiplied: | AZ30: =F52 -> 4 | BC30: =M52 -> 3
BF31: ="Multiply Row "&O55 -> Multiply Row 2
D32: First Matrix A | L32: Second Matrix B | S32: A x B | AZ32: =IF(BA32=0,0,IF(BA32=$AZ$30,0,1)) -> 0 | BA32: =COUNT(D35:H36) -> 4 | BC32: =IF(BD32=0,0,IF(BD32=$BC$30,0,1)) -> 0 | BD32: =COUNT(L35:P36) -> 3 | BF32: ="By Column "&O57 -> By Column 3
D33: C1 | E33: C2 | F33: C3 | G33: C4 | H33: C5 | L33: C1 | M33: C2 | N33: C3 | O33: C4 | P33: C5 | S33: C1 | T33: C2 | U33: C3 | V33: C4 | W33: C5 | AZ33: =IF(BA33=0,0,IF(BA33=$AZ$30,0,1)) -> 0 | BA33: =COUNT(D37:H38) -> 4 | BC33: 0 | BD33: =COUNT(L37:P38) -> 3
L34: 1 | M34: 2 | N34: 3 | O34: 4 | P34: 5 | AZ34: 0 | BA34: =COUNT(D37:H38) -> 4 | BC34: 0 | BD34: =COUNT(L37:P38) -> 3
B35: R1 | C35: 1 | D35: 1 | E35: 2 | F35: 3 | G35: 4 | K35: R1 | L35: 1 | M35: 2 | N35: 3 | R35: R1 | S35: =IF(OR(F52=0,K52=0),"",IF($F$52=$K$52,D35*L35+E35*L37+F35*L39+G35*L41+H35*L43,"")) -> 30 | T35: =IF(AND($F$56>=1,$J$56>=2,$F$52=$K$52),D35*M35+E35*M37+F35*M39+G35*M41+H35*M43,"") -> 22 | U35: =IF(AND($F$56>=1,$J$56>=3,$F$52=$K$52),D35*N35+E35*N37+F35*N39+G35*N41+H35*N43,"") -> 63 | V35: =IF(AND($F$56>=1,$J$56>=4,$F$52=$K$52),D35*O35+E35*O37+F35*O39+G35*O41+H35*O43,"") ->  | W35: =IF(AND($F$56>=1,$J$56>=5,$F$52=$K$52),D35*P35+E35*P37+F35*P39+G35*P41+H35*P43,"") ->  | AZ35: 0 | BA35: =COUNT(D39:H40) -> 4 | BC35: 0 | BD35: =COUNT(L39:P40) -> 3
X36: =IF(OR(F52<>K52,F52=0,K52=0,O58=""),"","Dimension of") -> Dimension of | AZ36: 0 | BA36: =COUNT(D41:H42) -> 4 | BC36: 0 | BD36: =COUNT(L41:P42) -> 3
B37: R2 | C37: 2 | D37: 2 | E37: 2 | F37: 3 | G37: 3 | K37: R2 | L37: 2 | M37: 1 | N37: 2 | R37: R2 | S37: =IF(AND($F$56>=2,$F$52=$K$52),D37*L35+E37*L37+F37*L39+G37*L41+H37*L43,"") -> 27 | T37: =IF(AND($F$56>=2,$J$56>=2,$F$52=$K$52),D37*M35+E37*M37+F37*M39+G37*M41+H37*M43,"") -> 21 | U37: =IF(AND($F$56>=2,$J$56>=3,$F$52=$K$52),D37*N35+E37*N37+F37*N39+G37*N41+H37*N43,"") -> 61 | V37: =IF(AND($F$56>=2,$J$56>=4,$F$52=$K$52),D37*O35+E37*O37+F37*O39+G37*O41+H37*O43,"") ->  | W37: =IF(AND($F$56>=2,$J$56>=5,$F$52=$K$52),D37*P35+E37*P37+F37*P39+G37*P41+H37*P43,"") ->  | X37: =IF(OR(F52<>K52,F52=0,K52=0,O58=""),""," A x B:") -> A x B: | AZ37: 0 | BA37: =COUNT(D43:H44) -> 0 | BC37: 0 | BD37: =COUNT(L43:P44) -> 0 | BK37: Rows | BL37: Col
X38: =IF(OR(F52<>K52,F52=0,K52=0,O58=""),"",F56&" Row") -> 4 Row | AZ38: =SUM(AZ32:AZ37) -> 0 | BA38: =SUM(BA32:BA37) -> 20 | BC38: =SUM(BC32:BC37) -> 0 | BD38: =SUM(BD32:BD37) -> 15 | BK38: =D52 -> 4 | BL38: =M52 -> 3
B39: R3 | C39: 3 | D39: 3 | E39: 2 | F39: 1 | G39: 3 | J39: X | K39: R3 | L39: 3 | M39: 2 | N39: 12 | Q39: = | R39: R3 | S39: =IF(AND($F$56>=3,$F$52=$K$52),D39*L35+E39*L37+F39*L39+G39*L41+H39*L43,"") -> 22 | T39: =IF(AND($F$56>=3,$J$56>=2,$F$52=$K$52),D39*M35+E39*M37+F39*M39+G39*M41+H39*M43,"") -> 19 | U39: =IF(AND($F$56>=3,$J$56>=3,$F$52=$K$52),D39*N35+E39*N37+F39*N39+G39*N41+H39*N43,"") -> 40 | V39: =IF(AND($F$56>=3,$J$56>=4,$F$52=$K$52),D39*O35+E39*O37+F39*O39+G39*O41+H39*O43,"") ->  | W39: =IF(AND($F$56>=3,$J$56>=5,$F$52=$K$52),D39*P35+E39*P37+F39*P39+G39*P41+H39*P43,"") ->  | X39: =IF(OR(F52<>K52,F52=0,K52=0,O58=""),"","By") -> By
X40: =IF(OR(F52<>K52,F52=0,K52=0,O58=""),"",J56&" Col.") -> 3 Col. | AN40: N of Rows | BF40: 1 | BG40: 2 | BH40: 3 | BI40: 4 | BJ40: 5 | BM40: 1 | BN40: 2 | BO40: 3 | BP40: 4 | BS40: 5
B41: R4 | C41: 4 | D41: 4 | E41: 1 | F41: 3 | G41: 3 | K41: R4 | L41: 4 | M41: 3 | N41: 5 | R41: R4 | S41: =IF(AND($F$56>=4,$F$52=$K$52),D41*L35+E41*L37+F41*L39+G41*L41+H41*L43,"") -> 27 | T41: =IF(AND($F$56>=4,$J$56>=2,$F$52=$K$52),D41*M35+E41*M37+F41*M39+G41*M41+H41*M43,"") -> 24 | U41: =IF(AND($F$56>=4,$J$56>=3,$F$52=$K$52),D41*N35+E41*N37+F41*N39+G41*N41+H41*N43,"") -> 65 | V41: =IF(AND($F$56>=4,$J$56>=4,$F$52=$K$52),D41*O35+E41*O37+F41*O39+G41*O41+H41*O43,"") ->  | W41: =IF(AND($F$56>=4,$J$56>=5,$F$52=$K$52),D41*P35+E41*P37+F41*P39+G41*P41+H41*P43,"") ->  | BE41: 1 | BF41: =IF(D35="","",D35) -> 1 | BG41: =IF(E35="","",E35) -> 2 | BH41: =IF(F35="","",F35) -> 3 | BI41: =IF(G35="","",G35) -> 4 | BJ41: =IF(H35="","",H35) ->  | BL41: 1 | BM41: =IF(L35="","",L35) -> 1 | BN41: =IF(M35="","",M35) -> 2 | BO41: =IF(N35="","",N35) -> 3 | BP41: =IF(O35="","",O35) ->  | BS41: =IF(P35="","",P35) -> 
AM42: =D52 -> 4 | AP42: A | AR42: =COUNT(D35:D44) -> 4 | AS42: =COUNT(E35:E44) -> 4 | AT42: =COUNT(F35:F44) -> 4 | AU42: 4 | AV42: 0 | BE42: 2 | BF42: =IF(D37="","",D37) -> 2 | BG42: =IF(E37="","",E37) -> 2 | BH42: =IF(F37="","",F37) -> 3 | BI42: =IF(G37="","",G37) -> 3 | BJ42: =IF(H37="","",H37) ->  | BL42: 2 | BM42: =IF(L37="","",L37) -> 2 | BN42: =IF(M37="","",M37) -> 1 | BO42: =IF(N37="","",N37) -> 2 | BP42: =IF(O37="","",O37) ->  | BS42: =IF(P37="","",P37) -> 
B43: R5 | C43: 5 | K43: R5 | R43: R5 | S43: =IF(AND($F$56>=5,$F$52=$K$52),D43*L35+E43*L37+F43*L39+G43*L41+H43*L43,"") ->  | T43: =IF(AND($F$56>=5,$J$56>=2,$F$52=$K$52),D43*M35+E43*M37+F43*M39+G43*M41+H43*M43,"") ->  | U43: =IF(AND($F$56>=5,$J$56>=3,$F$52=$K$52),D43*N35+E43*N37+F43*N39+G43*N41+H43*N43,"") ->  | V43: =IF(AND($F$56>=5,$J$56>=4,$F$52=$K$52),D43*O35+E43*O37+F43*O39+G43*O41+H43*O43,"") ->  | W43: =IF(AND($F$56>=5,$J$56>=5,$F$52=$K$52),D43*P35+E43*P37+F43*P39+G43*P41+H43*P43,"") ->  | AR43: =IF(AR42=0,0,IF(AR42=$AM$42,0,1)) -> 0 | AS43: =IF(AS42=0,0,IF(AS42=$AM$42,0,1)) -> 0 | AT43: 0 | AU43: 0 | AV43: 0 | AZ43: =SUM(AR43:AV43) -> 0 | BE43: 3 | BF43: =IF(D39="","",D39) -> 3 | BG43: =IF(E39="","",E39) -> 2 | BH43: =IF(F39="","",F39) -> 1 | BI43: =IF(G39="","",G39) -> 3 | BJ43: =IF(H39="","",H39) ->  | BL43: 3 | BM43: =IF(L39="","",L39) -> 3 | BN43: =IF(M39="","",M39) -> 2 | BO43: =IF(N39="","",N39) -> 12 | BP43: =IF(O39="","",O39) ->  | BS43: =IF(P39="","",P39) -> 
BE44: 4 | BF44: =IF(D41="","",D41) -> 4 | BG44: =IF(E41="","",E41) -> 1 | BH44: =IF(F41="","",F41) -> 3 | BI44: =IF(G41="","",G41) -> 3 | BJ44: =IF(H41="","",H41) ->  | BL44: 4 | BM44: =IF(L41="","",L41) -> 4 | BN44: =IF(M41="","",M41) -> 3 | BO44: =IF(N41="","",N41) -> 5 | BP44: =IF(O41="","",O41) ->  | BS44: =IF(P41="","",P41) -> 
D45: =IF(OR(AZ43<>0,AZ38<>0)," A is Not Filled Correctly","") ->  | L45: =IF(OR(AZ51<>0,BC38<>0),"B Not Filled Correctly","") ->  | S45: =IF(AND(D45<>"",L45<>""),"Fill A and B Correctly",IF(AND(D45<>"",L45=""),"Fill A Correctly",IF(AND(D45="",L45<>""),"Fill B Correctly",""))) ->  | BE45: 5 | BF45: =IF(D43="","",D43) ->  | BG45: =IF(E43="","",E43) ->  | BH45: =IF(F43="","",F43) ->  | BI45: =IF(G43="","",G43) ->  | BJ45: =IF(H43="","",H43) ->  | BL45: 5 | BM45: =IF(L43="","",L43) ->  | BN45: =IF(M43="","",M43) ->  | BO45: =IF(N43="","",N43) ->  | BP45: =IF(O43="","",O43) ->  | BS45: =IF(P43="","",P43) -> 
D47: First Matrix Dimensions: | L47: Second Matrix Dimensions:
D50: First Matrix A | K50: Second Matrix B | S50: =O58 -> a23 | T50: =IF(OR(F52=0,K52=0),"",IF(F52<>K52,"Not Possible","It is in R = "&O55& ", C = "&O57&", then "&BF31& " "&BF32)) -> It is in R = 2, C = 3, then Multiply Row 2 By Column 3 | AM50: =K52 -> 4 | AP50: B | AR50: =COUNT(L35:L44) -> 4 | AS50: =COUNT(M35:M44) -> 4 | AT50: =COUNT(N35:N44) -> 4 | AU50: =COUNT(O35:O44) -> 0 | AV50: =COUNT(P35:P44) -> 0
D51: Rows | F51: Columns | H51: =IF(OR(F52=0,K52=0),"",IF(K52<>F52,"Not Equal","OK")) -> OK | K51: Rows | M51: Columns | AR51: =IF(AR50=0,0,IF(AR50=$AM$50,0,1)) -> 0 | AS51: =IF(AS50=0,0,IF(AS50=$AM$50,0,1)) -> 0 | AT51: 0 | AU51: 0 | AV51: 0 | AZ51: =SUM(AR51:AV51) -> 0
D52: =COUNT(D35:D43) -> 4 | F52: =COUNT(D35:H35) -> 4 | K52: =COUNT(L35:L43) -> 4 | M52: =COUNT(L35:P35) -> 3 | T52: =IF(OR(F52=0,K52=0,F52<>K52),"",IF(OR(O55>F56,O57>J56),"Out Of Matrix Dimen.","")) ->  | X52: Matrix B Col
Y53: =IF(OR(F52=0,K52=0),"",IF(F52<>K52,"","C"&O57)) -> C3
M54: To see Mult Steps, Select: | Y54: =IF($F$52<>$K$52,"",HLOOKUP($O$57,$BM$40:$BS$45,2,FALSE)) -> 3 | AA54: =IF(OR(S58="",Y54=""),"",S58&" x "&Y54) -> 2 x 3 | AB54: =IF(AA54="","","=") -> = | AC54: =IF(OR(Y54="",S58=""),"",S58*Y54) -> 6
H55: =IF(H51="OK","Dimension of the Result","") -> Dimension of the Result | N55: Row | O55: 2
F56: =IF(F52=K52,D52,"") -> 4 | H56: By | J56: =IF(F52=K52,M52,"") -> 3 | M56: to Multiply by | Y56: =IF($F$52<>$K$52,"",HLOOKUP($O$57,$BM$40:$BS$45,3,FALSE)) -> 2 | Z56: =IF(OR(T58="",Y56=""),"","+") -> + | AA56: =IF(OR(T58="",Y56=""),"",T58&" x "&Y56) -> 2 x 2 | AB56: =IF(AA56="","","=") -> = | AC56: =IF(OR(Y56="",T58=""),"",T58*Y56) -> 4
F57: Rows | J57: Columns | N57: Column | O57: 3
H58: =IF(OR(H51="OK",F52=0,K52=0),"","Not Possible") ->  | M58: =IF(OR(F52=0,K52=0,F52<>K52),"","Result in ") -> Result in | O58: =IF(OR(F52=0,K52=0,F52<>K52,O55>F56,O57>M52),"","a"&O55&O57) -> a23 | R58: =IF(OR(F52=0,K52=0),"",IF(F52<>K52,"","R"&O55)) -> R2 | S58: =IF($F$52<>$K$52,"",IF($F$52>=1,VLOOKUP($O$55,$BE$41:$BJ$45,2,FALSE),"")) -> 2 | T58: =IF($F$52<>$K$52,"",IF($F$52>=2,VLOOKUP($O$55,$BE$41:$BJ$45,3,FALSE),"")) -> 2 | U58: =IF($F$52<>$K$52,"",IF($F$52>=3,VLOOKUP($O$55,$BE$41:$BJ$45,4,FALSE),"")) -> 3 | V58: =IF($F$52<>$K$52,"",IF($F$52>=4,VLOOKUP($O$55,$BE$41:$BJ$45,5,FALSE),"")) -> 3 | W58: =IF($F$52<>$K$52,"",IF($F$52>=5,VLOOKUP($O$55,$BE$41:$BJ$45,6,FALSE),"")) ->  | Y58: =IF($F$52<>$K$52,"",HLOOKUP($O$57,$BM$40:$BS$45,4,FALSE)) -> 12 | Z58: =IF(OR(U58="",Y58=""),"","+") -> + | AA58: =IF(OR(U58="",Y58=""),"",U58&" x "&Y58) -> 3 x 12 | AB58: =IF(AA58="","","=") -> = | AC58: =IF(OR(Y58="",U58=""),"",U58*Y58) -> 36
BJ59: Row | BK59: Column
S60: Matrix A Row | Y60: =IF($F$52<>$K$52,"",HLOOKUP($O$57,$BM$40:$BS$45,5,FALSE)) -> 5 | Z60: =IF(OR(V58="",Y60=""),"","+") -> + | AA60: =IF(OR(V58="",Y60=""),"",V58&" x "&Y60) -> 3 x 5 | AB60: =IF(AA60="","","=") -> = | AC60: =IF(OR(Y60="",V58=""),"",V58*Y60) -> 15 | BH60: a11 | BI60: =IF(S35="","N/A",S35) -> 30 | BJ60: 1 | BK60: 1
L61: =IF(AC65="","","See the steps on the right ----->") -> See the steps on the right -----> | BH61: a21 | BI61: =IF(S37="","N/A",S37) -> 27 | BJ61: 2 | BK61: 1
R62: =IF(OR(F52=0,K52=0,O58=""),"",IF(S65>F56,"No Row "&S65,"")) ->  | Y62: =IF($F$52<>$K$52,"",HLOOKUP($O$57,$BM$40:$BS$45,6,FALSE)) ->  | Z62: =IF(OR(W58="",Y62=""),"","+") ->  | AA62: =IF(OR(W58="",Y62=""),"",W58&" x "&Y62) ->  | AB62: =IF(AA62="","","=") ->  | AC62: =IF(OR(Y62="",W58=""),"",W58*Y62) ->  | BH62: a31 | BI62: =IF(S39="","N/A",S39) -> 22 | BJ62: 3 | BK62: 1
BH63: a41 | BI63: =IF(S41="","N/A",S41) -> 27 | BJ63: 4 | BK63: 1
BH64: a51 | BI64: =IF(S43="","N/A",S43) -> N/A | BJ64: 5 | BK64: 1
R65: =IF(OR(F52<>K52,F52=0,K52=0,O58=""),"","Row ") -> Row | S65: =IF(OR(F52<>K52,F52=0,K52=0,O58=""),"",VLOOKUP(O58,BH60:BK87,3,FALSE)) -> 2 | T65: =IF(OR(F52<>K52,F52=0,K52=0,O58=""),""," by Col.") -> by Col. | U65: =IF(OR(F52<>K52,F52=0,K52=0,O58=""),"",VLOOKUP(O58,BH60:BK87,4,FALSE)) -> 3 | V65: =IF(OR(F52<>K52,F52=0,K52=0,O58=""),"","Result will be in") -> Result will be in | Y65: =IF(OR(F52<>K52,F52=0,K52=0,O58=""),"","Row ") -> Row | Z65: =S65 -> 2 | AA65: =IF(OR(F52<>K52,F52=0,K52=0,O58=""),"",O58&" =") -> a23 = | AC65: =IF(OR(F52<>K52,F52=0,K52=0,O58=""),"",IF(AND(AC54="",AC56="",AC58="",AC60="",AC62=""),"",SUM(AC54:AC62))) -> 61 | BH65: a12 | BI65: =IF(T35="","N/A",T35) -> 22 | BJ65: 1 | BK65: 2
Y66: =IF(OR(F52<>K52,F52=0,K52=0,O58=""),""," Col ") -> Col | Z66: =U65 -> 3 | BH66: a22 | BI66: =IF(T37="","N/A",T37) -> 21 | BJ66: 2 | BK66: 2
BH67: a32 | BI67: =IF(T39="","N/A",T39) -> 19 | BJ67: 3 | BK67: 2
BH68: a42 | BI68: =IF(T41="","N/A",T41) -> 24 | BJ68: 4 | BK68: 2
BF69: 1 | BH69: a52 | BI69: =IF(T43="","N/A",T43) -> N/A | BJ69: 5 | BK69: 2
BF70: =IF(BF69<$F$56,1+BF69,"") -> 2 | BH70: a13 | BI70: =IF(U35="","N/A",U35) -> 63 | BJ70: 1 | BK70: 3
BF71: =IF(BF70<$F$56,1+BF70,"") -> 3 | BH71: a23 | BI71: =IF(U37="","N/A",U37) -> 61 | BJ71: 2 | BK71: 3
BF72: =IF(BF71<$F$56,1+BF71,"") -> 4 | BH72: a33 | BI72: =IF(U39="","N/A",U39) -> 40 | BJ72: 3 | BK72: 3
T73: a11 | U73: a12 | V73: a13 | W73: a14 | X73: a15 | BF73: =IF(BF72<$F$56,1+BF72,"") ->  | BH73: a43 | BI73: =IF(U41="","N/A",U41) -> 65 | BJ73: 4 | BK73: 3
T74: a21 | U74: a22 | V74: a23 | W74: a24 | X74: a25
T75: a31 | U75: a32 | V75: a33 | W75: a34 | X75: a35
T76: a41 | U76: a42 | V76: a43 | W76: a44 | X76: a45
T77: a51 | U77: a52 | V77: a53 | W77: a54 | X77: a55 | BH77: a53 | BI77: =IF(U43="","N/A",U43) -> N/A | BJ77: 5 | BK77: 3
BH78: a14 | BI78: =IF(V35="","N/A",V35) -> N/A | BJ78: 1 | BK78: 4
BH79: a24 | BI79: =IF(V37="","N/A",V37) -> N/A | BJ79: 2 | BK79: 4
BH80: a34 | BI80: =IF(V39="","N/A",V39) -> N/A | BJ80: 3 | BK80: 4
BH81: a44 | BI81: =IF(V41="","N/A",V41) -> N/A | BJ81: 4 | BK81: 4
BH82: a54 | BI82: =IF(V43="","N/A",V43) -> N/A | BJ82: 5 | BK82: 4
BH83: a15 | BI83: =IF(W35="","N/A",W35) -> N/A | BJ83: 1 | BK83: 5
BH84: a25 | BI84: =IF(W37="","N/A",W37) -> N/A | BJ84: 2 | BK84: 5
BH85: a35 | BI85: =IF(W39="","N/A",W39) -> N/A | BJ85: 3 | BK85: 5
BH86: a45 | BI86: =IF(W41="","N/A",W41) -> N/A | BJ86: 4 | BK86: 5
BH87: a55 | BI87: =IF(W43="","N/A",W43) -> N/A | BJ87: 5 | BK87: 5

Sheet 12) Inv
AQ1: +
C2: A) Finding the Inverse Matrix, Method 1 Using the All Integers | N2: B) Finding Inverse Method 2 (for 2 by 2 matrix only) | V2: C) To Solve Equations using the Inverse Matrix | AQ2: -
B3: Setup the initial matrix without decimals or fractions | X3: Fill the green cells including the middle signs | AM3: =COUNT(C7:D8) -> 4
N4: Original Setup | O4: a | P4: b | Q4: A = | R4: =C7 -> 2 | S4: =D7 -> 3 | T4: Same Matrix | AM4: =SUM(AM7:AM17) -> 0
C5: 2 by 2 matrix | G5: Original | I5: Identity | O5: c | P5: d | R5: =C8 -> 4 | S5: =D8 -> 7 | T5: of Method 1 | W5: 2 | X5: x | Y5: + | AA5: 3 | AB5: x | AC5: = | AD5: 5 | AF5: =AS14 ->  | AM5: =IF(COUNT(C7:D8)>2,1,0) -> 1 | AO5: =X10 -> 2 | AP5: =AA10 -> 3
C6: Fill the green cells | G6: Matrix A | I6: Matrix I | K6: Comment | N6: Re-arrange: Switch a and d, negate b and c: | W6: 4 | X6: y | Y6: + | AA6: 7 | AB6: y | AC6: = | AD6: 3 | AM6: =SUM(AM7:AM20) -> 0 | AO6: =X11 -> 4 | AP6: =AA11 -> 7
C7: 2 | D7: 3 | G7: =IF($AM$5=1,C7,"") -> 2 | H7: =IF($AM$5=1,D7,"") -> 3 | I7: =IF($AM$5=1,1,"") -> 1 | J7: =IF($AM$5=1,0,"") -> 0 | K7: =IF(COUNT(C7:D8)=0,"",IF(AM7=1,"No Inverse",IF(AM7=3,"Pivot = 0",""))) ->  | X7: Write the matrix equations | AM7: =IF(AND(G7=0,H7=0),1,IF(G7=0,3,0)) -> 0
B8: A = | C8: 4 | D8: 7 | G8: =IF(AND($AM$5=1,$AM$7=0),C8,"") -> 4 | H8: =IF(AND($AM$5=1,$AM$7=0),D8,"") -> 7 | I8: =IF($AM$5=1,0,"") -> 0 | J8: =IF($AM$5=1,1,"") -> 1 | K8: =IF(AM8=1,"No Inverse",IF(AM8=3,"Pivot = 0","")) ->  | N8: R = | O8: d | P8: -b | Q8: R = | R8: =S5 -> 7 | S8: =-1*S4 -> -3 | AM8: =IF(AND(G8=0,H8=0),1,0) -> 0 | AO8: =AP6 -> 7 | AP8: =-1*AP5 -> -3
K9: =IF(AM9=1,"No Inverse",IF(AM9=3,"Pivot = 0","")) -> 
O10: -c | P10: a | R10: =-1*R5 -> -4 | S10: =R4 -> 2 | W10: A = | X10: =W5 -> 2 | AA10: =IF(Y5="-",-1*AA5,AA5) -> 3 | AD10: X = | AE10: x | AG10: B = | AH10: =AD5 -> 5 | AM10: =SUM(AM7:AM9) -> 0 | AO10: =-1*AO6 -> -4 | AP10: =AO5 -> 2
G11: =IF(AND($AM$5=1,$AM$10=0),G7,"") -> 2 | H11: =IF(AND($AM$5=1,$AM$10=0),H7,"") -> 3 | I11: =IF(AND($AM$5=1,$AM$10=0),I7,"") -> 1 | J11: =IF(AND($AM$5=1,$AM$10=0),J7,"") -> 0 | K11: =IF(AM11=1,"No Inverse",IF(AM11=3,"Pivot = 0","")) ->  | X11: =W6 -> 4 | AA11: =IF(Y6="-",-1*AA6,AA6) -> 7 | AE11: y | AH11: =AD6 -> 3 | AM11: =IF(AND(G11=0,H11=0),1,0) -> 0
G12: =IF(AND($AM$5=1,$AM$10=0),0,"") -> 0 | H12: =IF(AND($AM$5=1,$AM$10=0),((H8*G7)-(G8*H7)),"") -> 2 | I12: =IF(AND($AM$5=1,$AM$10=0),((G7*I8)-(G8*I7)),"") -> -4 | J12: =IF(AND($AM$5=1,$AM$10=0),((G7*J8)-(G8*J7)),"") -> 2 | K12: =IF(AM12=1,"No Inverse",IF(AM12=3,"Pivot = 0","")) ->  | N12: Find T : | O12: T = (d) x (a ) - (-c) x (-b) | AM12: =IF(AND(G12=0,H12=0),1,IF(H12=0,3,0)) -> 0 | AP12: =(AO8*AP10) - (AO10*AP8) -> 2
K13: =IF(AM13=1,"No Inverse",IF(AM13=3,"Pivot = 0","")) -> 
O14: ="T = ("&R8& " x " &S10& ") - ("&R10&" x "&S8&" ) =" -> T = (7 x 2) - (-4 x -3 ) = | R14: =(R8*S10) - (R10*S8) -> 2 | W14: Find A -1 | AA14: A-1 = | AD14: =AS16 -> 3.5 | AF14: =AT16 -> -1.5 | AM14: =SUM(AM7:AM13) -> 0 | AP14: =IF(AP12=0,"",1/AP12) -> 0.5 | AS14: =IF(OR(W5=0,AA5=0,AD5=0),"",IF(AND(W6/W5=AA6/AA5,AA6/AA5=AD6/AD5),"One Line","")) -> 
G15: =IF(AND($AM$5=1,$AM$14=0),H12,"") -> 2 | H15: =IF(AND($AM$5=1,$AM$14=0),0,"") -> 0 | I15: =IF(AND($AM$5=1,$AM$14=0),(((H12*I11)-(H11*I12))/G7),"") -> 7 | J15: =IF(AND($AM$5=1,$AM$14=0),(((H12*J11)-(H11*J12))/G7),"") -> -3 | K15: =IF(AM15=1,"No Inverse",IF(AM15=3,"Pivot = 0","")) ->  | AD15: =AS17 -> -2 | AF15: =AT17 -> 1 | AM15: =IF(AND(G15=0,H15=0),1,0) -> 0 | AS15: =IF(AND(W5="",AA5="",W6="",AA6=""),1,COUNT(AS16:AT17)) -> 4
G16: =IF(AND($AM$5=1,$AM$14=0),0,"") -> 0 | H16: =IF(AND($AM$5=1,$AM$14=0),H12,"") -> 2 | I16: =IF(AND($AM$5=1,$AM$14=0),I12,"") -> -4 | J16: =IF(AND($AM$5=1,$AM$14=0),J12,"") -> 2 | N16: Find 1/T: | O16: 1 / T = | P16: =IF(COUNTA(C7:D8)=0,"","1 / "&R14) -> 1 / 2 | Q16: = | R16: =IF(R14=0,"",1/R14) -> 0.5 | AM16: =IF(AND(G16=0,H16=0),1,0) -> 0 | AO16: =IF(AP12=0,"",1/AP12) -> 0.5 | AP16: =AO8 -> 7 | AQ16: =AP8 -> -3 | AR16: = | AS16: =IFERROR(IF(AP14=0,"",AO16*AP16),"") -> 3.5 | AT16: =IFERROR(IF(AP12=0,"",AO16*AQ16),"") -> -1.5
V17: Solution : | Y17: A-1 . B = | AD17: =AD14 -> 3.5 | AF17: =AF14 -> -1.5 | AH17: . | AI17: =AH10 -> 5 | AP17: =AO10 -> -4 | AQ17: =AP10 -> 2 | AS17: =IFERROR(IF(AP14=0,"",AO16*AP17),"") -> -2 | AT17: =IFERROR(IF(AP14=0,"",AO16*AQ17),"") -> 1
G18: =IF(AND($AM$5=1,$AM$4=0),G15/H12,"") -> 1 | H18: =IF(AND($AM$5=1,$AM$4=0),0,"") -> 0 | I18: =IF(AND($AM$5=1,$AM$4=0),(I15/H12),"") -> 3.5 | J18: =IF(AND($AM$5=1,$AM$4=0),J15/H12,"") -> -1.5 | O18: A -1 = ( 1 / T ) x R | AD18: =AD15 -> -2 | AF18: =AF15 -> 1 | AI18: =AH11 -> 3 | AM18: =IF(AND(G18=0,H18=0,H17=0),1,IF(G18=0,3,0)) -> 0
G19: =IF(AND($AM$5=1,$AM$4=0),0,"") -> 0 | H19: =IF(AND($AM$5=1,$AM$4=0),H16/H12,"") -> 1 | I19: =IF(AND($AM$5=1,$AM$4=0),(I16/H12),"") -> -2 | J19: =IF(AND($AM$5=1,$AM$4=0),J16/H12,"") -> 1 | AM19: =IF(AND(G19=0,H19=0,H17=0),1,0) -> 0
G20: I | I20: A -1 | N20: = | O20: =IF(R14=0,"",1/R14) -> 0.5 | P20: =IF(R14=0,"",R8) -> 7 | Q20: =IF(R14=0,"",S8) -> -3 | R20: = | S20: =IF(R14=0,"",O20*P20) -> 3.5 | T20: =IF(R14=0,"",O20*Q20) -> -1.5 | W20: =IF(AS14="One Line","One Line",IF(AS15=0,"No Solution","")) ->  | AB20: X = | AD20: =IF(AS15=1,"",IF(OR(AS15=0,AS14="One Line"),"",AD17*AI17+AF17*AI18)) -> 13 | AF20: x = | AG20: =AD20 -> 13
P21: =IF(R14=0,"",R10) -> -4 | Q21: =IF(R14=0,"",S10) -> 2 | S21: =IF(R14=0,"",O20*P21) -> -2 | T21: =IF(R14=0,"",O20*Q21) -> 1 | AD21: =IF(AS15=1,"",IF(OR(AS15=0,AS14="One Line"),"",AD18*AI17+AF18*AI18)) -> -7 | AF21: y = | AG21: =AD21 -> -7
AE23: =#REF!*AG20+#REF!*AG21 -> 
AE24: =#REF!*AG21+#REF!*AI22 -> 
B26: Setup the initial matrix without decimals or fractions | Q26: To Solve 3 Equations using the Inverse Matrix
AM28: =IF(COUNT(C31:E33)>=6,1,0) -> 1
C29: 3 by 3 matrix | G29: Original Matrix A | J29: Identity matrix I | M29: Comment | S29: Fill the green cells | AM29: =IF(AND(G30=0,H30=0,I30=0),1,IF(G30=0,3,0)) -> 0 | AO29: 2x - 1y = 4
C30: Fill the green cells | G30: =IF($AM$28=1,C31,"") -> 2 | H30: =IF($AM$28=1,D31,"") -> 1 | I30: =IF($AM$28=1,E31,"") -> 3 | J30: =IF($AM$28=1,1,"") -> 1 | K30: =IF($AM$28=1,0,"") -> 0 | L30: =IF($AM$28=1,0,"") -> 0 | M30: =IF(AM29=1,"No Inverse",IF(AM29=3,"Pivot = 0","")) ->  | S30: x | T30: y | U30: z | W30: = | AM30: =IF(AND(G31=0,H31=0,I31=0),1,0) -> 0 | AO30: 1x +y = 5
C31: 2 | D31: 1 | E31: 3 | G31: =IF(AND($AM$28=1,$AM$29=0),C32,"") -> 0 | H31: 2 | I31: -1 | J31: =IF($AM$28=1,0,"") -> 0 | K31: =IF($AM$28=1,1,"") -> 1 | L31: =IF($AM$28=1,0,"") -> 0 | M31: =IF(AM30=1,"No Inverse",IF(AM30=3,"Pivot = 0","")) ->  | S31: 2 | T31: 1 | U31: 3 | W31: 5 | AM31: =IF(AND(G32=0,H32=0,I32=0),1,0) -> 0
B32: A = | C32: 0 | D32: 2 | E32: -1 | G32: 2 | H32: 1 | I32: 2 | K32: =IF($AM$28=1,0,"") -> 0 | L32: =IF($AM$28=1,1,"") -> 1 | M32: =IF(AM31=1,"No Inverse",IF(AM31=3,"Pivot = 0","")) ->  | S32: 0 | T32: 2 | U32: -1 | W32: 5 | AM32: =SUM(AM29:AM31) -> 0
C33: 2 | D33: 1 | E33: 2 | J33: =IF($AM$28=1,0,"") -> 0 | S33: 2 | T33: 1 | U33: 2 | W33: 5 | AM33: =IF(AND(G34=0,H34=0,I34=0),1,0) -> 0
G34: =IF(AND($AM$28=1,$AM$32=0),G30,"") -> 2 | H34: 1 | I34: 3 | J34: 1 | K34: 0 | L34: 0 | M34: =IF(AM33=1,"No Inverse",IF(AM33=3,"Pivot = 0","")) ->  | AM34: =IF(AND(G35=0,H35=0,I35=0),1,IF(H35=0,3,0)) -> 0
G35: =IF(AND($AM$28=1,$AM$32=0),0,"") -> 0 | H35: =IF(AND($AM$28=1,$AM$32=0),((H31*G30)-(G31*H30)),"") -> 4 | I35: =IF(AND($AM$28=1,$AM$32=0),((G30*I31)-(G31*I30)),"") -> -2 | J35: =IF(AND($AM$28=1,$AM$32=0),((G30*J31)-(G31*J30)),"") -> 0 | K35: =IF(AND($AM$28=1,$AM$32=0),((G30*K31)-(G31*K30)),"") -> 2 | L35: =IF(AND($AM$28=1,$AM$32=0),((G30*L31)-(G31*L30)),"") -> 0 | M35: =IF(AM34=1,"No Inverse",IF(AM34=3,"Pivot = 0","")) ->  | R35: =S31 -> 2 | S35: 1 | T35: 3 | W35: x | AA35: =W31 -> 5 | AM35: =IF(AND(G36=0,H36=0,I36=0),1,0) -> 0
G36: =IF(AND($AM$28=1,$AM$32=0),0,"") -> 0 | H36: =IF(AND($AM$28=1,$AM$32=0),((G30*H32)-(G32*H30)),"") -> 0 | I36: =IF(AND($AM$28=1,$AM$32=0),((G30*I32)-(G32*I30)),"") -> -2 | J36: =IF(AND($AM$28=1,$AM$32=0),((G30*J33)-(G32*J30)),"") -> -2 | K36: =IF(AND($AM$28=1,$AM$32=0),((G30*K32)-(G32*K30)),"") -> 0 | L36: =IF(AND($AM$28=1,$AM$32=0),((G30*L32)-(G32*L30)),"") -> 2 | M36: =IF(AM35=1,"No Inverse",IF(AM35=3,"Pivot = 0","")) ->  | Q36: A = | R36: 0 | S36: 2 | T36: -1 | U36: X = | W36: y | X36: B = | AA36: =W32 -> 5 | AM36: =SUM(AM29:AM35) -> 0
R37: 2 | S37: 1 | T37: 2 | W37: z | AA37: =W33 -> 5 | AM37: =IF(AND(G38=0,H38=0,I38=0),1,0) -> 0
G38: =IF(AND($AM$28=1,$AM$36=0),H35,"") -> 4 | H38: =IF(AND($AM$28=1,$AM$36=0),0,"") -> 0 | I38: =IF(AND($AM$28=1,$AM$36=0),(((H35*I34)-(H34*I35))/G30),"") -> 7 | J38: =IF(AND($AM$28=1,$AM$36=0),(((H35*J34)-(H34*J35))/G30),"") -> 2 | K38: =IF(AND($AM$28=1,$AM$36=0),(((H35*K34)-(H34*K35))/G30),"") -> -1 | L38: =IF(AND($AM$28=1,$AM$36=0),(((H35*L34)-(H34*L35))/G30),"") -> 0 | M38: =IF(AM37=1,"No Inverse",IF(AM37=3,"Pivot = 0","")) ->  | AM38: =IF(AND(G39=0,H39=0,I39=0),1,0) -> 0
G39: =IF(AND($AM$28=1,$AM$36=0),0,"") -> 0 | H39: =IF(AND($AM$28=1,$AM$36=0),H35,"") -> 4 | I39: =IF(AND($AM$28=1,$AM$36=0),I35,"") -> -2 | J39: =IF(AND($AM$28=1,$AM$36=0),J35,"") -> 0 | K39: =IF(AND($AM$28=1,$AM$36=0),K35,"") -> 2 | L39: =IF(AND($AM$28=1,$AM$36=0),L35,"") -> 0 | M39: =IF(AM38=1,"No Inverse",IF(AM38=3,"Pivot = 0","")) ->  | R39: =IFERROR(AQ45,"") -> -1.25 | S39: -0.25 | T39: 1.75 | AM39: =IF(AND(G40=0,H40=0,I40=0),1,IF(I40=0,3,0)) -> 0 | AN39: =IF(H35=0,3,"") ->  | AQ39: =COUNT(R45:T47) -> 9
G40: =IF(AND($AM$28=1,$AM$36=0),0,"") -> 0 | H40: =IF(AND($AM$28=1,$AM$36=0),0,"") -> 0 | I40: =IF(AND($AM$28=1,$AM$36=0),(((H35*I36)-(H36*I35))/G30),"") -> -4 | J40: =IF(AND($AM$28=1,$AM$36=0),(((H35*J36)-(H36*J35))/G30),"") -> -4 | K40: =IF(AND($AM$28=1,$AM$36=0),(((H35*K36)-(H36*K35))/G30),"") -> 0 | L40: =IF(AND($AM$28=1,$AM$36=0),(((H35*L36)-(H36*L35))/G30),"") -> 4 | M40: =IF(AM39=1,"No Inverse",IF(AM39=3,"Pivot = 0","")) ->  | Q40: A -1 = | R40: 0.5 | S40: 0.5 | T40: -0.5 | V40: =IFERROR(AQ45,"No Inverse") -> -1.25 | AM40: =SUM(AM29:AM39) -> 0
R41: 1 | S41: 0 | T41: -1 | AM41: =IF(AND(G42=0,H42=0,I42=0),1,IF(G42=0,3,0)) -> 0 | AQ41: =R35 -> 2 | AR41: 1 | AS41: 3
G42: =IF(AND($AM$28=1,$AM$40=0),I40,"") -> -4 | H42: =IF(AND($AM$28=1,$AM$40=0),0,"") -> 0 | I42: =IF(AND($AM$28=1,$AM$40=0),0,"") -> 0 | J42: =IF(AND($AM$28=1,$AM$40=0),(((I40*J38)-(I38*J40))/H35),"") -> 5 | K42: =IF(AND($AM$28=1,$AM$40=0),(((I40*K38)-(I38*K40))/H35),"") -> 1 | L42: =IF(AND($AM$28=1,$AM$40=0),(((I40*L38)-(I38*L40))/H35),"") -> -7 | M42: =IF(AM41=1,"No Inverse",IF(AM41=3,"Pivot = 0","")) ->  | Q42: Note: If the inverse matrix is not given, then you need to find it. | AM42: =IF(AND(G43=0,H43=0,I43=0),1,0) -> 0 | AQ42: 0 | AR42: 2 | AS42: -1
G43: =IF(AND($AM$28=1,$AM$40=0),0,"") -> 0 | H43: =IF(AND($AM$28=1,$AM$40=0),I40,"") -> -4 | I43: =IF(AND($AM$28=1,$AM$40=0),0,"") -> 0 | J43: =IF(AND($AM$28=1,$AM$40=0),(((I40*J39)-(I39*J40))/H35),"") -> -2 | K43: =IF(AND($AM$28=1,$AM$40=0),(((I40*K39)-(I39*K40))/H35),"") -> -2 | L43: =IF(AND($AM$28=1,$AM$40=0),(((I40*L39)-(I39*L40))/H35),"") -> 2 | M43: =IF(AM42=1,"No Inverse",IF(AM42=3,"Pivot = 0","")) ->  | AM43: =IF(AND(G44=0,H44=0,I44=0),1,0) -> 0 | AQ43: 2 | AR43: 1 | AS43: 2
G44: =IF(AND($AM$28=1,$AM$40=0),0,"") -> 0 | H44: =IF(AND($AM$28=1,$AM$40=0),0,"") -> 0 | I44: =IF(AND($AM$28=1,$AM$40=0),I40,"") -> -4 | J44: =IF(AND($AM$28=1,$AM$40=0),J40,"") -> -4 | K44: =IF(AND($AM$28=1,$AM$40=0),K40,"") -> 0 | L44: =IF(AND($AM$28=1,$AM$40=0),L40,"") -> 4 | M44: =IF(AM43=1,"No Inverse",IF(AM43=3,"Pivot = 0","")) ->  | P44: =IF(AQ39=0,"","Solution : ") -> Solution : | AC44: Then | AM44: =SUM(AM29:AM43) -> 0
R45: =R39 -> -1.25 | S45: -0.25 | T45: 1.75 | V45: =IF($AQ$39=0,"",AA35) -> 5 | AA45: =IF(AQ39=0,"",R45*V45+S45*V46+T45*V47) -> 1.25 | AD45: x = | AE45: =AA45 -> 1.25 | AQ45: =MINVERSE(AQ41:AS43) -> -1.25 | AR45: -0.25 | AS45: 1.75
G46: =IF(AND($AM$28=1,$AM$44=0),G42/I40,"") -> 1 | H46: =IF(AND($AM$28=1,$AM$44=0),0,"") -> 0 | I46: =IF(AND($AM$28=1,$AM$44=0),0,"") -> 0 | J46: =IF(AND($AM$28=1,$AM$44=0),J42/I40,"") -> -1.25 | K46: =IF(AND($AM$28=1,$AM$44=0),K42/I40,"") -> -0.25 | L46: =IF(AND($AM$28=1,$AM$44=0),L42/I40,"") -> 1.75 | P46: A-1 . B = | R46: 0.5 | S46: 0.5 | T46: -0.5 | U46: . | V46: =IF($AQ$39=0,"",AA36) -> 5 | Y46: = | AA46: =IF(AQ39=0,"",R46*V45+S46*V46+T46*V47) -> 2.5 | AD46: y = | AE46: =AA46 -> 2.5 | AQ46: 0.5 | AR46: 0.5 | AS46: -0.5
G47: =IF(AND($AM$28=1,$AM$44=0),0,"") -> 0 | H47: =IF(AND($AM$28=1,$AM$44=0),H43/I40,"") -> 1 | I47: =IF(AND($AM$28=1,$AM$44=0),0,"") -> 0 | J47: =IF(AND($AM$28=1,$AM$44=0),J43/I40,"") -> 0.5 | K47: =IF(AND($AM$28=1,$AM$44=0),K43/I40,"") -> 0.5 | L47: =IF(AND($AM$28=1,$AM$44=0),L43/I40,"") -> -0.5 | R47: 1 | S47: 0 | T47: -1 | V47: =IF($AQ$39=0,"",AA37) -> 5 | AA47: =IF(AQ39=0,"",R47*V45+S47*V46+T47*V47) -> 0 | AD47: z = | AE47: =AA47 -> 0 | AQ47: 1 | AR47: 0 | AS47: -1
G48: =IF(AND($AM$28=1,$AM$44=0),0,"") -> 0 | H48: =IF(AND($AM$28=1,$AM$44=0),0,"") -> 0 | I48: =IF(AND($AM$28=1,$AM$44=0),I44/I40,"") -> 1 | J48: =IF(AND($AM$28=1,$AM$44=0),J44/I40,"") -> 1 | K48: =IF(AND($AM$28=1,$AM$44=0),K44/I40,"") -> 0 | L48: =IF(AND($AM$28=1,$AM$44=0),L44/I40,"") -> -1 | S48: A -1 | V48: B | AA48: X
G49: I | J49: A -1

Sheet 13) 7.1 and 7.2
AA1: Or F(x) = | BO1: Line 1
B2: Section 7.1, 7.2 Template | E2: Fill Green Cells | J2: Line 1 | K2: =AK13&" "&AL13&" "&AM13 -> -1 x + 4 y = 4 | O2: Line 2 | P2: =AK14&" "&AL14&" "&AM14 -> 3 x + 5 y = 10 | R2: Line 3 | S2: =AK15&" "&AL15&" "&AM15 -> 0 x + 1 y = 2 | U2: Line 4 | V2: =AK16&" "&AL16&" "&AM16 ->  | X2: Objective Function | AA2: =IF(AND($X$4=0,$Y$4=0),"",IF($X$4="","0 x",ROUND($X$4,2)&" x")) -> 3 x | AB2: =IF(AND($X$4=0,$Y$4=0),"",IF($Y$4="","+ 0 y",IF($Y$4<0,ROUND($Y$4,2)&" y","+ "&ROUND($Y$4,2)&" y"))) -> + 2 y | AP2: Line 1 | AU2: Line 2 | AY2: Line 3 | BC2: Line 4 | BO2: Line 2
B3: This template is mainly to check your charts and corner point values. You still have to manually shade the solution region to decide the correct corner points. | J3: =IF(AND(C10=0,D10=0),"",IF(C14<>"",C14,"Intercept Points")) -> Intercept Points | O3: =IF(AND(C22=0,D22=0),"",IF(C26<>"",C26,"Intercept Points")) -> Intercept Points | R3: =IF(AND(C34=0,D34=0),"",IF(C38<>"",C38,"Intercept Points")) -> Horizontal Line | U3: =IF(AND(C46=0,D46=0),"",IF(C50<>"",C50,"Intercept Points")) ->  | X3: x | Y3: y | AA3: Try Values in F(x) | AP3: =IF(AP2="","","x-intercept") -> x-intercept | AQ3: =IF(BE9="H","",IF($C$10+$D$10+$F$10=0,"",IF($D$10=0,$F$10/$C$10,IF($D$10="","",IF($C$10=0,0,$F$10/$C$10))))) -> -4 | AR3: 0 | AU3: =IF(AU2="","","x-intercept") -> x-intercept | AV3: =IF(BI9="H","",IF($C$22+$D$22+$F$22=0,"",IF($D$22=0,$F$22/$C$22,IF($D$22="","",IF($C$22=0,0,$F$22/$C$22))))) -> 3.333333333 | AW3: 0 | AY3: =IF(AY2="","","x-intercept") -> x-intercept | AZ3: =IF(BM9="H","",IF($C$34+$D$34+$F$34=0,"",IF($D$34=0,$F$34/$C$34,IF($D$34="","",IF($C$34=0,0,$F$34/$C$34))))) -> 0 | BA3: 0 | BC3: =IF(BC2="","","x-intercept") -> x-intercept | BD3: =IF(BQ9="H","",IF($C$46+$D$46+$F$46=0,"",IF($D$46=0,$F$46/$C$46,IF($D$46="","",IF($C$46=0,0,$F$46/$C$46))))) ->  | BE3: 0 | BO3: Line 3
J4: =G12 -> ( -4, 0 ) | K4: =G13 -> ( 0, 1) | O4: =G24 -> ( 3.33, 0 ) | P4: =G25 -> ( 0, 2) | R4: =G36 ->  | S4: =G37 -> ( 0, 2) | U4: =G48 ->  | V4: =G49 ->  | X4: 3 | Y4: 2 | AA4: x | AB4: y | AP4: =IF(AP2="","","y-intercept") -> y-intercept | AQ4: 0 | AR4: =IF(BE9="V","",IF($C$10+$D$10+$F$10=0,"",IF($C$10=0,$F$10/$D$10,IF($D$10=0,0,IF($C$10="","",$F$10/$D$10))))) -> 1 | AU4: =IF(AU2="","","y-intercept") -> y-intercept | AV4: 0 | AW4: =IF(BI9="V","",IF($C$22+$D$22+$F$22=0,"",IF($C$22=0,$F$22/$D$22,IF($D$22=0,0,IF($C$22="","",$F$22/$D$22))))) -> 2 | AY4: =IF(AY2="","","y-intercept") -> y-intercept | AZ4: 0 | BA4: =IF(BM9="V","",IF($C$34+$D$34+$F$34=0,"",IF($C$34=0,$F$34/$D$34,IF($D$34=0,0,IF($C$34="","",$F$34/$D$34))))) -> 2 | BC4: =IF(BC2="","","y-intercept") -> y-intercept | BD4: 0 | BE4: =IF(BQ9="V","",IF($C$46+$D$46+$F$46=0,"",IF($C$46=0,$F$46/$D$46,IF($D$46=0,0,IF($C$46="","",$F$46/$D$46))))) ->  | BO4: Line 4
J8: Select | N8: Intersection | P8: Select | S8: Intersection | U8: Select | W8: Intersection | AA8: 0 | AB8: 1 | AC8: =IF(AND(AA8="",AB8=""),"",AA8*$X$4+AB8*$Y$4) -> 2 | AM8: x | AN8: y
B9: Line 1 | C9: x | D9: y | J9: Line 1 | K9: =VLOOKUP(J9,$AJ$13:$AM$16,2,FALSE)&" "&VLOOKUP(J9,$AJ$13:$AM$16,3,FALSE)&" "&VLOOKUP(J9,$AJ$13:$AM$16,4,FALSE) -> -1 x + 4 y = 4 | O9: ="x = "&ROUND((IFERROR(VLOOKUP(J13,$BF$9:$BH$53,2,FALSE),"")),2) -> x = 1.18 | P9: Line 1 | Q9: =VLOOKUP(P9,$AJ$13:$AM$16,2,FALSE)&" "&VLOOKUP(P9,$AJ$13:$AM$16,3,FALSE)&" "&VLOOKUP(P9,$AJ$13:$AM$16,4,FALSE) -> -1 x + 4 y = 4 | S9: ="x = "&ROUND((IFERROR(VLOOKUP(P13,$BF$9:$BH$53,2,FALSE),"")),2) -> x = 4 | U9: Line 2 | V9: =VLOOKUP(U9,$AJ$13:$AM$16,2,FALSE)&" "&VLOOKUP(U9,$AJ$13:$AM$16,3,FALSE)&" "&VLOOKUP(U9,$AJ$13:$AM$16,4,FALSE) -> 3 x + 5 y = 10 | W9: ="x = "&ROUND((IFERROR(VLOOKUP(V13,$BF$9:$BH$53,2,FALSE),"")),2) -> x = 0 | AA9: 10 | AB9: 0 | AC9: =IF(AND(AA9="",AB9=""),"",AA9*$X$4+AB9*$Y$4) -> 30 | AK9: =J9 -> Line 1 | AL9: =J10 -> Line 2 | AM9: =IFERROR(VLOOKUP(J13,$BF$9:$BH$37,2,FALSE),"") -> 1.176470588 | AN9: =IFERROR(VLOOKUP(J13,$BF$9:$BH$37,3,FALSE),"") -> 1.294117647 | AR9: Intersection Points: | BF9: Solutions | BJ9: Line 1_Line 2
C10: -1 | D10: 4 | E10: = | F10: 4 | J10: Line 2 | K10: =VLOOKUP(J10,$AJ$13:$AM$16,2,FALSE)&" "&VLOOKUP(J10,$AJ$13:$AM$16,3,FALSE)&" "&VLOOKUP(J10,$AJ$13:$AM$16,4,FALSE) -> 3 x + 5 y = 10 | O10: ="y = "&ROUND((IFERROR(VLOOKUP(J13,$BF$9:$BH$53,3,FALSE),"")),2) -> y = 1.29 | P10: Line 3 | Q10: =VLOOKUP(P10,$AJ$13:$AM$16,2,FALSE)&" "&VLOOKUP(P10,$AJ$13:$AM$16,3,FALSE)&" "&VLOOKUP(P10,$AJ$13:$AM$16,4,FALSE) -> 0 x + 1 y = 2 | S10: ="y = "&ROUND((IFERROR(VLOOKUP(P13,$BF$9:$BH$53,3,FALSE),"")),2) -> y = 2 | U10: Line 3 | V10: =VLOOKUP(U10,$AJ$13:$AM$16,2,FALSE)&" "&VLOOKUP(U10,$AJ$13:$AM$16,3,FALSE)&" "&VLOOKUP(U10,$AJ$13:$AM$16,4,FALSE) -> 0 x + 1 y = 2 | W10: ="y = "&ROUND((IFERROR(VLOOKUP(V13,$BF$9:$BH$53,3,FALSE),"")),2) -> y = 2 | AA10: 0 | AB10: 4 | AC10: =IF(AND(AA10="",AB10=""),"",AA10*$X$4+AB10*$Y$4) -> 8 | AK10: =P9 -> Line 1 | AL10: =P10 -> Line 3 | AM10: =IFERROR(VLOOKUP(P13,$BF$9:$BH$37,2,FALSE),"") -> 4 | AN10: =IFERROR(VLOOKUP(P13,$BF$9:$BH$37,3,FALSE),"") -> 2 | BI10: x | BJ10: =MMULT(MINVERSE($BJ$12:$BK$13), $BL$12:$BL$13) -> 1.176470588
C11: =IF(C10+D10+F10=0,"",IF(OR(C10=0,C10=""),"0 x",ROUND(C10,2)&" x")) -> -1 x | D11: =IF(C10+D10+F10=0,"",IF(OR(D10=0,D10=""),"+ 0 y",IF(D10>0,"+ "&ROUND(D10,2)&" y",D10&" y"))) -> + 4 y | E11: =IF(E10="","",IF(C10+D10+F10=0,"",E10)) -> = | F11: =IF(C10+D10+F10=0,"",F10) -> 4 | K11: F(x) = | L11: =IF(AND(AM9="",AN9=""),"NS",AM9*X4+AN9*Y4) -> 6.117647059 | R11: F(x) = | S11: =IF(AND(AM10="",AM10=""),"NS",AM10*X4+AN10*Y4) -> 16 | V11: F(x) = | W11: =IF(AND(AM11="",AM11=""),"NS",AM11*X4+AN11*Y4) -> 4 | AA11: 0 | AB11: 2.5 | AC11: =IF(AND(AA11="",AB11=""),"",AA11*$X$4+AB11*$Y$4) -> 5 | AK11: =U9 -> Line 2 | AL11: =U10 -> Line 3 | AM11: =IFERROR(VLOOKUP(V13,$BF$9:$BH$37,2,FALSE),"") -> -4.440892099e-16 | AN11: =IFERROR(VLOOKUP(V13,$BF$9:$BH$37,3,FALSE),"") -> 2 | BI11: y | BJ11: 1.294117647
F12: x-intcpt | G12: =IF(AZ21="H","",IF(AND(C10=0,D10=0,F10=0),"","( "&ROUND(AQ3,2)&", 0 )")) -> ( -4, 0 ) | AC12: =IF(AND(AA12="",AB12=""),"",AA12*$X$4+AB12*$Y$4) ->  | AR12: =IF(BR14="","","Line 1 and 2:") ->  | AZ12: x | BA12: y | BF12: 1,2 | BG12: =IFERROR(BJ10,"") -> 1.176470588 | BH12: =IF(BG12="","",IFERROR(BJ11,"")) -> 1.294117647 | BI12: 1 | BJ12: =$C$10 -> -1 | BK12: =$D$10 -> 4 | BL12: =$F$10 -> 4
B13: =IF(AND(C10=0,D10=0,F10=0),"",IF(AND(C10=0,F10=0),"",IF(AND(C10=0,D10=0,F10<>0),"",IF(AND(D10=0,F10=0),"",IF(D10=0,"Isolate x:","Isolate y:"))))) -> Isolate y: | C13: =IF(AND(C10=0,D10=0,F10=0),"",IF(AND(C10=0,F10=0),"",IF(AND(D10=0,F10=0),"",IF(AND(C10=0,D10=0,F10<>0),"",IF(C10=0,"y = "&F10&"/"&D10&" = "&ROUND(F10/D10,2),IF(D10=0,"x = "&F10&"/"&C10&" = "&ROUND(F10/C10,2),IF(F10<0,"y = ("&-C10&" x "&F11&") / "&D10,"y = ("&-C10&" x + "&F11&") / "&D10))))))) -> y = (1 x + 4) / 4 | F13: y-intcpt | G13: =IF(AZ21="V","",IF(AND(C10=0,D10=0,F10=0),"","( 0, " &ROUND(AR4,2)&")")) -> ( 0, 1) | J13: =RIGHT(J9,1)&","&RIGHT(J10,1) -> 1,2 | P13: =RIGHT(P9,1)&","&RIGHT(P10,1) -> 1,3 | V13: =RIGHT(U9,1)&","&RIGHT(U10,1) -> 2,3 | AJ13: Line 1 | AK13: =IF(AV13+AW13+AX13=0,"",IF(OR(AV13=0,AV13=""),"0 x",ROUND(AV13,2)&" x")) -> -1 x | AL13: =IF(AV13+AW13+AX13=0,"",IF(OR(AW13=0,AW13=""),"+ 0 y =",IF(AW13>0,"+ "&ROUND(AW13,2)&" y =",AW13&" y ="))) -> + 4 y = | AM13: =IF(AV13+AW13+AX13=0,"",AX13) -> 4 | AQ13: Line 1 | AU13: Line 1 | AV13: =C10 -> -1 | AW13: =D10 -> 4 | AX13: =F10 -> 4 | AZ13: =C10 -> -1 | BA13: =D10 -> 4 | BB13: =F10 -> 4 | BF13: 2,1 | BG13: =BG12 -> 1.176470588 | BH13: =BH12 -> 1.294117647 | BI13: 2 | BJ13: =$C$22 -> 3 | BK13: =$D$22 -> 5 | BL13: =$F$22 -> 10
C14: =IF(AND(C10=0,D10<>0,F10<>0),"Horizontal Line",IF(AND(C10<>0,D10=0,F10<>0),"Vertical Line",IF(AND(C10=0,D10=0,F10<>0),"No Solution",""))) ->  | F14: =IF(C14="Vertical Line","x =",IF(C14="Horizontal Line","y =","")) ->  | G14: =IF(C14="Vertical Line",F10/C10,IF(C14="Horizontal Line",F10/D10,"")) ->  | AJ14: Line 2 | AK14: =IF(AV14+AW14+AX14=0,"",IF(OR(AV14=0,AV14=""),"0 x",ROUND(AV14,2)&" x")) -> 3 x | AL14: =IF(AV14+AW14+AX14=0,"",IF(OR(AW14=0,AW14=""),"+ 0 y =",IF(AW14>0,"+ "&ROUND(AW14,2)&" y =",AW14&" y ="))) -> + 5 y = | AM14: =IF(AV14+AW14+AX14=0,"",AX14) -> 10 | AP14: ="1,2" -> 1,2 | AQ14: Line 2 | AR14: =VLOOKUP(AP14,$BF$10:$BH$53,2,FALSE) -> 1.176470588 | AS14: =VLOOKUP(AP14,$BF$10:$BH$53,3,FALSE) -> 1.294117647 | AU14: Line 2 | AV14: =C22 -> 3 | AW14: =D22 -> 5 | AX14: =F22 -> 10 | AZ14: =C22 -> 3 | BA14: =D22 -> 5 | BB14: =F22 -> 10
B15: Enter Values | C15: x = | D15: -5 | F15: y = | G15: =IF($C$14="No Solution","",AX21) -> -0.25 | AJ15: Line 3 | AK15: 0 x | AL15: + 1 y = | AM15: 2 | AU15: Line 3 | AV15: =C34 -> 0 | AW15: =D34 -> 1 | AX15: =F34 -> 2 | AZ15: =C34 -> 0 | BA15: =D34 -> 1 | BB15: =F34 -> 2 | BJ15: Line 1_Line 3
C16: x = | D16: 0 | F16: y = | G16: =IF($C$14="No Solution","",AX22) -> 1 | AJ16: Line 4 | AR16: =IF(BR15="","","Line 2 and 3:") ->  | AU16: Line 4 | AV16: =C46 -> 0 | AW16: =D46 -> 0 | AX16: =F46 -> 0 | AZ16: =C46 -> 0 | BA16: =D46 -> 0 | BB16: =F46 -> 0 | BI16: x | BJ16: =MMULT(MINVERSE($BJ$21:$BK$22), $BL$21:$BL$22) -> 4
C17: x = | D17: 10 | F17: y = | G17: =IF($C$14="No Solution","",AX23) -> 3.5 | AQ17: Line 2 | BI17: y | BJ17: 2
AP18: ="2,3" -> 2,3 | AQ18: Line 3 | AR18: =VLOOKUP(AP18,$BF$10:$BH$53,2,FALSE) -> -4.440892099e-16 | AS18: =VLOOKUP(AP18,$BF$10:$BH$53,3,FALSE) -> 2 | AV18: Charts
BI20: 1
B21: Line 2 | C21: x | D21: y | AR21: =IF(BR15="","","Line 1 and 3:") ->  | AV21: Line 1 | AW21: =IF(AW24=0,0,IF($AZ$21="H",$AW$24*-2,IF($AZ$21="V",$AW$24,IF($D$15="","",ROUND($D$15,2))))) -> -5 | AX21: =IF(AW24=0,0,IF(AND(D15=0,D10=0),"",IF($AZ$21="H",$AW$24,IF($AZ$21="v",-2*ABS($AW$24),IF($D$10="","",IF($D$10=0,$C$10,IF($D$15="","",($D$15*-$C$10+$F$10)/$D$10))))))) -> -0.25 | AZ21: =IF(AND(C10=0,D10=0,F10=0),"None",IF(C14="Vertical Line","V",IF(C14="Horizontal Line","H","R"))) -> R | BF21: 1,3 | BG21: =IFERROR(BJ16,"") -> 4 | BH21: =IF(BG21="","",IFERROR(BJ17,"")) -> 2 | BJ21: =$C$10 -> -1 | BK21: =$D$10 -> 4 | BL21: =$F$10 -> 4
C22: 3 | D22: 5 | E22: = | F22: 10 | AQ22: Line 1 | AW22: =IF(AW24=0,0,IF($AZ$21="H",$AW$24*2,IF($AZ$21="V",$AW$24,IF($D$16="","",ROUND($D$16,2))))) -> 0 | AX22: =IF(AW24=0,0,IF(AND(D16=0,D10=0),"",IF($AZ$21="H",$AW$24,IF($AZ$21="v",2*$AW$24,IF($D$10="","",IF($D$10=0,$C$10,IF($D$16="","",($D$16*-$C$10+$F$10)/$D$10))))))) -> 1 | BF22: 3,1 | BG22: =BG21 -> 4 | BH22: =BH21 -> 2 | BI22: 3 | BJ22: =$C$34 -> 0 | BK22: =$D$34 -> 1 | BL22: =$F$34 -> 2
C23: =IF(C22+D22+F22=0,"",IF(OR(C22=0,C22=""),"0 x",ROUND(C22,2)&" x")) -> 3 x | D23: =IF(C22+D22+F22=0,"",IF(OR(D22=0,D22=""),"+ 0 y",IF(D22>0,"+ "&ROUND(D22,2)&" y",D22&" y"))) -> + 5 y | E23: =IF(E22="","",IF(C22+D22+F22=0,"",E22)) -> = | F23: =IF(C22+D22+F22=0,"",F22) -> 10 | AP23: ="1,3" -> 1,3 | AQ23: Line 3 | AR23: =VLOOKUP(AP23,$BF$10:$BH$53,2,FALSE) -> 4 | AS23: =VLOOKUP(AP23,$BF$10:$BH$53,3,FALSE) -> 2 | AW23: =IF(AW24=0,0,IF($AZ$21="H",$AW$24*4,IF($AZ$21="V",$AW$24,IF($D$17="","",ROUND($D$17,2))))) -> 10 | AX23: =IF(AW24=0,0,IF(AND(D17=0,D10=0),"",IF($AZ$21="H",$AW$24,IF($AZ$21="v",4*$AW$24,IF($D$10="","",IF($D$10=0,$C$10,IF($D$17="","",($D$17*-$C$10+$F$10)/$D$10))))))) -> 3.5
F24: x-intcpt | G24: =IF(AZ26="H","",IF(AND(C22=0,D22=0,F22=0),"","( "&ROUND(AV3,2)&", 0 )")) -> ( 3.33, 0 ) | AW24: =IF(AND(D10=0,F10=0),0,IF(AND(C10=0,F10=0),0,IF(AZ21="V",(F10/C10),IF(AZ21="H",(F10/D10),"R")))) -> R | BJ24: Line 1_Line 4
B25: =IF(AND(C22=0,D22=0,F22=0),"",IF(AND(C22=0,F22=0),"",IF(AND(C22=0,D22=0,F22<>0),"",IF(AND(D22=0,F22=0),"",IF(D22=0,"Isolate x:","Isolate y:"))))) -> Isolate y: | C25: =IF(AND(C22=0,D22=0,F22=0),"",IF(AND(C22=0,F22=0),"",IF(AND(D22=0,F22=0),"",IF(AND(C22=0,D22=0,F22<>0),"",IF(C22=0,"y = "&F22&"/"&D22&" = "&ROUND(F22/D22,2),IF(D22=0,"x = "&F22&"/"&C22&" = "&ROUND(F22/C22,2),IF(F22<0,"y = ("&-C22&" x "&F23&") / "&D22,"y = ("&-C22&" x + "&F23&") / "&D22))))))) -> y = (-3 x + 10) / 5 | F25: y-intcpt | G25: =IF(AZ26="V","",IF(AND(C22=0,D22=0,F22=0),"","( 0, "&ROUND(AW4,2)&")")) -> ( 0, 2) | BI25: x | BJ25: =MMULT(MINVERSE($BJ$27:$BK$28), $BL$27:$BL$28) -> 
C26: =IF(AND(C22=0,D22<>0,F22<>0),"Horizontal Line",IF(AND(C22<>0,D22=0,F22<>0),"Vertical Line",IF(AND(C22=0,D22=0,F22<>0),"No Solution",""))) ->  | F26: =IF(C26="Vertical Line","x =",IF(C26="Horizontal Line","y =","")) ->  | G26: =IF(C26="Vertical Line",F22/C22,IF(C26="Horizontal Line",F22/D22,"")) ->  | AR26: =IF(BR16="","","Line 1 and 4:") ->  | AV26: Line 2 | AW26: =IF(AW29=0,0,IF($AZ$26="H",$AW$29*-2,IF($AZ$26="V",$AW$29,IF($D$27="","",ROUND($D$27,2))))) -> -5 | AX26: =IF(AW29=0,0,IF(AND(D27=0,D22=0),"",IF($AZ$26="H",$AW$29,IF($AZ$26="v",-2*ABS($AW$29),IF($D$22="","",IF($D$22=0,$C$22,IF($D$27="","",($D$27*-$C$22+$F$22)/$D$22))))))) -> 5 | AZ26: =IF(AND(C22=0,D22=0,F22=0),"None",IF(C26="Vertical Line","V",IF(C26="Horizontal Line","H","R"))) -> R | BI26: y
B27: Enter Values | C27: x = | D27: -5 | F27: y = | G27: =IF($C$26="No Solution","",AX26) -> 5 | AQ27: Line 1 | AW27: =IF(AW29=0,0,IF($AZ$26="H",$AW$29*2,IF($AZ$26="V",$AW$29,IF($D$28="","",ROUND($D$28,2))))) -> 0 | AX27: =IF(AW29=0,0,IF(AND(D28=0,D22=0),"",IF($AZ$26="H",$AW$29,IF($AZ$26="v",2*$AW$29,IF($D$22="","",IF($D$22=0,$C$22,IF($D$28="","",($D$28*-$C$22+$F$22)/$D$22))))))) -> 2 | BF27: 1,4 | BG27: =IFERROR(BJ25,"") ->  | BH27: =IF(BG27="","",IFERROR(BJ26,"")) ->  | BI27: 1 | BJ27: =$C$10 -> -1 | BK27: =$D$10 -> 4 | BL27: =$F$10 -> 4
C28: x = | D28: 0 | F28: y = | G28: =IF($C$26="No Solution","",AX27) -> 2 | AP28: ="1,4" -> 1,4 | AQ28: Line 4 | AR28: =VLOOKUP(AP28,$BF$10:$BH$53,2,FALSE) ->  | AS28: =VLOOKUP(AP28,$BF$10:$BH$53,3,FALSE) ->  | AW28: =IF(AW29=0,0,IF($AZ$26="H",$AW$29*4,IF($AZ$26="V",$AW$29,IF($D$16="","",ROUND($D$29,2))))) -> 10 | AX28: =IF(AW29=0,0,IF(AND(D29=0,D22=0),"",IF($AZ$26="H",$AW$29,IF($AZ$26="v",4*$AW$29,IF($D$22="","",IF($D$22=0,$C$22,IF($D$29="","",($D$29*-$C$22+$F$22)/$D$22))))))) -> -4 | BF28: 4,1 | BG28: =BG27 ->  | BH28: =BH27 ->  | BI28: 4 | BJ28: =$C$46 -> 0 | BK28: =$D$46 -> 0 | BL28: =$F$46 -> 0
C29: x = | D29: 10 | F29: y = | G29: =IF($C$26="No Solution","",AX28) -> -4 | AW29: =IF(AND(D22=0,F22=0),0,IF(AND(C22=0,F22=0),0,IF(AZ26="V",2*(F22/C22),IF(AZ26="H",(F22/D22),"R")))) -> R
AR30: =IF(BR16="","","Line 2 and 4:") ->  | BJ30: Line2_Line3
AQ31: Line 2
AP32: ="2,4" -> 2,4 | AQ32: Line 4 | AR32: =VLOOKUP(AP32,$BF$10:$BH$53,2,FALSE) ->  | AS32: =VLOOKUP(AP32,$BF$10:$BH$53,3,FALSE) -> 
B33: Line 3 | C33: x | D33: y | AV33: Line 3 | AW33: =IF(AW36=0,0,IF($AZ$33="H",$AW$36*-2,IF($AZ$33="V",$AW$36,IF($D$39="","",ROUND($D$39,2))))) -> -4 | AX33: =IF(AW36=0,0,IF(AND(D39=0,D34=0),"",IF($AZ$33="H",$AW$36,IF($AZ$33="v",-2*ABS($AW$36),IF($D$34="","",IF($D$34=0,$C$34,IF($D$39="","",($D$39*-$C$34+$F$34)/$D$34))))))) -> 2 | AZ33: =IF(AND(C34=0,D34=0,F34=0),"None",IF(C38="Vertical Line","V",IF(C38="Horizontal Line","H","R"))) -> H | BI33: x | BJ33: =MMULT(MINVERSE($BJ$35:$BK$36), $BL$35:$BL$36) -> -4.440892099e-16
D34: 1 | E34: = | F34: 2 | AR34: =IF(BR16="","","Line 3 and 4:") ->  | AW34: =IF(AW36=0,0,IF($AZ$33="H",$AW$36*2,IF($AZ$33="V",$AW$36,IF($D$40="","",ROUND($D$40,2))))) -> 4 | AX34: =IF(AW36=0,0,IF(AND(D40=0,D34=0),"",IF($AZ$33="H",$AW$36,IF($AZ$33="v",2*$AW$36,IF($D$34="","",IF($D$34=0,$C$34,IF($D$39="","",($D$40*-$C$34+$F$34)/$D$34))))))) -> 2 | BI34: y | BJ34: 2
C35: =IF(C34+D34+F34=0,"",IF(OR(C34=0,C34=""),"0 x",ROUND(C34,2)&" x")) -> 0 x | D35: =IF(C34+D34+F34=0,"",IF(OR(D34=0,D34=""),"+ 0 y",IF(D34>0,"+ "&ROUND(D34,2)&" y",D34&" y"))) -> + 1 y | E35: =IF(E34="","",IF(C34+D34+F34=0,"",E34)) -> = | F35: =IF(C34+D34+F34=0,"",F34) -> 2 | AQ35: Line 3 | AW35: =IF(AW36=0,0,IF($AZ$33="H",$AW$36*4,IF($AZ$33="V",$AW$36,IF($D$41="","",ROUND($D$41,2))))) -> 8 | AX35: =IF(AW36=0,0,IF(AND(D41=0,D34=0),"",IF($AZ$33="H",$AW$36,IF($AZ$33="v",4*$AW$36,IF($D$34="","",IF($D$34=0,$C$34,IF($D$39="","",($D$41*-$C$34+$F$34)/$D$34))))))) -> 2 | BF35: 2,3 | BG35: =IFERROR(BJ33,"") -> -4.440892099e-16 | BH35: =IF(BG35="","",IFERROR(BJ34,"")) -> 2 | BI35: 2 | BJ35: =$C$22 -> 3 | BK35: =$D$22 -> 5 | BL35: =$F$22 -> 10
F36: x-intcpt | G36: =IF(AZ33="H","",IF(AND(C34=0,D34=0,F34=0),"","( "&ROUND(AZ3,2)&", 0 )")) ->  | AP36: ="3,4" -> 3,4 | AQ36: Line 4 | AR36: =VLOOKUP(AP36,$BF$10:$BH$53,2,FALSE) ->  | AS36: =VLOOKUP(AP36,$BF$10:$BH$53,3,FALSE) ->  | AW36: =IF(AND(D34=0,F34=0),0,IF(AND(C34=0,F34=0),0,IF(AZ33="V",(F34/C34),IF(AZ33="H",(F34/D34),"R")))) -> 2 | BF36: 3,2 | BG36: =BG35 -> -4.440892099e-16 | BH36: =BH35 -> 2 | BI36: 3 | BJ36: =$C$34 -> 0 | BK36: =$D$34 -> 1 | BL36: =$F$34 -> 2
B37: =IF(AND(C34=0,D34=0,F34=0),"",IF(AND(C34=0,F34=0),"",IF(AND(C34=0,D34=0,F34<>0),"",IF(AND(D34=0,F34=0),"",IF(D34=0,"Isolate x:","Isolate y:"))))) -> Isolate y: | C37: =IF(AND(C34=0,D34=0,F34=0),"",IF(AND(C34=0,F34=0),"",IF(AND(D34=0,F34=0),"",IF(AND(C34=0,D34=0,F34<>0),"",IF(C34=0,"y = "&F34&"/"&D34&" = "&ROUND(F34/D34,2),IF(D34=0,"x = "&F34&"/"&C34&" = "&ROUND(F34/C34,2),IF(F34<0,"y = ("&-C34&" x "&F35&") / "&D34,"y = ("&-C34&" x + "&F35&") / "&D34))))))) -> y = 2/1 = 2 | F37: y-intcpt | G37: =IF(AZ33="V","",IF(AND(C34=0,D34=0,F34=0),"","( 0, " &ROUND(BA4,2)&")")) -> ( 0, 2)
C38: =IF(AND(C34=0,D34<>0,F34<>0),"Horizontal Line",IF(AND(C34<>0,D34=0,F34<>0),"Vertical Line",IF(AND(C34=0,D34=0,F34<>0),"No Solution",""))) -> Horizontal Line | F38: =IF(C38="Vertical Line","x =",IF(C38="Horizontal Line","y =","")) -> y = | G38: =IF(C38="Vertical Line",F34/C34,IF(C38="Horizontal Line",F34/D34,"")) -> 2 | AV38: Line 4 | AW38: =IF(AW41=0,0,IF($AZ$38="H",$AW$41*-2,IF($AZ$38="V",$AW$41,IF($D$51="","",ROUND($D$51,2))))) -> -5 | AX38: =IF(AW41=0,0,IF(AND(D51=0,D46=0),"",IF($AZ$38="H",$AW$41,IF($AZ$38="v",-2*ABS($AW$41),IF($D$46="","",IF($D$46=0,$C$46,IF($D$51="","",($D$51*-$C$46+$F$46)/$D$46))))))) ->  | AZ38: =IF(AND(C46=0,D46=0,F46=0),"None",IF(C50="Vertical Line","V",IF(C50="Horizontal Line","H","R"))) -> None
B39: Enter Values | C39: x = | D39: -5 | F39: y = | G39: =IF($C$38="No Solution","",AX33) -> 2 | AW39: =IF(AW41=0,0,IF($AZ$38="H",$AW$41*2,IF($AZ$38="V",$AW$41,IF($D$52="","",ROUND($D$52,2))))) -> 0 | AX39: =IF(AW41=0,0,IF(AND(D52=0,D46=0),"",IF($AZ$38="H",$AW$41,IF($AZ$38="v",2*$AW$41,IF($D$46="","",IF($D$46=0,$C$46,IF($D$51="","",($D$52*-$C$46+$F$46)/$D$46))))))) ->  | BJ39: Line2_Line 4
C40: x = | D40: 0 | F40: y = | G40: =IF($C$38="No Solution","",AX34) -> 2 | AW40: =IF(AW41=0,0,IF($AZ$38="H",$AW$41*4,IF($AZ$38="V",$AW$41,IF($D$53="","",ROUND($D$53,2))))) -> 5 | AX40: =IF(AW41=0,0,IF(AND(D53=0,D46=0),"",IF($AZ$38="H",$AW$41,IF($AZ$38="v",4*$AW$41,IF($D$46="","",IF($D$46=0,$C$46,IF($D$51="","",($D$53*-$C$46+$F$46)/$D$46))))))) ->  | BI40: x | BJ40: =MMULT(MINVERSE($BJ$45:$BK$46), $BL$45:$BL$46) -> 
C41: x = | D41: 5 | F41: y = | G41: =IF($C$38="No Solution","",AX35) -> 2 | AW41: =IF(AND(D38=0,F38=0),0,IF(AND(C38=0,F38=0),0,IF(AZ38="V",(F46/C46),IF(AZ38="H",(F46/D46),"R")))) -> R | BI41: y
B45: Line 4 | C45: x | D45: y | BF45: 2,4 | BG45: =IFERROR(BJ40,"") ->  | BH45: =IF(BG45="","",IFERROR(BJ41,"")) ->  | BI45: 2 | BJ45: =$C$22 -> 3 | BK45: =$D$22 -> 5 | BL45: =$F$22 -> 10
E46: = | BF46: 4,2 | BG46: =BG45 ->  | BH46: =BH45 ->  | BI46: 4 | BJ46: =$C$46 -> 0 | BK46: =$D$46 -> 0 | BL46: =$F$46 -> 0
C47: =IF(C46+D46+F46=0,"",IF(OR(C46=0,C46=""),"0 x",ROUND(C46,2)&" x")) ->  | D47: =IF(C46+D46+F46=0,"",IF(OR(D46=0,D46=""),"+ 0 y",IF(D46>0,"+ "&ROUND(D46,2)&" y",D46&" y"))) ->  | E47: =IF(E46="","",IF(C46+D46+F46=0,"",E46)) ->  | F47: =IF(C46+D46+F46=0,"",F46) -> 
F48: x-intcpt | G48: =IF(AZ38="H","",IF(AND(C46=0,D46=0,F46=0),"","( "&ROUND(BD3,2)&", 0 )")) ->  | BJ48: Line3_Line 4
B49: =IF(AND(C46=0,D46=0,F46=0),"",IF(AND(C46=0,F46=0),"",IF(AND(C46=0,D46=0,F46<>0),"",IF(AND(D46=0,F46=0),"",IF(D46=0,"Isolate x:","Isolate y:"))))) ->  | C49: =IF(AND(C46=0,D46=0,F46=0),"",IF(AND(C46=0,F46=0),"",IF(AND(D46=0,F46=0),"",IF(AND(C46=0,D46=0,F46<>0),"",IF(C46=0,"y = "&F46&"/"&D46&" = "&ROUND(F46/D46,2),IF(D46=0,"x = "&F46&"/"&C46&" = "&ROUND(F46/C46,2),IF(F46<0,"y = ("&-C46&" x "&F47&") / "&D46,"y = ("&-C46&" x + "&F47&") / "&D46))))))) ->  | F49: y-intcpt | G49: =IF(AZ38="V","",IF(AND(C34=0,D34=0,F34=0),"","( 0, " &ROUND(BE4,2)&")")) ->  | BI49: x | BJ49: =MMULT(MINVERSE($BJ$52:$BK$53), $BL$52:$BL$53) -> 
C50: =IF(AND(C46=0,D46<>0,F46<>0),"Horizontal Line",IF(AND(C46<>0,D46=0,F46<>0),"Vertical Line",IF(AND(C46=0,D46=0,F46<>0),"No Solution",""))) ->  | F50: =IF(C50="Vertical Line","x =",IF(C50="Horizontal Line","y =","")) ->  | G50: =IF(C50="Vertical Line",F46/C46,IF(C50="Horizontal Line",F46/D46,"")) ->  | BI50: y
B51: Enter Values | C51: x = | D51: -5 | F51: y = | G51: =IF(C$46="No Solution","",AX38) -> 
C52: x = | D52: 0 | F52: y = | G52: =IF(C$46="No Solution","",AX39) ->  | BF52: 3,4 | BG52: =IFERROR(BJ49,"") ->  | BH52: =IF(BG53="","",IFERROR(BJ50,"")) ->  | BI52: 3 | BJ52: =$C$34 -> 0 | BK52: =$D$34 -> 1 | BL52: =$F$34 -> 2
C53: x = | D53: 5 | F53: y = | G53: =IF(C$46="No Solution","",AX40) ->  | BF53: 4,3 | BG53: =BG52 ->  | BH53: =BH52 ->  | BI53: 4 | BJ53: =$C$46 -> 0 | BK53: =$D$46 -> 0 | BL53: =$F$46 -> 0

Sheet 13) Ch 7 Add ins
B2: To use the Template, you need to add : Solver as Add-Ins into your Excel | M2: To Allow Macros | O2: https://www.youtube.com/watch?v=joaC7QyRAPs
C4: Video Instruction:
C5: https://www.youtube.com/watch?v=LKV6fT8xApA
B8: Next, you need to do the following 2 steps:
B10: Step 1: press Alt+F11 to open up VBA.
B12: Step 2: Add the Solver reference in visual basic
C13: Tools > References..., then make sure that SOLVER is checked
C14: Check then click OK
C17: Save the file, and you don't have to do that again

Sheet 7.3 Template
I4: Fill Green Cells | J4: x: | K4: y: | Q4: Fill Green Cells | R4: x: | S4: y: | Y4: Max | Z4: Min | AB4: Max | AC4: Min | AE4: Max
I5: Products: | Q5: Products: | Y5: =MAX($AB$7) -> 0 | Z5: =MIN($AC$7) -> 0 | AB5: Total Profit | AC5: Total Profit | AE5: Min
I6: Production quantity | Q6: Production quantity | Y6: =COUNT($J$6:$K$6) -> 0 | Z6: =COUNT($R$6:$S$6) -> 0
I7: Objective: Maximum F = | Q7: Objective: Minimum F = | Y7: =$AB$12<=$M$12 -> TRUE | Z7: =$AC$14>=$U$14 -> TRUE | AB7: =(J7*J6)+(K7*K6) -> 0 | AC7: =(R7*R6)+(S7*S6) -> 0
Y8: =$AB$13<=$M$13 -> TRUE | Z8: =$AC$13>=$U$13 -> TRUE
I9: Constraints: Ingredient, Units | J9: x: | K9: y: | M9: Available | Q9: Constraints: Ingredient, Units | R9: x: | S9: y: | U9: Available | Y9: =$AB$14<=$M$14 -> TRUE | Z9: =$AC$15>=$U$15 -> TRUE | AB9: Used | AC9: Used
J10: =IF(J5="","",J5) ->  | K10: =IF(K5="","",K5) ->  | R10: =IF(R5="","",R5) ->  | S10: =IF(S5="","",S5) ->  | Y10: =$AB$15<=$M$15 -> TRUE | Z10: =$AC$11>=$U$11 -> TRUE
Y11: =$AB$11<=$M$11 -> TRUE | Z11: =$AC$12>=$U$12 -> TRUE | AB11: =(J11*$J$6)+(K11*$K$6) -> 0 | AC11: =(R11*$R$6)+(S11*$S$6) -> 0
Y12: ={32767,32767,0.000001,0.01,TRUE,FALSE,FALSE,1,1,1,0.0001,TRUE} -> 32767 | Z12: ={32767,32767,0.000001,0.01,TRUE,FALSE,FALSE,1,1,1,0.0001,TRUE} -> 32767 | AB12: =(J12*$J$6)+(K12*$K$6) -> 0 | AC12: =(R12*$R$6)+(S12*$S$6) -> 0
Y13: ={0,0,2,0,0,FALSE,FALSE,0.075,0,0,FALSE,30} -> 0 | Z13: ={0,0,2,0,0,FALSE,FALSE,0.075,0,0,FALSE,30} -> 0 | AB13: =(J13*$J$6)+(K13*$K$6) -> 0 | AC13: =(R13*$R$6)+(S13*$S$6) -> 0
AB14: =(J14*$J$6)+(K14*$K$6) -> 0 | AC14: =(R14*$R$6)+(S14*$S$6) -> 0
AB15: =(J15*$J$6)+(K15*$K$6) -> 0 | AC15: =(R15*$R$6)+(S15*$S$6) -> 0
J17: x = | K17: y = | M17: Max F = | R17: x = | S17: y = | U17: Min F =
I18: Results | J18: =IF(J7+K7=0,"",ROUND(J6,2)) ->  | K18: =IF(J7+K7=0,"",ROUND(K6,2)) ->  | M18: =IF(J7+K7=0,"",ROUND(AB7,2)) ->  | Q18: Results | R18: =IF(R7+S7=0,"",ROUND(R6,2)) ->  | S18: =IF(R7+S7=0,"",ROUND(S6,2)) ->  | U18: =IF(R7+S7=0,"",ROUND(AC7,2)) -> 
I23: =IF(J7+K7=0,"","Data Entered: ") ->  | Q23: =IF(R7+S7=0,"","Data Entered: ") -> 

Sheet 7.3 Examples

Sheet 14) 9.1
AC1: 1 | AD1: 1
D2: Fill T (2 by 2) | G2: Fill P0 and n | O2: Fill T (3 by 3) | T2: Fill P0 and n | AC2: 2 | AD2: 2
AC3: 3 | AD3: 3
A4: 1 | C4: T = | D4: 0.1 | E4: 0.9 | F4: =IF(OR(COUNT(D4:E4)<>2,SUM(D4:E4)<>1),"Error","") ->  | L4: 1 | N4: T = | O4: 1 | P4: 0 | Q4: 0 | R4: =IF(OR(COUNT(O4:Q4)<>3,SUM(O4:Q4)<>1),"Error","") ->  | AC4: 4 | AD4: 4
D5: 0.8 | E5: 0.2 | F5: =IF(OR(COUNT(D5:E5)<>2,SUM(D5:E5)<>1),"Error","") ->  | G5: P0= | H5: 0.8 | I5: 0.2 | O5: 0 | P5: 1 | Q5: 0 | R5: =IF(OR(COUNT(O5:Q5)<>3,SUM(O5:Q5)<>1),"Error","") ->  | T5: P0= | U5: 0.2 | V5: 0.7 | W5: 0.1 | AC5: 5 | AD5: 5
G6: =IF(G17=1,"","Error, sum per row must be =1") ->  | O6: 0.2 | P6: 0 | Q6: 0.8 | T6: =IF(T18=1,"","Error, sum per row must be =1") ->  | AC6: 6 | AD6: 6
A7: 2 | C7: T 2 = | D7: =MMULT($D$4:$E$5,$D$4:$E$5) -> 0.73 | E7: 0.27 | AD7: 7
D8: 0.24 | E8: 0.76 | G8: Tn where n = | I8: 4 | L8: 2 | N8: T 2 = | O8: =MMULT($O$4:$Q$6,$O$4:$Q$6) -> 1 | P8: 0 | Q8: 0 | T8: Tn where n = | V8: 2 | AD8: 8
O9: 0 | P9: 1 | Q9: 0 | AD9: 9
A10: 3 | C10: T 3 = | D10: =MMULT($D$7:$E$8,$D$4:$E$5) -> 0.289 | E10: 0.711 | G10: ="T"&I8&" =" -> T4 = | H10: =IF($I$8=1,D4,IF($I$8=2,D7,IF($I$8=3,D10,IF($I$8=4,D13,IF($I$8=5,D16,IF($I$8=6,D19,IF($I$8=7,D22,IF($I$8=8,D25,IF($I$8=9,D28,IF($I$8=10,D31,"")))))))))) -> 0.5977 | I10: =IF($I$8=1,E4,IF($I$8=2,E7,IF($I$8=3,E10,IF($I$8=4,E13,IF($I$8=5,E16,IF($I$8=6,E19,IF($I$8=7,E22,IF($I$8=8,E25,IF($I$8=9,E28,IF($I$8=10,E31,"")))))))))) -> 0.4023 | O10: 0.36 | P10: 0 | Q10: 0.64 | T10: ="T"&V8&" =" -> T2 = | U10: =IF($V$8=1,O4,IF($V$8=2,O8,IF($V$8=3,O12,IF($V$8=4,O16,IF($V$8=5,O20,IF($V$8=6,O24,"")))))) -> 1 | V10: 0 | W10: 0 | AD10: 10
D11: 0.632 | E11: 0.368 | H11: =IF($I$8=1,D5,IF($I$8=2,D8,IF($I$8=3,D11,IF($I$8=4,D14,IF($I$8=5,D17,IF($I$8=6,D20,IF($I$8=7,D23,IF($I$8=8,D26,IF($I$8=9,D29,IF($I$8=10,D32,"")))))))))) -> 0.3576 | I11: =IF($I$8=1,E5,IF($I$8=2,E8,IF($I$8=3,E11,IF($I$8=4,E14,IF($I$8=5,E17,IF($I$8=6,E20,IF($I$8=7,E23,IF($I$8=8,E26,IF($I$8=9,E29,IF($I$8=10,E32,"")))))))))) -> 0.6424 | U11: 0 | V11: 1 | W11: 0
L12: 3 | N12: T 3 = | O12: =MMULT($O$8:$Q$10,$O$4:$Q$6) -> 1 | P12: 0 | Q12: 0 | U12: 0.36 | V12: 0 | W12: 0.64
A13: 4 | C13: T 4 = | D13: =MMULT($D$7:$E$8,$D$7:$E$8) -> 0.5977 | E13: 0.4023 | G13: P0.Tn= | H13: =MMULT(H5:I5,H10:I11) -> 0.54968 | I13: 0.45032 | O13: 0 | P13: 1 | Q13: 0
D14: 0.3576 | E14: 0.6424 | H14: =H13 -> 0.54968 | I14: =I13 -> 0.45032 | O14: 0.488 | P14: 0 | Q14: 0.512 | T14: P0.Tn= | U14: =MMULT(U5:W5,U10:W12) -> 0.236 | V14: 0.7 | W14: 0.064
G15: =IF(OR(H13>1,I13>1,G6<>""),"Wrong Answer","") ->  | U15: =U14 -> 0.236 | V15: =V14 -> 0.7 | W15: =W14 -> 0.064
A16: 5 | C16: T 5 = | D16: =MMULT($D$13:E14,$D$4:$E$5) -> 0.38161 | E16: 0.61839 | L16: 4 | N16: T 4 = | O16: =MMULT($O$8:$Q$10,$O$8:$Q$10) -> 1 | P16: 0 | Q16: 0 | U16: =IF(OR(U14>1,V14>1,W14>1,T6<>""),"Wrong Answer","") -> 
D17: 0.54968 | E17: 0.45032 | G17: =SUM(H5:I5) -> 1 | O17: 0 | P17: 1 | Q17: 0
O18: 0.5904 | P18: 0 | Q18: 0.4096 | T18: =SUM(U5:W5) -> 1
A19: 6 | C19: T 6 = | D19: =MMULT($D$10:$E$11,$D$10:$E$11) -> 0.532873 | E19: 0.467127
D20: 0.415224 | E20: 0.584776 | L20: 5 | N20: T 5 = | O20: =MMULT($O$16:$Q$18,$O$4:Q6) -> 1 | P20: 0 | Q20: 0
O21: 0 | P21: 1 | Q21: 0
A22: 7 | C22: T 7 = | D22: =MMULT($D$19:$E$20,$D$4:$E$5) -> 0.4269889 | E22: 0.5730111 | O22: 0.67232 | P22: 0 | Q22: 0.32768
D23: 0.5093432 | E23: 0.4906568
L24: 6 | N24: T 6 = | O24: =MMULT($O$12:$Q$14,$O$12:$Q$14) -> 1 | P24: 0 | Q24: 0
A25: 8 | C25: T 8 = | D25: =MMULT($D$13:$E$14,$D$13:$E$14) -> 0.50110777 | E25: 0.49889223 | O25: 0 | P25: 1 | Q25: 0
D26: 0.44345976 | E26: 0.55654024 | O26: 0.737856 | P26: 0 | Q26: 0.262144
A28: 9 | C28: T 9 = | D28: =MMULT($D$16:$E$17,$D$13:$E$14) -> 0.449224561 | E28: 0.550775439 | N28: T 7 = | O28: =MMULT($O$16:$Q$18,$O$12:$Q$14) -> 1 | P28: 0 | Q28: 0
D29: 0.489578168 | E29: 0.510421832 | O29: 0 | P29: 1 | Q29: 0
O30: 0.7902848 | P30: 0 | Q30: 0.2097152
A31: 10 | C31: T 10 = | D31: =MMULT($D$16:$E$17,$D$16:$E$17) -> 0.4855428073 | E31: 0.5144571927
D32: 0.4572952824 | E32: 0.5427047176 | N32: T 8= | O32: =MMULT($O$16:$Q$18,$O$16:$Q$18) -> 1 | P32: 0 | Q32: 0
O33: 0 | P33: 1 | Q33: 0
O34: 0.83222784 | P34: 0 | Q34: 0.16777216

Sheet 15) Markov
C1: Fill the green cells only | S1: Fill the green cells only
V3: 0.3 | W3: 0.7 | X3: 0 | Y3: =IF(AND(COUNT(V3:X3)=3,SUM(V3:X3)<>1),"Error","") -> 
C4: Fill: | G4: 0.3 | H4: 0.7 | I4: =IF(AND(COUNT(G4:H4)=2,SUM(G4:H4)<>1),"Error","") ->  | R4: Fill: | V4: 0 | W4: 0 | X4: 1 | Y4: =IF(AND(COUNT(V4:X4)=3,SUM(V4:X4)<>1),"Error","") -> 
B5: Step 1: | C5: Transition Matrix | F5: T = | G5: 0.8 | H5: 0.2 | I5: =IF(AND(COUNT(G5:H5)=2,SUM(G5:H5)<>1),"Error","") ->  | P5: Step 1: | R5: Transition Matrix | U5: T = | V5: 0.2 | W5: 0 | X5: 0.8
B7: =IF(C7="",1,0) -> 1 | C7: =IF(COUNT(G4:H5)=0,"",IF(AND(G4+H4=1,G5+H5=1),"","Error: Sum Per Row is not = 1 in the Transition Matrix")) ->  | Q7: =IF(R7="",1,0) -> 1 | R7: =IF(COUNT(V3:X5)=0,"",IF(AND(V3+W3+X3=1,V4+W4+X4=1,V5+W5+X5=1),"","Error: Sum Per Row is not = 1 in the Transition Matrix")) -> 
I8: =IF(OR(I4<>"",I5<>""),"Sum must be =1","") ->  | Y8: =IF(OR(Y3<>"",Y4<>"",Y5<>""),"Sum must be =1","") -> 
G9: =IF(B7=0,"",G4) -> 0.3 | H9: =IF(B7=0,"",H4) -> 0.7 | V9: =IF(Q7=0,"",V3) -> 0.3 | W9: =IF(Q7=0,"",W3) -> 0.7 | X9: =IF(Q7=0,"",X3) -> 0
B10: Step 2: | D10: x | E10: y | F10: . | G10: =IF(B7=0,"",G5) -> 0.8 | H10: =IF(B7=0,"",H5) -> 0.2 | I10: = | J10: x | K10: y | P10: Step 2: | R10: x | S10: y | T10: z | U10: . | V10: =IF(Q7=0,"",V4) -> 0 | W10: =IF(Q7=0,"",W4) -> 0 | X10: =IF(Q7=0,"",X4) -> 1 | Y10: = | Z10: x | AA10: y | AB10: z
B11: Theory | P11: Theory | V11: =IF(Q7=0,"",V5) -> 0.2 | W11: =IF(Q7=0,"",W5) -> 0 | X11: =IF(Q7=0,"",X5) -> 0.8
B14: Step 3: | D14: =G9 -> 0.3 | E14: =IF(B7=0,"","x") -> x | F14: =IF(B7=0,"","+") -> + | G14: =G10 -> 0.8 | H14: =IF(B7=0,"","y") -> y | I14: =IF(B7=0,"","=") -> = | J14: =IF(B7=0,"","x") -> x | P14: Step 3: | R14: =V9 -> 0.3 | S14: =IF($Q$7=0,"","x") -> x | T14: =IF($Q$7=0,"","+") -> + | U14: =V10 -> 0 | V14: =IF($Q$7=0,"","y") -> y | W14: =IF($Q$7=0,"","+") -> + | X14: =V11 -> 0.2 | Y14: =IF($Q$7=0,"","z") -> z | Z14: =IF($Q$7=0,"","=") -> = | AA14: =IF($Q$7=0,"","x") -> x
B15: Multiply | D15: =H9 -> 0.7 | E15: =IF(B7=0,"","x") -> x | F15: =IF(B7=0,"","+") -> + | G15: =H10 -> 0.2 | H15: =IF(B7=0,"","y") -> y | I15: =IF(B7=0,"","=") -> = | J15: =IF(B7=0,"","y") -> y | P15: Multiply | R15: =W9 -> 0.7 | S15: =IF($Q$7=0,"","x") -> x | T15: =IF($Q$7=0,"","+") -> + | U15: =W10 -> 0 | V15: =IF($Q$7=0,"","y") -> y | W15: =IF($Q$7=0,"","+") -> + | X15: =W11 -> 0 | Y15: =IF($Q$7=0,"","z") -> z | Z15: =IF($Q$7=0,"","=") -> = | AA15: =IF($Q$7=0,"","y") -> y
R16: =X9 -> 0 | S16: =IF($Q$7=0,"","x") -> x | T16: =IF($Q$7=0,"","+") -> + | U16: =X10 -> 1 | V16: =IF($Q$7=0,"","y") -> y | W16: =IF($Q$7=0,"","+") -> + | X16: =X11 -> 0.8 | Y16: =IF($Q$7=0,"","z") -> z | Z16: =IF($Q$7=0,"","=") -> = | AA16: =IF($Q$7=0,"","z") -> z
D17: Note 1: Sum of each column above = 1 | R17: Note 1: Sum of each of the three columns above = 1
B19: Step 4: | D19: =IF(B7=0,"",D14-1) -> -0.7 | E19: =IF(B7=0,"","x") -> x | F19: =IF(B7=0,"","+") -> + | G19: =G14 -> 0.8 | H19: =IF(B7=0,"","y") -> y | I19: =IF(B7=0,"","=") -> = | J19: =IF(B7=0,"",0) -> 0 | P19: Step 4: | R19: =IF(Q7=0,"",R14-1) -> -0.7 | S19: =IF($Q$7=0,"","x") -> x | T19: =IF($Q$7=0,"","+") -> + | U19: =U14 -> 0 | V19: =IF($Q$7=0,"","y") -> y | W19: =IF($Q$7=0,"","+") -> + | X19: =X14 -> 0.2 | Y19: =IF($Q$7=0,"","z") -> z | Z19: =IF($Q$7=0,"","=") -> = | AA19: =IF(Q7=0,"",0) -> 0
B20: Simplify | D20: =D15 -> 0.7 | E20: =IF(B7=0,"","x") -> x | F20: =IF(B7=0,"","-") -> - | G20: =IF(B7=0,"",ABS(G15-1)) -> 0.8 | H20: =IF(B7=0,"","y") -> y | I20: =IF(B7=0,"","=") -> = | J20: =IF(B7=0,"",0) -> 0 | P20: Simplify | R20: =R15 -> 0.7 | S20: =IF($Q$7=0,"","x") -> x | T20: =IF($Q$7=0,"","-") -> - | U20: =IF(Q7=0,"",ABS(U15-1)) -> 1 | V20: =IF($Q$7=0,"","y") -> y | W20: =IF($Q$7=0,"","+") -> + | X20: =X15 -> 0 | Y20: =IF($Q$7=0,"","z") -> z | Z20: =IF($Q$7=0,"","=") -> = | AA20: =IF(Q7=0,"",0) -> 0
P21: Bring x, y and z to one side | R21: =R16 -> 0 | S21: =IF($Q$7=0,"","x") -> x | T21: =IF($Q$7=0,"","+") -> + | U21: =U16 -> 1 | V21: =IF($Q$7=0,"","y") -> y | W21: =IF($Q$7=0,"","-") -> - | X21: =IF(Q7=0,"",ABS(X16-1)) -> 0.2 | Y21: =IF($Q$7=0,"","z") -> z | Z21: =IF($Q$7=0,"","=") -> = | AA21: =IF(Q7=0,"",0) -> 0
B22: Bring x and y to one side | D22: =IF(B7=0,"","And:") -> And: | E22: =IF(B7=0,"","x") -> x | F22: =IF(B7=0,"","+") -> + | G22: =IF(B7=0,"","y") -> y | I22: =IF(B7=0,"","=") -> = | J22: =IF(B7=0,"","1") -> 1 | R22: =IF($Q$7=0,"","And:") -> And: | S22: =IF($Q$7=0,"","x") -> x | T22: =IF($Q$7=0,"","+") -> + | U22: =IF($Q$7=0,"","y") -> y | V22: =IF($Q$7=0,"","+") -> + | W22: =IF($Q$7=0,"","z") -> z | X22: =IF($Q$7=0,"","=") -> = | Y22: =IF(Q7=0,"",1) -> 1
C25: Removind Decimals: | I25: Enter: | Q25: Removind Decimals: | Y25: Enter:
C26: Mutiply the first equation by (10 or 100): | I26: 10 | Q26: Mutiply the first equation by (10 or 100): | Y26: 10
C27: By default, the second equation is deleted. | Q27: Mutiply the second equation by (10 or 100): | Y27: 10
Q28: By default, the third equation is deleted.
R29: =IF(Q7=0,"",R19*Y26) -> -7 | S29: =IF($Q$7=0,"","x") -> x | T29: =IF($Q$7=0,"","+") -> + | U29: =IF(Q7=0,"",U19*Y26) -> 0 | V29: =IF($Q$7=0,"","y") -> y | W29: =IF($Q$7=0,"","+") -> + | X29: =IF(Q7=0,"",X19*Y26) -> 2 | Y29: =IF($Q$7=0,"","z") -> z | Z29: =IF($Q$7=0,"","=") -> = | AA29: =IF(Q7=0,"",0) -> 0
